Workbook

Sheet Guide0
B2: =MAIN!A1 -> PVBAT 1.1 (version 30 november 2016)
B3: Vejledning og introduktion
B6: Introduktion
B7: Dette værktøj er udviklet med støtte af ELFORSK programmet under projektet "Boligejendomme med CO2 neutralt elforbrug – fase 1" med journal nr. 346-048. Partnerne i projektet er:
B8: COWI, Svend Erik Mikkelsen; sem@cowi.dk. Kommunikationsbureauet Rubrik, Steen Hartvig Jacobsen, steen@hartvig.com. NorthQ, Christian von Scholten, cvs@northq.com. IT Energy; Troels Fjordbak Larsen, E-mail: tfl@it-energy.dk. Lithium Balance; Lars Barkler, lba@lithiumbalance.com. Gaia Solar A/S, Anders Christoffer Sørensen, as@gaiasolar.dk.
B9: Ansvar: Projektgruppen påtager sig intet ansvar for den videre anvendelse af projektets resultater og af værktøjet, som helhed eller i uddrag, ligesom der tages forbehold for evt. fejl og mangler i værktøjet.
B10: Manuel beregning. Det anbefales at stille Excel til at foretage manuel beregning ved tryk på F9. Beregninger foretages da når man trykker på knapperne i programmet. Med automatisk beregning vil programmet foretage en beregning hver gang mand ændrer data og der er en vis beregningstid. Man finder denne indstilling "calculation options", under følgende menu. FILE - OPTIONS - FORMULA
B12: Vejledning | C12: Sheet
A13: 1 | B13: Indhent følgende data vedrørende den fysiske bygning og forbruget, som er nødvendige for at lave analysen. | C13: Indhent data
B15: 1. Tagarealer og eller facadearealer som er tilgængelige. Vurder hvor stor en del af disse der kan bruges til PV. Der skal bruges areal, orientering og udnyttelsesgrad i procent af tagflade. Hældning 15, 30, 45, 60 eller 90 grader. Orientering S, SV, SØ, V, Ø.
B16: 2. Find data for forbrug af el. Jo mere nøjagtige og detaljerede data jo bedre.
B17: a. Som minimum skal der bruges årsforbruget for el. Dette kan evt. bestemmes som et forbrug pr. enhed (lejlighed) x antal enheder + en vurdering af fællesforbruget.
B18: Dertil skal der så bruges en fordeling af dette forbrug over døgnet (opdelt i hverdage og weekend samt på individuelt og fælles forbrug), samt over året, ligeledes opdelt på hverdag og weekend. Man kan her bruge standard fordelinger fra litteraturen.
B19: b. Det bedste er at bruge målte timeværdier for forbruget over et helt år. Det er naturligvis kun muligt for eksisterende bygninger med timeaflæste elmålere.
B20: 3. Aktuel elpris inklusiv moms hvis der regnes med moms.
B21: 4. Aktuel elpris for overskud af el som sælges til nettet. Denne vil være 60 øre/kWh medmindre man bliver en del af puljesystemet for forhøjet PSO-støtte.
B22: Disse data er tilstrækkelig til at komme i gang.
B23: For alle øvrige data kan der i første omgang bruges foreslåede værdier som fremgår af sheet ”ID” til inddata i værktøjet. Disse værdier skal opfattes som eksempler og gives uden ansvar.
A25: 2 | B25: Gå til sheet ”ID” i Excel arket og udfyld data systematisk. | C25: ID
B26: Linjerne er nummeret og vejledningen henviser til disse numre.
B28: Bemærk at der kun kan og skal skrives data i de gule felter.
B30: Nogle af felterne skifter til rød som angiver at data i disse felter ikke bruges i den aktuelle beregning. Det er kun linjerne nr. 1, 112 og 113 der har indflydelse på dette skift. Disse linjer bestemmer valg af metode for angivelse af forbrug, valg af metode for angivelse af elpris, og valg af metode for angivelse af pris for salg af el. Eksempelvis er det sådan at hvis man bruger detaljerede timeværdier for forbruget (og angiver "2" i linje 1 i sheet ID), behøver man ikke at indtaste en fordeling over døgnet og det årlige forbrug i linje 2 til 48 samme sted. Data der står her bruges ikke når der i linje 1 står "2".
B32: I sheet ”ID” er der linje for linje en vejledning og i visse tilfælde en Excel comment som fås frem ved at pege på det røde felt her.
B34: Ønsker man at lave analyse med batteri anbefales det at definere en størrelse som udgangspunkt. Man kan da senere under parametervariationer ændre på kapaciteten, eller sætte den til nul. Størrelsen kan for eksempel sættes til noget der svarer til ½ dags for brug af el eller 0,1 % af den årlige produktion af PV. Dette skrives i linje 73. For de øvrige tal til batteriet kan man i første omgang bruge de foreslåede værdier som fremgår af sheet ”ID”.
B36: Når data er fyldt ind er man klar til en beregning og går til sheet ”MAIN”, eventuelt ved at trykke på en af knapperne med betegnelsen "MAIN" i sheet "ID".
A37: 3 | C37: Guide 1 -3
B38: Se først sheet ”Guide 1-3” vedr. opbygningen af MAIN.
A40: 4 | B40: Første beregning eller grundberegning. | C40: MAIN
B41: Inden den første beregning foretages slettes tidligere resultater ved at trykke på knapperne i MAIN foroven til sletning af data (med rød tekst). Der er ingen fortrydelse.
B42: Den første beregning ud fra de data der er sat in i ”ID” sker ved at trykke på knappen B1
A47: 5 | B47: Yderligere illustration for den aktuelle lige gennemførte beregning kan ses i sheet ”graf1” og ”graf2”. Tryk evt. på knapperne i MAIN. Disse grafer gælder for den sidst gennemførte beregning som anført. | C47: GRAF1 og GRAF2
A48: 6 | B48: Af sheet ”BR” fremgår detaljerede data i tabelform. I denne tabel opsamles data for alle gennemførte beregninger. Disse slettes først når man trykker på knappen til ”slet detaljerede data” i MAIN. Foretages en fornyet beregning overskrives tabellen i ”BR”. | C48: BR
B49: Forneden i sheet ”BR” fremgår de inddata der hører til den enkelte beregning.
B50: I tabellen er det sådan at værdier der er ændret i forhold til værdien i beregningen til venstre for denne, bliver farvet grønne. Dette giver et bedre overblik over hvor der sker ændringer. Dette gælder også for inddata forneden i ”BR”.
A51: 7 | B51: Når den grundlæggende beregning er foretaget kan man begynde på parametervariationer, dette er forklaret nærmere i sheet ”Guide4”, se denne. | C51: Guide4
A53: 8 | B53: Som det er forklaret i Guide4 kan man i området til venstre i MAIN, foretage ændringer på et udvalg af parametre, for eksempel batterikapaciteten. Det sker ved der ganges en faktor på, for eksempel 0,5 og man får da en beregning med det halve batteri. For at gennemføre beregningen trykkes på knappen B2 til B20 i MAIN. | C53: MAIN
B54: Et overblik over resultaterne af disse parametervariationer kan ses i graferne nederst i MAIN. For at kunne tolke disse bør man organisere parametervariationerne hensigtsmæssigt.
B56: Resultaterne og inddata opsamles endvidere i sheet BR | C56: BR

Sheet Guide 1
A1: =MAIN!A1 -> PVBAT 1.1 (version 30 november 2016)

Sheet Guide2
A1: =MAIN!A1 -> PVBAT 1.1 (version 30 november 2016)
A3: Udskrivt af excel comments in sheet "ID"

Sheet Guide3
A1: =MAIN!A1 -> PVBAT 1.1 (version 30 november 2016)
A3: Udskrivt af excel comments in sheet "ID"

Sheet Guide4
A1: =MAIN!A1 -> PVBAT 1.1 (version 30 november 2016)
A3: Pamametervariationer

Sheet ID
A1: =MAIN!A1 -> PVBAT 1.1 (version 30 november 2016)
K2: Der skal skrives data i felter der er gule. Data i felter der skifter til rød bruges ikke i den aktuelle beregning. Skiftet sker ud fra data der skrives i linje 1, 112 og 113.
B3: Forbrug | K3: TRYK F9 for at opdaterer efter ændringer (hvis man i Excel bruger manuel beregning) | W3: Til uddata
A4: 1 | B4: Vælg af inddata måde 1) beregn forbrug, 2) indsæt forbrug) | K4: 1 | L4: =IF(OR(K4=1,K4=2,K4=2),"","error") ->  | Q4: Vælges 1 beregnes forbrug på grundlag af data i linje 3-48 | W4: =Y4 -> 1 | Y4: =IF(bnr=1,K4,INDEX(Forbrug12,bnr)) -> 1
A5: 2 | B5: Døgnfordeling på forbrug | Q5: Vælges 2 indsættes det samlede elforbrug som timeværdi i linje 179 og følgende (8760 værdier) | Y5: til beregning
A6: 3 | K6: A | L6: B | M6: C | N6: D
A7: 4 | K7: Indv. hverdag | L7: Indv. weekend | M7: Fælles hverdag | N7: Fælles weekend | Q7: I tabellen linje 4-28 indsættes døgnvariation på elforbrug.
A8: 5 | I8: time | J8: 0 | K8: 35 | L8: 35 | M8: 35 | N8: 35 | Q8: Summen af tallene er uden betydning. | W8: =CONCATENATE(K8,"-",L8,"-",M8,"-",N8) -> 35-35-35-35
A9: 6 | J9: 1 | K9: 30 | L9: 30 | M9: 30 | N9: 30 | Q9: De indsatte værdier omregnes til en fordeling over døgnet. | W9: =CONCATENATE(K9,"-",L9,"-",M9,"-",N9) -> 30-30-30-30
A10: 7 | J10: 2 | K10: 28 | L10: 28 | M10: 28 | N10: 28 | Q10: A - Døgnfordeling for individuelt elforbrug på hverdage | W10: 28-28-28-28
A11: 8 | J11: 3 | K11: 27 | L11: 27 | M11: 27 | N11: 27 | Q11: B - Døgnfordeling for individuelt elforbrug i weekender | W11: 27-27-27-27
A12: 9 | J12: 4 | K12: 27 | L12: 27 | M12: 27 | N12: 27 | Q12: C - Døgnfordeling for fælles elforbrug på hverdage | W12: 27-27-27-27
A13: 10 | J13: 5 | K13: 27 | L13: 27 | M13: 27 | N13: 27 | Q13: D - Døgnfordeling for fælles elforbrug i weekender | W13: 27-27-27-27
A14: 11 | J14: 6 | K14: 29 | L14: 29 | M14: 29 | N14: 29 | W14: 29-29-29-29
A15: 12 | J15: 7 | K15: 32 | L15: 32 | M15: 32 | N15: 32 | W15: 32-32-32-32
A16: 13 | J16: 8 | K16: 35 | L16: 35 | M16: 35 | N16: 35 | W16: 35-35-35-35
A17: 14 | J17: 9 | K17: 38 | L17: 38 | M17: 38 | N17: 38 | W17: 38-38-38-38
A18: 15 | J18: 10 | K18: 40 | L18: 40 | M18: 40 | N18: 40 | W18: 40-40-40-40
A19: 16 | J19: 11 | K19: 42 | L19: 42 | M19: 42 | N19: 42 | W19: 42-42-42-42
A20: 17 | J20: 12 | K20: 43 | L20: 43 | M20: 43 | N20: 43 | W20: 43-43-43-43
A21: 18 | J21: 13 | K21: 44 | L21: 44 | M21: 44 | N21: 44 | W21: 44-44-44-44
A22: 19 | J22: 14 | K22: 47 | L22: 47 | M22: 47 | N22: 47 | W22: 47-47-47-47
A23: 20 | J23: 15 | K23: 50 | L23: 50 | M23: 50 | N23: 50 | W23: 50-50-50-50
A24: 21 | J24: 16 | K24: 53 | L24: 53 | M24: 53 | N24: 53 | W24: 53-53-53-53
A25: 22 | J25: 17 | K25: 62 | L25: 62 | M25: 62 | N25: 62 | W25: 62-62-62-62
A26: 23 | J26: 18 | K26: 65 | L26: 65 | M26: 65 | N26: 65 | W26: 65-65-65-65
A27: 24 | J27: 19 | K27: 60 | L27: 60 | M27: 60 | N27: 60 | W27: 60-60-60-60
A28: 25 | J28: 20 | K28: 53 | L28: 53 | M28: 53 | N28: 53 | W28: 53-53-53-53
A29: 26 | J29: 21 | K29: 50 | L29: 50 | M29: 50 | N29: 50 | W29: 50-50-50-50
A30: 27 | J30: 22 | K30: 45 | L30: 45 | M30: 45 | N30: 45 | W30: 45-45-45-45
A31: 28 | J31: 23 | K31: 40 | L31: 40 | M31: 40 | N31: 40 | W31: 40-40-40-40
A32: 29 | B32: Månedsfordeling på forbrug
A33: 30 | K33: A | L33: B | M33: C | N33: D
A34: 31 | K34: Indv. hverdag | L34: Indv.. weekend | M34: Fælles hverdag | N34: Fælles weekend | Q34: I tabellen 32-43 indsættes døgnvariation på elforbrug.
A35: 32 | J35: jan | K35: 1 | L35: 1 | M35: 1 | N35: 1 | Q35: Summen af tallene er uden betydning. | W35: =CONCATENATE(K35,"-",L35,"-",M35,"-",N35) -> 1-1-1-1
A36: 33 | J36: feb | K36: 1 | L36: 1 | M36: 1 | N36: 1 | Q36: De indsatte værdier omregnes til en fordeling. | W36: =CONCATENATE(K36,"-",L36,"-",M36,"-",N36) -> 1-1-1-1
A37: 34 | J37: mar | K37: 1 | L37: 1 | M37: 1 | N37: 1 | Q37: A - Månedsfordeling for individuelt elforbrug på hverdage | W37: 1-1-1-1
A38: 35 | J38: apr | K38: 1 | L38: 1 | M38: 1 | N38: 1 | Q38: B - Månedsfordeling for individuelt elforbrug i weekender | W38: 1-1-1-1
A39: 36 | J39: maj | K39: 1 | L39: 1 | M39: 1 | N39: 1 | Q39: C - Månedsfordeling for fælles elforbrug på hverdage | W39: 1-1-1-1
A40: 37 | J40: jun | K40: 1 | L40: 1 | M40: 1 | N40: 1 | Q40: D - Månedsfordeling for fælles elforbrug i weekender | W40: 1-1-1-1
A41: 38 | J41: jul | K41: 1 | L41: 1 | M41: 1 | N41: 1 | W41: 1-1-1-1
A42: 39 | J42: aug | K42: 1 | L42: 1 | M42: 1 | N42: 1 | W42: 1-1-1-1
A43: 40 | J43: sep | K43: 1 | L43: 1 | M43: 1 | N43: 1 | W43: 1-1-1-1
A44: 41 | J44: okt | K44: 1 | L44: 1 | M44: 1 | N44: 1 | W44: 1-1-1-1
A45: 42 | J45: nov | K45: 1 | L45: 1 | M45: 1 | N45: 1 | W45: 1-1-1-1
A46: 43 | J46: dec | K46: 1 | L46: 1 | M46: 1 | N46: 1 | W46: 1-1-1-1
A47: 44
A48: 45 | B48: Årsforbrug
A49: 46 | C49: Årligt individuelt elforbrug, kWh | K49: 2250 | Q49: Samlede årlige forbrug til forbrug pr. husstand (bolig), kWh pr. år | W49: =Y49 -> 2250 | X49: indv. forbrug | Y49: =K49 -> 2250
A50: 47 | C50: Antal forbrugere | K50: 96 | Q50: Antal lejligheder med forbruget i linje 46 | W50: =Y50 -> 96 | X50: antal brugere | Y50: =K50 -> 96
A51: 48 | C51: Samlede årlige fælles forbrug, kWh | K51: 0 | Q51: Fællesforbrug af el til lys, vask mv. , kWh pr. år | W51: =Y51 -> 0 | X51: fællesforbrug | Y51: =K51 -> 0
A52: 49 | C52: Beregnet max timeforbrug, kW | K52: =model!M8792 -> 38.38897547 | Q52: Beregnet maximalt timeforbrug af el, kWh/h eller kW | W52: =model!Y8792 -> 0
A53: 50 | C53: Beregnet gennemsnitligt forbrug, kW | K53: =model!M8793 -> 24.65753425 | Q53: Beregnet gennemsnitligt timeforbrug, kWh/h eller kW
A54: 51 | B54: Solceller
A55: 52 | B55: Fysiske Data for tagflader til placering af solceller | K55: Hældning | L55: Orientering. | M55: Areal | N55: Udn.grad | Q55: Der kan indsættes i alt 6 tagflader med PV. I linje 53-58 indsættes fysiske data for tagfladen. I linje 61 til 66 indsættes data for den valgte PV type | AD55: Beregnet areal | AE55: Beregnet effekt pr. m² | AG55: Effekt i alt W peak | AH55: orientering valgt | AM55: begge valgt Række nr.
A56: 53 | C56: Tagflade 1 | E56: Hældning 15, 30, 45, 60 og 90 | I56: =IF(K56=0,FALSE,AND(K56<>15,K56<>30,K56<>45,K56<>60,K56<>90)) -> FALSE | J56: =IF(L56=0,"FALSE",AND(L56<>"s",L56<>"sv",L56<>"sø",L56<>"v",L56<>"ø")) -> FALSE | K56: 45 | L56: sø | M56: 3500 | N56: 0.25 | Q56: Der kan kun vælges hældninger på 15, 30, 45, 60 og 90 grader | W56: =CONCATENATE(Y56,"-",Z56,"-",AA56,"-",AB56) -> 45-sø-3500-0.25 | X56: Tag1 | Y56: =_xlfn.NUMBERVALUE(K56) -> 45 | Z56: =L56 -> sø | AA56: =_xlfn.NUMBERVALUE(M56) -> 3500 | AB56: 0.25 | AD56: =AB56*AA56 -> 875 | AE56: =IF(Y64=1,Type1wperm2,IF(Y64=2,Type2wperm2,IF(Y64=3,type3wperm2,IF(Y64=4,type4wperm2,0)))) -> 160 | AF56: PV1W | AG56: =AD56*AE56*INDEX(Fsol,bnr) -> 140000 | AH56: =IF(Z56="s",1,IF(Z56="sv",6,IF(Z56="sø",11,IF(Z56="v",16,IF(Z56="ø",21,"error"))))) -> 11 | AI56: =AH56+1 -> 12 | AJ56: =AI56+1 -> 13 | AK56: =AJ56+1 -> 14 | AL56: =AK56+1 -> 15 | AM56: =(IF(Y56=15,AH56,IF(Y56=30,AI56,IF(Y56=45,AJ56,IF(Y56=60,AK56,IF(Y56=90,AL56,1)))))) -> 13 | AN56: Tag1søjle | AO56: hvis der ikke er værdier for det pågældende areal bruges vælges søjle 1. Se sidste led i formlen.
A57: 54 | C57: Tagflade 2 | E57: Orientering: S, SV, SØ, V, Ø | I57: FALSE | J57: FALSE | K57: 45 | L57: sv | M57: 500 | N57: 0.8 | Q57: Der kan kun vælges orienteringer på S, SV, SØ, V og Ø. | W57: 45-sv-500-0.8 | X57: Tag2 | Y57: 45 | Z57: sv | AA57: 500 | AB57: 0.8 | AD57: 400 | AE57: 160 | AF57: PV2W | AG57: 64000 | AH57: 6 | AI57: =AH57+1 -> 7 | AJ57: 8 | AK57: 9 | AL57: =AK57+1 -> 10 | AM57: 8 | AN57: tag2søjle | AO57: Det bliver så til nul når arealet ganges på.
A58: 55 | C58: Tagflade 3 | E58: Bruttoetageareal i m² | I58: FALSE | J58: FALSE | K58: 45 | L58: v | M58: 0 | N58: 0.8 | Q58: Areal er bruttoarealet af tagfladen. | W58: 45-v-0-0.8 | X58: Tag3 | Y58: 45 | Z58: v | AA58: 0 | AB58: 0.8 | AD58: 0 | AE58: 160 | AF58: PV3W | AG58: 0 | AH58: 16 | AI58: 17 | AJ58: 18 | AK58: 19 | AL58: =AK58+1 -> 20 | AM58: 18 | AN58: tag3søjle
A59: 56 | C59: Tagflade 4 | E59: Udnyttelsesgrad i pct. | I59: FALSE | J59: FALSE | Q59: Udnyttelsesgrad er en skønnet procentdel af tagfladen som er egnet til PV. | W59: 0-0-0-0 | X59: Tag4 | Y59: 0 | Z59: 0 | AA59: 0 | AB59: 0 | AD59: 0 | AE59: 0 | AF59: PV4W | AG59: 0 | AH59: error | AL59: =AK59+1 ->  | AM59: 1 | AN59: tag4søjle
A60: 57 | C60: Tagflade 5 | I60: FALSE | J60: FALSE | Q60: Skrives der ikke gyldige værdier under Hældning og Orientering bliver feltet rødt. | W60: 0-0-0-0 | X60: Tag5 | Y60: 0 | Z60: 0 | AA60: 0 | AB60: 0 | AD60: 0 | AE60: 0 | AF60: PV5W | AG60: 0 | AH60: error | AI60: =AH60+1 ->  | AL60: =AK60+1 ->  | AM60: 1 | AN60: tag5søjle
A61: 58 | C61: Tagflade 6 | I61: FALSE | J61: FALSE | Q61: Hvis man paster værdier i cellerne så brug "paste special" og "paste text" så formatering ikke overskrives | W61: 0-0-0-0 | X61: Tag6 | Y61: 0 | Z61: 0 | AA61: 0 | AB61: 0 | AD61: 0 | AE61: 0 | AF61: PV6W | AG61: 0 | AH61: error | AL61: =AK61+1 ->  | AM61: 1 | AN61: tag6søjle
A62: 59 | AD62: samlet PV effekt i kW | AG62: =IF(K70="ja",L8979/1000,SUM(AG56:AG61)/1000) -> 204
A63: 60 | B63: Solcelle data for tagflader | K63: Type | L63: Pris/kW | M63: Pris/m² | N63: Tab * | Q63: Typer af PV er defineret i linje 167-170. Disse kan defineres af brugeren. | AD63: pris type | AE63: pris
A64: 61 | C64: Tagflade 1 | J64: =AND(K56<>0,NOT(OR(K64=1,K64=2,K64=3,K64=4))) -> FALSE | K64: 2 | L64: 12000 | N64: 0.05 | Q64: Prisen (kun PV inkl. montering, ekskl. inverter), kan angives enten kr. pr. kW peak eller kr. pr. m². | W64: =CONCATENATE(Y64,"-",Z64,"-",AA64,"-",AB64) -> 2-12000-0-0.05 | Y64: =_xlfn.NUMBERVALUE(K64) -> 2 | Z64: 12000 | AA64: 0 | AB64: =_xlfn.NUMBERVALUE(N64) -> 0.05 | AD64: =IF(AA64>0,"AREAL",IF(Z64>0,"KW","None")) -> KW | AE64: =IF(AD64="areal",AD56*AA64,IF(AD64="kw",PV1W*Z64/1000,"error")) -> 1680000
A65: 62 | C65: Tagflade 2 | J65: FALSE | K65: 2 | L65: 12000 | N65: 0.05 | Q65: Tab er det samlede skønnede tab i systemet fra inverter, ledningstab, snavs, skygger mv. | W65: 2-12000-0-0.05 | Y65: 2 | Z65: 12000 | AA65: 0 | AB65: 0.05 | AD65: KW | AE65: =IF(AD65="areal",AD57*AA65,IF(AD65="kw",PV2W*Z65/1000,"error")) -> 768000
A66: 63 | C66: Tagflade 3 | J66: FALSE | K66: 2 | L66: 12000 | N66: 0.05 | Q66: BEMÆRK. Hvis der ikke er anført en type i linje 61 til 66 for en tagflade defineret | W66: 2-12000-0-0.05 | Y66: 2 | Z66: 12000 | AA66: 0 | AB66: 0.05 | AD66: KW | AE66: =IF(AD66="areal",AD58*AA66,IF(AD66="kw",PV3W*Z66/1000,"error")) -> 0
A67: 64 | C67: Tagflade 4 | J67: FALSE | Q67: i linje 53 til 58 bliver den ikke regnet med. Hvis det sker bliver feltet udfor type | W67: 0-0-0-0 | Y67: 0 | Z67: 0 | AA67: 0 | AB67: 0 | AD67: None | AE67: =IF(AD67="areal",AD59*AA67,IF(AD67="kw",PV4W*Z67/1000,"error")) -> error
A68: 65 | C68: Tagflade 5 | J68: FALSE | Q68: i linje 61 til 66 RØDT. Det samme sker hvis der anføres en værdi forskellig fra 1,2,3,4. | W68: 0-0-0-0 | Y68: =_xlfn.NUMBERVALUE(K68) -> 0 | Z68: 0 | AA68: 0 | AB68: 0 | AD68: None | AE68: =IF(AD68="areal",AD60*AA68,IF(AD68="kw",PV5W*Z68/1000,"error")) -> error
A69: 66 | C69: Tagflade 6 | J69: FALSE | Q69: Hvis man paster værdier i cellerne så brug "paste special" og "paste text" så formatering ikke overskrives | W69: 0-0-0-0 | Y69: 0 | Z69: 0 | AA69: 0 | AB69: 0 | AD69: None | AE69: =IF(AD69="areal",AD61*AA69,IF(AD69="kw",PV6W*Z69/1000,"error")) -> error
A70: 67 | B70: Ydelse beregnet i et andet program / samlet pris (tkr.) | K70: nej | L70: 0 | Q70: Skriv "ja" i første værdi hvis der bruges data indtastet i linje 219ff. Skriv samlet pris (tkr.) ekskl. moms i anden værdi | V70: HIDE i offentlig | Z70: =SUM(Z67) -> 0 | AA70: =SUM(AA64:AA67) -> 0 | AD70: kr. | AE70: =IF(K70="ja",L70*1000,INDEX(Fsolpris,bnr)*SUM(AE64:AE69)) -> 2448000 | AF70: samlet pris
A71: 68 | B71: Beregnet installeret effekt PV, kW peak | K71: =AG62 -> 204 | L71: Beregnes af programmet | Q71: Hvis der bruges indtastede værdier for PV produktion beregnes peak kW som årsproduktion divideret med 1000 kWh/h) | W71: =K71 -> 204 | Z71: =SUM(Z64:AA67) -> 36000 | AD71: kr./kW | AE71: =AE70/AG62 -> 12000 | AF71: pris på PV pr. kW peak
A72: 69 | B72: Installationspris PV, pga. linje 61-66, kr./kW | K72: =AE71 -> 12000 | L72: Beregnes af programmet | W72: =K72 -> 12000
A73: 70 | Z73: =Z64+AA64+Z65+AA65+Z66+AA66+Z67+AA67 -> 36000
A74: 71 | B74: Batteri | O74: Foreslået værdi
A75: 72 | B75: Størrelse | AA75: =AA64+Z65+AA66+Z67 -> 12000
A76: 73 | C76: Samlet nominel kapacitet , kWh | K76: 120 | O76: se comment | Q76: Samlet kapacitet af batteri ved fuld op og nedladning | W76: =Maxbatteri -> 60 | X76: Maxbatteri | Y76: =IF(bnr=1,K76,K76*INDEX(Fbat,bnr)) -> 60 | AA76: =Z64+AA65+Z66+AA67 -> 24000
A77: 74 | C77: Max ladning | K77: 0.9 | O77: 0.9 | Q77: Max "state of charge". Procentdel i forhold til kapaciteten. | W77: =maxpctbatteri -> 0.9 | X77: maxpctbatteri | Y77: =K77 -> 0.9
A78: 75 | C78: Min ladning | K78: 0.1 | O78: 0.1 | Q78: "state of charge" i procent som batteriet maximalt kan aflades til. | W78: =minpctbatteri -> 0.1 | X78: minpctbatteri | Y78: =K78 -> 0.1
A79: 76 | C79: Inverter kapacitet, pct af samlet nominel kapacitet, | K79: 0.4 | O79: 0.4 | Q79: 100 % betyder at inverteren til et 100 kWh batteri er på 100 kW således at batteriet kan aflades på 1 time. | W79: =Y79 -> 0.4 | X79: batinvpct | Y79: =K79 -> 0.4
A80: 77 | B80: Levetid | C80: Antal cyklusser ved fuld op/ned ladning (cycles to failure) (>95%) | K80: 6000 | O80: 8000 | Q80: Linje 77-81 angiver det antal cyklusser som batteriet kan levere uden væsentlig forringelse af kapaciteten. Den angives for fuld opladning efterfulgt af en dyb afladning og for procentdele heraf. | W80: =cycle100 -> 6000 | X80: cycle100 | Y80: =IF(bnr=1,K80,K80*INDEX(Fbatcyc,bnr)) -> 6000
A81: 78 | C81: Antal cyklusser ved 75% (cycles to failure) | K81: 7000 | O81: 8000 | W81: =cycle75 -> 7000 | X81: cycle75 | Y81: =IF(bnr=1,K81,K81*INDEX(Fbatcyc,bnr)) -> 7000
A82: 79 | C82: Antal cyklusser ved 50 % | K82: 8000 | O82: 8000 | W82: =cycle50 -> 8000 | X82: cycle50 | Y82: =IF(bnr=1,K82,K82*INDEX(Fbatcyc,bnr)) -> 8000
A83: 80 | C83: Antal cyklusser ved 25% | K83: 9000 | O83: 8000 | W83: =cycle25 -> 9000 | X83: cycle25 | Y83: =IF(bnr=1,K83,K83*INDEX(Fbatcyc,bnr)) -> 9000
A84: 81 | C84: Antal cyklusser ved 10% | K84: 10000 | O84: 8000 | W84: =cycle10 -> 10000 | X84: cycle10 | Y84: =IF(bnr=1,K84,K84*INDEX(Fbatcyc,bnr)) -> 10000
A85: 82 | C85: Float life time, år | K85: 15 | O85: 15 | Q85: Levetid for batteriet, dvs. den maximale anvendelsestid uafhængig af brugen. | W85: =levetidbatteri -> 15 | X85: levetidbatteri | Y85: =K85 -> 15
A86: 83 | B86: Pris | C86: Beregnet antal reinvesteringer / Restværdi | K86: =BR!AB33 -> 2 | L86: =BR!AB36 -> 0.6221428566 | Q86: Antal batterier købt / brøkdel af det sidste batteri der ikke er "brugt". Se comment til venstre.
A87: 84 | C87: Pris pr. kWh nominel effekt (ekskl. inverter) | K87: 6000 | O87: 6000 | Q87: Installationspris for batteri pr. kWh nominel kapacitet. Inkluderer evt. bygning mv., ekskl. inverter. | W87: =prisbatteri -> 6000 | X87: prisbatteri | Y87: =IF(bnr=1,K87,K87*INDEX(Fbatpris,bnr)) -> 6000
A88: 85 | C88: Pris ved genanskaffelse, kr./kWh | K88: 2000 | O88: 2000 | Q88: Samme pris ved genanskaffelse når batteriet er slidt op. | W88: =prisbatteriny -> 2000 | X88: prisbatteriny | Y88: =IF(bnr=1,K88,K88*INDEX(Fbatpris,bnr)) -> 2000
A89: 86 | B89: Effektivitet
A90: 87 | C90: Round trip efficiency (dvs. eff fra DC til batteri og tilbage til DC). I beregning opdeles det i to tab, et ved opladning og et ved afladning. | K90: 0.9 | O90: 0.95 | Q90: Effektiviteten af batteriet, den procentdel af el tilført batteriet som kan bruges. | W90: =effbatteri -> 0.9 | X90: effbatteri | Y90: =IF(bnr=1,K90,INDEX(Fbateff,bnr)) -> 0.9
A91: 88 | C91: Selvafladning (procent pr. måned) | K91: 0 | O91: 0.06 | Q91: Afladning af batteri som er uafhængig af brugen. Angives som en procentdel pr. måned. | W91: =selfdischarge -> 0 | X91: selfdischarge | Y91: =K91 -> 0
A92: 89 | B92: Batteristyring
A93: 90 | C93: Brug af batteri 0) Kun til PV. | K93: 0 | O93: 0 | Q93: Anføres 0 bruges batteriet kun til opladning af el fra PV når der er mulighed for det. | W93: =Y93 -> 0 | X93: batstyr1 | Y93: =IF(bnr=1,K93,INDEX(Fbatstyr1,bnr)) -> 0
A94: 91 | C94: 1) Til PV og til køb af el når det er billigt. | Q94: Anføres 1 bruges batteriet også til køb af el når det er billigere end gennemsnitsprisen.
A95: 92 | C95: 2) Til PV og til køb af el når der er plads. | Q95: Anføres 2 bruges batteriet også til køb af el når det er muligt aht. plads til PV dagen efter
A96: 93 | B96: Andre investeringer og diverse
A97: 94
A98: 95 | C98: Inverter pris (pr. kW peak PV/pr. kW batteriinverter) | K98: 1000 | L98: 2000 | O98: 1000/2000 | Q98: Pris for inverter angivet pr. kW peak PV. Se comment her til venstre (peg på feltet). | W98: =CONCATENATE(K98,"-",L98) -> 1000-2000 | Y98: =K98 -> 1000 | Z98: 2000
A99: 96 | C99: Elinstallationer, grundbeløb kr. (ekskl. moms) | K99: 0 | O99: 0 | Q99: Elinstallationer, som et grundbeløb som er uafhængig af anlægsstørrelse | W99: =Y99 -> 0 | Y99: 0
A100: 97 | C100: Elinstallationer, kr. pr. kW peak total (ekskl. moms) | K100: 0 | O100: 0 | Q100: Elinstallationer, beregnet som kr. pr. kW peak PV | W100: 0 | Y100: 0
A101: 98 | C101: Bygningsarbejder mv., kr. i alt (ekskl. moms) | K101: 0 | Q101: Investeringer i bygninger som er en del af projektet. | W101: 0 | Y101: 0
A102: 99 | C102: Uforudsete rådgivning mv. % af totalpris | K102: 0.1 | O102: 0.2 | Q102: Uforudsete udgifter afhænger af usikkerheden i projektet. Kan for eksempel være 20%. | W102: 0.1 | Y102: 0.1
A103: 100 | C103: MOMS procent som ønskes anvendt | K103: 0.25 | O103: 0.25 | Q103: Energipriser angives med moms. Her anføres i almindelighed den normale moms på 25%. | W103: 0.25 | Y103: 0.25
A104: 101
A105: 102 | B105: Finansiering mv.
A106: 103 | B106: Finansiering
A107: 104 | C107: Kalkulationsperiode. For investeringen / reinvestering i batteri | K107: 30 | L107: 10 | O107: 20 | Q107: kalkulationsperioden for reinvestering i batteri vil være kortere. Se comment til venstre. | W107: =Y107 -> 30 | Y107: =K107 -> 30 | Z107: =L107 -> 10
A108: 105 | C108: Kalkulationsrente | K108: 0.03 | O108: 0.04 | Q108: Se note til venstre. | W108: =Y108 -> 0.03 | Y108: =IF(bnr=1,K108,INDEX(Frente,bnr)) -> 0.03
A109: 106 | C109: Ydelsesstøtte (solcelledel / batteridel / støtteprocent / beregnet støtte | K109: 0.5 | L109: 0.9 | M109: 0.5 | O109: 50/90/50 | Q109: Til beregning af ydelsesstøtte fra Landsbyggefonden | W109: =CONCATENATE(Y109,"-",Z109,"-",AA109,"-",AB109) -> 0.5-0.9-0.5-0 | Y109: =K109 -> 0.5 | Z109: =L109 -> 0.9 | AA109: 0.5 | AB109: =INT(N109) -> 0
A110: 107 | C110: Drift, vedligehold, reinvestering, pct. af samlet invest. ekskl. moms | K110: 0.01 | O110: 0.02 | Q110: Se note ved linje 104 | W110: =Y110 -> 0.01 | Y110: =K110 -> 0.01
A111: 108 | C111: Administrationsomkostninger, pct. af samlede investeringer ekskl. moms | K111: 0 | O111: 0.01 | Q111: For eksempel udgifter til administration af bimålere. | W111: =Y111 -> 0 | Y111: =K111 -> 0
A112: 109 | C112: Beregnet årlig ydelse i procent af investering (ekskl. reinvesteringer) | K112: =BR!AB101 -> 0.03825435875 | Q112: Beregnede årlig ydelse (efter tilskud) i procent af samlet investering minus reinvesteringer. | W112: =Y112 -> 0.03825435875 | Y112: =K112 -> 0.03825435875
A113: 110 | B113: Elpriser (inkl. moms hvis der betales moms)
A114: 111 | B114: Køb og salg af el
A115: 112 | C115: Elpristype køb. Vælge type, se note | K115: 1 | L115: =IF(OR(K115=1,K115=2,K115=3),"","error") ->  | Q115: 1) Ud fra linje 114 og 150-188, 2) North pool priser, 3) Timeværdier i linje 179 ff. Se comment. | W115: =Y115 -> 1 | X115: elpristype | Y115: =IF(bnr=1,K115,INDEX(fElpristype,bnr)) -> 1
A116: 113 | C116: Elpristype salg, 1) beregnes , 0) indsættes som timeværdier | K116: 1 | L116: =IF(OR(K116=1,K116=2,K116=2),"","error") ->  | Q116: 1) Ud fra linje 115 og 150-188, 2) Indsatte værdier i linje 179 ff. Se comment. | W116: =Y116 -> 1 | X116: elsalgtype | Y116: =K116 -> 1
A117: 114 | C117: Elpris, køb gennemsnit kr./kWh | K117: =1.82*1.25 -> 2.275 | O117: 2.3 | Q117: Pris som bruges når der står 1 eller 2 i linje 104 | W117: 2.275 | X117: Elpriskøb | Y117: =IF(bnr=1,K117,K117*INDEX(Felpriskøb,bnr)) -> 2.275
A118: 115 | C118: Elpris, salg, gennemsnit kr./kWh | K118: 0.74 | O118: 0.6 | Q118: Pris som bruges når der står 1 i linje 105 | W118: 0.74 | X118: Elprissalg | Y118: =IF(bnr=1,K118,K118*INDEX(Felprissalg,bnr)) -> 0.74
A119: 116 | B119: Maximal effekt køb og salg (se faktor på effekt i linje 124 til 147)
A120: 117 | C120: Max effekt køb af el , kW | K120: 99 | O120: Se comment | Q120: Den maximale effekt el der kan købes fra nettet. Se også linje 127 til 147 om faktor på elkøb. | W120: 99 | X120: maxelkøb | Y120: =IF(bnr=1,K120,K120*INDEX(Fmaxkøb,bnr)) -> 99
A121: 118 | C121: Max effekt salg af el , kW | K121: 99 | Q121: Den maximale effekt el der kan sælges til nettet. Se også linje 127 til 147 om faktor på elkøb. | W121: 99 | X121: maxelsalg | Y121: =IF(bnr=1,K121,K121*INDEX(Fmaxsalg,bnr)) -> 99
A122: 119 | B122: Målerafgift og diverse
A123: 120 | C123: Målerafgift ved individuel tilslutning, kr. pr. år | K123: 0 | Q123: Afgift pr. måler hvis der er individuelle målere. Ganges med antal brugere i linje 47. | W123: 0 | Y123: =K123 -> 0
A124: 121 | C124: Rådighedsbetaling til netselskab kr./kWh PV-anlægget producerer | K124: 0 | Q124: Betaling til netselskab (pr. prod. kWh) som skal dække at de står til rådighed med effekten. Skaffes hos det lokale elselskab. | W124: 0 | Y124: =K124 -> 0
A125: 122 | C125: Storkundebesparelse på netabonnement, kr. pr. kunde | K125: 0 | Q125: Besparelsen som opnås ved at være storkunde angivet pr. kunde/boligenhed. Ganges med antal brugere i linje 47. | W125: 0 | Y125: =K125 -> 0
A126: 123 | K126: Køb | L126: Salg | Y126: fakelkøb | Z126: fakelsalg
A127: 124 | B127: Faktor på maximalt køb og salg af el | I127: time | J127: 0 | K127: 1 | L127: 1 | Q127: Timefaktor på maximal elkøb og elsalg | W127: =CONCATENATE(K127,"-",L127) -> 1-1 | X127: 0 | Y127: =K127 -> 1 | Z127: =L127 -> 1
A128: 125 | J128: =J127+1 -> 1 | K128: 1 | L128: 1 | Q128: Værdierne i tabellen ganges på max effekten | W128: =CONCATENATE(K128,"-",L128) -> 1-1 | X128: =X127+1 -> 1 | Y128: =K128 -> 1 | Z128: =L128 -> 1
A129: 126 | J129: =J128+1 -> 2 | K129: 1 | L129: 1 | Q129: i linje 117 og 118 henholdsvis. | W129: 1-1 | X129: =X128+1 -> 2 | Y129: 1 | Z129: 1
A130: 127 | J130: 3 | K130: 1 | L130: 1 | Q130: Er der anført for eksempel 50 kW i linje 117 som max. | W130: 1-1 | X130: 3 | Y130: 1 | Z130: 1
A131: 128 | J131: 4 | K131: 1 | L131: 1 | Q131: effekt og der skrives 0,5 udfor kl. 6 under "køb" kan der | W131: 1-1 | X131: 4 | Y131: 1 | Z131: 1
A132: 129 | J132: 5 | K132: 1 | L132: 1 | Q132: meximalt købes 25 kW i time nr. 6. | W132: 1-1 | X132: 5 | Y132: 1 | Z132: 1
A133: 130 | J133: 6 | K133: 1 | L133: 1 | Q133: Det forbrug der så ikke kan dækkes med batteriet vil | W133: 1-1 | X133: 6 | Y133: 1 | Z133: 1
A134: 131 | J134: 7 | K134: 1 | L134: 1 | Q134: ikke blive dækket og opgøres som ikke dækket elforbrug | W134: 1-1 | X134: 7 | Y134: 1 | Z134: 1
A135: 132 | J135: 8 | K135: 1 | L135: 1 | Q135: Værdier lig 1,0 er gule. Værdier forskellig fra 1,0 bliver røde | W135: 1-1 | X135: 8 | Y135: 1 | Z135: 1
A136: 133 | J136: 9 | K136: 1 | L136: 1 | W136: 1-1 | X136: 9 | Y136: 1 | Z136: 1
A137: 134 | J137: 10 | K137: 1 | L137: 1 | W137: 1-1 | X137: 10 | Y137: 1 | Z137: 1
A138: 135 | J138: 11 | K138: 1 | L138: 1 | W138: 1-1 | X138: 11 | Y138: 1 | Z138: 1
A139: 136 | J139: 12 | K139: 1 | L139: 1 | W139: 1-1 | X139: 12 | Y139: 1 | Z139: 1
A140: 137 | J140: 13 | K140: 1 | L140: 1 | W140: 1-1 | X140: 13 | Y140: 1 | Z140: 1
A141: 138 | J141: 14 | K141: 1 | L141: 1 | W141: 1-1 | X141: 14 | Y141: 1 | Z141: 1
A142: 139 | J142: 15 | K142: 1 | L142: 1 | W142: 1-1 | X142: 15 | Y142: 1 | Z142: 1
A143: 140 | J143: 16 | K143: 1 | L143: 1 | W143: 1-1 | X143: 16 | Y143: 1 | Z143: 1
A144: 141 | J144: 17 | K144: 1 | L144: 1 | W144: 1-1 | X144: 17 | Y144: 1 | Z144: 1
A145: 142 | J145: 18 | K145: 1 | L145: 1 | W145: 1-1 | X145: 18 | Y145: 1 | Z145: 1
A146: 143 | J146: 19 | K146: 1 | L146: 1 | W146: 1-1 | X146: 19 | Y146: 1 | Z146: 1
A147: 144 | J147: 20 | K147: 1 | L147: 1 | W147: 1-1 | X147: 20 | Y147: 1 | Z147: 1
A148: 145 | J148: 21 | K148: 1 | L148: 1 | W148: 1-1 | X148: 21 | Y148: 1 | Z148: 1
A149: 146 | J149: 22 | K149: 1 | L149: 1 | W149: 1-1 | X149: 22 | Y149: 1 | Z149: 1
A150: 147 | J150: =J149+1 -> 23 | K150: 1 | L150: 1 | W150: 1-1 | X150: =X149+1 -> 23 | Y150: 1 | Z150: 1
A151: 148
A152: 149 | B152: Faktor på elpris køb og salg | K152: Elpris køb | L152: Elpris salg | Q152: Faktor på elpris køb og salg | Y152: =K152 -> Elpris køb | Z152: =L152 -> Elpris salg
A153: 150 | I153: Time | J153: 0 | K153: 1 | L153: 1 | Q153: Der beregnes en samlet faktor ved at gange timefaktoren og månedsfaktoren for en bestemt time. | W153: =CONCATENATE(K153,"-",L153) -> 1-1 | Y153: =K153 -> 1 | Z153: 1
A154: 151 | J154: 1 | K154: 1 | L154: 1 | Q154: Denne faktor ganges på prisen for køb og salg fra linje 114 eller 115 | W154: =CONCATENATE(K154,"-",L154) -> 1-1 | Y154: =K154 -> 1 | Z154: 1
A155: 152 | F155: Værdier forskellige fra 1 | J155: =J154+1 -> 2 | K155: 1 | L155: 1 | W155: 1-1 | Y155: 1 | Z155: 1
A156: 153 | F156: bliver lyserøde | J156: 3 | K156: 1 | L156: 1 | Q156: Eksempel | W156: 1-1 | Y156: 1 | Z156: 1
A157: 154 | J157: 4 | K157: 1 | L157: 1 | Q157: For time nr. 18 er faktoren for køb 1,3 og for måned 2 er timefaktoren 0,7. | W157: 1-1 | Y157: 1 | Z157: 1
A158: 155 | J158: 5 | K158: 1 | L158: 1 | Q158: Den samlede faktor der ganges på prisen for time 18 i februar bliver da 1,3 x 0,7 = 0,91 | W158: 1-1 | Y158: 1 | Z158: 1
A159: 156 | J159: 6 | K159: 1 | L159: 1 | W159: 1-1 | Y159: 1 | Z159: 1
A160: 157 | J160: 7 | K160: 1 | L160: 1 | Q160: Typer af variationer der ikke kan beregnes på denne måde kan beregnes for sig og indsættes i linje 179 ff. | W160: 1-1 | Y160: 1 | Z160: 1
A161: 158 | J161: 8 | K161: 1 | L161: 1 | Q161: Man skal da ændre værdien i linje 112 eller 113 for at disse værdier bliver brugt. | W161: 1-1 | Y161: 1 | Z161: 1
A162: 159 | J162: 9 | K162: 1 | L162: 1 | W162: 1-1 | Y162: 1 | Z162: 1
A163: 160 | J163: 10 | K163: 1 | L163: 1 | W163: 1-1 | Y163: 1 | Z163: 1
A164: 161 | J164: 11 | K164: 1 | L164: 1 | W164: 1-1 | Y164: 1 | Z164: 1
A165: 162 | J165: 12 | K165: 1 | L165: 1 | W165: 1-1 | Y165: 1 | Z165: 1
A166: 163 | J166: 13 | K166: 1 | L166: 1 | W166: 1-1 | Y166: 1 | Z166: 1
A167: 164 | J167: 14 | K167: 1 | L167: 1 | W167: 1-1 | Y167: 1 | Z167: 1
A168: 165 | J168: 15 | K168: 1 | L168: 1 | W168: 1-1 | Y168: 1 | Z168: 1
A169: 166 | J169: 16 | K169: 1 | L169: 1 | W169: 1-1 | Y169: 1 | Z169: 1
A170: 167 | J170: 17 | K170: 1 | L170: 1 | W170: 1-1 | Y170: 1 | Z170: 1
A171: 168 | J171: 18 | K171: 1 | L171: 1 | W171: 1-1 | Y171: 1 | Z171: 1
A172: 169 | J172: 19 | K172: 1 | L172: 1 | W172: 1-1 | Y172: 1 | Z172: 1
A173: 170 | J173: 20 | K173: 1 | L173: 1 | W173: 1-1 | Y173: 1 | Z173: 1
A174: 171 | J174: 21 | K174: 1 | L174: 1 | W174: 1-1 | Y174: 1 | Z174: 1
A175: 172 | J175: 22 | K175: 1 | L175: 1 | W175: 1-1 | Y175: 1 | Z175: 1
A176: 173 | J176: 23 | K176: 1 | L176: 1 | W176: 1-1 | Y176: 1 | Z176: 1
A177: 174
A178: 175
A179: 176 | I179: Måned | K179: Elpris køb | L179: Elpris salg | Y179: =K179 -> Elpris køb | Z179: =L179 -> Elpris salg
A180: 177 | G180: Værdier forskellige fra 1 | J180: 1 | K180: 1 | L180: 1 | W180: =CONCATENATE(K180,"-",L180) -> 1-1 | Y180: 1 | Z180: 1
A181: 178 | G181: bliver lyserøde | J181: =J180+1 -> 2 | K181: 1 | L181: 1 | W181: =CONCATENATE(K181,"-",L181) -> 1-1 | Y181: 1 | Z181: 1
A182: 179 | J182: 3 | K182: 1 | L182: 1 | W182: 1-1 | Y182: 1 | Z182: 1
A183: 180 | J183: 4 | K183: 1 | L183: 1 | W183: 1-1 | Y183: 1 | Z183: 1
A184: 181 | J184: 5 | K184: 1 | L184: 1 | W184: 1-1 | Y184: 1 | Z184: 1
A185: 182 | J185: 6 | K185: 1 | L185: 1 | W185: 1-1 | Y185: 1 | Z185: 1
A186: 183 | J186: 7 | K186: 1 | L186: 1 | W186: 1-1 | Y186: 1 | Z186: 1
A187: 184 | J187: 8 | K187: 1 | L187: 1 | W187: 1-1 | Y187: 1 | Z187: 1
A188: 185 | J188: 9 | K188: 1 | L188: 1 | W188: 1-1 | Y188: 1 | Z188: 1
A189: 186 | J189: 10 | K189: 1 | L189: 1 | W189: 1-1 | Y189: 1 | Z189: 1
A190: 187 | J190: 11 | K190: 1 | L190: 1 | W190: 1-1 | Y190: 1 | Z190: 1
A191: 188 | J191: 12 | K191: 1 | L191: 1 | W191: 1-1 | Y191: 1 | Z191: 1
A192: 189 | B192: Miljø
A193: 190 | Q193: CO₂ bidrag beregnes på grundlag af netto køb af el til CO₂ indhold for de forskellige elpristyper som herunder.
A194: 191 | Q194: Nettokøb er: Direkte køb af el til forbrug + køb af el til batteri - salg af el til nettet
A195: 192 | C195: Elpristype 1 - CO₂ indhold i en kWh el, almindelig, g pr. kWh | K195: 288 | O195: 288 | Q195: CO₂ indhold for el svarende til elpristype 1 valgt i linje 112 | W195: =CO2el1 -> 288 | X195: CO2el1 | Y195: =K195 -> 288
A196: 193 | C196: Elpristype 2 - CO₂ indhold i en kWh el, almindelig, g pr. kWh | Q196: CO₂ indhold for el svarende til elpristype 2 valgt i linje 112 | W196: =CO2el2 -> 0 | X196: CO2el2 | Y196: 0
A197: 194 | C197: Elpristype 3 - CO₂ indhold i en kWh el, almindelig, g pr. kWh | Q197: CO₂ indhold for el svarende til elpristype 3 valgt i linje 112 | W197: =CO2el3 -> 0 | X197: CO2el3 | Y197: 0
A198: 195 | W198: =CO2el4 ->  | X198: CO2el4
A199: 196 | W199: =CO2el5 ->  | X199: CO2el5
A200: 197 | W200: =CO2el6 ->  | X200: CO2el6
... 4295 more rows

Sheet MAIN
A1: PVBAT 1.1 (version 30 november 2016)
F2: tjek 1-3 | H2: =model!AY1 -> 3.201394705e-10 | J2: =model!AY3 -> 0.6666666667
C3: Inddata der kan varieres | T3: Energi | AK3: Økonomi | AT3: GRAFER
C4: Den faktor f (0-999) der skrives i det gule felt ganges på værdier for basisberegning nr. 1 som er de date der er sat ind i sheet "ID". Gælder ikke hvor der er en Excel kommentar, se da denne.
C5: PV kapa-citet | D5: Batterikapacitet | E5: Battericyklus ved fuld | F5: Batteri eff. | G5: Batteri styring | H5: Elpris type | I5: Pris solceller | J5: Pris batte-rier og reinvest. | K5: Ren-te | L5: Elpris køb | M5: Elpris salg | N5: Forbrug 1/2 | O5: max køb | P5: max salg | Q5: Til note | T5: Elforbrug | U5: Pct. dækket forbrug | V5: PV produktion | W5: Batteri-tab | X5: PV til direkte forbrug | Y5: Elfor-brug fra batteri | Z5: Elforbrug direkte fra elnet | AA5: PV til batteri-oplad-ning | AB5: Elkøb fra elnet til batteri | AC5: Ikke dækket elfor-brug | AD5: EL solgt til elnettet | AE5: Ikke udnyttet el fra PV (spild) | AF5: Dækn. af egetforbr. med PV | AG5: Solgt i pct af produk-tion | AH5: Spild i pct af produk-tion | AI5: CO₂ indhold | AJ5: Investe-ringer inkl. moms | AK5: Heraf solcel-ler inkl. moms | AL5: Heraf batteri inkl. moms | AM5: Heraf rein-vest. i batteri | AN5: Driftsud-gifter inkl. moms | AO5: Heraf finansiering, støtte fratrukket | AP5: Heraf køb af el | AQ5: Heraf salg af el (minus) | AR5: Pris pr. kWh leveret | AT5: PV effekt, kW | AU5: Batteri kapacitet, kWh | AV5: Batteripris | AW5: Elpris køb | AX5: Elpris salg | AY5: Dækning med PV | AZ5: Solgt i pct af produk-tion | BA5: Spild i pct af produk-tion | BB5: Pris, kr/kWh | BC5: Dækning af forbrug %
C6: kW/f | D6: kWh/f | E6: cyc/f | F6: % | G6: 1/0 | I6: kr./kWp / f | J6: kr./kWh / f | K6: % | L6: kr./kWh / f | M6: kr./kWh / f | O6: kW/f | P6: kW/f | T6: kWh/år | U6: % | V6: kWh/år | W6: kWh/år | X6: kWh/år | Y6: kWh/år | Z6: kWh/år | AA6: kWh/år | AB6: kWh/år | AC6: kWh/år | AD6: kWh/år | AE6: kWh/år | AF6: % | AG6: % | AH6: % | AI6: Tons | AJ6: tkr. | AK6: tkr. | AL6: tkr. | AM6: tkr. | AN6: tkr./år | AO6: tkr./år | AP6: tkr./år | AQ6: tkr./år | AR6: kr./kWh
B8: 1 | C8: 204 | D8: 120 | E8: 6000 | F8: 0.9 | G8: 0 | H8: 1 | I8: 12000 | J8: 6000 | K8: 0.03 | L8: 2.275 | M8: 0.74 | N8: 1 | O8: 99 | P8: 99 | T8: 216000 | U8: 1 | V8: 190748.5938 | W8: 2312.358891 | X8: 79094.45779 | Y8: 23123.58891 | Z8: 113781.9533 | AA8: 25437.28114 | AB8: 0 | AC8: 1.110223025e-16 | AD8: 83686.10317 | AE8: 2530.751706 | AF8: 0.4839432358 | AG8: 0.4387246139 | AH8: 0.01326747241 | AI8: 32.76920255 | AJ8: 5045.104423 | AK8: 3060 | AL8: 900 | AM8: 251.4585662 | AN8: 429.0227669 | AO8: 191.7357041 | AP8: 258.8539437 | AQ8: -61.92771634 | AR8: 1.986216513
B10: 2 | D10: 0.5 | T10: 216000 | U10: 1 | V10: 190748.5938 | W10: 1225.218774 | X10: 79094.45779 | Y10: 12252.18774 | Z10: 124653.3545 | AA10: 13478.07318 | AB10: 0 | AC10: 2.664535259e-15 | AD10: 95586.64489 | AE10: 2589.417941 | AF10: 0.4285765323 | AG10: 0.5011132349 | AH10: 0.0135750303 | AI10: 35.90016609 | AJ10: 4376.667094 | AK10: 3060 | AL10: 450 | AM10: 153.7882674 | AN10: 416.8626676 | AO10: 168.9970667 | AP10: 283.5863814 | AQ10: -70.73411722 | AR10: 1.929919758 | AT10: =IF(ISBLANK(C10),C$8,C10*C$8) -> 204 | AU10: =IF(ISBLANK(D10),D$8,D10*D$8) -> 60 | AV10: =IF(ISBLANK(J10),J$8,J10*J$8) -> 6000 | AW10: =IF(ISBLANK(L10),L$8,L10*L$8) -> 2.275 | AX10: =IF(ISBLANK(M10),M$8,M10*M$8) -> 0.74 | AY10: =AF10 -> 0.4285765323 | AZ10: =AG10 -> 0.5011132349 | BA10: =AH10 -> 0.0135750303 | BB10: =AR10 -> 1.929919758 | BC10: =U10 -> 1
B11: =B10+1 -> 3 | AT11: =IF(ISBLANK(C11),C$8,C11*C$8) -> 204 | AU11: =IF(ISBLANK(D11),D$8,D11*D$8) -> 120 | AV11: =IF(ISBLANK(J11),J$8,J11*J$8) -> 6000 | AW11: =IF(ISBLANK(L11),L$8,L11*L$8) -> 2.275 | AX11: =IF(ISBLANK(M11),M$8,M11*M$8) -> 0.74 | AY11: 0 | AZ11: 0 | BA11: 0 | BB11: 0 | BC11: 0
B12: =B11+1 -> 4 | AT12: 204 | AU12: 120 | AV12: 6000 | AW12: 2.275 | AX12: 0.74 | AY12: 0 | AZ12: 0 | BA12: 0 | BB12: 0 | BC12: 0
B13: 5 | AT13: 204 | AU13: 120 | AV13: 6000 | AW13: 2.275 | AX13: 0.74 | AY13: 0 | AZ13: 0 | BA13: 0 | BB13: 0 | BC13: 0
B14: 6 | AT14: 204 | AU14: 120 | AV14: 6000 | AW14: 2.275 | AX14: 0.74 | AY14: 0 | AZ14: 0 | BA14: 0 | BB14: 0 | BC14: 0
B15: 7 | AT15: 204 | AU15: 120 | AV15: 6000 | AW15: 2.275 | AX15: 0.74 | AY15: 0 | AZ15: 0 | BA15: 0 | BB15: 0 | BC15: 0
B16: 8 | AT16: 204 | AU16: 120 | AV16: 6000 | AW16: 2.275 | AX16: 0.74 | AY16: 0 | AZ16: 0 | BA16: 0 | BB16: 0 | BC16: 0
B17: 9 | AT17: 204 | AU17: 120 | AV17: 6000 | AW17: 2.275 | AX17: 0.74 | AY17: 0 | AZ17: 0 | BA17: 0 | BB17: 0 | BC17: 0
B18: 10 | AT18: 204 | AU18: 120 | AV18: 6000 | AW18: 2.275 | AX18: 0.74 | AY18: 0 | AZ18: 0 | BA18: 0 | BB18: 0 | BC18: 0
B19: 11 | AT19: 204 | AU19: 120 | AV19: 6000 | AW19: 2.275 | AX19: 0.74 | AY19: 0 | AZ19: 0 | BA19: 0 | BB19: 0 | BC19: 0
B20: 12 | AT20: 204 | AU20: 120 | AV20: 6000 | AW20: 2.275 | AX20: 0.74 | AY20: 0 | AZ20: 0 | BA20: 0 | BB20: 0 | BC20: 0
B21: 13 | AT21: 204 | AU21: 120 | AV21: 6000 | AW21: 2.275 | AX21: 0.74 | AY21: 0 | AZ21: 0 | BA21: 0 | BB21: 0 | BC21: 0
B22: 14 | AT22: 204 | AU22: 120 | AV22: 6000 | AW22: 2.275 | AX22: 0.74 | AY22: 0 | AZ22: 0 | BA22: 0 | BB22: 0 | BC22: 0
B23: 15 | AT23: 204 | AU23: 120 | AV23: 6000 | AW23: 2.275 | AX23: 0.74 | AY23: 0 | AZ23: 0 | BA23: 0 | BB23: 0 | BC23: 0
B24: 16 | AT24: 204 | AU24: 120 | AV24: 6000 | AW24: 2.275 | AX24: 0.74 | AY24: 0 | AZ24: 0 | BA24: 0 | BB24: 0 | BC24: 0
B25: 17 | AT25: 204 | AU25: 120 | AV25: 6000 | AW25: 2.275 | AX25: 0.74 | AY25: 0 | AZ25: 0 | BA25: 0 | BB25: 0 | BC25: 0
B26: 18 | AT26: 204 | AU26: 120 | AV26: 6000 | AW26: 2.275 | AX26: 0.74 | AY26: 0 | AZ26: 0 | BA26: 0 | BB26: 0 | BC26: 0
B27: 19 | AT27: 204 | AU27: 120 | AV27: 6000 | AW27: 2.275 | AX27: 0.74 | AY27: 0 | AZ27: 0 | BA27: 0 | BB27: 0 | BC27: 0
AT28: 204 | AU28: 120 | AV28: 6000 | AW28: 2.275 | AX28: 0.74 | AY28: 0 | AZ28: 0 | BA28: 0 | BB28: 0 | BC28: 0
B49: Inddata der kan varieres | T49: Resultat af beregning, energi
C50: =C5 -> PV kapa-citet | D50: =D5 -> Batterikapacitet | E50: Battericyklus ved fuld | F50: Batteri eff. | G50: Batteri styring | H50: Elpris type | I50: Pris solceller | J50: Pris batte-rier og reinvest. | K50: Ren-te | L50: Elpris køb | M50: Elpris salg | N50: Forbrug 1/2 | O50: max køb | P50: max salg | T50: Elforbrug | U50: Pct. dækket forbrug | V50: PV produktion | W50: Batteri-tab | X50: PV til direkte forbrug | Y50: Elfor-brug fra batteri | Z50: Elforbrug direkte fra elnet | AA50: PV til batteri-oplad-ning | AB50: Elkøb fra elnet til batteri | AC50: Ikke dækket elfor-brug | AD50: EL solgt til elnettet | AE50: Ikke udnyttet el fra PV (spild) | AF50: Dækn. af egetforbr. med PV | AG50: Solgt i pct af produk-tion | AH50: Spild i pct af produk-tion | AI50: CO₂ indhold | AJ50: =AJ5 -> Investe-ringer inkl. moms | AK50: =AK5 -> Heraf solcel-ler inkl. moms | AL50: Heraf batterier | AM50: Heraf reinvesteringer i batterier | AN50: Driftsud-gifter inkl. moms | AO50: Heraf finansiering, støtte fratrukket | AP50: Heraf køb af el | AQ50: Heraf salg af el (minus) | AR50: Pris pr. kWh leveret
C51: =ID!AG62 -> 204 | D51: =ID!K76 -> 120 | E51: =ID!K80 -> 6000 | F51: =ID!K90 -> 0.9 | G51: =ID!Y93 -> 0 | H51: =ID!K115 -> 1 | I51: =ID!AE71 -> 12000 | J51: =ID!K87 -> 6000 | K51: =ID!K108 -> 0.03 | L51: =ID!K117 -> 2.275 | M51: =ID!K118 -> 0.74 | N51: =ID!Y4 -> 1 | O51: =ID!K120 -> 99 | P51: =ID!K121 -> 99 | T51: =model!M8789 -> 216000 | U51: =BR!AB54 -> 1 | V51: =model!AK8789 -> 190748.5938 | W51: =model!AN8789+model!AU8789 -> 1225.218774 | X51: =model!AQ8789 -> 79094.45779 | Y51: =model!AT8789 -> 12252.18774 | Z51: =model!AX8789 -> 124653.3545 | AA51: =model!AZ8789 -> 13478.07318 | AB51: =model!GE8789 -> 0 | AC51: =model!GN8789 -> 2.664535259e-15 | AD51: =model!GO8789 -> 95586.64489 | AE51: =model!GP8789 -> 2589.417941 | AF51: =(model!AK8789-model!GP8789-model!GO8789)/model!M8789 -> 0.4285765323 | AG51: =(model!GO8789)/model!AK8789 -> 0.5011132349 | AH51: =model!GP8789/model!AK8789 -> 0.0135750303 | AI51: =model!HV8789/1000 -> 35.90016609 | AJ51: =BR!AB28/1000 -> 4376.667094 | AK51: =BR!AB20*(1+ID!Y103)/1000 -> 3060 | AL51: =BR!AB21*(1+ID!Y103)/1000 -> 450 | AM51: =BR!AB22*(1+ID!Y103)/1000 -> 153.7882674 | AN51: =BR!AB51/1000 -> 416.8626676 | AO51: =BR!AB43/1000 -> 168.9970667 | AP51: =BR!AB44/1000 -> 283.5863814 | AQ51: =BR!AB45/1000 -> -70.73411722 | AR51: =BR!AB55 -> 1.929919758
B54: BNR | C54: 2
C57: Fsol | D57: Fbat | E57: Fbatcyc | F57: Fbateff | G57: Fbatstyr1 | H57: fElpristype | I57: Fsolpris | J57: Fbatpris | K57: Frente | L57: Felpriskøb | M57: Felprissalg | N57: Forbrug12 | O57: Fmaxkøb | P57: Fmaxsalg | W57: =INDEX(Fsol,1) -> 1
B58: 1 | C58: 1 | D58: 1 | E58: 1 | F58: =F8 -> 0.9 | G58: =G8 -> 0 | H58: =H8 -> 1 | I58: 1 | J58: 1 | K58: =K8 -> 0.03 | L58: 1 | M58: 1 | N58: =N8 -> 1 | O58: 1 | P58: 1
B59: 2 | C59: =IF(ISNUMBER(C10),C10,1) -> 1 | D59: =IF(ISNUMBER(D10),D10,1) -> 0.5 | E59: =IF(ISNUMBER(E10),E10,1) -> 1 | F59: =IF(ISNUMBER(F10),F10,F$8) -> 0.9 | G59: =IF(ISNUMBER(G10),G10,G$8) -> 0 | H59: =IF(ISNUMBER(H10),H10,H$8) -> 1 | I59: =IF(ISNUMBER(I10),I10,1) -> 1 | J59: =IF(ISNUMBER(J10),J10,1) -> 1 | K59: =IF(ISNUMBER(K10),K10,K$8) -> 0.03 | L59: 1 | M59: 1 | N59: =IF(ISNUMBER(N10),N10,N$8) -> 1 | O59: 1 | P59: 1
B60: 3 | C60: =IF(ISNUMBER(C11),C11,1) -> 1 | D60: 1 | E60: 1 | F60: =IF(ISNUMBER(F11),F11,F$8) -> 0.9 | G60: =IF(ISNUMBER(G11),G11,G$8) -> 0 | H60: 1 | I60: =IF(ISNUMBER(I11),I11,1) -> 1 | J60: 1 | K60: =IF(ISNUMBER(K11),K11,K$8) -> 0.03 | L60: 1 | M60: 1 | N60: =IF(ISNUMBER(N11),N11,N$8) -> 1 | O60: 1 | P60: 1
B61: 4 | C61: 1 | D61: 1 | E61: 1 | F61: 0.9 | G61: 0 | H61: 1 | I61: 1 | J61: 1 | K61: 0.03 | L61: 1 | M61: 1 | N61: 1 | O61: 1 | P61: 1
B62: 5 | C62: 1 | D62: 1 | E62: 1 | F62: 0.9 | G62: 0 | H62: 1 | I62: 1 | J62: 1 | K62: 0.03 | L62: 1 | M62: 1 | N62: 1 | O62: 1 | P62: 1
B63: 6 | C63: 1 | D63: 1 | E63: 1 | F63: 0.9 | G63: 0 | H63: 1 | I63: 1 | J63: 1 | K63: 0.03 | L63: 1 | M63: 1 | N63: 1 | O63: 1 | P63: 1
B64: 7 | C64: 1 | D64: 1 | E64: 1 | F64: 0.9 | G64: 0 | H64: 1 | I64: 1 | J64: 1 | K64: 0.03 | L64: 1 | M64: 1 | N64: 1 | O64: 1 | P64: 1
B65: 8 | C65: 1 | D65: 1 | E65: 1 | F65: 0.9 | G65: 0 | H65: 1 | I65: 1 | J65: 1 | K65: 0.03 | L65: 1 | M65: 1 | N65: 1 | O65: 1 | P65: 1
B66: 9 | C66: 1 | D66: 1 | E66: 1 | F66: 0.9 | G66: 0 | H66: 1 | I66: 1 | J66: 1 | K66: 0.03 | L66: 1 | M66: 1 | N66: 1 | O66: 1 | P66: 1
B67: 10 | C67: 1 | D67: 1 | E67: 1 | F67: 0.9 | G67: 0 | H67: 1 | I67: 1 | J67: 1 | K67: 0.03 | L67: 1 | M67: 1 | N67: 1 | O67: 1 | P67: 1
B68: 11 | C68: 1 | D68: 1 | E68: 1 | F68: 0.9 | G68: 0 | H68: 1 | I68: 1 | J68: 1 | K68: 0.03 | L68: 1 | M68: 1 | N68: 1 | O68: 1 | P68: 1
B69: 12 | C69: 1 | D69: 1 | E69: 1 | F69: 0.9 | G69: 0 | H69: 1 | I69: 1 | J69: 1 | K69: 0.03 | L69: 1 | M69: 1 | N69: 1 | O69: 1 | P69: 1
B70: 13 | C70: 1 | D70: 1 | E70: 1 | F70: 0.9 | G70: 0 | H70: 1 | I70: 1 | J70: 1 | K70: 0.03 | L70: 1 | M70: 1 | N70: 1 | O70: 1 | P70: 1
B71: 14 | C71: 1 | D71: 1 | E71: 1 | F71: 0.9 | G71: 0 | H71: 1 | I71: 1 | J71: 1 | K71: 0.03 | L71: 1 | M71: 1 | N71: 1 | O71: 1 | P71: 1
B72: 15 | C72: 1 | D72: 1 | E72: 1 | F72: 0.9 | G72: 0 | H72: 1 | I72: 1 | J72: 1 | K72: 0.03 | L72: 1 | M72: 1 | N72: 1 | O72: 1 | P72: 1
B73: 16 | C73: 1 | D73: 1 | E73: 1 | F73: 0.9 | G73: 0 | H73: 1 | I73: 1 | J73: 1 | K73: 0.03 | L73: 1 | M73: 1 | N73: 1 | O73: 1 | P73: 1
B74: 17 | C74: 1 | D74: 1 | E74: 1 | F74: 0.9 | G74: 0 | H74: 1 | I74: 1 | J74: 1 | K74: 0.03 | L74: 1 | M74: 1 | N74: 1 | O74: 1 | P74: 1
B75: 18 | C75: 1 | D75: 1 | E75: 1 | F75: 0.9 | G75: 0 | H75: 1 | I75: 1 | J75: 1 | K75: 0.03 | L75: 1 | M75: 1 | N75: 1 | O75: 1 | P75: 1
B76: 19 | C76: 1 | D76: 1 | E76: 1 | F76: 0.9 | G76: 0 | H76: 1 | I76: 1 | J76: 1 | K76: 0.03 | L76: 1 | M76: 1 | N76: 1 | O76: 1 | P76: 1
B77: 20 | C77: 1 | D77: 1 | E77: 1 | F77: 0.9 | G77: 0 | H77: 1 | I77: 1 | J77: 1 | K77: 0.03 | L77: 1 | M77: 1 | N77: 1 | O77: 1 | P77: 1

Sheet graf1
B1: =MAIN!A1 -> PVBAT 1.1 (version 30 november 2016) | HM1: x | JN1: x
B2: Timeværdier for de første 1000 timer gældende for beregning nr. | K2: =bnr -> 2 | HM2: x | JN2: x
B3: kWh/h og for batteri SOC (state of charge) vises kWh. | HM3: x | JN3: x
HM4: x | JN4: x
HM5: x | JN5: x
HM6: x | JN6: x
HM7: x | JN7: x
HM8: x | JN8: x
HM9: x | JN9: x
HM10: x | JN10: x
HM11: x | JN11: x
HM12: x | JN12: x
HM13: x | JN13: x
HM14: x | JN14: x
HM15: x | JN15: x
HM16: x | JN16: x
HM17: x | JN17: x
HM18: x | JN18: x
HM19: x | JN19: x
HM20: x | JN20: x
HM21: x | JN21: x
HM22: x | JN22: x
HM23: x | JN23: x
HM24: x | JN24: x
HM25: x | JN25: x
B26: Timeværdier for hele året gældende for beregning nr. | K26: =bnr -> 2 | HM26: x | JN26: x
B27: kWh/h og for batteri SOC (state of charge) vises kWh. | HM27: x | JN27: x
J28: =bnr -> 2 | HM28: x | JN28: x
HM29: x | JN29: x
HM30: x | JN30: x
HM31: x | JN31: x
HM32: x | JN32: x
HM33: x | JN33: x
HM34: x | JN34: x
HM35: x | JN35: x
HM36: x | JN36: x
HM37: x | JN37: x
HM38: x | JN38: x
HM39: x | JN39: x
HM40: x | JN40: x
HM41: x | JN41: x
HM42: x | JN42: x
HM43: x | JN43: x
HM44: x | JN44: x
HM45: x | JN45: x
HM46: x | JN46: x
HM47: x | JN47: x
HM48: x | JN48: x
HM49: x | JN49: x
HM50: x | JN50: x
HM51: x | JN51: x
HM52: x | JN52: x
B53: Timeværdier for 1000 timer gældende fra 21 juni for beregning nr. | L53: =bnr -> 2 | HM53: x | JN53: x
B54: kWh/h og for batteri SOC (state of charge) vises kWh. | HM54: x
HM55: x
HM56: x
HM57: x
B78: Timeværdier for 1000 timer gældende fra 21 marts for beregning nr. | L78: =bnr -> 2
B79: kWh/h og for batteri SOC (state of charge) vises kWh.

Sheet graf2
B1: =MAIN!A1 -> PVBAT 1.1 (version 30 november 2016)
B3: Grafer gældende for beregning nr. | F3: =bnr -> 2

Sheet FBR (hidden)
B4: TID | K4: timefaktorer | P4: Forbrug
A6: time | B6: Month | C6: day | D6: hour | E6: dag nr. | F6: uge nr. | G6: Date 2014 | H6: weekday | I6: hverdag/weekend | K6: indv hverdag | L6: indv. weekend | M6: Fælles hverdag | N6: Fælles weekend | P6: Indv. hverdag | Q6: Indv. weekend | R6: Fælles hverdag | S6: Fælles weekend
O7: indvforbrug
O8: antalbrugere
O9: fællesforbrug
A11: 1 | B11: 1 | C11: 1 | D11: 0 | E11: 1 | F11: 1 | G11: =DATE(2014,B11,C11) -> 2014-01-01 | H11: =WEEKDAY(G11) -> 4 | I11: =IF(OR(H11=6,H11=7),"w","h") -> h | K11: =IF(I11="h",INDEX(ID!$K$8:$K$31,FBR!$D11+1)*INDEX(ID!$K$35:$K$46,$B11),0) -> 35 | L11: =IF(I11="w",INDEX(ID!$L$8:$L$31,FBR!$D11+1)*INDEX(ID!$L$35:$L$46,$B11),0) -> 0 | M11: =IF(I11="h",INDEX(ID!$M$8:$M$31,FBR!$D11+1)*INDEX(ID!$M$35:$M$46,$B11),0) -> 35 | N11: =IF(I11="w",INDEX(ID!$N$8:$N$31,FBR!$D11+1)*INDEX(ID!$N$35:$N$46,$B11),0) -> 0 | P11: =K11*(indvforbrug*antalbrugere)/($K$8789+$L$8789) -> 20.67098679 | Q11: =L11*indvforbrug*antalbrugere/($K$8789+$L$8789) -> 0 | R11: =M11*fællesforbrug/($M$8789+$N$8789) -> 0 | S11: =N11*fællesforbrug/($M$8789+$N$8789) -> 0
A12: =A11+1 -> 2 | B12: 1 | C12: 1 | D12: 1 | E12: 1 | F12: 1 | G12: =DATE(2014,B12,C12) -> 2014-01-01 | H12: 4 | I12: h | K12: =IF(I12="h",INDEX(ID!$K$8:$K$31,FBR!$D12+1)*INDEX(ID!$K$35:$K$46,$B12),0) -> 30 | L12: =IF(I12="w",INDEX(ID!$L$8:$L$31,FBR!$D12+1)*INDEX(ID!$L$35:$L$46,$B12),0) -> 0 | M12: =IF(I12="h",INDEX(ID!$M$8:$M$31,FBR!$D12+1)*INDEX(ID!$M$35:$M$46,$B12),0) -> 30 | N12: =IF(I12="w",INDEX(ID!$N$8:$N$31,FBR!$D12+1)*INDEX(ID!$N$35:$N$46,$B12),0) -> 0 | P12: 17.71798868 | Q12: 0 | R12: 0 | S12: 0
A13: =A12+1 -> 3 | B13: 1 | C13: 1 | D13: 2 | E13: 1 | F13: 1 | G13: 2014-01-01 | H13: 4 | I13: h | K13: =IF(I13="h",INDEX(ID!$K$8:$K$31,FBR!$D13+1)*INDEX(ID!$K$35:$K$46,$B13),0) -> 28 | L13: =IF(I13="w",INDEX(ID!$L$8:$L$31,FBR!$D13+1)*INDEX(ID!$L$35:$L$46,$B13),0) -> 0 | M13: =IF(I13="h",INDEX(ID!$M$8:$M$31,FBR!$D13+1)*INDEX(ID!$M$35:$M$46,$B13),0) -> 28 | N13: =IF(I13="w",INDEX(ID!$N$8:$N$31,FBR!$D13+1)*INDEX(ID!$N$35:$N$46,$B13),0) -> 0 | P13: 16.53678943 | Q13: 0 | R13: 0 | S13: 0
A14: 4 | B14: 1 | C14: 1 | D14: 3 | E14: 1 | F14: 1 | G14: 2014-01-01 | H14: 4 | I14: h | K14: =IF(I14="h",INDEX(ID!$K$8:$K$31,FBR!$D14+1)*INDEX(ID!$K$35:$K$46,$B14),0) -> 27 | L14: =IF(I14="w",INDEX(ID!$L$8:$L$31,FBR!$D14+1)*INDEX(ID!$L$35:$L$46,$B14),0) -> 0 | M14: =IF(I14="h",INDEX(ID!$M$8:$M$31,FBR!$D14+1)*INDEX(ID!$M$35:$M$46,$B14),0) -> 27 | N14: =IF(I14="w",INDEX(ID!$N$8:$N$31,FBR!$D14+1)*INDEX(ID!$N$35:$N$46,$B14),0) -> 0 | P14: 15.94618981 | Q14: 0 | R14: 0 | S14: 0
A15: 5 | B15: 1 | C15: 1 | D15: 4 | E15: 1 | F15: 1 | G15: 2014-01-01 | H15: 4 | I15: h | K15: =IF(I15="h",INDEX(ID!$K$8:$K$31,FBR!$D15+1)*INDEX(ID!$K$35:$K$46,$B15),0) -> 27 | L15: =IF(I15="w",INDEX(ID!$L$8:$L$31,FBR!$D15+1)*INDEX(ID!$L$35:$L$46,$B15),0) -> 0 | M15: =IF(I15="h",INDEX(ID!$M$8:$M$31,FBR!$D15+1)*INDEX(ID!$M$35:$M$46,$B15),0) -> 27 | N15: =IF(I15="w",INDEX(ID!$N$8:$N$31,FBR!$D15+1)*INDEX(ID!$N$35:$N$46,$B15),0) -> 0 | P15: 15.94618981 | Q15: 0 | R15: 0 | S15: 0
A16: 6 | B16: 1 | C16: 1 | D16: 5 | E16: 1 | F16: 1 | G16: 2014-01-01 | H16: 4 | I16: h | K16: =IF(I16="h",INDEX(ID!$K$8:$K$31,FBR!$D16+1)*INDEX(ID!$K$35:$K$46,$B16),0) -> 27 | L16: =IF(I16="w",INDEX(ID!$L$8:$L$31,FBR!$D16+1)*INDEX(ID!$L$35:$L$46,$B16),0) -> 0 | M16: =IF(I16="h",INDEX(ID!$M$8:$M$31,FBR!$D16+1)*INDEX(ID!$M$35:$M$46,$B16),0) -> 27 | N16: =IF(I16="w",INDEX(ID!$N$8:$N$31,FBR!$D16+1)*INDEX(ID!$N$35:$N$46,$B16),0) -> 0 | P16: 15.94618981 | Q16: 0 | R16: 0 | S16: 0
A17: 7 | B17: 1 | C17: 1 | D17: 6 | E17: 1 | F17: 1 | G17: 2014-01-01 | H17: 4 | I17: h | K17: =IF(I17="h",INDEX(ID!$K$8:$K$31,FBR!$D17+1)*INDEX(ID!$K$35:$K$46,$B17),0) -> 29 | L17: =IF(I17="w",INDEX(ID!$L$8:$L$31,FBR!$D17+1)*INDEX(ID!$L$35:$L$46,$B17),0) -> 0 | M17: =IF(I17="h",INDEX(ID!$M$8:$M$31,FBR!$D17+1)*INDEX(ID!$M$35:$M$46,$B17),0) -> 29 | N17: =IF(I17="w",INDEX(ID!$N$8:$N$31,FBR!$D17+1)*INDEX(ID!$N$35:$N$46,$B17),0) -> 0 | P17: 17.12738906 | Q17: 0 | R17: 0 | S17: 0
A18: 8 | B18: 1 | C18: 1 | D18: 7 | E18: 1 | F18: 1 | G18: 2014-01-01 | H18: 4 | I18: h | K18: =IF(I18="h",INDEX(ID!$K$8:$K$31,FBR!$D18+1)*INDEX(ID!$K$35:$K$46,$B18),0) -> 32 | L18: =IF(I18="w",INDEX(ID!$L$8:$L$31,FBR!$D18+1)*INDEX(ID!$L$35:$L$46,$B18),0) -> 0 | M18: =IF(I18="h",INDEX(ID!$M$8:$M$31,FBR!$D18+1)*INDEX(ID!$M$35:$M$46,$B18),0) -> 32 | N18: =IF(I18="w",INDEX(ID!$N$8:$N$31,FBR!$D18+1)*INDEX(ID!$N$35:$N$46,$B18),0) -> 0 | P18: 18.89918793 | Q18: 0 | R18: 0 | S18: 0
A19: 9 | B19: 1 | C19: 1 | D19: 8 | E19: 1 | F19: 1 | G19: 2014-01-01 | H19: 4 | I19: h | K19: =IF(I19="h",INDEX(ID!$K$8:$K$31,FBR!$D19+1)*INDEX(ID!$K$35:$K$46,$B19),0) -> 35 | L19: =IF(I19="w",INDEX(ID!$L$8:$L$31,FBR!$D19+1)*INDEX(ID!$L$35:$L$46,$B19),0) -> 0 | M19: =IF(I19="h",INDEX(ID!$M$8:$M$31,FBR!$D19+1)*INDEX(ID!$M$35:$M$46,$B19),0) -> 35 | N19: =IF(I19="w",INDEX(ID!$N$8:$N$31,FBR!$D19+1)*INDEX(ID!$N$35:$N$46,$B19),0) -> 0 | P19: 20.67098679 | Q19: 0 | R19: 0 | S19: 0
A20: 10 | B20: 1 | C20: 1 | D20: 9 | E20: 1 | F20: 1 | G20: 2014-01-01 | H20: 4 | I20: h | K20: =IF(I20="h",INDEX(ID!$K$8:$K$31,FBR!$D20+1)*INDEX(ID!$K$35:$K$46,$B20),0) -> 38 | L20: =IF(I20="w",INDEX(ID!$L$8:$L$31,FBR!$D20+1)*INDEX(ID!$L$35:$L$46,$B20),0) -> 0 | M20: =IF(I20="h",INDEX(ID!$M$8:$M$31,FBR!$D20+1)*INDEX(ID!$M$35:$M$46,$B20),0) -> 38 | N20: =IF(I20="w",INDEX(ID!$N$8:$N$31,FBR!$D20+1)*INDEX(ID!$N$35:$N$46,$B20),0) -> 0 | P20: 22.44278566 | Q20: 0 | R20: 0 | S20: 0
A21: 11 | B21: 1 | C21: 1 | D21: 10 | E21: 1 | F21: 1 | G21: 2014-01-01 | H21: 4 | I21: h | K21: =IF(I21="h",INDEX(ID!$K$8:$K$31,FBR!$D21+1)*INDEX(ID!$K$35:$K$46,$B21),0) -> 40 | L21: =IF(I21="w",INDEX(ID!$L$8:$L$31,FBR!$D21+1)*INDEX(ID!$L$35:$L$46,$B21),0) -> 0 | M21: =IF(I21="h",INDEX(ID!$M$8:$M$31,FBR!$D21+1)*INDEX(ID!$M$35:$M$46,$B21),0) -> 40 | N21: =IF(I21="w",INDEX(ID!$N$8:$N$31,FBR!$D21+1)*INDEX(ID!$N$35:$N$46,$B21),0) -> 0 | P21: 23.62398491 | Q21: 0 | R21: 0 | S21: 0
A22: 12 | B22: 1 | C22: 1 | D22: 11 | E22: 1 | F22: 1 | G22: 2014-01-01 | H22: 4 | I22: h | K22: =IF(I22="h",INDEX(ID!$K$8:$K$31,FBR!$D22+1)*INDEX(ID!$K$35:$K$46,$B22),0) -> 42 | L22: =IF(I22="w",INDEX(ID!$L$8:$L$31,FBR!$D22+1)*INDEX(ID!$L$35:$L$46,$B22),0) -> 0 | M22: =IF(I22="h",INDEX(ID!$M$8:$M$31,FBR!$D22+1)*INDEX(ID!$M$35:$M$46,$B22),0) -> 42 | N22: =IF(I22="w",INDEX(ID!$N$8:$N$31,FBR!$D22+1)*INDEX(ID!$N$35:$N$46,$B22),0) -> 0 | P22: 24.80518415 | Q22: 0 | R22: 0 | S22: 0
A23: 13 | B23: 1 | C23: 1 | D23: 12 | E23: 1 | F23: 1 | G23: 2014-01-01 | H23: 4 | I23: h | K23: =IF(I23="h",INDEX(ID!$K$8:$K$31,FBR!$D23+1)*INDEX(ID!$K$35:$K$46,$B23),0) -> 43 | L23: =IF(I23="w",INDEX(ID!$L$8:$L$31,FBR!$D23+1)*INDEX(ID!$L$35:$L$46,$B23),0) -> 0 | M23: =IF(I23="h",INDEX(ID!$M$8:$M$31,FBR!$D23+1)*INDEX(ID!$M$35:$M$46,$B23),0) -> 43 | N23: =IF(I23="w",INDEX(ID!$N$8:$N$31,FBR!$D23+1)*INDEX(ID!$N$35:$N$46,$B23),0) -> 0 | P23: 25.39578377 | Q23: 0 | R23: 0 | S23: 0
A24: 14 | B24: 1 | C24: 1 | D24: 13 | E24: 1 | F24: 1 | G24: 2014-01-01 | H24: 4 | I24: h | K24: =IF(I24="h",INDEX(ID!$K$8:$K$31,FBR!$D24+1)*INDEX(ID!$K$35:$K$46,$B24),0) -> 44 | L24: =IF(I24="w",INDEX(ID!$L$8:$L$31,FBR!$D24+1)*INDEX(ID!$L$35:$L$46,$B24),0) -> 0 | M24: =IF(I24="h",INDEX(ID!$M$8:$M$31,FBR!$D24+1)*INDEX(ID!$M$35:$M$46,$B24),0) -> 44 | N24: =IF(I24="w",INDEX(ID!$N$8:$N$31,FBR!$D24+1)*INDEX(ID!$N$35:$N$46,$B24),0) -> 0 | P24: 25.9863834 | Q24: 0 | R24: 0 | S24: 0
A25: 15 | B25: 1 | C25: 1 | D25: 14 | E25: 1 | F25: 1 | G25: 2014-01-01 | H25: 4 | I25: h | K25: =IF(I25="h",INDEX(ID!$K$8:$K$31,FBR!$D25+1)*INDEX(ID!$K$35:$K$46,$B25),0) -> 47 | L25: =IF(I25="w",INDEX(ID!$L$8:$L$31,FBR!$D25+1)*INDEX(ID!$L$35:$L$46,$B25),0) -> 0 | M25: =IF(I25="h",INDEX(ID!$M$8:$M$31,FBR!$D25+1)*INDEX(ID!$M$35:$M$46,$B25),0) -> 47 | N25: =IF(I25="w",INDEX(ID!$N$8:$N$31,FBR!$D25+1)*INDEX(ID!$N$35:$N$46,$B25),0) -> 0 | P25: 27.75818227 | Q25: 0 | R25: 0 | S25: 0
A26: 16 | B26: 1 | C26: 1 | D26: 15 | E26: 1 | F26: 1 | G26: 2014-01-01 | H26: 4 | I26: h | K26: =IF(I26="h",INDEX(ID!$K$8:$K$31,FBR!$D26+1)*INDEX(ID!$K$35:$K$46,$B26),0) -> 50 | L26: =IF(I26="w",INDEX(ID!$L$8:$L$31,FBR!$D26+1)*INDEX(ID!$L$35:$L$46,$B26),0) -> 0 | M26: =IF(I26="h",INDEX(ID!$M$8:$M$31,FBR!$D26+1)*INDEX(ID!$M$35:$M$46,$B26),0) -> 50 | N26: =IF(I26="w",INDEX(ID!$N$8:$N$31,FBR!$D26+1)*INDEX(ID!$N$35:$N$46,$B26),0) -> 0 | P26: 29.52998113 | Q26: 0 | R26: 0 | S26: 0
A27: 17 | B27: 1 | C27: 1 | D27: 16 | E27: 1 | F27: 1 | G27: 2014-01-01 | H27: 4 | I27: h | K27: =IF(I27="h",INDEX(ID!$K$8:$K$31,FBR!$D27+1)*INDEX(ID!$K$35:$K$46,$B27),0) -> 53 | L27: =IF(I27="w",INDEX(ID!$L$8:$L$31,FBR!$D27+1)*INDEX(ID!$L$35:$L$46,$B27),0) -> 0 | M27: =IF(I27="h",INDEX(ID!$M$8:$M$31,FBR!$D27+1)*INDEX(ID!$M$35:$M$46,$B27),0) -> 53 | N27: =IF(I27="w",INDEX(ID!$N$8:$N$31,FBR!$D27+1)*INDEX(ID!$N$35:$N$46,$B27),0) -> 0 | P27: 31.30178 | Q27: 0 | R27: 0 | S27: 0
A28: 18 | B28: 1 | C28: 1 | D28: 17 | E28: 1 | F28: 1 | G28: 2014-01-01 | H28: 4 | I28: h | K28: =IF(I28="h",INDEX(ID!$K$8:$K$31,FBR!$D28+1)*INDEX(ID!$K$35:$K$46,$B28),0) -> 62 | L28: =IF(I28="w",INDEX(ID!$L$8:$L$31,FBR!$D28+1)*INDEX(ID!$L$35:$L$46,$B28),0) -> 0 | M28: =IF(I28="h",INDEX(ID!$M$8:$M$31,FBR!$D28+1)*INDEX(ID!$M$35:$M$46,$B28),0) -> 62 | N28: =IF(I28="w",INDEX(ID!$N$8:$N$31,FBR!$D28+1)*INDEX(ID!$N$35:$N$46,$B28),0) -> 0 | P28: 36.61717661 | Q28: 0 | R28: 0 | S28: 0
A29: 19 | B29: 1 | C29: 1 | D29: 18 | E29: 1 | F29: 1 | G29: 2014-01-01 | H29: 4 | I29: h | K29: =IF(I29="h",INDEX(ID!$K$8:$K$31,FBR!$D29+1)*INDEX(ID!$K$35:$K$46,$B29),0) -> 65 | L29: =IF(I29="w",INDEX(ID!$L$8:$L$31,FBR!$D29+1)*INDEX(ID!$L$35:$L$46,$B29),0) -> 0 | M29: =IF(I29="h",INDEX(ID!$M$8:$M$31,FBR!$D29+1)*INDEX(ID!$M$35:$M$46,$B29),0) -> 65 | N29: =IF(I29="w",INDEX(ID!$N$8:$N$31,FBR!$D29+1)*INDEX(ID!$N$35:$N$46,$B29),0) -> 0 | P29: 38.38897547 | Q29: 0 | R29: 0 | S29: 0
A30: 20 | B30: 1 | C30: 1 | D30: 19 | E30: 1 | F30: 1 | G30: 2014-01-01 | H30: 4 | I30: h | K30: =IF(I30="h",INDEX(ID!$K$8:$K$31,FBR!$D30+1)*INDEX(ID!$K$35:$K$46,$B30),0) -> 60 | L30: =IF(I30="w",INDEX(ID!$L$8:$L$31,FBR!$D30+1)*INDEX(ID!$L$35:$L$46,$B30),0) -> 0 | M30: =IF(I30="h",INDEX(ID!$M$8:$M$31,FBR!$D30+1)*INDEX(ID!$M$35:$M$46,$B30),0) -> 60 | N30: =IF(I30="w",INDEX(ID!$N$8:$N$31,FBR!$D30+1)*INDEX(ID!$N$35:$N$46,$B30),0) -> 0 | P30: 35.43597736 | Q30: 0 | R30: 0 | S30: 0
A31: 21 | B31: 1 | C31: 1 | D31: 20 | E31: 1 | F31: 1 | G31: 2014-01-01 | H31: 4 | I31: h | K31: =IF(I31="h",INDEX(ID!$K$8:$K$31,FBR!$D31+1)*INDEX(ID!$K$35:$K$46,$B31),0) -> 53 | L31: =IF(I31="w",INDEX(ID!$L$8:$L$31,FBR!$D31+1)*INDEX(ID!$L$35:$L$46,$B31),0) -> 0 | M31: =IF(I31="h",INDEX(ID!$M$8:$M$31,FBR!$D31+1)*INDEX(ID!$M$35:$M$46,$B31),0) -> 53 | N31: =IF(I31="w",INDEX(ID!$N$8:$N$31,FBR!$D31+1)*INDEX(ID!$N$35:$N$46,$B31),0) -> 0 | P31: 31.30178 | Q31: 0 | R31: 0 | S31: 0
A32: 22 | B32: 1 | C32: 1 | D32: 21 | E32: 1 | F32: 1 | G32: 2014-01-01 | H32: 4 | I32: h | K32: =IF(I32="h",INDEX(ID!$K$8:$K$31,FBR!$D32+1)*INDEX(ID!$K$35:$K$46,$B32),0) -> 50 | L32: =IF(I32="w",INDEX(ID!$L$8:$L$31,FBR!$D32+1)*INDEX(ID!$L$35:$L$46,$B32),0) -> 0 | M32: =IF(I32="h",INDEX(ID!$M$8:$M$31,FBR!$D32+1)*INDEX(ID!$M$35:$M$46,$B32),0) -> 50 | N32: =IF(I32="w",INDEX(ID!$N$8:$N$31,FBR!$D32+1)*INDEX(ID!$N$35:$N$46,$B32),0) -> 0 | P32: 29.52998113 | Q32: 0 | R32: 0 | S32: 0
A33: 23 | B33: 1 | C33: 1 | D33: 22 | E33: 1 | F33: 1 | G33: 2014-01-01 | H33: 4 | I33: h | K33: =IF(I33="h",INDEX(ID!$K$8:$K$31,FBR!$D33+1)*INDEX(ID!$K$35:$K$46,$B33),0) -> 45 | L33: =IF(I33="w",INDEX(ID!$L$8:$L$31,FBR!$D33+1)*INDEX(ID!$L$35:$L$46,$B33),0) -> 0 | M33: =IF(I33="h",INDEX(ID!$M$8:$M$31,FBR!$D33+1)*INDEX(ID!$M$35:$M$46,$B33),0) -> 45 | N33: =IF(I33="w",INDEX(ID!$N$8:$N$31,FBR!$D33+1)*INDEX(ID!$N$35:$N$46,$B33),0) -> 0 | P33: 26.57698302 | Q33: 0 | R33: 0 | S33: 0
A34: 24 | B34: 1 | C34: 1 | D34: 23 | E34: 1 | F34: 1 | G34: 2014-01-01 | H34: 4 | I34: h | K34: =IF(I34="h",INDEX(ID!$K$8:$K$31,FBR!$D34+1)*INDEX(ID!$K$35:$K$46,$B34),0) -> 40 | L34: =IF(I34="w",INDEX(ID!$L$8:$L$31,FBR!$D34+1)*INDEX(ID!$L$35:$L$46,$B34),0) -> 0 | M34: =IF(I34="h",INDEX(ID!$M$8:$M$31,FBR!$D34+1)*INDEX(ID!$M$35:$M$46,$B34),0) -> 40 | N34: =IF(I34="w",INDEX(ID!$N$8:$N$31,FBR!$D34+1)*INDEX(ID!$N$35:$N$46,$B34),0) -> 0 | P34: 23.62398491 | Q34: 0 | R34: 0 | S34: 0
A35: 25 | B35: 1 | C35: 2 | D35: 0 | E35: =E11+1 -> 2 | F35: 1 | G35: 2014-01-02 | H35: 5 | I35: h | K35: =IF(I35="h",INDEX(ID!$K$8:$K$31,FBR!$D35+1)*INDEX(ID!$K$35:$K$46,$B35),0) -> 35 | L35: =IF(I35="w",INDEX(ID!$L$8:$L$31,FBR!$D35+1)*INDEX(ID!$L$35:$L$46,$B35),0) -> 0 | M35: =IF(I35="h",INDEX(ID!$M$8:$M$31,FBR!$D35+1)*INDEX(ID!$M$35:$M$46,$B35),0) -> 35 | N35: =IF(I35="w",INDEX(ID!$N$8:$N$31,FBR!$D35+1)*INDEX(ID!$N$35:$N$46,$B35),0) -> 0 | P35: 20.67098679 | Q35: 0 | R35: 0 | S35: 0
A36: 26 | B36: 1 | C36: 2 | D36: 1 | E36: =E12+1 -> 2 | F36: 1 | G36: 2014-01-02 | H36: 5 | I36: h | K36: =IF(I36="h",INDEX(ID!$K$8:$K$31,FBR!$D36+1)*INDEX(ID!$K$35:$K$46,$B36),0) -> 30 | L36: =IF(I36="w",INDEX(ID!$L$8:$L$31,FBR!$D36+1)*INDEX(ID!$L$35:$L$46,$B36),0) -> 0 | M36: =IF(I36="h",INDEX(ID!$M$8:$M$31,FBR!$D36+1)*INDEX(ID!$M$35:$M$46,$B36),0) -> 30 | N36: =IF(I36="w",INDEX(ID!$N$8:$N$31,FBR!$D36+1)*INDEX(ID!$N$35:$N$46,$B36),0) -> 0 | P36: 17.71798868 | Q36: 0 | R36: 0 | S36: 0
A37: 27 | B37: 1 | C37: 2 | D37: 2 | E37: 2 | F37: 1 | G37: 2014-01-02 | H37: 5 | I37: h | K37: =IF(I37="h",INDEX(ID!$K$8:$K$31,FBR!$D37+1)*INDEX(ID!$K$35:$K$46,$B37),0) -> 28 | L37: =IF(I37="w",INDEX(ID!$L$8:$L$31,FBR!$D37+1)*INDEX(ID!$L$35:$L$46,$B37),0) -> 0 | M37: =IF(I37="h",INDEX(ID!$M$8:$M$31,FBR!$D37+1)*INDEX(ID!$M$35:$M$46,$B37),0) -> 28 | N37: =IF(I37="w",INDEX(ID!$N$8:$N$31,FBR!$D37+1)*INDEX(ID!$N$35:$N$46,$B37),0) -> 0 | P37: 16.53678943 | Q37: 0 | R37: 0 | S37: 0
A38: 28 | B38: 1 | C38: 2 | D38: 3 | E38: 2 | F38: 1 | G38: 2014-01-02 | H38: 5 | I38: h | K38: =IF(I38="h",INDEX(ID!$K$8:$K$31,FBR!$D38+1)*INDEX(ID!$K$35:$K$46,$B38),0) -> 27 | L38: =IF(I38="w",INDEX(ID!$L$8:$L$31,FBR!$D38+1)*INDEX(ID!$L$35:$L$46,$B38),0) -> 0 | M38: =IF(I38="h",INDEX(ID!$M$8:$M$31,FBR!$D38+1)*INDEX(ID!$M$35:$M$46,$B38),0) -> 27 | N38: =IF(I38="w",INDEX(ID!$N$8:$N$31,FBR!$D38+1)*INDEX(ID!$N$35:$N$46,$B38),0) -> 0 | P38: 15.94618981 | Q38: 0 | R38: 0 | S38: 0
A39: 29 | B39: 1 | C39: 2 | D39: 4 | E39: 2 | F39: 1 | G39: 2014-01-02 | H39: 5 | I39: h | K39: =IF(I39="h",INDEX(ID!$K$8:$K$31,FBR!$D39+1)*INDEX(ID!$K$35:$K$46,$B39),0) -> 27 | L39: =IF(I39="w",INDEX(ID!$L$8:$L$31,FBR!$D39+1)*INDEX(ID!$L$35:$L$46,$B39),0) -> 0 | M39: =IF(I39="h",INDEX(ID!$M$8:$M$31,FBR!$D39+1)*INDEX(ID!$M$35:$M$46,$B39),0) -> 27 | N39: =IF(I39="w",INDEX(ID!$N$8:$N$31,FBR!$D39+1)*INDEX(ID!$N$35:$N$46,$B39),0) -> 0 | P39: 15.94618981 | Q39: 0 | R39: 0 | S39: 0
A40: 30 | B40: 1 | C40: 2 | D40: 5 | E40: 2 | F40: 1 | G40: 2014-01-02 | H40: 5 | I40: h | K40: =IF(I40="h",INDEX(ID!$K$8:$K$31,FBR!$D40+1)*INDEX(ID!$K$35:$K$46,$B40),0) -> 27 | L40: =IF(I40="w",INDEX(ID!$L$8:$L$31,FBR!$D40+1)*INDEX(ID!$L$35:$L$46,$B40),0) -> 0 | M40: =IF(I40="h",INDEX(ID!$M$8:$M$31,FBR!$D40+1)*INDEX(ID!$M$35:$M$46,$B40),0) -> 27 | N40: =IF(I40="w",INDEX(ID!$N$8:$N$31,FBR!$D40+1)*INDEX(ID!$N$35:$N$46,$B40),0) -> 0 | P40: 15.94618981 | Q40: 0 | R40: 0 | S40: 0
A41: 31 | B41: 1 | C41: 2 | D41: 6 | E41: 2 | F41: 1 | G41: 2014-01-02 | H41: 5 | I41: h | K41: =IF(I41="h",INDEX(ID!$K$8:$K$31,FBR!$D41+1)*INDEX(ID!$K$35:$K$46,$B41),0) -> 29 | L41: =IF(I41="w",INDEX(ID!$L$8:$L$31,FBR!$D41+1)*INDEX(ID!$L$35:$L$46,$B41),0) -> 0 | M41: =IF(I41="h",INDEX(ID!$M$8:$M$31,FBR!$D41+1)*INDEX(ID!$M$35:$M$46,$B41),0) -> 29 | N41: =IF(I41="w",INDEX(ID!$N$8:$N$31,FBR!$D41+1)*INDEX(ID!$N$35:$N$46,$B41),0) -> 0 | P41: 17.12738906 | Q41: 0 | R41: 0 | S41: 0
A42: 32 | B42: 1 | C42: 2 | D42: 7 | E42: 2 | F42: 1 | G42: 2014-01-02 | H42: 5 | I42: h | K42: =IF(I42="h",INDEX(ID!$K$8:$K$31,FBR!$D42+1)*INDEX(ID!$K$35:$K$46,$B42),0) -> 32 | L42: =IF(I42="w",INDEX(ID!$L$8:$L$31,FBR!$D42+1)*INDEX(ID!$L$35:$L$46,$B42),0) -> 0 | M42: =IF(I42="h",INDEX(ID!$M$8:$M$31,FBR!$D42+1)*INDEX(ID!$M$35:$M$46,$B42),0) -> 32 | N42: =IF(I42="w",INDEX(ID!$N$8:$N$31,FBR!$D42+1)*INDEX(ID!$N$35:$N$46,$B42),0) -> 0 | P42: 18.89918793 | Q42: 0 | R42: 0 | S42: 0
A43: 33 | B43: 1 | C43: 2 | D43: 8 | E43: 2 | F43: 1 | G43: 2014-01-02 | H43: 5 | I43: h | K43: =IF(I43="h",INDEX(ID!$K$8:$K$31,FBR!$D43+1)*INDEX(ID!$K$35:$K$46,$B43),0) -> 35 | L43: =IF(I43="w",INDEX(ID!$L$8:$L$31,FBR!$D43+1)*INDEX(ID!$L$35:$L$46,$B43),0) -> 0 | M43: =IF(I43="h",INDEX(ID!$M$8:$M$31,FBR!$D43+1)*INDEX(ID!$M$35:$M$46,$B43),0) -> 35 | N43: =IF(I43="w",INDEX(ID!$N$8:$N$31,FBR!$D43+1)*INDEX(ID!$N$35:$N$46,$B43),0) -> 0 | P43: 20.67098679 | Q43: 0 | R43: 0 | S43: 0
A44: 34 | B44: 1 | C44: 2 | D44: 9 | E44: 2 | F44: 1 | G44: 2014-01-02 | H44: 5 | I44: h | K44: =IF(I44="h",INDEX(ID!$K$8:$K$31,FBR!$D44+1)*INDEX(ID!$K$35:$K$46,$B44),0) -> 38 | L44: =IF(I44="w",INDEX(ID!$L$8:$L$31,FBR!$D44+1)*INDEX(ID!$L$35:$L$46,$B44),0) -> 0 | M44: =IF(I44="h",INDEX(ID!$M$8:$M$31,FBR!$D44+1)*INDEX(ID!$M$35:$M$46,$B44),0) -> 38 | N44: =IF(I44="w",INDEX(ID!$N$8:$N$31,FBR!$D44+1)*INDEX(ID!$N$35:$N$46,$B44),0) -> 0 | P44: 22.44278566 | Q44: 0 | R44: 0 | S44: 0
A45: 35 | B45: 1 | C45: 2 | D45: 10 | E45: 2 | F45: 1 | G45: 2014-01-02 | H45: 5 | I45: h | K45: =IF(I45="h",INDEX(ID!$K$8:$K$31,FBR!$D45+1)*INDEX(ID!$K$35:$K$46,$B45),0) -> 40 | L45: =IF(I45="w",INDEX(ID!$L$8:$L$31,FBR!$D45+1)*INDEX(ID!$L$35:$L$46,$B45),0) -> 0 | M45: =IF(I45="h",INDEX(ID!$M$8:$M$31,FBR!$D45+1)*INDEX(ID!$M$35:$M$46,$B45),0) -> 40 | N45: =IF(I45="w",INDEX(ID!$N$8:$N$31,FBR!$D45+1)*INDEX(ID!$N$35:$N$46,$B45),0) -> 0 | P45: 23.62398491 | Q45: 0 | R45: 0 | S45: 0
A46: 36 | B46: 1 | C46: 2 | D46: 11 | E46: 2 | F46: 1 | G46: 2014-01-02 | H46: 5 | I46: h | K46: =IF(I46="h",INDEX(ID!$K$8:$K$31,FBR!$D46+1)*INDEX(ID!$K$35:$K$46,$B46),0) -> 42 | L46: =IF(I46="w",INDEX(ID!$L$8:$L$31,FBR!$D46+1)*INDEX(ID!$L$35:$L$46,$B46),0) -> 0 | M46: =IF(I46="h",INDEX(ID!$M$8:$M$31,FBR!$D46+1)*INDEX(ID!$M$35:$M$46,$B46),0) -> 42 | N46: =IF(I46="w",INDEX(ID!$N$8:$N$31,FBR!$D46+1)*INDEX(ID!$N$35:$N$46,$B46),0) -> 0 | P46: 24.80518415 | Q46: 0 | R46: 0 | S46: 0
A47: 37 | B47: 1 | C47: 2 | D47: 12 | E47: 2 | F47: 1 | G47: 2014-01-02 | H47: 5 | I47: h | K47: =IF(I47="h",INDEX(ID!$K$8:$K$31,FBR!$D47+1)*INDEX(ID!$K$35:$K$46,$B47),0) -> 43 | L47: =IF(I47="w",INDEX(ID!$L$8:$L$31,FBR!$D47+1)*INDEX(ID!$L$35:$L$46,$B47),0) -> 0 | M47: =IF(I47="h",INDEX(ID!$M$8:$M$31,FBR!$D47+1)*INDEX(ID!$M$35:$M$46,$B47),0) -> 43 | N47: =IF(I47="w",INDEX(ID!$N$8:$N$31,FBR!$D47+1)*INDEX(ID!$N$35:$N$46,$B47),0) -> 0 | P47: 25.39578377 | Q47: 0 | R47: 0 | S47: 0
A48: 38 | B48: 1 | C48: 2 | D48: 13 | E48: 2 | F48: 1 | G48: 2014-01-02 | H48: 5 | I48: h | K48: =IF(I48="h",INDEX(ID!$K$8:$K$31,FBR!$D48+1)*INDEX(ID!$K$35:$K$46,$B48),0) -> 44 | L48: =IF(I48="w",INDEX(ID!$L$8:$L$31,FBR!$D48+1)*INDEX(ID!$L$35:$L$46,$B48),0) -> 0 | M48: =IF(I48="h",INDEX(ID!$M$8:$M$31,FBR!$D48+1)*INDEX(ID!$M$35:$M$46,$B48),0) -> 44 | N48: =IF(I48="w",INDEX(ID!$N$8:$N$31,FBR!$D48+1)*INDEX(ID!$N$35:$N$46,$B48),0) -> 0 | P48: 25.9863834 | Q48: 0 | R48: 0 | S48: 0
A49: 39 | B49: 1 | C49: 2 | D49: 14 | E49: 2 | F49: 1 | G49: 2014-01-02 | H49: 5 | I49: h | K49: =IF(I49="h",INDEX(ID!$K$8:$K$31,FBR!$D49+1)*INDEX(ID!$K$35:$K$46,$B49),0) -> 47 | L49: =IF(I49="w",INDEX(ID!$L$8:$L$31,FBR!$D49+1)*INDEX(ID!$L$35:$L$46,$B49),0) -> 0 | M49: =IF(I49="h",INDEX(ID!$M$8:$M$31,FBR!$D49+1)*INDEX(ID!$M$35:$M$46,$B49),0) -> 47 | N49: =IF(I49="w",INDEX(ID!$N$8:$N$31,FBR!$D49+1)*INDEX(ID!$N$35:$N$46,$B49),0) -> 0 | P49: 27.75818227 | Q49: 0 | R49: 0 | S49: 0
A50: 40 | B50: 1 | C50: 2 | D50: 15 | E50: 2 | F50: 1 | G50: 2014-01-02 | H50: 5 | I50: h | K50: =IF(I50="h",INDEX(ID!$K$8:$K$31,FBR!$D50+1)*INDEX(ID!$K$35:$K$46,$B50),0) -> 50 | L50: =IF(I50="w",INDEX(ID!$L$8:$L$31,FBR!$D50+1)*INDEX(ID!$L$35:$L$46,$B50),0) -> 0 | M50: =IF(I50="h",INDEX(ID!$M$8:$M$31,FBR!$D50+1)*INDEX(ID!$M$35:$M$46,$B50),0) -> 50 | N50: =IF(I50="w",INDEX(ID!$N$8:$N$31,FBR!$D50+1)*INDEX(ID!$N$35:$N$46,$B50),0) -> 0 | P50: 29.52998113 | Q50: 0 | R50: 0 | S50: 0
A51: 41 | B51: 1 | C51: 2 | D51: 16 | E51: 2 | F51: 1 | G51: 2014-01-02 | H51: 5 | I51: h | K51: =IF(I51="h",INDEX(ID!$K$8:$K$31,FBR!$D51+1)*INDEX(ID!$K$35:$K$46,$B51),0) -> 53 | L51: =IF(I51="w",INDEX(ID!$L$8:$L$31,FBR!$D51+1)*INDEX(ID!$L$35:$L$46,$B51),0) -> 0 | M51: =IF(I51="h",INDEX(ID!$M$8:$M$31,FBR!$D51+1)*INDEX(ID!$M$35:$M$46,$B51),0) -> 53 | N51: =IF(I51="w",INDEX(ID!$N$8:$N$31,FBR!$D51+1)*INDEX(ID!$N$35:$N$46,$B51),0) -> 0 | P51: 31.30178 | Q51: 0 | R51: 0 | S51: 0
A52: 42 | B52: 1 | C52: 2 | D52: 17 | E52: 2 | F52: 1 | G52: 2014-01-02 | H52: 5 | I52: h | K52: =IF(I52="h",INDEX(ID!$K$8:$K$31,FBR!$D52+1)*INDEX(ID!$K$35:$K$46,$B52),0) -> 62 | L52: =IF(I52="w",INDEX(ID!$L$8:$L$31,FBR!$D52+1)*INDEX(ID!$L$35:$L$46,$B52),0) -> 0 | M52: =IF(I52="h",INDEX(ID!$M$8:$M$31,FBR!$D52+1)*INDEX(ID!$M$35:$M$46,$B52),0) -> 62 | N52: =IF(I52="w",INDEX(ID!$N$8:$N$31,FBR!$D52+1)*INDEX(ID!$N$35:$N$46,$B52),0) -> 0 | P52: 36.61717661 | Q52: 0 | R52: 0 | S52: 0
A53: 43 | B53: 1 | C53: 2 | D53: 18 | E53: 2 | F53: 1 | G53: 2014-01-02 | H53: 5 | I53: h | K53: =IF(I53="h",INDEX(ID!$K$8:$K$31,FBR!$D53+1)*INDEX(ID!$K$35:$K$46,$B53),0) -> 65 | L53: =IF(I53="w",INDEX(ID!$L$8:$L$31,FBR!$D53+1)*INDEX(ID!$L$35:$L$46,$B53),0) -> 0 | M53: =IF(I53="h",INDEX(ID!$M$8:$M$31,FBR!$D53+1)*INDEX(ID!$M$35:$M$46,$B53),0) -> 65 | N53: =IF(I53="w",INDEX(ID!$N$8:$N$31,FBR!$D53+1)*INDEX(ID!$N$35:$N$46,$B53),0) -> 0 | P53: 38.38897547 | Q53: 0 | R53: 0 | S53: 0
A54: 44 | B54: 1 | C54: 2 | D54: 19 | E54: 2 | F54: 1 | G54: 2014-01-02 | H54: 5 | I54: h | K54: =IF(I54="h",INDEX(ID!$K$8:$K$31,FBR!$D54+1)*INDEX(ID!$K$35:$K$46,$B54),0) -> 60 | L54: =IF(I54="w",INDEX(ID!$L$8:$L$31,FBR!$D54+1)*INDEX(ID!$L$35:$L$46,$B54),0) -> 0 | M54: =IF(I54="h",INDEX(ID!$M$8:$M$31,FBR!$D54+1)*INDEX(ID!$M$35:$M$46,$B54),0) -> 60 | N54: =IF(I54="w",INDEX(ID!$N$8:$N$31,FBR!$D54+1)*INDEX(ID!$N$35:$N$46,$B54),0) -> 0 | P54: 35.43597736 | Q54: 0 | R54: 0 | S54: 0
A55: 45 | B55: 1 | C55: 2 | D55: 20 | E55: 2 | F55: 1 | G55: 2014-01-02 | H55: 5 | I55: h | K55: =IF(I55="h",INDEX(ID!$K$8:$K$31,FBR!$D55+1)*INDEX(ID!$K$35:$K$46,$B55),0) -> 53 | L55: =IF(I55="w",INDEX(ID!$L$8:$L$31,FBR!$D55+1)*INDEX(ID!$L$35:$L$46,$B55),0) -> 0 | M55: =IF(I55="h",INDEX(ID!$M$8:$M$31,FBR!$D55+1)*INDEX(ID!$M$35:$M$46,$B55),0) -> 53 | N55: =IF(I55="w",INDEX(ID!$N$8:$N$31,FBR!$D55+1)*INDEX(ID!$N$35:$N$46,$B55),0) -> 0 | P55: 31.30178 | Q55: 0 | R55: 0 | S55: 0
A56: 46 | B56: 1 | C56: 2 | D56: 21 | E56: 2 | F56: 1 | G56: 2014-01-02 | H56: 5 | I56: h | K56: =IF(I56="h",INDEX(ID!$K$8:$K$31,FBR!$D56+1)*INDEX(ID!$K$35:$K$46,$B56),0) -> 50 | L56: =IF(I56="w",INDEX(ID!$L$8:$L$31,FBR!$D56+1)*INDEX(ID!$L$35:$L$46,$B56),0) -> 0 | M56: =IF(I56="h",INDEX(ID!$M$8:$M$31,FBR!$D56+1)*INDEX(ID!$M$35:$M$46,$B56),0) -> 50 | N56: =IF(I56="w",INDEX(ID!$N$8:$N$31,FBR!$D56+1)*INDEX(ID!$N$35:$N$46,$B56),0) -> 0 | P56: 29.52998113 | Q56: 0 | R56: 0 | S56: 0
A57: 47 | B57: 1 | C57: 2 | D57: 22 | E57: 2 | F57: 1 | G57: 2014-01-02 | H57: 5 | I57: h | K57: =IF(I57="h",INDEX(ID!$K$8:$K$31,FBR!$D57+1)*INDEX(ID!$K$35:$K$46,$B57),0) -> 45 | L57: =IF(I57="w",INDEX(ID!$L$8:$L$31,FBR!$D57+1)*INDEX(ID!$L$35:$L$46,$B57),0) -> 0 | M57: =IF(I57="h",INDEX(ID!$M$8:$M$31,FBR!$D57+1)*INDEX(ID!$M$35:$M$46,$B57),0) -> 45 | N57: =IF(I57="w",INDEX(ID!$N$8:$N$31,FBR!$D57+1)*INDEX(ID!$N$35:$N$46,$B57),0) -> 0 | P57: 26.57698302 | Q57: 0 | R57: 0 | S57: 0
A58: 48 | B58: 1 | C58: 2 | D58: 23 | E58: 2 | F58: 1 | G58: 2014-01-02 | H58: 5 | I58: h | K58: =IF(I58="h",INDEX(ID!$K$8:$K$31,FBR!$D58+1)*INDEX(ID!$K$35:$K$46,$B58),0) -> 40 | L58: =IF(I58="w",INDEX(ID!$L$8:$L$31,FBR!$D58+1)*INDEX(ID!$L$35:$L$46,$B58),0) -> 0 | M58: =IF(I58="h",INDEX(ID!$M$8:$M$31,FBR!$D58+1)*INDEX(ID!$M$35:$M$46,$B58),0) -> 40 | N58: =IF(I58="w",INDEX(ID!$N$8:$N$31,FBR!$D58+1)*INDEX(ID!$N$35:$N$46,$B58),0) -> 0 | P58: 23.62398491 | Q58: 0 | R58: 0 | S58: 0
A59: 49 | B59: 1 | C59: 3 | D59: 0 | E59: 3 | F59: 1 | G59: 2014-01-03 | H59: 6 | I59: w | K59: =IF(I59="h",INDEX(ID!$K$8:$K$31,FBR!$D59+1)*INDEX(ID!$K$35:$K$46,$B59),0) -> 0 | L59: =IF(I59="w",INDEX(ID!$L$8:$L$31,FBR!$D59+1)*INDEX(ID!$L$35:$L$46,$B59),0) -> 35 | M59: =IF(I59="h",INDEX(ID!$M$8:$M$31,FBR!$D59+1)*INDEX(ID!$M$35:$M$46,$B59),0) -> 0 | N59: =IF(I59="w",INDEX(ID!$N$8:$N$31,FBR!$D59+1)*INDEX(ID!$N$35:$N$46,$B59),0) -> 35 | P59: 0 | Q59: 20.67098679 | R59: 0 | S59: 0
A60: 50 | B60: 1 | C60: 3 | D60: 1 | E60: 3 | F60: 1 | G60: 2014-01-03 | H60: 6 | I60: w | K60: =IF(I60="h",INDEX(ID!$K$8:$K$31,FBR!$D60+1)*INDEX(ID!$K$35:$K$46,$B60),0) -> 0 | L60: =IF(I60="w",INDEX(ID!$L$8:$L$31,FBR!$D60+1)*INDEX(ID!$L$35:$L$46,$B60),0) -> 30 | M60: =IF(I60="h",INDEX(ID!$M$8:$M$31,FBR!$D60+1)*INDEX(ID!$M$35:$M$46,$B60),0) -> 0 | N60: =IF(I60="w",INDEX(ID!$N$8:$N$31,FBR!$D60+1)*INDEX(ID!$N$35:$N$46,$B60),0) -> 30 | P60: 0 | Q60: 17.71798868 | R60: 0 | S60: 0
A61: 51 | B61: 1 | C61: 3 | D61: 2 | E61: 3 | F61: 1 | G61: 2014-01-03 | H61: 6 | I61: w | K61: =IF(I61="h",INDEX(ID!$K$8:$K$31,FBR!$D61+1)*INDEX(ID!$K$35:$K$46,$B61),0) -> 0 | L61: =IF(I61="w",INDEX(ID!$L$8:$L$31,FBR!$D61+1)*INDEX(ID!$L$35:$L$46,$B61),0) -> 28 | M61: =IF(I61="h",INDEX(ID!$M$8:$M$31,FBR!$D61+1)*INDEX(ID!$M$35:$M$46,$B61),0) -> 0 | N61: =IF(I61="w",INDEX(ID!$N$8:$N$31,FBR!$D61+1)*INDEX(ID!$N$35:$N$46,$B61),0) -> 28 | P61: 0 | Q61: 16.53678943 | R61: 0 | S61: 0
A62: 52 | B62: 1 | C62: 3 | D62: 3 | E62: 3 | F62: 1 | G62: 2014-01-03 | H62: 6 | I62: w | K62: =IF(I62="h",INDEX(ID!$K$8:$K$31,FBR!$D62+1)*INDEX(ID!$K$35:$K$46,$B62),0) -> 0 | L62: =IF(I62="w",INDEX(ID!$L$8:$L$31,FBR!$D62+1)*INDEX(ID!$L$35:$L$46,$B62),0) -> 27 | M62: =IF(I62="h",INDEX(ID!$M$8:$M$31,FBR!$D62+1)*INDEX(ID!$M$35:$M$46,$B62),0) -> 0 | N62: =IF(I62="w",INDEX(ID!$N$8:$N$31,FBR!$D62+1)*INDEX(ID!$N$35:$N$46,$B62),0) -> 27 | P62: 0 | Q62: 15.94618981 | R62: 0 | S62: 0
A63: 53 | B63: 1 | C63: 3 | D63: 4 | E63: 3 | F63: 1 | G63: 2014-01-03 | H63: 6 | I63: w | K63: =IF(I63="h",INDEX(ID!$K$8:$K$31,FBR!$D63+1)*INDEX(ID!$K$35:$K$46,$B63),0) -> 0 | L63: =IF(I63="w",INDEX(ID!$L$8:$L$31,FBR!$D63+1)*INDEX(ID!$L$35:$L$46,$B63),0) -> 27 | M63: =IF(I63="h",INDEX(ID!$M$8:$M$31,FBR!$D63+1)*INDEX(ID!$M$35:$M$46,$B63),0) -> 0 | N63: =IF(I63="w",INDEX(ID!$N$8:$N$31,FBR!$D63+1)*INDEX(ID!$N$35:$N$46,$B63),0) -> 27 | P63: 0 | Q63: 15.94618981 | R63: 0 | S63: 0
A64: 54 | B64: 1 | C64: 3 | D64: 5 | E64: 3 | F64: 1 | G64: 2014-01-03 | H64: 6 | I64: w | K64: =IF(I64="h",INDEX(ID!$K$8:$K$31,FBR!$D64+1)*INDEX(ID!$K$35:$K$46,$B64),0) -> 0 | L64: =IF(I64="w",INDEX(ID!$L$8:$L$31,FBR!$D64+1)*INDEX(ID!$L$35:$L$46,$B64),0) -> 27 | M64: =IF(I64="h",INDEX(ID!$M$8:$M$31,FBR!$D64+1)*INDEX(ID!$M$35:$M$46,$B64),0) -> 0 | N64: =IF(I64="w",INDEX(ID!$N$8:$N$31,FBR!$D64+1)*INDEX(ID!$N$35:$N$46,$B64),0) -> 27 | P64: 0 | Q64: 15.94618981 | R64: 0 | S64: 0
A65: 55 | B65: 1 | C65: 3 | D65: 6 | E65: 3 | F65: 1 | G65: 2014-01-03 | H65: 6 | I65: w | K65: =IF(I65="h",INDEX(ID!$K$8:$K$31,FBR!$D65+1)*INDEX(ID!$K$35:$K$46,$B65),0) -> 0 | L65: =IF(I65="w",INDEX(ID!$L$8:$L$31,FBR!$D65+1)*INDEX(ID!$L$35:$L$46,$B65),0) -> 29 | M65: =IF(I65="h",INDEX(ID!$M$8:$M$31,FBR!$D65+1)*INDEX(ID!$M$35:$M$46,$B65),0) -> 0 | N65: =IF(I65="w",INDEX(ID!$N$8:$N$31,FBR!$D65+1)*INDEX(ID!$N$35:$N$46,$B65),0) -> 29 | P65: 0 | Q65: 17.12738906 | R65: 0 | S65: 0
A66: 56 | B66: 1 | C66: 3 | D66: 7 | E66: 3 | F66: 1 | G66: 2014-01-03 | H66: 6 | I66: w | K66: =IF(I66="h",INDEX(ID!$K$8:$K$31,FBR!$D66+1)*INDEX(ID!$K$35:$K$46,$B66),0) -> 0 | L66: =IF(I66="w",INDEX(ID!$L$8:$L$31,FBR!$D66+1)*INDEX(ID!$L$35:$L$46,$B66),0) -> 32 | M66: =IF(I66="h",INDEX(ID!$M$8:$M$31,FBR!$D66+1)*INDEX(ID!$M$35:$M$46,$B66),0) -> 0 | N66: =IF(I66="w",INDEX(ID!$N$8:$N$31,FBR!$D66+1)*INDEX(ID!$N$35:$N$46,$B66),0) -> 32 | P66: 0 | Q66: 18.89918793 | R66: 0 | S66: 0
A67: 57 | B67: 1 | C67: 3 | D67: 8 | E67: 3 | F67: 1 | G67: 2014-01-03 | H67: 6 | I67: w | K67: =IF(I67="h",INDEX(ID!$K$8:$K$31,FBR!$D67+1)*INDEX(ID!$K$35:$K$46,$B67),0) -> 0 | L67: =IF(I67="w",INDEX(ID!$L$8:$L$31,FBR!$D67+1)*INDEX(ID!$L$35:$L$46,$B67),0) -> 35 | M67: =IF(I67="h",INDEX(ID!$M$8:$M$31,FBR!$D67+1)*INDEX(ID!$M$35:$M$46,$B67),0) -> 0 | N67: =IF(I67="w",INDEX(ID!$N$8:$N$31,FBR!$D67+1)*INDEX(ID!$N$35:$N$46,$B67),0) -> 35 | P67: 0 | Q67: 20.67098679 | R67: 0 | S67: 0
A68: 58 | B68: 1 | C68: 3 | D68: 9 | E68: 3 | F68: 1 | G68: 2014-01-03 | H68: 6 | I68: w | K68: =IF(I68="h",INDEX(ID!$K$8:$K$31,FBR!$D68+1)*INDEX(ID!$K$35:$K$46,$B68),0) -> 0 | L68: =IF(I68="w",INDEX(ID!$L$8:$L$31,FBR!$D68+1)*INDEX(ID!$L$35:$L$46,$B68),0) -> 38 | M68: =IF(I68="h",INDEX(ID!$M$8:$M$31,FBR!$D68+1)*INDEX(ID!$M$35:$M$46,$B68),0) -> 0 | N68: =IF(I68="w",INDEX(ID!$N$8:$N$31,FBR!$D68+1)*INDEX(ID!$N$35:$N$46,$B68),0) -> 38 | P68: 0 | Q68: 22.44278566 | R68: 0 | S68: 0
A69: 59 | B69: 1 | C69: 3 | D69: 10 | E69: 3 | F69: 1 | G69: 2014-01-03 | H69: 6 | I69: w | K69: =IF(I69="h",INDEX(ID!$K$8:$K$31,FBR!$D69+1)*INDEX(ID!$K$35:$K$46,$B69),0) -> 0 | L69: =IF(I69="w",INDEX(ID!$L$8:$L$31,FBR!$D69+1)*INDEX(ID!$L$35:$L$46,$B69),0) -> 40 | M69: =IF(I69="h",INDEX(ID!$M$8:$M$31,FBR!$D69+1)*INDEX(ID!$M$35:$M$46,$B69),0) -> 0 | N69: =IF(I69="w",INDEX(ID!$N$8:$N$31,FBR!$D69+1)*INDEX(ID!$N$35:$N$46,$B69),0) -> 40 | P69: 0 | Q69: 23.62398491 | R69: 0 | S69: 0
A70: 60 | B70: 1 | C70: 3 | D70: 11 | E70: 3 | F70: 1 | G70: 2014-01-03 | H70: 6 | I70: w | K70: =IF(I70="h",INDEX(ID!$K$8:$K$31,FBR!$D70+1)*INDEX(ID!$K$35:$K$46,$B70),0) -> 0 | L70: =IF(I70="w",INDEX(ID!$L$8:$L$31,FBR!$D70+1)*INDEX(ID!$L$35:$L$46,$B70),0) -> 42 | M70: =IF(I70="h",INDEX(ID!$M$8:$M$31,FBR!$D70+1)*INDEX(ID!$M$35:$M$46,$B70),0) -> 0 | N70: =IF(I70="w",INDEX(ID!$N$8:$N$31,FBR!$D70+1)*INDEX(ID!$N$35:$N$46,$B70),0) -> 42 | P70: 0 | Q70: 24.80518415 | R70: 0 | S70: 0
A71: 61 | B71: 1 | C71: 3 | D71: 12 | E71: 3 | F71: 1 | G71: 2014-01-03 | H71: 6 | I71: w | K71: =IF(I71="h",INDEX(ID!$K$8:$K$31,FBR!$D71+1)*INDEX(ID!$K$35:$K$46,$B71),0) -> 0 | L71: =IF(I71="w",INDEX(ID!$L$8:$L$31,FBR!$D71+1)*INDEX(ID!$L$35:$L$46,$B71),0) -> 43 | M71: =IF(I71="h",INDEX(ID!$M$8:$M$31,FBR!$D71+1)*INDEX(ID!$M$35:$M$46,$B71),0) -> 0 | N71: =IF(I71="w",INDEX(ID!$N$8:$N$31,FBR!$D71+1)*INDEX(ID!$N$35:$N$46,$B71),0) -> 43 | P71: 0 | Q71: 25.39578377 | R71: 0 | S71: 0
A72: 62 | B72: 1 | C72: 3 | D72: 13 | E72: 3 | F72: 1 | G72: 2014-01-03 | H72: 6 | I72: w | K72: =IF(I72="h",INDEX(ID!$K$8:$K$31,FBR!$D72+1)*INDEX(ID!$K$35:$K$46,$B72),0) -> 0 | L72: =IF(I72="w",INDEX(ID!$L$8:$L$31,FBR!$D72+1)*INDEX(ID!$L$35:$L$46,$B72),0) -> 44 | M72: =IF(I72="h",INDEX(ID!$M$8:$M$31,FBR!$D72+1)*INDEX(ID!$M$35:$M$46,$B72),0) -> 0 | N72: =IF(I72="w",INDEX(ID!$N$8:$N$31,FBR!$D72+1)*INDEX(ID!$N$35:$N$46,$B72),0) -> 44 | P72: 0 | Q72: 25.9863834 | R72: 0 | S72: 0
A73: 63 | B73: 1 | C73: 3 | D73: 14 | E73: 3 | F73: 1 | G73: 2014-01-03 | H73: 6 | I73: w | K73: =IF(I73="h",INDEX(ID!$K$8:$K$31,FBR!$D73+1)*INDEX(ID!$K$35:$K$46,$B73),0) -> 0 | L73: =IF(I73="w",INDEX(ID!$L$8:$L$31,FBR!$D73+1)*INDEX(ID!$L$35:$L$46,$B73),0) -> 47 | M73: =IF(I73="h",INDEX(ID!$M$8:$M$31,FBR!$D73+1)*INDEX(ID!$M$35:$M$46,$B73),0) -> 0 | N73: =IF(I73="w",INDEX(ID!$N$8:$N$31,FBR!$D73+1)*INDEX(ID!$N$35:$N$46,$B73),0) -> 47 | P73: 0 | Q73: 27.75818227 | R73: 0 | S73: 0
A74: 64 | B74: 1 | C74: 3 | D74: 15 | E74: 3 | F74: 1 | G74: 2014-01-03 | H74: 6 | I74: w | K74: =IF(I74="h",INDEX(ID!$K$8:$K$31,FBR!$D74+1)*INDEX(ID!$K$35:$K$46,$B74),0) -> 0 | L74: =IF(I74="w",INDEX(ID!$L$8:$L$31,FBR!$D74+1)*INDEX(ID!$L$35:$L$46,$B74),0) -> 50 | M74: =IF(I74="h",INDEX(ID!$M$8:$M$31,FBR!$D74+1)*INDEX(ID!$M$35:$M$46,$B74),0) -> 0 | N74: =IF(I74="w",INDEX(ID!$N$8:$N$31,FBR!$D74+1)*INDEX(ID!$N$35:$N$46,$B74),0) -> 50 | P74: 0 | Q74: 29.52998113 | R74: 0 | S74: 0
A75: 65 | B75: 1 | C75: 3 | D75: 16 | E75: 3 | F75: 1 | G75: 2014-01-03 | H75: =WEEKDAY(G75) -> 6 | I75: =IF(OR(H75=6,H75=7),"w","h") -> w | K75: =IF(I75="h",INDEX(ID!$K$8:$K$31,FBR!$D75+1)*INDEX(ID!$K$35:$K$46,$B75),0) -> 0 | L75: =IF(I75="w",INDEX(ID!$L$8:$L$31,FBR!$D75+1)*INDEX(ID!$L$35:$L$46,$B75),0) -> 53 | M75: =IF(I75="h",INDEX(ID!$M$8:$M$31,FBR!$D75+1)*INDEX(ID!$M$35:$M$46,$B75),0) -> 0 | N75: =IF(I75="w",INDEX(ID!$N$8:$N$31,FBR!$D75+1)*INDEX(ID!$N$35:$N$46,$B75),0) -> 53 | P75: =K75*(indvforbrug*antalbrugere)/($K$8789+$L$8789) -> 0 | Q75: =L75*indvforbrug*antalbrugere/($K$8789+$L$8789) -> 31.30178 | R75: =M75*fællesforbrug/($M$8789+$N$8789) -> 0 | S75: =N75*fællesforbrug/($M$8789+$N$8789) -> 0
A76: =A75+1 -> 66 | B76: 1 | C76: 3 | D76: 17 | E76: 3 | F76: 1 | G76: =DATE(2014,B76,C76) -> 2014-01-03 | H76: 6 | I76: w | K76: =IF(I76="h",INDEX(ID!$K$8:$K$31,FBR!$D76+1)*INDEX(ID!$K$35:$K$46,$B76),0) -> 0 | L76: =IF(I76="w",INDEX(ID!$L$8:$L$31,FBR!$D76+1)*INDEX(ID!$L$35:$L$46,$B76),0) -> 62 | M76: =IF(I76="h",INDEX(ID!$M$8:$M$31,FBR!$D76+1)*INDEX(ID!$M$35:$M$46,$B76),0) -> 0 | N76: =IF(I76="w",INDEX(ID!$N$8:$N$31,FBR!$D76+1)*INDEX(ID!$N$35:$N$46,$B76),0) -> 62 | P76: 0 | Q76: 36.61717661 | R76: 0 | S76: 0
A77: 67 | B77: 1 | C77: 3 | D77: 18 | E77: 3 | F77: 1 | G77: 2014-01-03 | H77: 6 | I77: w | K77: =IF(I77="h",INDEX(ID!$K$8:$K$31,FBR!$D77+1)*INDEX(ID!$K$35:$K$46,$B77),0) -> 0 | L77: =IF(I77="w",INDEX(ID!$L$8:$L$31,FBR!$D77+1)*INDEX(ID!$L$35:$L$46,$B77),0) -> 65 | M77: =IF(I77="h",INDEX(ID!$M$8:$M$31,FBR!$D77+1)*INDEX(ID!$M$35:$M$46,$B77),0) -> 0 | N77: =IF(I77="w",INDEX(ID!$N$8:$N$31,FBR!$D77+1)*INDEX(ID!$N$35:$N$46,$B77),0) -> 65 | P77: 0 | Q77: 38.38897547 | R77: 0 | S77: 0
A78: 68 | B78: 1 | C78: 3 | D78: 19 | E78: 3 | F78: 1 | G78: 2014-01-03 | H78: 6 | I78: w | K78: =IF(I78="h",INDEX(ID!$K$8:$K$31,FBR!$D78+1)*INDEX(ID!$K$35:$K$46,$B78),0) -> 0 | L78: =IF(I78="w",INDEX(ID!$L$8:$L$31,FBR!$D78+1)*INDEX(ID!$L$35:$L$46,$B78),0) -> 60 | M78: =IF(I78="h",INDEX(ID!$M$8:$M$31,FBR!$D78+1)*INDEX(ID!$M$35:$M$46,$B78),0) -> 0 | N78: =IF(I78="w",INDEX(ID!$N$8:$N$31,FBR!$D78+1)*INDEX(ID!$N$35:$N$46,$B78),0) -> 60 | P78: 0 | Q78: 35.43597736 | R78: 0 | S78: 0
A79: 69 | B79: 1 | C79: 3 | D79: 20 | E79: 3 | F79: 1 | G79: 2014-01-03 | H79: 6 | I79: w | K79: =IF(I79="h",INDEX(ID!$K$8:$K$31,FBR!$D79+1)*INDEX(ID!$K$35:$K$46,$B79),0) -> 0 | L79: =IF(I79="w",INDEX(ID!$L$8:$L$31,FBR!$D79+1)*INDEX(ID!$L$35:$L$46,$B79),0) -> 53 | M79: =IF(I79="h",INDEX(ID!$M$8:$M$31,FBR!$D79+1)*INDEX(ID!$M$35:$M$46,$B79),0) -> 0 | N79: =IF(I79="w",INDEX(ID!$N$8:$N$31,FBR!$D79+1)*INDEX(ID!$N$35:$N$46,$B79),0) -> 53 | P79: 0 | Q79: 31.30178 | R79: 0 | S79: 0
A80: 70 | B80: 1 | C80: 3 | D80: 21 | E80: 3 | F80: 1 | G80: 2014-01-03 | H80: 6 | I80: w | K80: =IF(I80="h",INDEX(ID!$K$8:$K$31,FBR!$D80+1)*INDEX(ID!$K$35:$K$46,$B80),0) -> 0 | L80: =IF(I80="w",INDEX(ID!$L$8:$L$31,FBR!$D80+1)*INDEX(ID!$L$35:$L$46,$B80),0) -> 50 | M80: =IF(I80="h",INDEX(ID!$M$8:$M$31,FBR!$D80+1)*INDEX(ID!$M$35:$M$46,$B80),0) -> 0 | N80: =IF(I80="w",INDEX(ID!$N$8:$N$31,FBR!$D80+1)*INDEX(ID!$N$35:$N$46,$B80),0) -> 50 | P80: 0 | Q80: 29.52998113 | R80: 0 | S80: 0
A81: 71 | B81: 1 | C81: 3 | D81: 22 | E81: 3 | F81: 1 | G81: 2014-01-03 | H81: 6 | I81: w | K81: =IF(I81="h",INDEX(ID!$K$8:$K$31,FBR!$D81+1)*INDEX(ID!$K$35:$K$46,$B81),0) -> 0 | L81: =IF(I81="w",INDEX(ID!$L$8:$L$31,FBR!$D81+1)*INDEX(ID!$L$35:$L$46,$B81),0) -> 45 | M81: =IF(I81="h",INDEX(ID!$M$8:$M$31,FBR!$D81+1)*INDEX(ID!$M$35:$M$46,$B81),0) -> 0 | N81: =IF(I81="w",INDEX(ID!$N$8:$N$31,FBR!$D81+1)*INDEX(ID!$N$35:$N$46,$B81),0) -> 45 | P81: 0 | Q81: 26.57698302 | R81: 0 | S81: 0
A82: 72 | B82: 1 | C82: 3 | D82: 23 | E82: 3 | F82: 1 | G82: 2014-01-03 | H82: 6 | I82: w | K82: =IF(I82="h",INDEX(ID!$K$8:$K$31,FBR!$D82+1)*INDEX(ID!$K$35:$K$46,$B82),0) -> 0 | L82: =IF(I82="w",INDEX(ID!$L$8:$L$31,FBR!$D82+1)*INDEX(ID!$L$35:$L$46,$B82),0) -> 40 | M82: =IF(I82="h",INDEX(ID!$M$8:$M$31,FBR!$D82+1)*INDEX(ID!$M$35:$M$46,$B82),0) -> 0 | N82: =IF(I82="w",INDEX(ID!$N$8:$N$31,FBR!$D82+1)*INDEX(ID!$N$35:$N$46,$B82),0) -> 40 | P82: 0 | Q82: 23.62398491 | R82: 0 | S82: 0
A83: 73 | B83: 1 | C83: 4 | D83: 0 | E83: 4 | F83: 1 | G83: 2014-01-04 | H83: 7 | I83: w | K83: =IF(I83="h",INDEX(ID!$K$8:$K$31,FBR!$D83+1)*INDEX(ID!$K$35:$K$46,$B83),0) -> 0 | L83: =IF(I83="w",INDEX(ID!$L$8:$L$31,FBR!$D83+1)*INDEX(ID!$L$35:$L$46,$B83),0) -> 35 | M83: =IF(I83="h",INDEX(ID!$M$8:$M$31,FBR!$D83+1)*INDEX(ID!$M$35:$M$46,$B83),0) -> 0 | N83: =IF(I83="w",INDEX(ID!$N$8:$N$31,FBR!$D83+1)*INDEX(ID!$N$35:$N$46,$B83),0) -> 35 | P83: 0 | Q83: 20.67098679 | R83: 0 | S83: 0
A84: 74 | B84: 1 | C84: 4 | D84: 1 | E84: 4 | F84: 1 | G84: 2014-01-04 | H84: 7 | I84: w | K84: =IF(I84="h",INDEX(ID!$K$8:$K$31,FBR!$D84+1)*INDEX(ID!$K$35:$K$46,$B84),0) -> 0 | L84: =IF(I84="w",INDEX(ID!$L$8:$L$31,FBR!$D84+1)*INDEX(ID!$L$35:$L$46,$B84),0) -> 30 | M84: =IF(I84="h",INDEX(ID!$M$8:$M$31,FBR!$D84+1)*INDEX(ID!$M$35:$M$46,$B84),0) -> 0 | N84: =IF(I84="w",INDEX(ID!$N$8:$N$31,FBR!$D84+1)*INDEX(ID!$N$35:$N$46,$B84),0) -> 30 | P84: 0 | Q84: 17.71798868 | R84: 0 | S84: 0
A85: 75 | B85: 1 | C85: 4 | D85: 2 | E85: 4 | F85: 1 | G85: 2014-01-04 | H85: 7 | I85: w | K85: =IF(I85="h",INDEX(ID!$K$8:$K$31,FBR!$D85+1)*INDEX(ID!$K$35:$K$46,$B85),0) -> 0 | L85: =IF(I85="w",INDEX(ID!$L$8:$L$31,FBR!$D85+1)*INDEX(ID!$L$35:$L$46,$B85),0) -> 28 | M85: =IF(I85="h",INDEX(ID!$M$8:$M$31,FBR!$D85+1)*INDEX(ID!$M$35:$M$46,$B85),0) -> 0 | N85: =IF(I85="w",INDEX(ID!$N$8:$N$31,FBR!$D85+1)*INDEX(ID!$N$35:$N$46,$B85),0) -> 28 | P85: 0 | Q85: 16.53678943 | R85: 0 | S85: 0
A86: 76 | B86: 1 | C86: 4 | D86: 3 | E86: 4 | F86: 1 | G86: 2014-01-04 | H86: 7 | I86: w | K86: =IF(I86="h",INDEX(ID!$K$8:$K$31,FBR!$D86+1)*INDEX(ID!$K$35:$K$46,$B86),0) -> 0 | L86: =IF(I86="w",INDEX(ID!$L$8:$L$31,FBR!$D86+1)*INDEX(ID!$L$35:$L$46,$B86),0) -> 27 | M86: =IF(I86="h",INDEX(ID!$M$8:$M$31,FBR!$D86+1)*INDEX(ID!$M$35:$M$46,$B86),0) -> 0 | N86: =IF(I86="w",INDEX(ID!$N$8:$N$31,FBR!$D86+1)*INDEX(ID!$N$35:$N$46,$B86),0) -> 27 | P86: 0 | Q86: 15.94618981 | R86: 0 | S86: 0
A87: 77 | B87: 1 | C87: 4 | D87: 4 | E87: 4 | F87: 1 | G87: 2014-01-04 | H87: 7 | I87: w | K87: =IF(I87="h",INDEX(ID!$K$8:$K$31,FBR!$D87+1)*INDEX(ID!$K$35:$K$46,$B87),0) -> 0 | L87: =IF(I87="w",INDEX(ID!$L$8:$L$31,FBR!$D87+1)*INDEX(ID!$L$35:$L$46,$B87),0) -> 27 | M87: =IF(I87="h",INDEX(ID!$M$8:$M$31,FBR!$D87+1)*INDEX(ID!$M$35:$M$46,$B87),0) -> 0 | N87: =IF(I87="w",INDEX(ID!$N$8:$N$31,FBR!$D87+1)*INDEX(ID!$N$35:$N$46,$B87),0) -> 27 | P87: 0 | Q87: 15.94618981 | R87: 0 | S87: 0
A88: 78 | B88: 1 | C88: 4 | D88: 5 | E88: 4 | F88: 1 | G88: 2014-01-04 | H88: 7 | I88: w | K88: =IF(I88="h",INDEX(ID!$K$8:$K$31,FBR!$D88+1)*INDEX(ID!$K$35:$K$46,$B88),0) -> 0 | L88: =IF(I88="w",INDEX(ID!$L$8:$L$31,FBR!$D88+1)*INDEX(ID!$L$35:$L$46,$B88),0) -> 27 | M88: =IF(I88="h",INDEX(ID!$M$8:$M$31,FBR!$D88+1)*INDEX(ID!$M$35:$M$46,$B88),0) -> 0 | N88: =IF(I88="w",INDEX(ID!$N$8:$N$31,FBR!$D88+1)*INDEX(ID!$N$35:$N$46,$B88),0) -> 27 | P88: 0 | Q88: 15.94618981 | R88: 0 | S88: 0
A89: 79 | B89: 1 | C89: 4 | D89: 6 | E89: 4 | F89: 1 | G89: 2014-01-04 | H89: 7 | I89: w | K89: =IF(I89="h",INDEX(ID!$K$8:$K$31,FBR!$D89+1)*INDEX(ID!$K$35:$K$46,$B89),0) -> 0 | L89: =IF(I89="w",INDEX(ID!$L$8:$L$31,FBR!$D89+1)*INDEX(ID!$L$35:$L$46,$B89),0) -> 29 | M89: =IF(I89="h",INDEX(ID!$M$8:$M$31,FBR!$D89+1)*INDEX(ID!$M$35:$M$46,$B89),0) -> 0 | N89: =IF(I89="w",INDEX(ID!$N$8:$N$31,FBR!$D89+1)*INDEX(ID!$N$35:$N$46,$B89),0) -> 29 | P89: 0 | Q89: 17.12738906 | R89: 0 | S89: 0
A90: 80 | B90: 1 | C90: 4 | D90: 7 | E90: 4 | F90: 1 | G90: 2014-01-04 | H90: 7 | I90: w | K90: =IF(I90="h",INDEX(ID!$K$8:$K$31,FBR!$D90+1)*INDEX(ID!$K$35:$K$46,$B90),0) -> 0 | L90: =IF(I90="w",INDEX(ID!$L$8:$L$31,FBR!$D90+1)*INDEX(ID!$L$35:$L$46,$B90),0) -> 32 | M90: =IF(I90="h",INDEX(ID!$M$8:$M$31,FBR!$D90+1)*INDEX(ID!$M$35:$M$46,$B90),0) -> 0 | N90: =IF(I90="w",INDEX(ID!$N$8:$N$31,FBR!$D90+1)*INDEX(ID!$N$35:$N$46,$B90),0) -> 32 | P90: 0 | Q90: 18.89918793 | R90: 0 | S90: 0
A91: 81 | B91: 1 | C91: 4 | D91: 8 | E91: 4 | F91: 1 | G91: 2014-01-04 | H91: 7 | I91: w | K91: =IF(I91="h",INDEX(ID!$K$8:$K$31,FBR!$D91+1)*INDEX(ID!$K$35:$K$46,$B91),0) -> 0 | L91: =IF(I91="w",INDEX(ID!$L$8:$L$31,FBR!$D91+1)*INDEX(ID!$L$35:$L$46,$B91),0) -> 35 | M91: =IF(I91="h",INDEX(ID!$M$8:$M$31,FBR!$D91+1)*INDEX(ID!$M$35:$M$46,$B91),0) -> 0 | N91: =IF(I91="w",INDEX(ID!$N$8:$N$31,FBR!$D91+1)*INDEX(ID!$N$35:$N$46,$B91),0) -> 35 | P91: 0 | Q91: 20.67098679 | R91: 0 | S91: 0
A92: 82 | B92: 1 | C92: 4 | D92: 9 | E92: 4 | F92: 1 | G92: 2014-01-04 | H92: 7 | I92: w | K92: =IF(I92="h",INDEX(ID!$K$8:$K$31,FBR!$D92+1)*INDEX(ID!$K$35:$K$46,$B92),0) -> 0 | L92: =IF(I92="w",INDEX(ID!$L$8:$L$31,FBR!$D92+1)*INDEX(ID!$L$35:$L$46,$B92),0) -> 38 | M92: =IF(I92="h",INDEX(ID!$M$8:$M$31,FBR!$D92+1)*INDEX(ID!$M$35:$M$46,$B92),0) -> 0 | N92: =IF(I92="w",INDEX(ID!$N$8:$N$31,FBR!$D92+1)*INDEX(ID!$N$35:$N$46,$B92),0) -> 38 | P92: 0 | Q92: 22.44278566 | R92: 0 | S92: 0
A93: 83 | B93: 1 | C93: 4 | D93: 10 | E93: 4 | F93: 1 | G93: 2014-01-04 | H93: 7 | I93: w | K93: =IF(I93="h",INDEX(ID!$K$8:$K$31,FBR!$D93+1)*INDEX(ID!$K$35:$K$46,$B93),0) -> 0 | L93: =IF(I93="w",INDEX(ID!$L$8:$L$31,FBR!$D93+1)*INDEX(ID!$L$35:$L$46,$B93),0) -> 40 | M93: =IF(I93="h",INDEX(ID!$M$8:$M$31,FBR!$D93+1)*INDEX(ID!$M$35:$M$46,$B93),0) -> 0 | N93: =IF(I93="w",INDEX(ID!$N$8:$N$31,FBR!$D93+1)*INDEX(ID!$N$35:$N$46,$B93),0) -> 40 | P93: 0 | Q93: 23.62398491 | R93: 0 | S93: 0
A94: 84 | B94: 1 | C94: 4 | D94: 11 | E94: 4 | F94: 1 | G94: 2014-01-04 | H94: 7 | I94: w | K94: =IF(I94="h",INDEX(ID!$K$8:$K$31,FBR!$D94+1)*INDEX(ID!$K$35:$K$46,$B94),0) -> 0 | L94: =IF(I94="w",INDEX(ID!$L$8:$L$31,FBR!$D94+1)*INDEX(ID!$L$35:$L$46,$B94),0) -> 42 | M94: =IF(I94="h",INDEX(ID!$M$8:$M$31,FBR!$D94+1)*INDEX(ID!$M$35:$M$46,$B94),0) -> 0 | N94: =IF(I94="w",INDEX(ID!$N$8:$N$31,FBR!$D94+1)*INDEX(ID!$N$35:$N$46,$B94),0) -> 42 | P94: 0 | Q94: 24.80518415 | R94: 0 | S94: 0
A95: 85 | B95: 1 | C95: 4 | D95: 12 | E95: 4 | F95: 1 | G95: 2014-01-04 | H95: 7 | I95: w | K95: =IF(I95="h",INDEX(ID!$K$8:$K$31,FBR!$D95+1)*INDEX(ID!$K$35:$K$46,$B95),0) -> 0 | L95: =IF(I95="w",INDEX(ID!$L$8:$L$31,FBR!$D95+1)*INDEX(ID!$L$35:$L$46,$B95),0) -> 43 | M95: =IF(I95="h",INDEX(ID!$M$8:$M$31,FBR!$D95+1)*INDEX(ID!$M$35:$M$46,$B95),0) -> 0 | N95: =IF(I95="w",INDEX(ID!$N$8:$N$31,FBR!$D95+1)*INDEX(ID!$N$35:$N$46,$B95),0) -> 43 | P95: 0 | Q95: 25.39578377 | R95: 0 | S95: 0
A96: 86 | B96: 1 | C96: 4 | D96: 13 | E96: 4 | F96: 1 | G96: 2014-01-04 | H96: 7 | I96: w | K96: =IF(I96="h",INDEX(ID!$K$8:$K$31,FBR!$D96+1)*INDEX(ID!$K$35:$K$46,$B96),0) -> 0 | L96: =IF(I96="w",INDEX(ID!$L$8:$L$31,FBR!$D96+1)*INDEX(ID!$L$35:$L$46,$B96),0) -> 44 | M96: =IF(I96="h",INDEX(ID!$M$8:$M$31,FBR!$D96+1)*INDEX(ID!$M$35:$M$46,$B96),0) -> 0 | N96: =IF(I96="w",INDEX(ID!$N$8:$N$31,FBR!$D96+1)*INDEX(ID!$N$35:$N$46,$B96),0) -> 44 | P96: 0 | Q96: 25.9863834 | R96: 0 | S96: 0
A97: 87 | B97: 1 | C97: 4 | D97: 14 | E97: 4 | F97: 1 | G97: 2014-01-04 | H97: 7 | I97: w | K97: =IF(I97="h",INDEX(ID!$K$8:$K$31,FBR!$D97+1)*INDEX(ID!$K$35:$K$46,$B97),0) -> 0 | L97: =IF(I97="w",INDEX(ID!$L$8:$L$31,FBR!$D97+1)*INDEX(ID!$L$35:$L$46,$B97),0) -> 47 | M97: =IF(I97="h",INDEX(ID!$M$8:$M$31,FBR!$D97+1)*INDEX(ID!$M$35:$M$46,$B97),0) -> 0 | N97: =IF(I97="w",INDEX(ID!$N$8:$N$31,FBR!$D97+1)*INDEX(ID!$N$35:$N$46,$B97),0) -> 47 | P97: 0 | Q97: 27.75818227 | R97: 0 | S97: 0
A98: 88 | B98: 1 | C98: 4 | D98: 15 | E98: 4 | F98: 1 | G98: 2014-01-04 | H98: 7 | I98: w | K98: =IF(I98="h",INDEX(ID!$K$8:$K$31,FBR!$D98+1)*INDEX(ID!$K$35:$K$46,$B98),0) -> 0 | L98: =IF(I98="w",INDEX(ID!$L$8:$L$31,FBR!$D98+1)*INDEX(ID!$L$35:$L$46,$B98),0) -> 50 | M98: =IF(I98="h",INDEX(ID!$M$8:$M$31,FBR!$D98+1)*INDEX(ID!$M$35:$M$46,$B98),0) -> 0 | N98: =IF(I98="w",INDEX(ID!$N$8:$N$31,FBR!$D98+1)*INDEX(ID!$N$35:$N$46,$B98),0) -> 50 | P98: 0 | Q98: 29.52998113 | R98: 0 | S98: 0
A99: 89 | B99: 1 | C99: 4 | D99: 16 | E99: 4 | F99: 1 | G99: 2014-01-04 | H99: 7 | I99: w | K99: =IF(I99="h",INDEX(ID!$K$8:$K$31,FBR!$D99+1)*INDEX(ID!$K$35:$K$46,$B99),0) -> 0 | L99: =IF(I99="w",INDEX(ID!$L$8:$L$31,FBR!$D99+1)*INDEX(ID!$L$35:$L$46,$B99),0) -> 53 | M99: =IF(I99="h",INDEX(ID!$M$8:$M$31,FBR!$D99+1)*INDEX(ID!$M$35:$M$46,$B99),0) -> 0 | N99: =IF(I99="w",INDEX(ID!$N$8:$N$31,FBR!$D99+1)*INDEX(ID!$N$35:$N$46,$B99),0) -> 53 | P99: 0 | Q99: 31.30178 | R99: 0 | S99: 0
A100: 90 | B100: 1 | C100: 4 | D100: 17 | E100: =E76+1 -> 4 | F100: 1 | G100: 2014-01-04 | H100: 7 | I100: w | K100: =IF(I100="h",INDEX(ID!$K$8:$K$31,FBR!$D100+1)*INDEX(ID!$K$35:$K$46,$B100),0) -> 0 | L100: =IF(I100="w",INDEX(ID!$L$8:$L$31,FBR!$D100+1)*INDEX(ID!$L$35:$L$46,$B100),0) -> 62 | M100: =IF(I100="h",INDEX(ID!$M$8:$M$31,FBR!$D100+1)*INDEX(ID!$M$35:$M$46,$B100),0) -> 0 | N100: =IF(I100="w",INDEX(ID!$N$8:$N$31,FBR!$D100+1)*INDEX(ID!$N$35:$N$46,$B100),0) -> 62 | P100: 0 | Q100: 36.61717661 | R100: 0 | S100: 0
A101: 91 | B101: 1 | C101: 4 | D101: 18 | E101: 4 | F101: 1 | G101: 2014-01-04 | H101: 7 | I101: w | K101: =IF(I101="h",INDEX(ID!$K$8:$K$31,FBR!$D101+1)*INDEX(ID!$K$35:$K$46,$B101),0) -> 0 | L101: =IF(I101="w",INDEX(ID!$L$8:$L$31,FBR!$D101+1)*INDEX(ID!$L$35:$L$46,$B101),0) -> 65 | M101: =IF(I101="h",INDEX(ID!$M$8:$M$31,FBR!$D101+1)*INDEX(ID!$M$35:$M$46,$B101),0) -> 0 | N101: =IF(I101="w",INDEX(ID!$N$8:$N$31,FBR!$D101+1)*INDEX(ID!$N$35:$N$46,$B101),0) -> 65 | P101: 0 | Q101: 38.38897547 | R101: 0 | S101: 0
A102: 92 | B102: 1 | C102: 4 | D102: 19 | E102: 4 | F102: 1 | G102: 2014-01-04 | H102: 7 | I102: w | K102: =IF(I102="h",INDEX(ID!$K$8:$K$31,FBR!$D102+1)*INDEX(ID!$K$35:$K$46,$B102),0) -> 0 | L102: =IF(I102="w",INDEX(ID!$L$8:$L$31,FBR!$D102+1)*INDEX(ID!$L$35:$L$46,$B102),0) -> 60 | M102: =IF(I102="h",INDEX(ID!$M$8:$M$31,FBR!$D102+1)*INDEX(ID!$M$35:$M$46,$B102),0) -> 0 | N102: =IF(I102="w",INDEX(ID!$N$8:$N$31,FBR!$D102+1)*INDEX(ID!$N$35:$N$46,$B102),0) -> 60 | P102: 0 | Q102: 35.43597736 | R102: 0 | S102: 0
A103: 93 | B103: 1 | C103: 4 | D103: 20 | E103: 4 | F103: 1 | G103: 2014-01-04 | H103: 7 | I103: w | K103: =IF(I103="h",INDEX(ID!$K$8:$K$31,FBR!$D103+1)*INDEX(ID!$K$35:$K$46,$B103),0) -> 0 | L103: =IF(I103="w",INDEX(ID!$L$8:$L$31,FBR!$D103+1)*INDEX(ID!$L$35:$L$46,$B103),0) -> 53 | M103: =IF(I103="h",INDEX(ID!$M$8:$M$31,FBR!$D103+1)*INDEX(ID!$M$35:$M$46,$B103),0) -> 0 | N103: =IF(I103="w",INDEX(ID!$N$8:$N$31,FBR!$D103+1)*INDEX(ID!$N$35:$N$46,$B103),0) -> 53 | P103: 0 | Q103: 31.30178 | R103: 0 | S103: 0
A104: 94 | B104: 1 | C104: 4 | D104: 21 | E104: 4 | F104: 1 | G104: 2014-01-04 | H104: 7 | I104: w | K104: =IF(I104="h",INDEX(ID!$K$8:$K$31,FBR!$D104+1)*INDEX(ID!$K$35:$K$46,$B104),0) -> 0 | L104: =IF(I104="w",INDEX(ID!$L$8:$L$31,FBR!$D104+1)*INDEX(ID!$L$35:$L$46,$B104),0) -> 50 | M104: =IF(I104="h",INDEX(ID!$M$8:$M$31,FBR!$D104+1)*INDEX(ID!$M$35:$M$46,$B104),0) -> 0 | N104: =IF(I104="w",INDEX(ID!$N$8:$N$31,FBR!$D104+1)*INDEX(ID!$N$35:$N$46,$B104),0) -> 50 | P104: 0 | Q104: 29.52998113 | R104: 0 | S104: 0
A105: 95 | B105: 1 | C105: 4 | D105: 22 | E105: 4 | F105: 1 | G105: 2014-01-04 | H105: 7 | I105: w | K105: =IF(I105="h",INDEX(ID!$K$8:$K$31,FBR!$D105+1)*INDEX(ID!$K$35:$K$46,$B105),0) -> 0 | L105: =IF(I105="w",INDEX(ID!$L$8:$L$31,FBR!$D105+1)*INDEX(ID!$L$35:$L$46,$B105),0) -> 45 | M105: =IF(I105="h",INDEX(ID!$M$8:$M$31,FBR!$D105+1)*INDEX(ID!$M$35:$M$46,$B105),0) -> 0 | N105: =IF(I105="w",INDEX(ID!$N$8:$N$31,FBR!$D105+1)*INDEX(ID!$N$35:$N$46,$B105),0) -> 45 | P105: 0 | Q105: 26.57698302 | R105: 0 | S105: 0
A106: 96 | B106: 1 | C106: 4 | D106: 23 | E106: 4 | F106: 1 | G106: 2014-01-04 | H106: 7 | I106: w | K106: =IF(I106="h",INDEX(ID!$K$8:$K$31,FBR!$D106+1)*INDEX(ID!$K$35:$K$46,$B106),0) -> 0 | L106: =IF(I106="w",INDEX(ID!$L$8:$L$31,FBR!$D106+1)*INDEX(ID!$L$35:$L$46,$B106),0) -> 40 | M106: =IF(I106="h",INDEX(ID!$M$8:$M$31,FBR!$D106+1)*INDEX(ID!$M$35:$M$46,$B106),0) -> 0 | N106: =IF(I106="w",INDEX(ID!$N$8:$N$31,FBR!$D106+1)*INDEX(ID!$N$35:$N$46,$B106),0) -> 40 | P106: 0 | Q106: 23.62398491 | R106: 0 | S106: 0
A107: 97 | B107: 1 | C107: 5 | D107: 0 | E107: 5 | F107: 1 | G107: 2014-01-05 | H107: 1 | I107: h | K107: =IF(I107="h",INDEX(ID!$K$8:$K$31,FBR!$D107+1)*INDEX(ID!$K$35:$K$46,$B107),0) -> 35 | L107: =IF(I107="w",INDEX(ID!$L$8:$L$31,FBR!$D107+1)*INDEX(ID!$L$35:$L$46,$B107),0) -> 0 | M107: =IF(I107="h",INDEX(ID!$M$8:$M$31,FBR!$D107+1)*INDEX(ID!$M$35:$M$46,$B107),0) -> 35 | N107: =IF(I107="w",INDEX(ID!$N$8:$N$31,FBR!$D107+1)*INDEX(ID!$N$35:$N$46,$B107),0) -> 0 | P107: 20.67098679 | Q107: 0 | R107: 0 | S107: 0
A108: 98 | B108: 1 | C108: 5 | D108: 1 | E108: 5 | F108: 1 | G108: 2014-01-05 | H108: 1 | I108: h | K108: =IF(I108="h",INDEX(ID!$K$8:$K$31,FBR!$D108+1)*INDEX(ID!$K$35:$K$46,$B108),0) -> 30 | L108: =IF(I108="w",INDEX(ID!$L$8:$L$31,FBR!$D108+1)*INDEX(ID!$L$35:$L$46,$B108),0) -> 0 | M108: =IF(I108="h",INDEX(ID!$M$8:$M$31,FBR!$D108+1)*INDEX(ID!$M$35:$M$46,$B108),0) -> 30 | N108: =IF(I108="w",INDEX(ID!$N$8:$N$31,FBR!$D108+1)*INDEX(ID!$N$35:$N$46,$B108),0) -> 0 | P108: 17.71798868 | Q108: 0 | R108: 0 | S108: 0
A109: 99 | B109: 1 | C109: 5 | D109: 2 | E109: 5 | F109: 1 | G109: 2014-01-05 | H109: 1 | I109: h | K109: =IF(I109="h",INDEX(ID!$K$8:$K$31,FBR!$D109+1)*INDEX(ID!$K$35:$K$46,$B109),0) -> 28 | L109: =IF(I109="w",INDEX(ID!$L$8:$L$31,FBR!$D109+1)*INDEX(ID!$L$35:$L$46,$B109),0) -> 0 | M109: =IF(I109="h",INDEX(ID!$M$8:$M$31,FBR!$D109+1)*INDEX(ID!$M$35:$M$46,$B109),0) -> 28 | N109: =IF(I109="w",INDEX(ID!$N$8:$N$31,FBR!$D109+1)*INDEX(ID!$N$35:$N$46,$B109),0) -> 0 | P109: 16.53678943 | Q109: 0 | R109: 0 | S109: 0
A110: 100 | B110: 1 | C110: 5 | D110: 3 | E110: 5 | F110: 1 | G110: 2014-01-05 | H110: 1 | I110: h | K110: =IF(I110="h",INDEX(ID!$K$8:$K$31,FBR!$D110+1)*INDEX(ID!$K$35:$K$46,$B110),0) -> 27 | L110: =IF(I110="w",INDEX(ID!$L$8:$L$31,FBR!$D110+1)*INDEX(ID!$L$35:$L$46,$B110),0) -> 0 | M110: =IF(I110="h",INDEX(ID!$M$8:$M$31,FBR!$D110+1)*INDEX(ID!$M$35:$M$46,$B110),0) -> 27 | N110: =IF(I110="w",INDEX(ID!$N$8:$N$31,FBR!$D110+1)*INDEX(ID!$N$35:$N$46,$B110),0) -> 0 | P110: 15.94618981 | Q110: 0 | R110: 0 | S110: 0
A111: 101 | B111: 1 | C111: 5 | D111: 4 | E111: 5 | F111: 1 | G111: 2014-01-05 | H111: 1 | I111: h | K111: =IF(I111="h",INDEX(ID!$K$8:$K$31,FBR!$D111+1)*INDEX(ID!$K$35:$K$46,$B111),0) -> 27 | L111: =IF(I111="w",INDEX(ID!$L$8:$L$31,FBR!$D111+1)*INDEX(ID!$L$35:$L$46,$B111),0) -> 0 | M111: =IF(I111="h",INDEX(ID!$M$8:$M$31,FBR!$D111+1)*INDEX(ID!$M$35:$M$46,$B111),0) -> 27 | N111: =IF(I111="w",INDEX(ID!$N$8:$N$31,FBR!$D111+1)*INDEX(ID!$N$35:$N$46,$B111),0) -> 0 | P111: 15.94618981 | Q111: 0 | R111: 0 | S111: 0
A112: 102 | B112: 1 | C112: 5 | D112: 5 | E112: 5 | F112: 1 | G112: 2014-01-05 | H112: 1 | I112: h | K112: =IF(I112="h",INDEX(ID!$K$8:$K$31,FBR!$D112+1)*INDEX(ID!$K$35:$K$46,$B112),0) -> 27 | L112: =IF(I112="w",INDEX(ID!$L$8:$L$31,FBR!$D112+1)*INDEX(ID!$L$35:$L$46,$B112),0) -> 0 | M112: =IF(I112="h",INDEX(ID!$M$8:$M$31,FBR!$D112+1)*INDEX(ID!$M$35:$M$46,$B112),0) -> 27 | N112: =IF(I112="w",INDEX(ID!$N$8:$N$31,FBR!$D112+1)*INDEX(ID!$N$35:$N$46,$B112),0) -> 0 | P112: 15.94618981 | Q112: 0 | R112: 0 | S112: 0
A113: 103 | B113: 1 | C113: 5 | D113: 6 | E113: 5 | F113: 1 | G113: 2014-01-05 | H113: 1 | I113: h | K113: =IF(I113="h",INDEX(ID!$K$8:$K$31,FBR!$D113+1)*INDEX(ID!$K$35:$K$46,$B113),0) -> 29 | L113: =IF(I113="w",INDEX(ID!$L$8:$L$31,FBR!$D113+1)*INDEX(ID!$L$35:$L$46,$B113),0) -> 0 | M113: =IF(I113="h",INDEX(ID!$M$8:$M$31,FBR!$D113+1)*INDEX(ID!$M$35:$M$46,$B113),0) -> 29 | N113: =IF(I113="w",INDEX(ID!$N$8:$N$31,FBR!$D113+1)*INDEX(ID!$N$35:$N$46,$B113),0) -> 0 | P113: 17.12738906 | Q113: 0 | R113: 0 | S113: 0
A114: 104 | B114: 1 | C114: 5 | D114: 7 | E114: 5 | F114: 1 | G114: 2014-01-05 | H114: 1 | I114: h | K114: =IF(I114="h",INDEX(ID!$K$8:$K$31,FBR!$D114+1)*INDEX(ID!$K$35:$K$46,$B114),0) -> 32 | L114: =IF(I114="w",INDEX(ID!$L$8:$L$31,FBR!$D114+1)*INDEX(ID!$L$35:$L$46,$B114),0) -> 0 | M114: =IF(I114="h",INDEX(ID!$M$8:$M$31,FBR!$D114+1)*INDEX(ID!$M$35:$M$46,$B114),0) -> 32 | N114: =IF(I114="w",INDEX(ID!$N$8:$N$31,FBR!$D114+1)*INDEX(ID!$N$35:$N$46,$B114),0) -> 0 | P114: 18.89918793 | Q114: 0 | R114: 0 | S114: 0
A115: 105 | B115: 1 | C115: 5 | D115: 8 | E115: 5 | F115: 1 | G115: 2014-01-05 | H115: 1 | I115: h | K115: =IF(I115="h",INDEX(ID!$K$8:$K$31,FBR!$D115+1)*INDEX(ID!$K$35:$K$46,$B115),0) -> 35 | L115: =IF(I115="w",INDEX(ID!$L$8:$L$31,FBR!$D115+1)*INDEX(ID!$L$35:$L$46,$B115),0) -> 0 | M115: =IF(I115="h",INDEX(ID!$M$8:$M$31,FBR!$D115+1)*INDEX(ID!$M$35:$M$46,$B115),0) -> 35 | N115: =IF(I115="w",INDEX(ID!$N$8:$N$31,FBR!$D115+1)*INDEX(ID!$N$35:$N$46,$B115),0) -> 0 | P115: 20.67098679 | Q115: 0 | R115: 0 | S115: 0
A116: 106 | B116: 1 | C116: 5 | D116: 9 | E116: 5 | F116: 1 | G116: 2014-01-05 | H116: 1 | I116: h | K116: =IF(I116="h",INDEX(ID!$K$8:$K$31,FBR!$D116+1)*INDEX(ID!$K$35:$K$46,$B116),0) -> 38 | L116: =IF(I116="w",INDEX(ID!$L$8:$L$31,FBR!$D116+1)*INDEX(ID!$L$35:$L$46,$B116),0) -> 0 | M116: =IF(I116="h",INDEX(ID!$M$8:$M$31,FBR!$D116+1)*INDEX(ID!$M$35:$M$46,$B116),0) -> 38 | N116: =IF(I116="w",INDEX(ID!$N$8:$N$31,FBR!$D116+1)*INDEX(ID!$N$35:$N$46,$B116),0) -> 0 | P116: 22.44278566 | Q116: 0 | R116: 0 | S116: 0
A117: 107 | B117: 1 | C117: 5 | D117: 10 | E117: 5 | F117: 1 | G117: 2014-01-05 | H117: 1 | I117: h | K117: =IF(I117="h",INDEX(ID!$K$8:$K$31,FBR!$D117+1)*INDEX(ID!$K$35:$K$46,$B117),0) -> 40 | L117: =IF(I117="w",INDEX(ID!$L$8:$L$31,FBR!$D117+1)*INDEX(ID!$L$35:$L$46,$B117),0) -> 0 | M117: =IF(I117="h",INDEX(ID!$M$8:$M$31,FBR!$D117+1)*INDEX(ID!$M$35:$M$46,$B117),0) -> 40 | N117: =IF(I117="w",INDEX(ID!$N$8:$N$31,FBR!$D117+1)*INDEX(ID!$N$35:$N$46,$B117),0) -> 0 | P117: 23.62398491 | Q117: 0 | R117: 0 | S117: 0
A118: 108 | B118: 1 | C118: 5 | D118: 11 | E118: 5 | F118: 1 | G118: 2014-01-05 | H118: 1 | I118: h | K118: =IF(I118="h",INDEX(ID!$K$8:$K$31,FBR!$D118+1)*INDEX(ID!$K$35:$K$46,$B118),0) -> 42 | L118: =IF(I118="w",INDEX(ID!$L$8:$L$31,FBR!$D118+1)*INDEX(ID!$L$35:$L$46,$B118),0) -> 0 | M118: =IF(I118="h",INDEX(ID!$M$8:$M$31,FBR!$D118+1)*INDEX(ID!$M$35:$M$46,$B118),0) -> 42 | N118: =IF(I118="w",INDEX(ID!$N$8:$N$31,FBR!$D118+1)*INDEX(ID!$N$35:$N$46,$B118),0) -> 0 | P118: 24.80518415 | Q118: 0 | R118: 0 | S118: 0
A119: 109 | B119: 1 | C119: 5 | D119: 12 | E119: 5 | F119: 1 | G119: 2014-01-05 | H119: 1 | I119: h | K119: =IF(I119="h",INDEX(ID!$K$8:$K$31,FBR!$D119+1)*INDEX(ID!$K$35:$K$46,$B119),0) -> 43 | L119: =IF(I119="w",INDEX(ID!$L$8:$L$31,FBR!$D119+1)*INDEX(ID!$L$35:$L$46,$B119),0) -> 0 | M119: =IF(I119="h",INDEX(ID!$M$8:$M$31,FBR!$D119+1)*INDEX(ID!$M$35:$M$46,$B119),0) -> 43 | N119: =IF(I119="w",INDEX(ID!$N$8:$N$31,FBR!$D119+1)*INDEX(ID!$N$35:$N$46,$B119),0) -> 0 | P119: 25.39578377 | Q119: 0 | R119: 0 | S119: 0
A120: 110 | B120: 1 | C120: 5 | D120: 13 | E120: 5 | F120: 1 | G120: 2014-01-05 | H120: 1 | I120: h | K120: =IF(I120="h",INDEX(ID!$K$8:$K$31,FBR!$D120+1)*INDEX(ID!$K$35:$K$46,$B120),0) -> 44 | L120: =IF(I120="w",INDEX(ID!$L$8:$L$31,FBR!$D120+1)*INDEX(ID!$L$35:$L$46,$B120),0) -> 0 | M120: =IF(I120="h",INDEX(ID!$M$8:$M$31,FBR!$D120+1)*INDEX(ID!$M$35:$M$46,$B120),0) -> 44 | N120: =IF(I120="w",INDEX(ID!$N$8:$N$31,FBR!$D120+1)*INDEX(ID!$N$35:$N$46,$B120),0) -> 0 | P120: 25.9863834 | Q120: 0 | R120: 0 | S120: 0
A121: 111 | B121: 1 | C121: 5 | D121: 14 | E121: 5 | F121: 1 | G121: 2014-01-05 | H121: 1 | I121: h | K121: =IF(I121="h",INDEX(ID!$K$8:$K$31,FBR!$D121+1)*INDEX(ID!$K$35:$K$46,$B121),0) -> 47 | L121: =IF(I121="w",INDEX(ID!$L$8:$L$31,FBR!$D121+1)*INDEX(ID!$L$35:$L$46,$B121),0) -> 0 | M121: =IF(I121="h",INDEX(ID!$M$8:$M$31,FBR!$D121+1)*INDEX(ID!$M$35:$M$46,$B121),0) -> 47 | N121: =IF(I121="w",INDEX(ID!$N$8:$N$31,FBR!$D121+1)*INDEX(ID!$N$35:$N$46,$B121),0) -> 0 | P121: 27.75818227 | Q121: 0 | R121: 0 | S121: 0
A122: 112 | B122: 1 | C122: 5 | D122: 15 | E122: 5 | F122: 1 | G122: 2014-01-05 | H122: 1 | I122: h | K122: =IF(I122="h",INDEX(ID!$K$8:$K$31,FBR!$D122+1)*INDEX(ID!$K$35:$K$46,$B122),0) -> 50 | L122: =IF(I122="w",INDEX(ID!$L$8:$L$31,FBR!$D122+1)*INDEX(ID!$L$35:$L$46,$B122),0) -> 0 | M122: =IF(I122="h",INDEX(ID!$M$8:$M$31,FBR!$D122+1)*INDEX(ID!$M$35:$M$46,$B122),0) -> 50 | N122: =IF(I122="w",INDEX(ID!$N$8:$N$31,FBR!$D122+1)*INDEX(ID!$N$35:$N$46,$B122),0) -> 0 | P122: 29.52998113 | Q122: 0 | R122: 0 | S122: 0
A123: 113 | B123: 1 | C123: 5 | D123: 16 | E123: 5 | F123: 1 | G123: 2014-01-05 | H123: 1 | I123: h | K123: =IF(I123="h",INDEX(ID!$K$8:$K$31,FBR!$D123+1)*INDEX(ID!$K$35:$K$46,$B123),0) -> 53 | L123: =IF(I123="w",INDEX(ID!$L$8:$L$31,FBR!$D123+1)*INDEX(ID!$L$35:$L$46,$B123),0) -> 0 | M123: =IF(I123="h",INDEX(ID!$M$8:$M$31,FBR!$D123+1)*INDEX(ID!$M$35:$M$46,$B123),0) -> 53 | N123: =IF(I123="w",INDEX(ID!$N$8:$N$31,FBR!$D123+1)*INDEX(ID!$N$35:$N$46,$B123),0) -> 0 | P123: 31.30178 | Q123: 0 | R123: 0 | S123: 0
A124: 114 | B124: 1 | C124: 5 | D124: 17 | E124: 5 | F124: 1 | G124: 2014-01-05 | H124: 1 | I124: h | K124: =IF(I124="h",INDEX(ID!$K$8:$K$31,FBR!$D124+1)*INDEX(ID!$K$35:$K$46,$B124),0) -> 62 | L124: =IF(I124="w",INDEX(ID!$L$8:$L$31,FBR!$D124+1)*INDEX(ID!$L$35:$L$46,$B124),0) -> 0 | M124: =IF(I124="h",INDEX(ID!$M$8:$M$31,FBR!$D124+1)*INDEX(ID!$M$35:$M$46,$B124),0) -> 62 | N124: =IF(I124="w",INDEX(ID!$N$8:$N$31,FBR!$D124+1)*INDEX(ID!$N$35:$N$46,$B124),0) -> 0 | P124: 36.61717661 | Q124: 0 | R124: 0 | S124: 0
A125: 115 | B125: 1 | C125: 5 | D125: 18 | E125: 5 | F125: 1 | G125: 2014-01-05 | H125: 1 | I125: h | K125: =IF(I125="h",INDEX(ID!$K$8:$K$31,FBR!$D125+1)*INDEX(ID!$K$35:$K$46,$B125),0) -> 65 | L125: =IF(I125="w",INDEX(ID!$L$8:$L$31,FBR!$D125+1)*INDEX(ID!$L$35:$L$46,$B125),0) -> 0 | M125: =IF(I125="h",INDEX(ID!$M$8:$M$31,FBR!$D125+1)*INDEX(ID!$M$35:$M$46,$B125),0) -> 65 | N125: =IF(I125="w",INDEX(ID!$N$8:$N$31,FBR!$D125+1)*INDEX(ID!$N$35:$N$46,$B125),0) -> 0 | P125: 38.38897547 | Q125: 0 | R125: 0 | S125: 0
A126: 116 | B126: 1 | C126: 5 | D126: 19 | E126: 5 | F126: 1 | G126: 2014-01-05 | H126: 1 | I126: h | K126: =IF(I126="h",INDEX(ID!$K$8:$K$31,FBR!$D126+1)*INDEX(ID!$K$35:$K$46,$B126),0) -> 60 | L126: =IF(I126="w",INDEX(ID!$L$8:$L$31,FBR!$D126+1)*INDEX(ID!$L$35:$L$46,$B126),0) -> 0 | M126: =IF(I126="h",INDEX(ID!$M$8:$M$31,FBR!$D126+1)*INDEX(ID!$M$35:$M$46,$B126),0) -> 60 | N126: =IF(I126="w",INDEX(ID!$N$8:$N$31,FBR!$D126+1)*INDEX(ID!$N$35:$N$46,$B126),0) -> 0 | P126: 35.43597736 | Q126: 0 | R126: 0 | S126: 0
A127: 117 | B127: 1 | C127: 5 | D127: 20 | E127: 5 | F127: 1 | G127: 2014-01-05 | H127: 1 | I127: h | K127: =IF(I127="h",INDEX(ID!$K$8:$K$31,FBR!$D127+1)*INDEX(ID!$K$35:$K$46,$B127),0) -> 53 | L127: =IF(I127="w",INDEX(ID!$L$8:$L$31,FBR!$D127+1)*INDEX(ID!$L$35:$L$46,$B127),0) -> 0 | M127: =IF(I127="h",INDEX(ID!$M$8:$M$31,FBR!$D127+1)*INDEX(ID!$M$35:$M$46,$B127),0) -> 53 | N127: =IF(I127="w",INDEX(ID!$N$8:$N$31,FBR!$D127+1)*INDEX(ID!$N$35:$N$46,$B127),0) -> 0 | P127: 31.30178 | Q127: 0 | R127: 0 | S127: 0
A128: 118 | B128: 1 | C128: 5 | D128: 21 | E128: 5 | F128: 1 | G128: 2014-01-05 | H128: 1 | I128: h | K128: =IF(I128="h",INDEX(ID!$K$8:$K$31,FBR!$D128+1)*INDEX(ID!$K$35:$K$46,$B128),0) -> 50 | L128: =IF(I128="w",INDEX(ID!$L$8:$L$31,FBR!$D128+1)*INDEX(ID!$L$35:$L$46,$B128),0) -> 0 | M128: =IF(I128="h",INDEX(ID!$M$8:$M$31,FBR!$D128+1)*INDEX(ID!$M$35:$M$46,$B128),0) -> 50 | N128: =IF(I128="w",INDEX(ID!$N$8:$N$31,FBR!$D128+1)*INDEX(ID!$N$35:$N$46,$B128),0) -> 0 | P128: 29.52998113 | Q128: 0 | R128: 0 | S128: 0
A129: 119 | B129: 1 | C129: 5 | D129: 22 | E129: 5 | F129: 1 | G129: 2014-01-05 | H129: 1 | I129: h | K129: =IF(I129="h",INDEX(ID!$K$8:$K$31,FBR!$D129+1)*INDEX(ID!$K$35:$K$46,$B129),0) -> 45 | L129: =IF(I129="w",INDEX(ID!$L$8:$L$31,FBR!$D129+1)*INDEX(ID!$L$35:$L$46,$B129),0) -> 0 | M129: =IF(I129="h",INDEX(ID!$M$8:$M$31,FBR!$D129+1)*INDEX(ID!$M$35:$M$46,$B129),0) -> 45 | N129: =IF(I129="w",INDEX(ID!$N$8:$N$31,FBR!$D129+1)*INDEX(ID!$N$35:$N$46,$B129),0) -> 0 | P129: 26.57698302 | Q129: 0 | R129: 0 | S129: 0
A130: 120 | B130: 1 | C130: 5 | D130: 23 | E130: 5 | F130: 1 | G130: 2014-01-05 | H130: 1 | I130: h | K130: =IF(I130="h",INDEX(ID!$K$8:$K$31,FBR!$D130+1)*INDEX(ID!$K$35:$K$46,$B130),0) -> 40 | L130: =IF(I130="w",INDEX(ID!$L$8:$L$31,FBR!$D130+1)*INDEX(ID!$L$35:$L$46,$B130),0) -> 0 | M130: =IF(I130="h",INDEX(ID!$M$8:$M$31,FBR!$D130+1)*INDEX(ID!$M$35:$M$46,$B130),0) -> 40 | N130: =IF(I130="w",INDEX(ID!$N$8:$N$31,FBR!$D130+1)*INDEX(ID!$N$35:$N$46,$B130),0) -> 0 | P130: 23.62398491 | Q130: 0 | R130: 0 | S130: 0
A131: 121 | B131: 1 | C131: 6 | D131: 0 | E131: 6 | F131: 1 | G131: 2014-01-06 | H131: 2 | I131: h | K131: =IF(I131="h",INDEX(ID!$K$8:$K$31,FBR!$D131+1)*INDEX(ID!$K$35:$K$46,$B131),0) -> 35 | L131: =IF(I131="w",INDEX(ID!$L$8:$L$31,FBR!$D131+1)*INDEX(ID!$L$35:$L$46,$B131),0) -> 0 | M131: =IF(I131="h",INDEX(ID!$M$8:$M$31,FBR!$D131+1)*INDEX(ID!$M$35:$M$46,$B131),0) -> 35 | N131: =IF(I131="w",INDEX(ID!$N$8:$N$31,FBR!$D131+1)*INDEX(ID!$N$35:$N$46,$B131),0) -> 0 | P131: 20.67098679 | Q131: 0 | R131: 0 | S131: 0
A132: 122 | B132: 1 | C132: 6 | D132: 1 | E132: 6 | F132: 1 | G132: 2014-01-06 | H132: 2 | I132: h | K132: =IF(I132="h",INDEX(ID!$K$8:$K$31,FBR!$D132+1)*INDEX(ID!$K$35:$K$46,$B132),0) -> 30 | L132: =IF(I132="w",INDEX(ID!$L$8:$L$31,FBR!$D132+1)*INDEX(ID!$L$35:$L$46,$B132),0) -> 0 | M132: =IF(I132="h",INDEX(ID!$M$8:$M$31,FBR!$D132+1)*INDEX(ID!$M$35:$M$46,$B132),0) -> 30 | N132: =IF(I132="w",INDEX(ID!$N$8:$N$31,FBR!$D132+1)*INDEX(ID!$N$35:$N$46,$B132),0) -> 0 | P132: 17.71798868 | Q132: 0 | R132: 0 | S132: 0
A133: 123 | B133: 1 | C133: 6 | D133: 2 | E133: 6 | F133: 1 | G133: 2014-01-06 | H133: 2 | I133: h | K133: =IF(I133="h",INDEX(ID!$K$8:$K$31,FBR!$D133+1)*INDEX(ID!$K$35:$K$46,$B133),0) -> 28 | L133: =IF(I133="w",INDEX(ID!$L$8:$L$31,FBR!$D133+1)*INDEX(ID!$L$35:$L$46,$B133),0) -> 0 | M133: =IF(I133="h",INDEX(ID!$M$8:$M$31,FBR!$D133+1)*INDEX(ID!$M$35:$M$46,$B133),0) -> 28 | N133: =IF(I133="w",INDEX(ID!$N$8:$N$31,FBR!$D133+1)*INDEX(ID!$N$35:$N$46,$B133),0) -> 0 | P133: 16.53678943 | Q133: 0 | R133: 0 | S133: 0
A134: 124 | B134: 1 | C134: 6 | D134: 3 | E134: 6 | F134: 1 | G134: 2014-01-06 | H134: 2 | I134: h | K134: =IF(I134="h",INDEX(ID!$K$8:$K$31,FBR!$D134+1)*INDEX(ID!$K$35:$K$46,$B134),0) -> 27 | L134: =IF(I134="w",INDEX(ID!$L$8:$L$31,FBR!$D134+1)*INDEX(ID!$L$35:$L$46,$B134),0) -> 0 | M134: =IF(I134="h",INDEX(ID!$M$8:$M$31,FBR!$D134+1)*INDEX(ID!$M$35:$M$46,$B134),0) -> 27 | N134: =IF(I134="w",INDEX(ID!$N$8:$N$31,FBR!$D134+1)*INDEX(ID!$N$35:$N$46,$B134),0) -> 0 | P134: 15.94618981 | Q134: 0 | R134: 0 | S134: 0
A135: 125 | B135: 1 | C135: 6 | D135: 4 | E135: 6 | F135: 1 | G135: 2014-01-06 | H135: 2 | I135: h | K135: =IF(I135="h",INDEX(ID!$K$8:$K$31,FBR!$D135+1)*INDEX(ID!$K$35:$K$46,$B135),0) -> 27 | L135: =IF(I135="w",INDEX(ID!$L$8:$L$31,FBR!$D135+1)*INDEX(ID!$L$35:$L$46,$B135),0) -> 0 | M135: =IF(I135="h",INDEX(ID!$M$8:$M$31,FBR!$D135+1)*INDEX(ID!$M$35:$M$46,$B135),0) -> 27 | N135: =IF(I135="w",INDEX(ID!$N$8:$N$31,FBR!$D135+1)*INDEX(ID!$N$35:$N$46,$B135),0) -> 0 | P135: 15.94618981 | Q135: 0 | R135: 0 | S135: 0
A136: 126 | B136: 1 | C136: 6 | D136: 5 | E136: 6 | F136: 1 | G136: 2014-01-06 | H136: 2 | I136: h | K136: =IF(I136="h",INDEX(ID!$K$8:$K$31,FBR!$D136+1)*INDEX(ID!$K$35:$K$46,$B136),0) -> 27 | L136: =IF(I136="w",INDEX(ID!$L$8:$L$31,FBR!$D136+1)*INDEX(ID!$L$35:$L$46,$B136),0) -> 0 | M136: =IF(I136="h",INDEX(ID!$M$8:$M$31,FBR!$D136+1)*INDEX(ID!$M$35:$M$46,$B136),0) -> 27 | N136: =IF(I136="w",INDEX(ID!$N$8:$N$31,FBR!$D136+1)*INDEX(ID!$N$35:$N$46,$B136),0) -> 0 | P136: 15.94618981 | Q136: 0 | R136: 0 | S136: 0
A137: 127 | B137: 1 | C137: 6 | D137: 6 | E137: 6 | F137: 1 | G137: 2014-01-06 | H137: 2 | I137: h | K137: =IF(I137="h",INDEX(ID!$K$8:$K$31,FBR!$D137+1)*INDEX(ID!$K$35:$K$46,$B137),0) -> 29 | L137: =IF(I137="w",INDEX(ID!$L$8:$L$31,FBR!$D137+1)*INDEX(ID!$L$35:$L$46,$B137),0) -> 0 | M137: =IF(I137="h",INDEX(ID!$M$8:$M$31,FBR!$D137+1)*INDEX(ID!$M$35:$M$46,$B137),0) -> 29 | N137: =IF(I137="w",INDEX(ID!$N$8:$N$31,FBR!$D137+1)*INDEX(ID!$N$35:$N$46,$B137),0) -> 0 | P137: 17.12738906 | Q137: 0 | R137: 0 | S137: 0
A138: 128 | B138: 1 | C138: 6 | D138: 7 | E138: 6 | F138: 1 | G138: 2014-01-06 | H138: 2 | I138: h | K138: =IF(I138="h",INDEX(ID!$K$8:$K$31,FBR!$D138+1)*INDEX(ID!$K$35:$K$46,$B138),0) -> 32 | L138: =IF(I138="w",INDEX(ID!$L$8:$L$31,FBR!$D138+1)*INDEX(ID!$L$35:$L$46,$B138),0) -> 0 | M138: =IF(I138="h",INDEX(ID!$M$8:$M$31,FBR!$D138+1)*INDEX(ID!$M$35:$M$46,$B138),0) -> 32 | N138: =IF(I138="w",INDEX(ID!$N$8:$N$31,FBR!$D138+1)*INDEX(ID!$N$35:$N$46,$B138),0) -> 0 | P138: 18.89918793 | Q138: 0 | R138: 0 | S138: 0
A139: 129 | B139: 1 | C139: 6 | D139: 8 | E139: 6 | F139: 1 | G139: 2014-01-06 | H139: =WEEKDAY(G139) -> 2 | I139: =IF(OR(H139=6,H139=7),"w","h") -> h | K139: =IF(I139="h",INDEX(ID!$K$8:$K$31,FBR!$D139+1)*INDEX(ID!$K$35:$K$46,$B139),0) -> 35 | L139: =IF(I139="w",INDEX(ID!$L$8:$L$31,FBR!$D139+1)*INDEX(ID!$L$35:$L$46,$B139),0) -> 0 | M139: =IF(I139="h",INDEX(ID!$M$8:$M$31,FBR!$D139+1)*INDEX(ID!$M$35:$M$46,$B139),0) -> 35 | N139: =IF(I139="w",INDEX(ID!$N$8:$N$31,FBR!$D139+1)*INDEX(ID!$N$35:$N$46,$B139),0) -> 0 | P139: =K139*(indvforbrug*antalbrugere)/($K$8789+$L$8789) -> 20.67098679 | Q139: =L139*indvforbrug*antalbrugere/($K$8789+$L$8789) -> 0 | R139: =M139*fællesforbrug/($M$8789+$N$8789) -> 0 | S139: =N139*fællesforbrug/($M$8789+$N$8789) -> 0
A140: =A139+1 -> 130 | B140: 1 | C140: 6 | D140: 9 | E140: 6 | F140: 1 | G140: =DATE(2014,B140,C140) -> 2014-01-06 | H140: 2 | I140: h | K140: =IF(I140="h",INDEX(ID!$K$8:$K$31,FBR!$D140+1)*INDEX(ID!$K$35:$K$46,$B140),0) -> 38 | L140: =IF(I140="w",INDEX(ID!$L$8:$L$31,FBR!$D140+1)*INDEX(ID!$L$35:$L$46,$B140),0) -> 0 | M140: =IF(I140="h",INDEX(ID!$M$8:$M$31,FBR!$D140+1)*INDEX(ID!$M$35:$M$46,$B140),0) -> 38 | N140: =IF(I140="w",INDEX(ID!$N$8:$N$31,FBR!$D140+1)*INDEX(ID!$N$35:$N$46,$B140),0) -> 0 | P140: 22.44278566 | Q140: 0 | R140: 0 | S140: 0
A141: 131 | B141: 1 | C141: 6 | D141: 10 | E141: 6 | F141: 1 | G141: 2014-01-06 | H141: 2 | I141: h | K141: =IF(I141="h",INDEX(ID!$K$8:$K$31,FBR!$D141+1)*INDEX(ID!$K$35:$K$46,$B141),0) -> 40 | L141: =IF(I141="w",INDEX(ID!$L$8:$L$31,FBR!$D141+1)*INDEX(ID!$L$35:$L$46,$B141),0) -> 0 | M141: =IF(I141="h",INDEX(ID!$M$8:$M$31,FBR!$D141+1)*INDEX(ID!$M$35:$M$46,$B141),0) -> 40 | N141: =IF(I141="w",INDEX(ID!$N$8:$N$31,FBR!$D141+1)*INDEX(ID!$N$35:$N$46,$B141),0) -> 0 | P141: 23.62398491 | Q141: 0 | R141: 0 | S141: 0
A142: 132 | B142: 1 | C142: 6 | D142: 11 | E142: 6 | F142: 1 | G142: 2014-01-06 | H142: 2 | I142: h | K142: =IF(I142="h",INDEX(ID!$K$8:$K$31,FBR!$D142+1)*INDEX(ID!$K$35:$K$46,$B142),0) -> 42 | L142: =IF(I142="w",INDEX(ID!$L$8:$L$31,FBR!$D142+1)*INDEX(ID!$L$35:$L$46,$B142),0) -> 0 | M142: =IF(I142="h",INDEX(ID!$M$8:$M$31,FBR!$D142+1)*INDEX(ID!$M$35:$M$46,$B142),0) -> 42 | N142: =IF(I142="w",INDEX(ID!$N$8:$N$31,FBR!$D142+1)*INDEX(ID!$N$35:$N$46,$B142),0) -> 0 | P142: 24.80518415 | Q142: 0 | R142: 0 | S142: 0
A143: 133 | B143: 1 | C143: 6 | D143: 12 | E143: 6 | F143: 1 | G143: 2014-01-06 | H143: 2 | I143: h | K143: =IF(I143="h",INDEX(ID!$K$8:$K$31,FBR!$D143+1)*INDEX(ID!$K$35:$K$46,$B143),0) -> 43 | L143: =IF(I143="w",INDEX(ID!$L$8:$L$31,FBR!$D143+1)*INDEX(ID!$L$35:$L$46,$B143),0) -> 0 | M143: =IF(I143="h",INDEX(ID!$M$8:$M$31,FBR!$D143+1)*INDEX(ID!$M$35:$M$46,$B143),0) -> 43 | N143: =IF(I143="w",INDEX(ID!$N$8:$N$31,FBR!$D143+1)*INDEX(ID!$N$35:$N$46,$B143),0) -> 0 | P143: 25.39578377 | Q143: 0 | R143: 0 | S143: 0
A144: 134 | B144: 1 | C144: 6 | D144: 13 | E144: 6 | F144: 1 | G144: 2014-01-06 | H144: 2 | I144: h | K144: =IF(I144="h",INDEX(ID!$K$8:$K$31,FBR!$D144+1)*INDEX(ID!$K$35:$K$46,$B144),0) -> 44 | L144: =IF(I144="w",INDEX(ID!$L$8:$L$31,FBR!$D144+1)*INDEX(ID!$L$35:$L$46,$B144),0) -> 0 | M144: =IF(I144="h",INDEX(ID!$M$8:$M$31,FBR!$D144+1)*INDEX(ID!$M$35:$M$46,$B144),0) -> 44 | N144: =IF(I144="w",INDEX(ID!$N$8:$N$31,FBR!$D144+1)*INDEX(ID!$N$35:$N$46,$B144),0) -> 0 | P144: 25.9863834 | Q144: 0 | R144: 0 | S144: 0
A145: 135 | B145: 1 | C145: 6 | D145: 14 | E145: 6 | F145: 1 | G145: 2014-01-06 | H145: 2 | I145: h | K145: =IF(I145="h",INDEX(ID!$K$8:$K$31,FBR!$D145+1)*INDEX(ID!$K$35:$K$46,$B145),0) -> 47 | L145: =IF(I145="w",INDEX(ID!$L$8:$L$31,FBR!$D145+1)*INDEX(ID!$L$35:$L$46,$B145),0) -> 0 | M145: =IF(I145="h",INDEX(ID!$M$8:$M$31,FBR!$D145+1)*INDEX(ID!$M$35:$M$46,$B145),0) -> 47 | N145: =IF(I145="w",INDEX(ID!$N$8:$N$31,FBR!$D145+1)*INDEX(ID!$N$35:$N$46,$B145),0) -> 0 | P145: 27.75818227 | Q145: 0 | R145: 0 | S145: 0
A146: 136 | B146: 1 | C146: 6 | D146: 15 | E146: 6 | F146: 1 | G146: 2014-01-06 | H146: 2 | I146: h | K146: =IF(I146="h",INDEX(ID!$K$8:$K$31,FBR!$D146+1)*INDEX(ID!$K$35:$K$46,$B146),0) -> 50 | L146: =IF(I146="w",INDEX(ID!$L$8:$L$31,FBR!$D146+1)*INDEX(ID!$L$35:$L$46,$B146),0) -> 0 | M146: =IF(I146="h",INDEX(ID!$M$8:$M$31,FBR!$D146+1)*INDEX(ID!$M$35:$M$46,$B146),0) -> 50 | N146: =IF(I146="w",INDEX(ID!$N$8:$N$31,FBR!$D146+1)*INDEX(ID!$N$35:$N$46,$B146),0) -> 0 | P146: 29.52998113 | Q146: 0 | R146: 0 | S146: 0
A147: 137 | B147: 1 | C147: 6 | D147: 16 | E147: 6 | F147: 1 | G147: 2014-01-06 | H147: 2 | I147: h | K147: =IF(I147="h",INDEX(ID!$K$8:$K$31,FBR!$D147+1)*INDEX(ID!$K$35:$K$46,$B147),0) -> 53 | L147: =IF(I147="w",INDEX(ID!$L$8:$L$31,FBR!$D147+1)*INDEX(ID!$L$35:$L$46,$B147),0) -> 0 | M147: =IF(I147="h",INDEX(ID!$M$8:$M$31,FBR!$D147+1)*INDEX(ID!$M$35:$M$46,$B147),0) -> 53 | N147: =IF(I147="w",INDEX(ID!$N$8:$N$31,FBR!$D147+1)*INDEX(ID!$N$35:$N$46,$B147),0) -> 0 | P147: 31.30178 | Q147: 0 | R147: 0 | S147: 0
A148: 138 | B148: 1 | C148: 6 | D148: 17 | E148: 6 | F148: 1 | G148: 2014-01-06 | H148: 2 | I148: h | K148: =IF(I148="h",INDEX(ID!$K$8:$K$31,FBR!$D148+1)*INDEX(ID!$K$35:$K$46,$B148),0) -> 62 | L148: =IF(I148="w",INDEX(ID!$L$8:$L$31,FBR!$D148+1)*INDEX(ID!$L$35:$L$46,$B148),0) -> 0 | M148: =IF(I148="h",INDEX(ID!$M$8:$M$31,FBR!$D148+1)*INDEX(ID!$M$35:$M$46,$B148),0) -> 62 | N148: =IF(I148="w",INDEX(ID!$N$8:$N$31,FBR!$D148+1)*INDEX(ID!$N$35:$N$46,$B148),0) -> 0 | P148: 36.61717661 | Q148: 0 | R148: 0 | S148: 0
A149: 139 | B149: 1 | C149: 6 | D149: 18 | E149: 6 | F149: 1 | G149: 2014-01-06 | H149: 2 | I149: h | K149: =IF(I149="h",INDEX(ID!$K$8:$K$31,FBR!$D149+1)*INDEX(ID!$K$35:$K$46,$B149),0) -> 65 | L149: =IF(I149="w",INDEX(ID!$L$8:$L$31,FBR!$D149+1)*INDEX(ID!$L$35:$L$46,$B149),0) -> 0 | M149: =IF(I149="h",INDEX(ID!$M$8:$M$31,FBR!$D149+1)*INDEX(ID!$M$35:$M$46,$B149),0) -> 65 | N149: =IF(I149="w",INDEX(ID!$N$8:$N$31,FBR!$D149+1)*INDEX(ID!$N$35:$N$46,$B149),0) -> 0 | P149: 38.38897547 | Q149: 0 | R149: 0 | S149: 0
A150: 140 | B150: 1 | C150: 6 | D150: 19 | E150: 6 | F150: 1 | G150: 2014-01-06 | H150: 2 | I150: h | K150: =IF(I150="h",INDEX(ID!$K$8:$K$31,FBR!$D150+1)*INDEX(ID!$K$35:$K$46,$B150),0) -> 60 | L150: =IF(I150="w",INDEX(ID!$L$8:$L$31,FBR!$D150+1)*INDEX(ID!$L$35:$L$46,$B150),0) -> 0 | M150: =IF(I150="h",INDEX(ID!$M$8:$M$31,FBR!$D150+1)*INDEX(ID!$M$35:$M$46,$B150),0) -> 60 | N150: =IF(I150="w",INDEX(ID!$N$8:$N$31,FBR!$D150+1)*INDEX(ID!$N$35:$N$46,$B150),0) -> 0 | P150: 35.43597736 | Q150: 0 | R150: 0 | S150: 0
A151: 141 | B151: 1 | C151: 6 | D151: 20 | E151: 6 | F151: 1 | G151: 2014-01-06 | H151: 2 | I151: h | K151: =IF(I151="h",INDEX(ID!$K$8:$K$31,FBR!$D151+1)*INDEX(ID!$K$35:$K$46,$B151),0) -> 53 | L151: =IF(I151="w",INDEX(ID!$L$8:$L$31,FBR!$D151+1)*INDEX(ID!$L$35:$L$46,$B151),0) -> 0 | M151: =IF(I151="h",INDEX(ID!$M$8:$M$31,FBR!$D151+1)*INDEX(ID!$M$35:$M$46,$B151),0) -> 53 | N151: =IF(I151="w",INDEX(ID!$N$8:$N$31,FBR!$D151+1)*INDEX(ID!$N$35:$N$46,$B151),0) -> 0 | P151: 31.30178 | Q151: 0 | R151: 0 | S151: 0
A152: 142 | B152: 1 | C152: 6 | D152: 21 | E152: 6 | F152: 1 | G152: 2014-01-06 | H152: 2 | I152: h | K152: =IF(I152="h",INDEX(ID!$K$8:$K$31,FBR!$D152+1)*INDEX(ID!$K$35:$K$46,$B152),0) -> 50 | L152: =IF(I152="w",INDEX(ID!$L$8:$L$31,FBR!$D152+1)*INDEX(ID!$L$35:$L$46,$B152),0) -> 0 | M152: =IF(I152="h",INDEX(ID!$M$8:$M$31,FBR!$D152+1)*INDEX(ID!$M$35:$M$46,$B152),0) -> 50 | N152: =IF(I152="w",INDEX(ID!$N$8:$N$31,FBR!$D152+1)*INDEX(ID!$N$35:$N$46,$B152),0) -> 0 | P152: 29.52998113 | Q152: 0 | R152: 0 | S152: 0
A153: 143 | B153: 1 | C153: 6 | D153: 22 | E153: 6 | F153: 1 | G153: 2014-01-06 | H153: 2 | I153: h | K153: =IF(I153="h",INDEX(ID!$K$8:$K$31,FBR!$D153+1)*INDEX(ID!$K$35:$K$46,$B153),0) -> 45 | L153: =IF(I153="w",INDEX(ID!$L$8:$L$31,FBR!$D153+1)*INDEX(ID!$L$35:$L$46,$B153),0) -> 0 | M153: =IF(I153="h",INDEX(ID!$M$8:$M$31,FBR!$D153+1)*INDEX(ID!$M$35:$M$46,$B153),0) -> 45 | N153: =IF(I153="w",INDEX(ID!$N$8:$N$31,FBR!$D153+1)*INDEX(ID!$N$35:$N$46,$B153),0) -> 0 | P153: 26.57698302 | Q153: 0 | R153: 0 | S153: 0
A154: 144 | B154: 1 | C154: 6 | D154: 23 | E154: 6 | F154: 1 | G154: 2014-01-06 | H154: 2 | I154: h | K154: =IF(I154="h",INDEX(ID!$K$8:$K$31,FBR!$D154+1)*INDEX(ID!$K$35:$K$46,$B154),0) -> 40 | L154: =IF(I154="w",INDEX(ID!$L$8:$L$31,FBR!$D154+1)*INDEX(ID!$L$35:$L$46,$B154),0) -> 0 | M154: =IF(I154="h",INDEX(ID!$M$8:$M$31,FBR!$D154+1)*INDEX(ID!$M$35:$M$46,$B154),0) -> 40 | N154: =IF(I154="w",INDEX(ID!$N$8:$N$31,FBR!$D154+1)*INDEX(ID!$N$35:$N$46,$B154),0) -> 0 | P154: 23.62398491 | Q154: 0 | R154: 0 | S154: 0
A155: 145 | B155: 1 | C155: 7 | D155: 0 | E155: 7 | F155: 1 | G155: 2014-01-07 | H155: 3 | I155: h | K155: =IF(I155="h",INDEX(ID!$K$8:$K$31,FBR!$D155+1)*INDEX(ID!$K$35:$K$46,$B155),0) -> 35 | L155: =IF(I155="w",INDEX(ID!$L$8:$L$31,FBR!$D155+1)*INDEX(ID!$L$35:$L$46,$B155),0) -> 0 | M155: =IF(I155="h",INDEX(ID!$M$8:$M$31,FBR!$D155+1)*INDEX(ID!$M$35:$M$46,$B155),0) -> 35 | N155: =IF(I155="w",INDEX(ID!$N$8:$N$31,FBR!$D155+1)*INDEX(ID!$N$35:$N$46,$B155),0) -> 0 | P155: 20.67098679 | Q155: 0 | R155: 0 | S155: 0
A156: 146 | B156: 1 | C156: 7 | D156: 1 | E156: 7 | F156: 1 | G156: 2014-01-07 | H156: 3 | I156: h | K156: =IF(I156="h",INDEX(ID!$K$8:$K$31,FBR!$D156+1)*INDEX(ID!$K$35:$K$46,$B156),0) -> 30 | L156: =IF(I156="w",INDEX(ID!$L$8:$L$31,FBR!$D156+1)*INDEX(ID!$L$35:$L$46,$B156),0) -> 0 | M156: =IF(I156="h",INDEX(ID!$M$8:$M$31,FBR!$D156+1)*INDEX(ID!$M$35:$M$46,$B156),0) -> 30 | N156: =IF(I156="w",INDEX(ID!$N$8:$N$31,FBR!$D156+1)*INDEX(ID!$N$35:$N$46,$B156),0) -> 0 | P156: 17.71798868 | Q156: 0 | R156: 0 | S156: 0
A157: 147 | B157: 1 | C157: 7 | D157: 2 | E157: 7 | F157: 1 | G157: 2014-01-07 | H157: 3 | I157: h | K157: =IF(I157="h",INDEX(ID!$K$8:$K$31,FBR!$D157+1)*INDEX(ID!$K$35:$K$46,$B157),0) -> 28 | L157: =IF(I157="w",INDEX(ID!$L$8:$L$31,FBR!$D157+1)*INDEX(ID!$L$35:$L$46,$B157),0) -> 0 | M157: =IF(I157="h",INDEX(ID!$M$8:$M$31,FBR!$D157+1)*INDEX(ID!$M$35:$M$46,$B157),0) -> 28 | N157: =IF(I157="w",INDEX(ID!$N$8:$N$31,FBR!$D157+1)*INDEX(ID!$N$35:$N$46,$B157),0) -> 0 | P157: 16.53678943 | Q157: 0 | R157: 0 | S157: 0
A158: 148 | B158: 1 | C158: 7 | D158: 3 | E158: 7 | F158: 1 | G158: 2014-01-07 | H158: 3 | I158: h | K158: =IF(I158="h",INDEX(ID!$K$8:$K$31,FBR!$D158+1)*INDEX(ID!$K$35:$K$46,$B158),0) -> 27 | L158: =IF(I158="w",INDEX(ID!$L$8:$L$31,FBR!$D158+1)*INDEX(ID!$L$35:$L$46,$B158),0) -> 0 | M158: =IF(I158="h",INDEX(ID!$M$8:$M$31,FBR!$D158+1)*INDEX(ID!$M$35:$M$46,$B158),0) -> 27 | N158: =IF(I158="w",INDEX(ID!$N$8:$N$31,FBR!$D158+1)*INDEX(ID!$N$35:$N$46,$B158),0) -> 0 | P158: 15.94618981 | Q158: 0 | R158: 0 | S158: 0
A159: 149 | B159: 1 | C159: 7 | D159: 4 | E159: 7 | F159: 1 | G159: 2014-01-07 | H159: 3 | I159: h | K159: =IF(I159="h",INDEX(ID!$K$8:$K$31,FBR!$D159+1)*INDEX(ID!$K$35:$K$46,$B159),0) -> 27 | L159: =IF(I159="w",INDEX(ID!$L$8:$L$31,FBR!$D159+1)*INDEX(ID!$L$35:$L$46,$B159),0) -> 0 | M159: =IF(I159="h",INDEX(ID!$M$8:$M$31,FBR!$D159+1)*INDEX(ID!$M$35:$M$46,$B159),0) -> 27 | N159: =IF(I159="w",INDEX(ID!$N$8:$N$31,FBR!$D159+1)*INDEX(ID!$N$35:$N$46,$B159),0) -> 0 | P159: 15.94618981 | Q159: 0 | R159: 0 | S159: 0
A160: 150 | B160: 1 | C160: 7 | D160: 5 | E160: 7 | F160: 1 | G160: 2014-01-07 | H160: 3 | I160: h | K160: =IF(I160="h",INDEX(ID!$K$8:$K$31,FBR!$D160+1)*INDEX(ID!$K$35:$K$46,$B160),0) -> 27 | L160: =IF(I160="w",INDEX(ID!$L$8:$L$31,FBR!$D160+1)*INDEX(ID!$L$35:$L$46,$B160),0) -> 0 | M160: =IF(I160="h",INDEX(ID!$M$8:$M$31,FBR!$D160+1)*INDEX(ID!$M$35:$M$46,$B160),0) -> 27 | N160: =IF(I160="w",INDEX(ID!$N$8:$N$31,FBR!$D160+1)*INDEX(ID!$N$35:$N$46,$B160),0) -> 0 | P160: 15.94618981 | Q160: 0 | R160: 0 | S160: 0
A161: 151 | B161: 1 | C161: 7 | D161: 6 | E161: 7 | F161: 1 | G161: 2014-01-07 | H161: 3 | I161: h | K161: =IF(I161="h",INDEX(ID!$K$8:$K$31,FBR!$D161+1)*INDEX(ID!$K$35:$K$46,$B161),0) -> 29 | L161: =IF(I161="w",INDEX(ID!$L$8:$L$31,FBR!$D161+1)*INDEX(ID!$L$35:$L$46,$B161),0) -> 0 | M161: =IF(I161="h",INDEX(ID!$M$8:$M$31,FBR!$D161+1)*INDEX(ID!$M$35:$M$46,$B161),0) -> 29 | N161: =IF(I161="w",INDEX(ID!$N$8:$N$31,FBR!$D161+1)*INDEX(ID!$N$35:$N$46,$B161),0) -> 0 | P161: 17.12738906 | Q161: 0 | R161: 0 | S161: 0
A162: 152 | B162: 1 | C162: 7 | D162: 7 | E162: 7 | F162: 1 | G162: 2014-01-07 | H162: 3 | I162: h | K162: =IF(I162="h",INDEX(ID!$K$8:$K$31,FBR!$D162+1)*INDEX(ID!$K$35:$K$46,$B162),0) -> 32 | L162: =IF(I162="w",INDEX(ID!$L$8:$L$31,FBR!$D162+1)*INDEX(ID!$L$35:$L$46,$B162),0) -> 0 | M162: =IF(I162="h",INDEX(ID!$M$8:$M$31,FBR!$D162+1)*INDEX(ID!$M$35:$M$46,$B162),0) -> 32 | N162: =IF(I162="w",INDEX(ID!$N$8:$N$31,FBR!$D162+1)*INDEX(ID!$N$35:$N$46,$B162),0) -> 0 | P162: 18.89918793 | Q162: 0 | R162: 0 | S162: 0
A163: 153 | B163: 1 | C163: 7 | D163: 8 | E163: 7 | F163: 1 | G163: 2014-01-07 | H163: 3 | I163: h | K163: =IF(I163="h",INDEX(ID!$K$8:$K$31,FBR!$D163+1)*INDEX(ID!$K$35:$K$46,$B163),0) -> 35 | L163: =IF(I163="w",INDEX(ID!$L$8:$L$31,FBR!$D163+1)*INDEX(ID!$L$35:$L$46,$B163),0) -> 0 | M163: =IF(I163="h",INDEX(ID!$M$8:$M$31,FBR!$D163+1)*INDEX(ID!$M$35:$M$46,$B163),0) -> 35 | N163: =IF(I163="w",INDEX(ID!$N$8:$N$31,FBR!$D163+1)*INDEX(ID!$N$35:$N$46,$B163),0) -> 0 | P163: 20.67098679 | Q163: 0 | R163: 0 | S163: 0
A164: 154 | B164: 1 | C164: 7 | D164: 9 | E164: =E140+1 -> 7 | F164: 1 | G164: 2014-01-07 | H164: 3 | I164: h | K164: =IF(I164="h",INDEX(ID!$K$8:$K$31,FBR!$D164+1)*INDEX(ID!$K$35:$K$46,$B164),0) -> 38 | L164: =IF(I164="w",INDEX(ID!$L$8:$L$31,FBR!$D164+1)*INDEX(ID!$L$35:$L$46,$B164),0) -> 0 | M164: =IF(I164="h",INDEX(ID!$M$8:$M$31,FBR!$D164+1)*INDEX(ID!$M$35:$M$46,$B164),0) -> 38 | N164: =IF(I164="w",INDEX(ID!$N$8:$N$31,FBR!$D164+1)*INDEX(ID!$N$35:$N$46,$B164),0) -> 0 | P164: 22.44278566 | Q164: 0 | R164: 0 | S164: 0
A165: 155 | B165: 1 | C165: 7 | D165: 10 | E165: 7 | F165: 1 | G165: 2014-01-07 | H165: 3 | I165: h | K165: =IF(I165="h",INDEX(ID!$K$8:$K$31,FBR!$D165+1)*INDEX(ID!$K$35:$K$46,$B165),0) -> 40 | L165: =IF(I165="w",INDEX(ID!$L$8:$L$31,FBR!$D165+1)*INDEX(ID!$L$35:$L$46,$B165),0) -> 0 | M165: =IF(I165="h",INDEX(ID!$M$8:$M$31,FBR!$D165+1)*INDEX(ID!$M$35:$M$46,$B165),0) -> 40 | N165: =IF(I165="w",INDEX(ID!$N$8:$N$31,FBR!$D165+1)*INDEX(ID!$N$35:$N$46,$B165),0) -> 0 | P165: 23.62398491 | Q165: 0 | R165: 0 | S165: 0
A166: 156 | B166: 1 | C166: 7 | D166: 11 | E166: 7 | F166: 1 | G166: 2014-01-07 | H166: 3 | I166: h | K166: =IF(I166="h",INDEX(ID!$K$8:$K$31,FBR!$D166+1)*INDEX(ID!$K$35:$K$46,$B166),0) -> 42 | L166: =IF(I166="w",INDEX(ID!$L$8:$L$31,FBR!$D166+1)*INDEX(ID!$L$35:$L$46,$B166),0) -> 0 | M166: =IF(I166="h",INDEX(ID!$M$8:$M$31,FBR!$D166+1)*INDEX(ID!$M$35:$M$46,$B166),0) -> 42 | N166: =IF(I166="w",INDEX(ID!$N$8:$N$31,FBR!$D166+1)*INDEX(ID!$N$35:$N$46,$B166),0) -> 0 | P166: 24.80518415 | Q166: 0 | R166: 0 | S166: 0
A167: 157 | B167: 1 | C167: 7 | D167: 12 | E167: 7 | F167: 1 | G167: 2014-01-07 | H167: 3 | I167: h | K167: =IF(I167="h",INDEX(ID!$K$8:$K$31,FBR!$D167+1)*INDEX(ID!$K$35:$K$46,$B167),0) -> 43 | L167: =IF(I167="w",INDEX(ID!$L$8:$L$31,FBR!$D167+1)*INDEX(ID!$L$35:$L$46,$B167),0) -> 0 | M167: =IF(I167="h",INDEX(ID!$M$8:$M$31,FBR!$D167+1)*INDEX(ID!$M$35:$M$46,$B167),0) -> 43 | N167: =IF(I167="w",INDEX(ID!$N$8:$N$31,FBR!$D167+1)*INDEX(ID!$N$35:$N$46,$B167),0) -> 0 | P167: 25.39578377 | Q167: 0 | R167: 0 | S167: 0
A168: 158 | B168: 1 | C168: 7 | D168: 13 | E168: 7 | F168: 1 | G168: 2014-01-07 | H168: 3 | I168: h | K168: =IF(I168="h",INDEX(ID!$K$8:$K$31,FBR!$D168+1)*INDEX(ID!$K$35:$K$46,$B168),0) -> 44 | L168: =IF(I168="w",INDEX(ID!$L$8:$L$31,FBR!$D168+1)*INDEX(ID!$L$35:$L$46,$B168),0) -> 0 | M168: =IF(I168="h",INDEX(ID!$M$8:$M$31,FBR!$D168+1)*INDEX(ID!$M$35:$M$46,$B168),0) -> 44 | N168: =IF(I168="w",INDEX(ID!$N$8:$N$31,FBR!$D168+1)*INDEX(ID!$N$35:$N$46,$B168),0) -> 0 | P168: 25.9863834 | Q168: 0 | R168: 0 | S168: 0
A169: 159 | B169: 1 | C169: 7 | D169: 14 | E169: 7 | F169: 1 | G169: 2014-01-07 | H169: 3 | I169: h | K169: =IF(I169="h",INDEX(ID!$K$8:$K$31,FBR!$D169+1)*INDEX(ID!$K$35:$K$46,$B169),0) -> 47 | L169: =IF(I169="w",INDEX(ID!$L$8:$L$31,FBR!$D169+1)*INDEX(ID!$L$35:$L$46,$B169),0) -> 0 | M169: =IF(I169="h",INDEX(ID!$M$8:$M$31,FBR!$D169+1)*INDEX(ID!$M$35:$M$46,$B169),0) -> 47 | N169: =IF(I169="w",INDEX(ID!$N$8:$N$31,FBR!$D169+1)*INDEX(ID!$N$35:$N$46,$B169),0) -> 0 | P169: 27.75818227 | Q169: 0 | R169: 0 | S169: 0
A170: 160 | B170: 1 | C170: 7 | D170: 15 | E170: 7 | F170: 1 | G170: 2014-01-07 | H170: 3 | I170: h | K170: =IF(I170="h",INDEX(ID!$K$8:$K$31,FBR!$D170+1)*INDEX(ID!$K$35:$K$46,$B170),0) -> 50 | L170: =IF(I170="w",INDEX(ID!$L$8:$L$31,FBR!$D170+1)*INDEX(ID!$L$35:$L$46,$B170),0) -> 0 | M170: =IF(I170="h",INDEX(ID!$M$8:$M$31,FBR!$D170+1)*INDEX(ID!$M$35:$M$46,$B170),0) -> 50 | N170: =IF(I170="w",INDEX(ID!$N$8:$N$31,FBR!$D170+1)*INDEX(ID!$N$35:$N$46,$B170),0) -> 0 | P170: 29.52998113 | Q170: 0 | R170: 0 | S170: 0
A171: 161 | B171: 1 | C171: 7 | D171: 16 | E171: 7 | F171: 1 | G171: 2014-01-07 | H171: 3 | I171: h | K171: =IF(I171="h",INDEX(ID!$K$8:$K$31,FBR!$D171+1)*INDEX(ID!$K$35:$K$46,$B171),0) -> 53 | L171: =IF(I171="w",INDEX(ID!$L$8:$L$31,FBR!$D171+1)*INDEX(ID!$L$35:$L$46,$B171),0) -> 0 | M171: =IF(I171="h",INDEX(ID!$M$8:$M$31,FBR!$D171+1)*INDEX(ID!$M$35:$M$46,$B171),0) -> 53 | N171: =IF(I171="w",INDEX(ID!$N$8:$N$31,FBR!$D171+1)*INDEX(ID!$N$35:$N$46,$B171),0) -> 0 | P171: 31.30178 | Q171: 0 | R171: 0 | S171: 0
A172: 162 | B172: 1 | C172: 7 | D172: 17 | E172: 7 | F172: 1 | G172: 2014-01-07 | H172: 3 | I172: h | K172: =IF(I172="h",INDEX(ID!$K$8:$K$31,FBR!$D172+1)*INDEX(ID!$K$35:$K$46,$B172),0) -> 62 | L172: =IF(I172="w",INDEX(ID!$L$8:$L$31,FBR!$D172+1)*INDEX(ID!$L$35:$L$46,$B172),0) -> 0 | M172: =IF(I172="h",INDEX(ID!$M$8:$M$31,FBR!$D172+1)*INDEX(ID!$M$35:$M$46,$B172),0) -> 62 | N172: =IF(I172="w",INDEX(ID!$N$8:$N$31,FBR!$D172+1)*INDEX(ID!$N$35:$N$46,$B172),0) -> 0 | P172: 36.61717661 | Q172: 0 | R172: 0 | S172: 0
A173: 163 | B173: 1 | C173: 7 | D173: 18 | E173: 7 | F173: 1 | G173: 2014-01-07 | H173: 3 | I173: h | K173: =IF(I173="h",INDEX(ID!$K$8:$K$31,FBR!$D173+1)*INDEX(ID!$K$35:$K$46,$B173),0) -> 65 | L173: =IF(I173="w",INDEX(ID!$L$8:$L$31,FBR!$D173+1)*INDEX(ID!$L$35:$L$46,$B173),0) -> 0 | M173: =IF(I173="h",INDEX(ID!$M$8:$M$31,FBR!$D173+1)*INDEX(ID!$M$35:$M$46,$B173),0) -> 65 | N173: =IF(I173="w",INDEX(ID!$N$8:$N$31,FBR!$D173+1)*INDEX(ID!$N$35:$N$46,$B173),0) -> 0 | P173: 38.38897547 | Q173: 0 | R173: 0 | S173: 0
A174: 164 | B174: 1 | C174: 7 | D174: 19 | E174: 7 | F174: 1 | G174: 2014-01-07 | H174: 3 | I174: h | K174: =IF(I174="h",INDEX(ID!$K$8:$K$31,FBR!$D174+1)*INDEX(ID!$K$35:$K$46,$B174),0) -> 60 | L174: =IF(I174="w",INDEX(ID!$L$8:$L$31,FBR!$D174+1)*INDEX(ID!$L$35:$L$46,$B174),0) -> 0 | M174: =IF(I174="h",INDEX(ID!$M$8:$M$31,FBR!$D174+1)*INDEX(ID!$M$35:$M$46,$B174),0) -> 60 | N174: =IF(I174="w",INDEX(ID!$N$8:$N$31,FBR!$D174+1)*INDEX(ID!$N$35:$N$46,$B174),0) -> 0 | P174: 35.43597736 | Q174: 0 | R174: 0 | S174: 0
A175: 165 | B175: 1 | C175: 7 | D175: 20 | E175: 7 | F175: 1 | G175: 2014-01-07 | H175: 3 | I175: h | K175: =IF(I175="h",INDEX(ID!$K$8:$K$31,FBR!$D175+1)*INDEX(ID!$K$35:$K$46,$B175),0) -> 53 | L175: =IF(I175="w",INDEX(ID!$L$8:$L$31,FBR!$D175+1)*INDEX(ID!$L$35:$L$46,$B175),0) -> 0 | M175: =IF(I175="h",INDEX(ID!$M$8:$M$31,FBR!$D175+1)*INDEX(ID!$M$35:$M$46,$B175),0) -> 53 | N175: =IF(I175="w",INDEX(ID!$N$8:$N$31,FBR!$D175+1)*INDEX(ID!$N$35:$N$46,$B175),0) -> 0 | P175: 31.30178 | Q175: 0 | R175: 0 | S175: 0
A176: 166 | B176: 1 | C176: 7 | D176: 21 | E176: 7 | F176: 1 | G176: 2014-01-07 | H176: 3 | I176: h | K176: =IF(I176="h",INDEX(ID!$K$8:$K$31,FBR!$D176+1)*INDEX(ID!$K$35:$K$46,$B176),0) -> 50 | L176: =IF(I176="w",INDEX(ID!$L$8:$L$31,FBR!$D176+1)*INDEX(ID!$L$35:$L$46,$B176),0) -> 0 | M176: =IF(I176="h",INDEX(ID!$M$8:$M$31,FBR!$D176+1)*INDEX(ID!$M$35:$M$46,$B176),0) -> 50 | N176: =IF(I176="w",INDEX(ID!$N$8:$N$31,FBR!$D176+1)*INDEX(ID!$N$35:$N$46,$B176),0) -> 0 | P176: 29.52998113 | Q176: 0 | R176: 0 | S176: 0
A177: 167 | B177: 1 | C177: 7 | D177: 22 | E177: 7 | F177: 1 | G177: 2014-01-07 | H177: 3 | I177: h | K177: =IF(I177="h",INDEX(ID!$K$8:$K$31,FBR!$D177+1)*INDEX(ID!$K$35:$K$46,$B177),0) -> 45 | L177: =IF(I177="w",INDEX(ID!$L$8:$L$31,FBR!$D177+1)*INDEX(ID!$L$35:$L$46,$B177),0) -> 0 | M177: =IF(I177="h",INDEX(ID!$M$8:$M$31,FBR!$D177+1)*INDEX(ID!$M$35:$M$46,$B177),0) -> 45 | N177: =IF(I177="w",INDEX(ID!$N$8:$N$31,FBR!$D177+1)*INDEX(ID!$N$35:$N$46,$B177),0) -> 0 | P177: 26.57698302 | Q177: 0 | R177: 0 | S177: 0
A178: 168 | B178: 1 | C178: 7 | D178: 23 | E178: 7 | F178: 1 | G178: 2014-01-07 | H178: 3 | I178: h | K178: =IF(I178="h",INDEX(ID!$K$8:$K$31,FBR!$D178+1)*INDEX(ID!$K$35:$K$46,$B178),0) -> 40 | L178: =IF(I178="w",INDEX(ID!$L$8:$L$31,FBR!$D178+1)*INDEX(ID!$L$35:$L$46,$B178),0) -> 0 | M178: =IF(I178="h",INDEX(ID!$M$8:$M$31,FBR!$D178+1)*INDEX(ID!$M$35:$M$46,$B178),0) -> 40 | N178: =IF(I178="w",INDEX(ID!$N$8:$N$31,FBR!$D178+1)*INDEX(ID!$N$35:$N$46,$B178),0) -> 0 | P178: 23.62398491 | Q178: 0 | R178: 0 | S178: 0
A179: 169 | B179: 1 | C179: 8 | D179: 0 | E179: 8 | F179: =F11+1 -> 2 | G179: 2014-01-08 | H179: 4 | I179: h | K179: =IF(I179="h",INDEX(ID!$K$8:$K$31,FBR!$D179+1)*INDEX(ID!$K$35:$K$46,$B179),0) -> 35 | L179: =IF(I179="w",INDEX(ID!$L$8:$L$31,FBR!$D179+1)*INDEX(ID!$L$35:$L$46,$B179),0) -> 0 | M179: =IF(I179="h",INDEX(ID!$M$8:$M$31,FBR!$D179+1)*INDEX(ID!$M$35:$M$46,$B179),0) -> 35 | N179: =IF(I179="w",INDEX(ID!$N$8:$N$31,FBR!$D179+1)*INDEX(ID!$N$35:$N$46,$B179),0) -> 0 | P179: 20.67098679 | Q179: 0 | R179: 0 | S179: 0
A180: 170 | B180: 1 | C180: 8 | D180: 1 | E180: 8 | F180: =F12+1 -> 2 | G180: 2014-01-08 | H180: 4 | I180: h | K180: =IF(I180="h",INDEX(ID!$K$8:$K$31,FBR!$D180+1)*INDEX(ID!$K$35:$K$46,$B180),0) -> 30 | L180: =IF(I180="w",INDEX(ID!$L$8:$L$31,FBR!$D180+1)*INDEX(ID!$L$35:$L$46,$B180),0) -> 0 | M180: =IF(I180="h",INDEX(ID!$M$8:$M$31,FBR!$D180+1)*INDEX(ID!$M$35:$M$46,$B180),0) -> 30 | N180: =IF(I180="w",INDEX(ID!$N$8:$N$31,FBR!$D180+1)*INDEX(ID!$N$35:$N$46,$B180),0) -> 0 | P180: 17.71798868 | Q180: 0 | R180: 0 | S180: 0
A181: 171 | B181: 1 | C181: 8 | D181: 2 | E181: 8 | F181: 2 | G181: 2014-01-08 | H181: 4 | I181: h | K181: =IF(I181="h",INDEX(ID!$K$8:$K$31,FBR!$D181+1)*INDEX(ID!$K$35:$K$46,$B181),0) -> 28 | L181: =IF(I181="w",INDEX(ID!$L$8:$L$31,FBR!$D181+1)*INDEX(ID!$L$35:$L$46,$B181),0) -> 0 | M181: =IF(I181="h",INDEX(ID!$M$8:$M$31,FBR!$D181+1)*INDEX(ID!$M$35:$M$46,$B181),0) -> 28 | N181: =IF(I181="w",INDEX(ID!$N$8:$N$31,FBR!$D181+1)*INDEX(ID!$N$35:$N$46,$B181),0) -> 0 | P181: 16.53678943 | Q181: 0 | R181: 0 | S181: 0
A182: 172 | B182: 1 | C182: 8 | D182: 3 | E182: 8 | F182: 2 | G182: 2014-01-08 | H182: 4 | I182: h | K182: =IF(I182="h",INDEX(ID!$K$8:$K$31,FBR!$D182+1)*INDEX(ID!$K$35:$K$46,$B182),0) -> 27 | L182: =IF(I182="w",INDEX(ID!$L$8:$L$31,FBR!$D182+1)*INDEX(ID!$L$35:$L$46,$B182),0) -> 0 | M182: =IF(I182="h",INDEX(ID!$M$8:$M$31,FBR!$D182+1)*INDEX(ID!$M$35:$M$46,$B182),0) -> 27 | N182: =IF(I182="w",INDEX(ID!$N$8:$N$31,FBR!$D182+1)*INDEX(ID!$N$35:$N$46,$B182),0) -> 0 | P182: 15.94618981 | Q182: 0 | R182: 0 | S182: 0
A183: 173 | B183: 1 | C183: 8 | D183: 4 | E183: 8 | F183: 2 | G183: 2014-01-08 | H183: 4 | I183: h | K183: =IF(I183="h",INDEX(ID!$K$8:$K$31,FBR!$D183+1)*INDEX(ID!$K$35:$K$46,$B183),0) -> 27 | L183: =IF(I183="w",INDEX(ID!$L$8:$L$31,FBR!$D183+1)*INDEX(ID!$L$35:$L$46,$B183),0) -> 0 | M183: =IF(I183="h",INDEX(ID!$M$8:$M$31,FBR!$D183+1)*INDEX(ID!$M$35:$M$46,$B183),0) -> 27 | N183: =IF(I183="w",INDEX(ID!$N$8:$N$31,FBR!$D183+1)*INDEX(ID!$N$35:$N$46,$B183),0) -> 0 | P183: 15.94618981 | Q183: 0 | R183: 0 | S183: 0
A184: 174 | B184: 1 | C184: 8 | D184: 5 | E184: 8 | F184: 2 | G184: 2014-01-08 | H184: 4 | I184: h | K184: =IF(I184="h",INDEX(ID!$K$8:$K$31,FBR!$D184+1)*INDEX(ID!$K$35:$K$46,$B184),0) -> 27 | L184: =IF(I184="w",INDEX(ID!$L$8:$L$31,FBR!$D184+1)*INDEX(ID!$L$35:$L$46,$B184),0) -> 0 | M184: =IF(I184="h",INDEX(ID!$M$8:$M$31,FBR!$D184+1)*INDEX(ID!$M$35:$M$46,$B184),0) -> 27 | N184: =IF(I184="w",INDEX(ID!$N$8:$N$31,FBR!$D184+1)*INDEX(ID!$N$35:$N$46,$B184),0) -> 0 | P184: 15.94618981 | Q184: 0 | R184: 0 | S184: 0
A185: 175 | B185: 1 | C185: 8 | D185: 6 | E185: 8 | F185: 2 | G185: 2014-01-08 | H185: 4 | I185: h | K185: =IF(I185="h",INDEX(ID!$K$8:$K$31,FBR!$D185+1)*INDEX(ID!$K$35:$K$46,$B185),0) -> 29 | L185: =IF(I185="w",INDEX(ID!$L$8:$L$31,FBR!$D185+1)*INDEX(ID!$L$35:$L$46,$B185),0) -> 0 | M185: =IF(I185="h",INDEX(ID!$M$8:$M$31,FBR!$D185+1)*INDEX(ID!$M$35:$M$46,$B185),0) -> 29 | N185: =IF(I185="w",INDEX(ID!$N$8:$N$31,FBR!$D185+1)*INDEX(ID!$N$35:$N$46,$B185),0) -> 0 | P185: 17.12738906 | Q185: 0 | R185: 0 | S185: 0
A186: 176 | B186: 1 | C186: 8 | D186: 7 | E186: 8 | F186: 2 | G186: 2014-01-08 | H186: 4 | I186: h | K186: =IF(I186="h",INDEX(ID!$K$8:$K$31,FBR!$D186+1)*INDEX(ID!$K$35:$K$46,$B186),0) -> 32 | L186: =IF(I186="w",INDEX(ID!$L$8:$L$31,FBR!$D186+1)*INDEX(ID!$L$35:$L$46,$B186),0) -> 0 | M186: =IF(I186="h",INDEX(ID!$M$8:$M$31,FBR!$D186+1)*INDEX(ID!$M$35:$M$46,$B186),0) -> 32 | N186: =IF(I186="w",INDEX(ID!$N$8:$N$31,FBR!$D186+1)*INDEX(ID!$N$35:$N$46,$B186),0) -> 0 | P186: 18.89918793 | Q186: 0 | R186: 0 | S186: 0
A187: 177 | B187: 1 | C187: 8 | D187: 8 | E187: 8 | F187: 2 | G187: 2014-01-08 | H187: 4 | I187: h | K187: =IF(I187="h",INDEX(ID!$K$8:$K$31,FBR!$D187+1)*INDEX(ID!$K$35:$K$46,$B187),0) -> 35 | L187: =IF(I187="w",INDEX(ID!$L$8:$L$31,FBR!$D187+1)*INDEX(ID!$L$35:$L$46,$B187),0) -> 0 | M187: =IF(I187="h",INDEX(ID!$M$8:$M$31,FBR!$D187+1)*INDEX(ID!$M$35:$M$46,$B187),0) -> 35 | N187: =IF(I187="w",INDEX(ID!$N$8:$N$31,FBR!$D187+1)*INDEX(ID!$N$35:$N$46,$B187),0) -> 0 | P187: 20.67098679 | Q187: 0 | R187: 0 | S187: 0
A188: 178 | B188: 1 | C188: 8 | D188: 9 | E188: 8 | F188: 2 | G188: 2014-01-08 | H188: 4 | I188: h | K188: =IF(I188="h",INDEX(ID!$K$8:$K$31,FBR!$D188+1)*INDEX(ID!$K$35:$K$46,$B188),0) -> 38 | L188: =IF(I188="w",INDEX(ID!$L$8:$L$31,FBR!$D188+1)*INDEX(ID!$L$35:$L$46,$B188),0) -> 0 | M188: =IF(I188="h",INDEX(ID!$M$8:$M$31,FBR!$D188+1)*INDEX(ID!$M$35:$M$46,$B188),0) -> 38 | N188: =IF(I188="w",INDEX(ID!$N$8:$N$31,FBR!$D188+1)*INDEX(ID!$N$35:$N$46,$B188),0) -> 0 | P188: 22.44278566 | Q188: 0 | R188: 0 | S188: 0
A189: 179 | B189: 1 | C189: 8 | D189: 10 | E189: 8 | F189: 2 | G189: 2014-01-08 | H189: 4 | I189: h | K189: =IF(I189="h",INDEX(ID!$K$8:$K$31,FBR!$D189+1)*INDEX(ID!$K$35:$K$46,$B189),0) -> 40 | L189: =IF(I189="w",INDEX(ID!$L$8:$L$31,FBR!$D189+1)*INDEX(ID!$L$35:$L$46,$B189),0) -> 0 | M189: =IF(I189="h",INDEX(ID!$M$8:$M$31,FBR!$D189+1)*INDEX(ID!$M$35:$M$46,$B189),0) -> 40 | N189: =IF(I189="w",INDEX(ID!$N$8:$N$31,FBR!$D189+1)*INDEX(ID!$N$35:$N$46,$B189),0) -> 0 | P189: 23.62398491 | Q189: 0 | R189: 0 | S189: 0
A190: 180 | B190: 1 | C190: 8 | D190: 11 | E190: 8 | F190: 2 | G190: 2014-01-08 | H190: 4 | I190: h | K190: =IF(I190="h",INDEX(ID!$K$8:$K$31,FBR!$D190+1)*INDEX(ID!$K$35:$K$46,$B190),0) -> 42 | L190: =IF(I190="w",INDEX(ID!$L$8:$L$31,FBR!$D190+1)*INDEX(ID!$L$35:$L$46,$B190),0) -> 0 | M190: =IF(I190="h",INDEX(ID!$M$8:$M$31,FBR!$D190+1)*INDEX(ID!$M$35:$M$46,$B190),0) -> 42 | N190: =IF(I190="w",INDEX(ID!$N$8:$N$31,FBR!$D190+1)*INDEX(ID!$N$35:$N$46,$B190),0) -> 0 | P190: 24.80518415 | Q190: 0 | R190: 0 | S190: 0
A191: 181 | B191: 1 | C191: 8 | D191: 12 | E191: 8 | F191: 2 | G191: 2014-01-08 | H191: 4 | I191: h | K191: =IF(I191="h",INDEX(ID!$K$8:$K$31,FBR!$D191+1)*INDEX(ID!$K$35:$K$46,$B191),0) -> 43 | L191: =IF(I191="w",INDEX(ID!$L$8:$L$31,FBR!$D191+1)*INDEX(ID!$L$35:$L$46,$B191),0) -> 0 | M191: =IF(I191="h",INDEX(ID!$M$8:$M$31,FBR!$D191+1)*INDEX(ID!$M$35:$M$46,$B191),0) -> 43 | N191: =IF(I191="w",INDEX(ID!$N$8:$N$31,FBR!$D191+1)*INDEX(ID!$N$35:$N$46,$B191),0) -> 0 | P191: 25.39578377 | Q191: 0 | R191: 0 | S191: 0
A192: 182 | B192: 1 | C192: 8 | D192: 13 | E192: 8 | F192: 2 | G192: 2014-01-08 | H192: 4 | I192: h | K192: =IF(I192="h",INDEX(ID!$K$8:$K$31,FBR!$D192+1)*INDEX(ID!$K$35:$K$46,$B192),0) -> 44 | L192: =IF(I192="w",INDEX(ID!$L$8:$L$31,FBR!$D192+1)*INDEX(ID!$L$35:$L$46,$B192),0) -> 0 | M192: =IF(I192="h",INDEX(ID!$M$8:$M$31,FBR!$D192+1)*INDEX(ID!$M$35:$M$46,$B192),0) -> 44 | N192: =IF(I192="w",INDEX(ID!$N$8:$N$31,FBR!$D192+1)*INDEX(ID!$N$35:$N$46,$B192),0) -> 0 | P192: 25.9863834 | Q192: 0 | R192: 0 | S192: 0
A193: 183 | B193: 1 | C193: 8 | D193: 14 | E193: 8 | F193: 2 | G193: 2014-01-08 | H193: 4 | I193: h | K193: =IF(I193="h",INDEX(ID!$K$8:$K$31,FBR!$D193+1)*INDEX(ID!$K$35:$K$46,$B193),0) -> 47 | L193: =IF(I193="w",INDEX(ID!$L$8:$L$31,FBR!$D193+1)*INDEX(ID!$L$35:$L$46,$B193),0) -> 0 | M193: =IF(I193="h",INDEX(ID!$M$8:$M$31,FBR!$D193+1)*INDEX(ID!$M$35:$M$46,$B193),0) -> 47 | N193: =IF(I193="w",INDEX(ID!$N$8:$N$31,FBR!$D193+1)*INDEX(ID!$N$35:$N$46,$B193),0) -> 0 | P193: 27.75818227 | Q193: 0 | R193: 0 | S193: 0
A194: 184 | B194: 1 | C194: 8 | D194: 15 | E194: 8 | F194: 2 | G194: 2014-01-08 | H194: 4 | I194: h | K194: =IF(I194="h",INDEX(ID!$K$8:$K$31,FBR!$D194+1)*INDEX(ID!$K$35:$K$46,$B194),0) -> 50 | L194: =IF(I194="w",INDEX(ID!$L$8:$L$31,FBR!$D194+1)*INDEX(ID!$L$35:$L$46,$B194),0) -> 0 | M194: =IF(I194="h",INDEX(ID!$M$8:$M$31,FBR!$D194+1)*INDEX(ID!$M$35:$M$46,$B194),0) -> 50 | N194: =IF(I194="w",INDEX(ID!$N$8:$N$31,FBR!$D194+1)*INDEX(ID!$N$35:$N$46,$B194),0) -> 0 | P194: 29.52998113 | Q194: 0 | R194: 0 | S194: 0
A195: 185 | B195: 1 | C195: 8 | D195: 16 | E195: 8 | F195: 2 | G195: 2014-01-08 | H195: 4 | I195: h | K195: =IF(I195="h",INDEX(ID!$K$8:$K$31,FBR!$D195+1)*INDEX(ID!$K$35:$K$46,$B195),0) -> 53 | L195: =IF(I195="w",INDEX(ID!$L$8:$L$31,FBR!$D195+1)*INDEX(ID!$L$35:$L$46,$B195),0) -> 0 | M195: =IF(I195="h",INDEX(ID!$M$8:$M$31,FBR!$D195+1)*INDEX(ID!$M$35:$M$46,$B195),0) -> 53 | N195: =IF(I195="w",INDEX(ID!$N$8:$N$31,FBR!$D195+1)*INDEX(ID!$N$35:$N$46,$B195),0) -> 0 | P195: 31.30178 | Q195: 0 | R195: 0 | S195: 0
A196: 186 | B196: 1 | C196: 8 | D196: 17 | E196: 8 | F196: 2 | G196: 2014-01-08 | H196: 4 | I196: h | K196: =IF(I196="h",INDEX(ID!$K$8:$K$31,FBR!$D196+1)*INDEX(ID!$K$35:$K$46,$B196),0) -> 62 | L196: =IF(I196="w",INDEX(ID!$L$8:$L$31,FBR!$D196+1)*INDEX(ID!$L$35:$L$46,$B196),0) -> 0 | M196: =IF(I196="h",INDEX(ID!$M$8:$M$31,FBR!$D196+1)*INDEX(ID!$M$35:$M$46,$B196),0) -> 62 | N196: =IF(I196="w",INDEX(ID!$N$8:$N$31,FBR!$D196+1)*INDEX(ID!$N$35:$N$46,$B196),0) -> 0 | P196: 36.61717661 | Q196: 0 | R196: 0 | S196: 0
A197: 187 | B197: 1 | C197: 8 | D197: 18 | E197: 8 | F197: 2 | G197: 2014-01-08 | H197: 4 | I197: h | K197: =IF(I197="h",INDEX(ID!$K$8:$K$31,FBR!$D197+1)*INDEX(ID!$K$35:$K$46,$B197),0) -> 65 | L197: =IF(I197="w",INDEX(ID!$L$8:$L$31,FBR!$D197+1)*INDEX(ID!$L$35:$L$46,$B197),0) -> 0 | M197: =IF(I197="h",INDEX(ID!$M$8:$M$31,FBR!$D197+1)*INDEX(ID!$M$35:$M$46,$B197),0) -> 65 | N197: =IF(I197="w",INDEX(ID!$N$8:$N$31,FBR!$D197+1)*INDEX(ID!$N$35:$N$46,$B197),0) -> 0 | P197: 38.38897547 | Q197: 0 | R197: 0 | S197: 0
A198: 188 | B198: 1 | C198: 8 | D198: 19 | E198: 8 | F198: 2 | G198: 2014-01-08 | H198: 4 | I198: h | K198: =IF(I198="h",INDEX(ID!$K$8:$K$31,FBR!$D198+1)*INDEX(ID!$K$35:$K$46,$B198),0) -> 60 | L198: =IF(I198="w",INDEX(ID!$L$8:$L$31,FBR!$D198+1)*INDEX(ID!$L$35:$L$46,$B198),0) -> 0 | M198: =IF(I198="h",INDEX(ID!$M$8:$M$31,FBR!$D198+1)*INDEX(ID!$M$35:$M$46,$B198),0) -> 60 | N198: =IF(I198="w",INDEX(ID!$N$8:$N$31,FBR!$D198+1)*INDEX(ID!$N$35:$N$46,$B198),0) -> 0 | P198: 35.43597736 | Q198: 0 | R198: 0 | S198: 0
A199: 189 | B199: 1 | C199: 8 | D199: 20 | E199: 8 | F199: 2 | G199: 2014-01-08 | H199: 4 | I199: h | K199: =IF(I199="h",INDEX(ID!$K$8:$K$31,FBR!$D199+1)*INDEX(ID!$K$35:$K$46,$B199),0) -> 53 | L199: =IF(I199="w",INDEX(ID!$L$8:$L$31,FBR!$D199+1)*INDEX(ID!$L$35:$L$46,$B199),0) -> 0 | M199: =IF(I199="h",INDEX(ID!$M$8:$M$31,FBR!$D199+1)*INDEX(ID!$M$35:$M$46,$B199),0) -> 53 | N199: =IF(I199="w",INDEX(ID!$N$8:$N$31,FBR!$D199+1)*INDEX(ID!$N$35:$N$46,$B199),0) -> 0 | P199: 31.30178 | Q199: 0 | R199: 0 | S199: 0
A200: 190 | B200: 1 | C200: 8 | D200: 21 | E200: 8 | F200: 2 | G200: 2014-01-08 | H200: 4 | I200: h | K200: =IF(I200="h",INDEX(ID!$K$8:$K$31,FBR!$D200+1)*INDEX(ID!$K$35:$K$46,$B200),0) -> 50 | L200: =IF(I200="w",INDEX(ID!$L$8:$L$31,FBR!$D200+1)*INDEX(ID!$L$35:$L$46,$B200),0) -> 0 | M200: =IF(I200="h",INDEX(ID!$M$8:$M$31,FBR!$D200+1)*INDEX(ID!$M$35:$M$46,$B200),0) -> 50 | N200: =IF(I200="w",INDEX(ID!$N$8:$N$31,FBR!$D200+1)*INDEX(ID!$N$35:$N$46,$B200),0) -> 0 | P200: 29.52998113 | Q200: 0 | R200: 0 | S200: 0
A201: 191 | B201: 1 | C201: 8 | D201: 22 | E201: 8 | F201: 2 | G201: 2014-01-08 | H201: 4 | I201: h | K201: =IF(I201="h",INDEX(ID!$K$8:$K$31,FBR!$D201+1)*INDEX(ID!$K$35:$K$46,$B201),0) -> 45 | L201: =IF(I201="w",INDEX(ID!$L$8:$L$31,FBR!$D201+1)*INDEX(ID!$L$35:$L$46,$B201),0) -> 0 | M201: =IF(I201="h",INDEX(ID!$M$8:$M$31,FBR!$D201+1)*INDEX(ID!$M$35:$M$46,$B201),0) -> 45 | N201: =IF(I201="w",INDEX(ID!$N$8:$N$31,FBR!$D201+1)*INDEX(ID!$N$35:$N$46,$B201),0) -> 0 | P201: 26.57698302 | Q201: 0 | R201: 0 | S201: 0
A202: 192 | B202: 1 | C202: 8 | D202: 23 | E202: 8 | F202: 2 | G202: 2014-01-08 | H202: 4 | I202: h | K202: =IF(I202="h",INDEX(ID!$K$8:$K$31,FBR!$D202+1)*INDEX(ID!$K$35:$K$46,$B202),0) -> 40 | L202: =IF(I202="w",INDEX(ID!$L$8:$L$31,FBR!$D202+1)*INDEX(ID!$L$35:$L$46,$B202),0) -> 0 | M202: =IF(I202="h",INDEX(ID!$M$8:$M$31,FBR!$D202+1)*INDEX(ID!$M$35:$M$46,$B202),0) -> 40 | N202: =IF(I202="w",INDEX(ID!$N$8:$N$31,FBR!$D202+1)*INDEX(ID!$N$35:$N$46,$B202),0) -> 0 | P202: 23.62398491 | Q202: 0 | R202: 0 | S202: 0
A203: 193 | B203: 1 | C203: 9 | D203: 0 | E203: 9 | F203: 2 | G203: 2014-01-09 | H203: =WEEKDAY(G203) -> 5 | I203: =IF(OR(H203=6,H203=7),"w","h") -> h | K203: =IF(I203="h",INDEX(ID!$K$8:$K$31,FBR!$D203+1)*INDEX(ID!$K$35:$K$46,$B203),0) -> 35 | L203: =IF(I203="w",INDEX(ID!$L$8:$L$31,FBR!$D203+1)*INDEX(ID!$L$35:$L$46,$B203),0) -> 0 | M203: =IF(I203="h",INDEX(ID!$M$8:$M$31,FBR!$D203+1)*INDEX(ID!$M$35:$M$46,$B203),0) -> 35 | N203: =IF(I203="w",INDEX(ID!$N$8:$N$31,FBR!$D203+1)*INDEX(ID!$N$35:$N$46,$B203),0) -> 0 | P203: =K203*(indvforbrug*antalbrugere)/($K$8789+$L$8789) -> 20.67098679 | Q203: =L203*indvforbrug*antalbrugere/($K$8789+$L$8789) -> 0 | R203: =M203*fællesforbrug/($M$8789+$N$8789) -> 0 | S203: =N203*fællesforbrug/($M$8789+$N$8789) -> 0
A204: =A203+1 -> 194 | B204: 1 | C204: 9 | D204: 1 | E204: 9 | F204: 2 | G204: =DATE(2014,B204,C204) -> 2014-01-09 | H204: 5 | I204: h | K204: =IF(I204="h",INDEX(ID!$K$8:$K$31,FBR!$D204+1)*INDEX(ID!$K$35:$K$46,$B204),0) -> 30 | L204: =IF(I204="w",INDEX(ID!$L$8:$L$31,FBR!$D204+1)*INDEX(ID!$L$35:$L$46,$B204),0) -> 0 | M204: =IF(I204="h",INDEX(ID!$M$8:$M$31,FBR!$D204+1)*INDEX(ID!$M$35:$M$46,$B204),0) -> 30 | N204: =IF(I204="w",INDEX(ID!$N$8:$N$31,FBR!$D204+1)*INDEX(ID!$N$35:$N$46,$B204),0) -> 0 | P204: 17.71798868 | Q204: 0 | R204: 0 | S204: 0
A205: 195 | B205: 1 | C205: 9 | D205: 2 | E205: 9 | F205: 2 | G205: 2014-01-09 | H205: 5 | I205: h | K205: =IF(I205="h",INDEX(ID!$K$8:$K$31,FBR!$D205+1)*INDEX(ID!$K$35:$K$46,$B205),0) -> 28 | L205: =IF(I205="w",INDEX(ID!$L$8:$L$31,FBR!$D205+1)*INDEX(ID!$L$35:$L$46,$B205),0) -> 0 | M205: =IF(I205="h",INDEX(ID!$M$8:$M$31,FBR!$D205+1)*INDEX(ID!$M$35:$M$46,$B205),0) -> 28 | N205: =IF(I205="w",INDEX(ID!$N$8:$N$31,FBR!$D205+1)*INDEX(ID!$N$35:$N$46,$B205),0) -> 0 | P205: 16.53678943 | Q205: 0 | R205: 0 | S205: 0
... 4290 more rows

Sheet BR
A1: =MAIN!A1 -> PVBAT 1.1 (version 30 november 2016) | AE1: BATTERI bEREGNING
D2: Basis | E2: B2 | F2: B3 | G2: B4 | H2: B5 | I2: B6 | J2: B7 | K2: B8 | L2: B9 | M2: B10 | N2: B11 | O2: B12 | P2: B13 | Q2: B14 | R2: B15 | S2: B16 | T2: B17 | U2: B18 | V2: B19 | W2: B20 | AB2: 0
A4: FORBRUG | AA4: FORBRUG | AD4: Batteriberegninger | AE4: sum | AG4: antal cycler | AH4: Levetid | AI4: svarer til fulde opladning | AJ4: levetid
A5: Samlet individuelt elforbrug | C5: kWh/år | D5: 216000 | E5: 216000 | AA5: Samlet individuelt elforbrug | AB5: =model!J$8789 -> 216000 | AD5: =model!GG8801 -> 1 - 10 | AE5: =model!GH8801 -> 1763 | AG5: =cycle10 -> 10000 | AH5: =AG5/AB74 -> 68.96551724 | AI5: =AB74*AG9/AG5 -> 87
A6: Samlet fællesforbrug | C6: kWh/år | D6: 0 | E6: 0 | AA6: Samlet fællesforbrug | AB6: =model!K$8789 -> 0 | AD6: =model!GG8802 -> 10-25 | AE6: =model!GH8802 -> 1418 | AG6: =cycle25 -> 9000 | AH6: =AG6/AB75 -> 42.85714286 | AI6: =AB75*AG9/AG6 -> 140
A7: Samlet elforbrug | C7: kWh/år | D7: 216000 | E7: 216000 | AA7: Samlet elforbrug | AB7: =model!M$8789 -> 216000 | AD7: =model!GG8803 -> 25 -50 | AE7: =model!GH8803 -> 935 | AG7: =cycle50 -> 8000 | AH7: =AG7/AB76 -> 30.76923077 | AI7: =AB76*AG9/AG7 -> 195
A8: SOLCELLER | AA8: SOLCELLER | AD8: =model!GG8804 -> 50 - 75 | AE8: =model!GH8804 -> 0 | AG8: =cycle75 -> 7000 | AH8: =AG8/AB77 -> 155.5555556 | AI8: =AB77*AG9/AG8 -> 38.57142857
A9: Samlet produktion af el fra solceller | C9: kWh/år | D9: 190748.5938 | E9: 190748.5938 | AA9: Samlet produktion af el fra solceller | AB9: =model!AK$8789 -> 190748.5938 | AD9: =model!GG8805 -> 75-95 | AE9: =model!GH8805 -> 0 | AG9: =cycle100 -> 6000 | AH9: =AG9/AB78 -> 400 | AI9: =AB78 -> 15
A10: Solcelle el til direkte forbrug (samme time) | C10: kWh/år | D10: 79094.45779 | E10: 79094.45779 | AA10: Solcelle el til direkte forbrug (samme time) | AB10: =model!AQ$8789 -> 79094.45779 | AD10: SUM | AE10: =SUM(AE5:AE9) -> 4116 | AG10: =SUM(AG5:AG9) -> 40000 | AH10: =SUM(AH5:AH9) -> 698.1474464 | AI10: =SUM(AI5:AI9) -> 475.5714286 | AJ10: =AG9/(AI10+0.0000001) -> 12.61640132 | AK10: år
A11: Forbrug af el fra batteri | C11: kWh/år | D11: 23123.58891 | E11: 12252.18774 | AA11: Forbrug af el fra batteri | AB11: =model!AT$8789 -> 12252.18774
A12: Direkte elforbrug fra elnet | C12: kWh/år | D12: 113781.9533 | E12: 124653.3545 | AA12: Direkte elforbrug fra elnet | AB12: =model!AX$8789 -> 124653.3545
A13: Solcelleel til opladning af batteri | C13: kWh/år | D13: 25437.28114 | E13: 13478.07318 | AA13: Solcelleel til opladning af batteri | AB13: =model!AZ$8789 -> 13478.07318
A14: Køb af el fra elnet til opladning af batteri | C14: kWh/år | D14: 0 | E14: 0 | AA14: Køb af el fra elnet til opladning af batteri | AB14: =model!GE$8789 -> 0
A15: Ikke dækket elforbrug | C15: kWh/år | D15: 1.110223025e-16 | E15: 2.664535259e-15 | AA15: Ikke dækket elforbrug | AB15: =model!GN$8789 -> 2.664535259e-15
A16: Solcelleel solgt til nettet | C16: kWh/år | D16: 83686.10317 | E16: 95586.64489 | AA16: Solcelleel solgt til nettet | AB16: =model!GO$8789 -> 95586.64489
A17: Ikke udnyttet el fra solceller (overskud) | C17: kWh/år | D17: 2530.751706 | E17: 2589.417941 | AA17: Ikke udnyttet el fra solceller (overskud) | AB17: =model!GP$8789 -> 2589.417941
A18: Max. elforbrug beregnet | C18: kW | D18: 38.38897547 | E18: 38.38897547 | AA18: Max. elforbrug beregnet | AB18: =model!M8792 -> 38.38897547
A19: INVESTERINGER | AA19: INVESTERINGER
A20: Investering i solceller | C20: kr. | D20: 2448000 | E20: 2448000 | AA20: Investering i solceller | AB20: =ID!AE70 -> 2448000
A21: Investering i batterier (første installation) | C21: kr. | D21: 720000 | E21: 360000 | AA21: Investering i batterier (første installation) | AB21: =ID!Y76*ID!Y87 -> 360000
A22: Nutidsværdi af reinvesteringer i batteri (eller restværdi) | C22: kr. | D22: 201166.853 | E22: 123030.6139 | AA22: Nutidsværdi af reinvesteringer i batteri (eller restværdi) | AB22: =AB39-AB41 -> 123030.6139
A23: Investeringer i inverter | C23: kr. | D23: 300000 | E23: 252000 | AA23: Investeringer i inverter (PV og batteri) | AB23: =ID!AG62*ID!Y98+Maxbatteri*batinvpct*ID!Z98 -> 252000
A24: Elinstallationer | C24: kr. | D24: 0 | E24: 0 | AA24: Elinstallationer | AB24: =ID!Y99+ID!AG62*ID!Y100 -> 0
A25: Bygningsarbejder mv. | C25: kr. | D25: 0 | E25: 0 | AA25: Bygningsarbejder mv. | AB25: =ID!Y101 -> 0
A26: Uforudsete udg. rådgivning mv., beregnet som pct. af samlet | C26: kr. | D26: 366916.6853 | E26: 318303.0614 | AA26: Uforudsete rådgivning mv., beregnet som pct. af samlet | AB26: =SUM(AB20:AB25)*ID!Y102 -> 318303.0614
A27: Moms | C27: kr. | D27: 1009020.885 | E27: 875333.4188 | AA27: Moms | AB27: =SUM(AB20:AB26)*ID!Y103 -> 875333.4188
A28: Samlede investeringer | C28: kr. | D28: 5045104.423 | E28: 4376667.094 | AA28: Samlede investeringer (inkl. reinvesteringer) | AB28: =SUM(AB20:AB27)+0.0001 -> 4376667.094
A29: Reinvesteringer i batteri | AA29: Reinvesteringer i batteri
A30: Finansiel amortificeringsperiode | C30: år | D30: 30 | E30: 30 | AA30: Finansiel amortificeringsperiode | AB30: =ID!K107 -> 30
A31: Levetid af batteri (float life time) | C31: år | D31: 15 | E31: 15 | AA31: Levetid af batteri (float life time) | AB31: =levetidbatteri -> 15
A32: Antal udskiftninger pga. float life time | C32: antal | D32: 1 | E32: 1 | AA32: Antal udskiftninger pga. float life time | AB32: =INT((AB30-0.00001)/AB31) -> 1
A33: Antal reinvesteringer i batteri beregnet ud fra antal cycler | C33: antal | D33: 2 | E33: 2 | AA33: Antal reinvesteringer i batteri beregnet ud fra antal cycler | AB33: =ROUNDUP(AB70,0)-1 -> 2
A34: Faktisk antal reinvesteringer (den største af de to ovenfor) | C34: kr. | D34: 2 | E34: 2 | AA34: Faktisk antal reinvesteringer (den største af de to ovenfor) | AB34: =MAX(AB32,AB33) -> 2
A35: Antal års drift efter sidste reinvestering | C35: år | D35: 1.784148744 | E35: 4.767197362 | AA35: Antal års drift efter sidste reinvestering | AB35: =IF(AB32>=AB33,AB30-AB32*AB31,IF(AB32<AB33,AB30-AJ10*AB33)) -> 4.767197362
A36: Rest værdi af batteri ved udløb af amortificeringsperiode (brøkdel) | C36: Brøkdel | D36: 0.8735357138 | E36: 0.6221428566 | AA36: Rest værdi af batteri ved udløb af amortificeringsperiode (brøkdel) | AB36: =IF(Maxbatteri=0,0,IF(AB32>=AB33,1-AB35/AB31,IF(AB32<AB33,1-AB35/AJ10))) -> 0.6221428566
A37: Reinvesteringer i batteri | C37: kr. | D37: 480000 | E37: 240000 | AA37: Reinvesteringer i batteri | AB37: =AB34*ID!Y88*ID!Y76 -> 240000
A38: Periode for nutidsværdi af reinvesteringer, år | C38: år | D38: 10 | E38: 10 | AA38: Periode for nutidsværdi af reinvesteringer, år | AB38: =ID!L107 -> 10 | AC38: =AJ10*AB33 -> 25.23280264
A39: Nutidsværdi af reinvesteringer i batteri | C39: kr. | D39: 357165.0792 | E39: 178582.5396 | AA39: Nutidsværdi af reinvesteringer i batteri | AB39: =AB37/(1+ID!Y108)^AB38 -> 178582.5396 | AD39: Restværdi med pris på ny batteri
A40: Restværdi ved slut | C40: kr. | D40: 209648.5713 | E40: 74657.1428 | AA40: Restværdi ved slut | AB40: =ID!Y76*ID!Y88*AB36 -> 74657.1428 | AD40: =AB36*Maxbatteri*prisbatteriny -> 74657.1428
A41: Nutidsværdi af restværdi | C41: kr. | D41: 155998.2262 | E41: 55551.92566 | AA41: Nutidsværdi af restværdi | AB41: =AB40/(1+ID!Y108)^AB38 -> 55551.92566
A42: Driftsudgifter | AA42: Driftsudgifter
A43: Udgifter til finansiering af investeringer | C43: kr./år | D43: 191735.7041 | E43: 168997.0667 | AA43: Udgifter til finansiering af investeringer fratrukket ydelsesstøtte | AB43: =-PMT(ID!Y108,ID!Y107,AB28,0,0)-AB98 -> 168997.0667
A44: Udgifter til køb af el | C44: kr./år | D44: 258853.9437 | E44: 283586.3814 | AA44: Udgifter til køb af el | AB44: =model!HT8789 -> 283586.3814
A45: Indtægter ved salg af el (negativ udgift) | C45: kr./år | D45: -61927.71634 | E45: -70734.11722 | AA45: Indtægter ved salg af el (negativ udgift) | AB45: =-model!HW8789 -> -70734.11722
A46: Drift, vedligeholdelse og reinvesteringer (ikke i batteri) | C46: kr./år | D46: 40360.83538 | E46: 35013.33675 | AA46: Drift, vedligeholdelse og reinvesteringer (ikke i batteri) | AB46: =ID!Y110*SUM(AB20:AB26) -> 35013.33675
A47: Rådighedsbetaling til netselskab | C47: kr./år | D47: 0 | E47: 0 | AA47: Rådighedsbetaling til netselskab | AB47: =ID!Y124*model!AK8789 -> 0
A48: Målerafgift ved individuel tilslutning | C48: kr./år | D48: 0 | E48: 0 | AA48: Målerafgift ved individuel tilslutning | AB48: =ID!Y123*ID!K50 -> 0
A49: Besparelse ved storkunde drift på nettilslutning | C49: kr./år | D49: 0 | E49: 0 | AA49: Besparelse ved storkunde drift på nettilslutning | AB49: =-ID!Y125*ID!K50 -> 0
A50: Administration af intern afregning mv. | C50: kr./år | D50: 0 | E50: 0 | AA50: Administration af intern afregning mv. | AB50: =ID!Y111*AB28 -> 0
A51: Samlet årlige udgifter | C51: kr./år | D51: 429022.7669 | E51: 416862.6676 | AA51: Samlede årlige udgifter | AB51: =SUM(AB43:AB50) -> 416862.6676
A52: Enhedspris | AA52: Enhedspris
A53: Leveret / brugt mængde el | C53: kWh/år | D53: 216000 | E53: 216000 | AA53: Leveret / brugt mængde el | AB53: =AB12+AB10+AB11 -> 216000
A54: Dækningsprocent af samlede forbrug | D54: 1 | E54: 1 | AA54: Dækningsprocent af samlede forbrug | AB54: =AB53/AB7 -> 1
A55: Pris pr. leveret kWh | C55: kr./kWh | D55: 1.986216513 | E55: 1.929919758 | AA55: Pris pr. leveret kWh | AB55: =AB51/AB53 -> 1.929919758
A56: Batteri | AA56: Batteri
A57: Levetid af batteri, år | C57: år | D57: 14.10792563 | E57: 12.61640132 | AA57: Levetid af batteri, år | AB57: =AJ10 -> 12.61640132
A58: Cyklusser pr. år for batteri | C58: antal/år | D58: 425.2928571 | E58: 475.5714286 | AA58: Cyklusser pr. år for batteri | AB58: =AI10 -> 475.5714286
A65: Forbrug
A66: Vælg af inddata måde 1) beregn forbrug, 2) indsæt forbrug) | C66: 1 | D66: 1 | E66: 1
C67: 2
C68: 3
C69: 4
A70: Døgnfordeling på forbrug | C70: 5 | D70: 35-35-35-35 | E70: 35-35-35-35 | AA70: Reinvesteringer i batteri ……………………..mellemregning | AB70: =(ID!Y107/(BR!AJ10+0.000001)) -> 2.377856955
C71: 6 | D71: 30-30-30-30 | E71: 30-30-30-30
C72: 7 | D72: 28-28-28-28 | E72: 28-28-28-28
C73: 8 | D73: 27-27-27-27 | E73: 27-27-27-27 | AB73: antal i interval
C74: 9 | D74: 27-27-27-27 | E74: 27-27-27-27 | AB74: =model!GQ8801 -> 145
C75: 10 | D75: 27-27-27-27 | E75: 27-27-27-27 | AB75: =model!GQ8802 -> 210
C76: 11 | D76: 29-29-29-29 | E76: 29-29-29-29 | AB76: =model!GQ8803 -> 260
C77: 12 | D77: 32-32-32-32 | E77: 32-32-32-32 | AB77: =model!GQ8804 -> 45
C78: 13 | D78: 35-35-35-35 | E78: 35-35-35-35 | AB78: =model!GQ8805 -> 15
C79: 14 | D79: 38-38-38-38 | E79: 38-38-38-38 | AB79: =SUM(AB74:AB78) -> 675
C80: 15 | D80: 40-40-40-40 | E80: 40-40-40-40
C81: 16 | D81: 42-42-42-42 | E81: 42-42-42-42
C82: 17 | D82: 43-43-43-43 | E82: 43-43-43-43
C83: 18 | D83: 44-44-44-44 | E83: 44-44-44-44 | AA83: Beregning af ydelsesstøtte
C84: 19 | D84: 47-47-47-47 | E84: 47-47-47-47 | AA84: Samlet ydelse af invest inklusiv moms (inkl. reinvesteringer) | AB84: =-PMT(ID!Y108,ID!Y107,AB28,0,0) -> 223294.3134
C85: 20 | D85: 50-50-50-50 | E85: 50-50-50-50 | AA85: Samlet ydelse af invest inklusiv moms (eksklusiv. reinvesteringer) | AB85: =-PMT(ID!Y108,ID!Y107,AB28-AB22,0,0) -> 217017.3826
C86: 21 | D86: 53-53-53-53 | E86: 53-53-53-53 | AA86: Kalkulationsrente | AB86: =ID!K108 -> 0.03
C87: 22 | D87: 62-62-62-62 | E87: 62-62-62-62 | AA87: ydelsesstøtte solceller | AB87: =ID!Y109 -> 0.5
C88: 23 | D88: 65-65-65-65 | E88: 65-65-65-65 | AA88: Ydelsesstøtte batteri | AB88: =ID!Z109 -> 0.9
C89: 24 | D89: 60-60-60-60 | E89: 60-60-60-60 | AA89: Ydelsesstøtte, støtteprocent | AB89: =ID!AA109 -> 0.5
C90: 25 | D90: 53-53-53-53 | E90: 53-53-53-53
C91: 26 | D91: 50-50-50-50 | E91: 50-50-50-50 | AA91: pct uforudset | AB91: =ID!K102 -> 0.1
C92: 27 | D92: 45-45-45-45 | E92: 45-45-45-45 | AA92: Moms | AB92: =ID!K103 -> 0.25
C93: 28 | D93: 40-40-40-40 | E93: 40-40-40-40 | AA93: samlet investering inklusiv moms | AB93: =AB28 -> 4376667.094
C94: 29 | AA94: Investering hørende til solcelledelen | AB94: =(AB20*(1+AB91)*(1+AB92))/(AB93-AB22) -> 0.7913229105
C95: 30 | AA95: Ydelse hørende til batteridelen (eks. reinvest.) | AB95: =(AB21*(1+AB91)*(1+AB92))/(AB93-AB22) -> 0.1163710163 | AC95: =AB95+AB94 -> 0.9076939268
C96: 31 | AA96: Ydelsesstøtte solceller | AB96: =AB94*AB85*AB87*AB89 -> 42932.70672
A97: Månedsfordeling på forbrug | C97: 32 | D97: 1-1-1-1 | E97: 1-1-1-1 | AA97: Ydelsesstøtte batteri | AB97: =AB85*AB95*AB88*AB89 -> 11364.54001
C98: 33 | D98: 1-1-1-1 | E98: 1-1-1-1 | AA98: Samlede ydelsesstøtte af investering exkl. reinvestering | AB98: =AB96+AB97 -> 54297.24673
C99: 34 | D99: 1-1-1-1 | E99: 1-1-1-1 | AA99: Resulterende ydelsese inklusiv ydelse til reinvesteringer | AB99: =AB84-AB98 -> 168997.0667
C100: 35 | D100: 1-1-1-1 | E100: 1-1-1-1 | AA100: Resulterende ydelsese eksklusiv ydelse til reinvesteringer | AB100: =AB85-AB98 -> 162720.1359
C101: 36 | D101: 1-1-1-1 | E101: 1-1-1-1 | AA101: Beregnet årlige omkostninger af investering i procent af investering | AB101: =AB100/(AB28-AB22) -> 0.03825435875
C102: 37 | D102: 1-1-1-1 | E102: 1-1-1-1
C103: 38 | D103: 1-1-1-1 | E103: 1-1-1-1
C104: 39 | D104: 1-1-1-1 | E104: 1-1-1-1
C105: 40 | D105: 1-1-1-1 | E105: 1-1-1-1
C106: 41 | D106: 1-1-1-1 | E106: 1-1-1-1
C107: 42 | D107: 1-1-1-1 | E107: 1-1-1-1
C108: 43 | D108: 1-1-1-1 | E108: 1-1-1-1
C109: 44
A110: Årsforbrug | C110: 45
B111: Årligt individuelt elforbrug, kWh | C111: 46 | D111: 2250 | E111: 2250
B112: Antal forbrugere | C112: 47 | D112: 96 | E112: 96
B113: Samlede årlige fælles forbrug, kWh | C113: 48 | D113: 0 | E113: 0
C114: 49 | D114: 0 | E114: 0
C115: 50
A116: Solceller | C116: 51
A117: Fysiske Data for tagflader til placering af solceller | C117: 52
B118: Tagflade 1 | C118: 53 | D118: 45-sø-3500-0.25 | E118: 45-sø-3500-0.25
B119: Tagflade 2 | C119: 54 | D119: 45-sv-500-0.8 | E119: 45-sv-500-0.8
B120: Tagflade 3 | C120: 55 | D120: 45-v-0-0.8 | E120: 45-v-0-0.8
B121: Tagflade 4 | C121: 56 | D121: 0-0-0-0 | E121: 0-0-0-0
B122: Tagflade 5 | C122: 57 | D122: 0-0-0-0 | E122: 0-0-0-0
B123: Tagflade 6 | C123: 58 | D123: 0-0-0-0 | E123: 0-0-0-0
C124: 59
A125: Solcelle data for tagflader | C125: 60
B126: Tagflade 1 | C126: 61 | D126: 2-12000-0-0.05 | E126: 2-12000-0-0.05
B127: Tagflade 2 | C127: 62 | D127: 2-12000-0-0.05 | E127: 2-12000-0-0.05
B128: Tagflade 3 | C128: 63 | D128: 2-12000-0-0.05 | E128: 2-12000-0-0.05
B129: Tagflade 4 | C129: 64 | D129: 0-0-0-0 | E129: 0-0-0-0
B130: Tagflade 5 | C130: 65 | D130: 0-0-0-0 | E130: 0-0-0-0
B131: Tagflade 6 | C131: 66 | D131: 0-0-0-0 | E131: 0-0-0-0
C132: 67
A133: Beregnet installeret effekt PV, kW peak | C133: 68 | D133: 204 | E133: 204
A134: Installationspris PV, pga. linje 59-62, kr./kW | C134: 69 | D134: 12000 | E134: 12000
C135: 70
A136: Batteri | C136: 71
A137: Størrelse og levetid | C137: 72
B138: Samlet nominel kapacitet , kWh | C138: 73 | D138: 120 | E138: 60
B139: Max ladning | C139: 74 | D139: 0.9 | E139: 0.9
B140: Min ladning | C140: 75 | D140: 0.1 | E140: 0.1
B141: Inverter kapacitet, pct af samlet nominel kapacitet, | C141: 76 | D141: 0.4 | E141: 0.4
B142: Antal cykler ved fuld op/ned ladning (cycles to failure) (>95%) | C142: 77 | D142: 6000 | E142: 6000
B143: Antal cykler ved 75% (cycles to failure) | C143: 78 | D143: 7000 | E143: 7000
B144: Antal cykler ved 50 % | C144: 79 | D144: 8000 | E144: 8000
B145: Antal cykler ved 25% | C145: 80 | D145: 9000 | E145: 9000
B146: Antal cykler ved 10% | C146: 81 | D146: 10000 | E146: 10000
B147: Float life time | C147: 82 | D147: 15 | E147: 15
A148: Pris | C148: 83
B149: Pris pr. kWh nominel effekt | C149: 84 | D149: 6000 | E149: 6000
B150: Pris ved genanskaffelse, kr./kWh | C150: 85 | D150: 2000 | E150: 2000
A151: Effektivitet | C151: 86
B152: Round trip efficiency (dvs. eff. fra DC til batteri og tilbage til DC). I beregning opdeles det i to tab, et ved opladning og et ved afladning. | C152: 87 | D152: 0.9 | E152: 0.9
B153: Selvafladning (procent pr. måned) | C153: 88 | D153: 0 | E153: 0
A154: Batteristyring | C154: 89
B155: Brug af batteri 0) Kun til PV. | C155: 90 | D155: 0 | E155: 0
B156: 1) Til PV og til køb af el når det er billigt. | C156: 91
B157: 2) Til PV og til køb af el når der er plads. | C157: 92
A158: Andre investeringer og diverse | C158: 93
C159: 94
B160: Inverter pris (pr. kW peak PV/pr. kW batteriinverter) | C160: 95 | D160: 1000-2000 | E160: 1000-2000
B161: Elinstallationer, grundbeløb kr. (ekskl. moms) | C161: 96 | D161: 0 | E161: 0
B162: Elinstallationer, kr. pr. kW peak total (ekskl. moms) | C162: 97 | D162: 0 | E162: 0
B163: Bygningsarbejder mv., kr. i alt (ekskl. moms) | C163: 98 | D163: 0 | E163: 0
B164: Uforudsete udg. rådgivning mv. % af totalpris | C164: 99 | D164: 0.1 | E164: 0.1
B165: MOMS procent som ønskes anvendt | C165: 100 | D165: 0.25 | E165: 0.25
C166: 101
A167: Finansiering mv. | C167: 102
A168: Finansiering | C168: 103
B169: Amortificeringsperiode Lån / reinvestering i batteri | C169: 104 | D169: 30 | E169: 30
B170: Kalkulationsrente | C170: 105 | D170: 0.03 | E170: 0.03
B171: Ydelsesstøtte (solcelledel / batteridel / støtteprocent ) | C171: 106 | D171: 0.5-0.9-0.5-0 | E171: 0.5-0.9-0.5-0
B172: Drift, vedligehold, reinvestering, pct. af samlet invest. ekskl. moms | C172: 107 | D172: 0.01 | E172: 0.01
B173: Administrationsomkostninger, pct. af omsætningen | C173: 108 | D173: 0 | E173: 0
B174: Beregnet årlig ydelse i procent af investering (ekskl. reinvesteringer) | C174: 109 | D174: 0.03746380246 | E174: 0.03825435875
A175: Elpriser (inkl. moms hvis der betales moms) | C175: 110
A176: Køb og salg af el | C176: 111
B177: Elpristype køb. Vælge type, se note | C177: 112 | D177: 1 | E177: 1
B178: Elpristype salg, 1) beregnes , 0) indsættes som timeværdier | C178: 113 | D178: 1 | E178: 1
B179: Elpris, køb gennemsnit kr./kWh | C179: 114 | D179: 2.275 | E179: 2.275
B180: Elpris, salg, gennemsnit kr./kWh | C180: 115 | D180: 0.74 | E180: 0.74
A181: Maximal effekt køb og salg (se faktor på effekt i linje 124 til 147) | C181: 116
B182: Max effekt køb af el , kW | C182: 117 | D182: 99 | E182: 99
B183: Max effekt salg af el , kW | C183: 118 | D183: 99 | E183: 99
A184: Målerafgift og diverse | C184: 119
B185: Målerafgift ved individuel tilslutning, kr. pr. år | C185: 120 | D185: 0 | E185: 0
B186: Rådighedsbetaling til netselskab kr./kWh pv anlægget producerer | C186: 121 | D186: 0 | E186: 0
B187: Storkundebesparelse på netabonnement, kr. pr. kunde | C187: 122 | D187: 0 | E187: 0
C188: 123
A189: Faktor på maximalt køb og salg af el | C189: 124 | D189: 1-1 | E189: 1-1
B190: Værdierne i tabellen ganges på max effekten | C190: 125 | D190: 1-1 | E190: 1-1
B191: i linje 117 og 118 henholdsvis. | C191: 126 | D191: 1-1 | E191: 1-1
B192: Er der anført for eksempel 50 kW i linje 117 som max. | C192: 127 | D192: 1-1 | E192: 1-1
B193: effekt og der skrives 0,5 udfor kl. 6 under "køb" kan der | C193: 128 | D193: 1-1 | E193: 1-1
B194: meximalt købes 25 kW i time nr. 6. | C194: 129 | D194: 1-1 | E194: 1-1
B195: Det forbrug der så ikke kan dækkes med batteriet vil | C195: 130 | D195: 1-1 | E195: 1-1
B196: ikke blive dækket og opgøres som ikke dækket elforbrug | C196: 131 | D196: 1-1 | E196: 1-1
B197: Værdier lig 1,0 er gule. Værdier forskellig fra 1,0 bliver røde | C197: 132 | D197: 1-1 | E197: 1-1
C198: 133 | D198: 1-1 | E198: 1-1
C199: 134 | D199: 1-1 | E199: 1-1
C200: 135 | D200: 1-1 | E200: 1-1
C201: 136 | D201: 1-1 | E201: 1-1
C202: 137 | D202: 1-1 | E202: 1-1
C203: 138 | D203: 1-1 | E203: 1-1
C204: 139 | D204: 1-1 | E204: 1-1
C205: 140 | D205: 1-1 | E205: 1-1
C206: 141 | D206: 1-1 | E206: 1-1
C207: 142 | D207: 1-1 | E207: 1-1
... 67 more rows

Sheet model (hidden)
AP1: Dækning med PV | AQ1: =(M8-AW8)/M8 -> 0.4229011367 | AR1: pris | AS1: =BR!AB55 -> 1.929919758 | AT1: kr/kWh | AU1: elkøb til batteri | AW1: =#REF! ->  | AX1: tjek=0 | AY1: =M8-AT8-AQ8-AX8-GN8 -> 3.201394705e-10
M2: =M8/365 -> 591.7808219 | U2: =ID!AB64 -> 0.05 | V2: =1-U2 -> 0.95 | AP2: solgt i pct af produktion | AQ2: =GO8/AK8 -> 0.5011132349 | AR2: ave charge | AS2: =AVERAGE(AM11:AM8770)/Maxbatteri -> 0.3283573589 | AU2: tab batteri | AV2: =AN8789 -> 0 | AW2: =AU8789 -> 1225.218774 | AX2: tjek=1 | AY2: =AK8-AQ8-AZ8-GO8-GP8 -> -1.809894457e-10
J3: =J8789 -> 216000 | K3: =K8789 -> 0 | AI3: =AI8789 -> 0 | AJ3: =AJ8789 -> 0 | AP3: Spild i pct af produktion | AQ3: =GP8/AK8 -> 0.0135750303 | AX3: tjek=3 | AY3: =-AN8-AT8-AU8+AZ8+GE8 -> 0.6666666667 | BQ3: =minpctbatteri -> 0.1
B4: TID OG VEJR | J4: FORBRUG AF EL | O4: PV | P4: PV | Q4: PV | R4: PV | S4: PV | T4: PV | U4: PV | V4: PV | W4: PV | X4: PV | Y4: PV | Z4: PV | AA4: PV | AB4: PV | AC4: PV | AD4: PV | AE4: PV | AF4: PV | AG4: PV | AH4: PV | AI4: PV | AM4: BATTERI | GG4: BATE efter | GH4: Batteri slid | GN4: solgt og spild | GQ4: TJEK | HI4: beregning af udgifter til el | HT4: Udg til EL | HU4: CO₂ indhold | HW4: Indt. ved salg | HZ4: YDELSE - WH PR. 10 W PEAK (tallene er genereret for et 10 kW anlæg med 10 kW inverter. Det er output fra solceller der beregnes.
BP5: 0 % køb | CG5: 20% køb | CX5: 40% køb | DO5: 60% køb | EF5: 80% køb | EW5: 1000% køb | HJ5: Pristype 1 | HN5: Pristype 2 | HQ5: Elpristype 3 | HZ5: Sum Wh/kW p
A6: time | B6: Month | C6: day | D6: hour | E6: dag nr. | F6: uge nr. | G6: NormRad([Outdoor])kW/m² | H6: WindSpeed([Outdoor])m/s | I6: outside temp. | J6: Samlet indiv. forbrug | K6: Samlet fællesforbrug | L6: Indsat samlet forbrug som timeværdier | M6: Samlet forbrug | O6: ydelse tag1 | P6: ydelse tag2 | Q6: ydelse tag3 | R6: ydelse tag4 | S6: ydelse tag5 | T6: ydelse tag6 | U6: ydelse tag1 | V6: ydelse tag2 | W6: ydelse tag3 | X6: ydelse tag4 | Y6: ydelse tag5 | Z6: ydelse tag6 | AJ6: Indtastet PV produktion | AK6: Samlet PV | AM6: Batteri før | AN6: Selvafladning | AO6: Batteri efter tab ved afladning | AQ6: PV til direkte forbrug | AR6: Forbrug efter PV direkte efter tab pga. eff. | AS6: Mulig brug fra batteri uht. effektivitet og min. | AT6: Forbrug fra batteri uden tab. Rettet aug 16 med max inverter. | AU6: Tab fra batteri pga. eff | AV6: Batteri efter forbrug og tab | AW6: Forbrug ikke dækket fra batteri eller direkte PV | AX6: Direkte elforbrug fra net | AY6: PV til batteri mulig. Foruddsat at inverter er stor nok. | AZ6: PV til batteri faktisk. Det der er plads til eller max aht. inverter. rettet aug 16 | BA6: Batteri efter PV til batteri | BE6: til 4105 | BF6: sol | BG6: forbrug | BH6: sum af sol og forbrug | BI6: Max køb i alt til forbrug og batteri | BJ6: Tilbage til køb til batteri | BK6: Max køb til batteri aht. inverter | BL6: Max køb til batteri = se note | BN6: max elkøb i aktuel time | BO6: køb | BP6: 1 | BQ6: 2 | BR6: 3 | BS6: 4 | BT6: 5 | BU6: 6 | BV6: 7 | BW6: 8 | BX6: 9 | BY6: 10 | BZ6: 11 | CA6: 12 | CB6: 13 | CC6: 14 | CD6: 15 | CE6: 16 | CF6: køb | CG6: 1 | CH6: 2 | CI6: 3 | CJ6: 4 | CK6: 5 | CL6: 6 | CM6: 7 | CN6: 8 | CO6: 9 | CP6: 10 | CQ6: 11 | CR6: 12 | CS6: 13 | CT6: 14 | CU6: 15 | CV6: 16 | CW6: køb | CX6: 1 | CY6: 2 | CZ6: 3 | DA6: 4 | DB6: 5 | DC6: 6 | DD6: 7 | DE6: 8 | DF6: 9 | DG6: 10 | DH6: 11 | DI6: 12 | DJ6: 13 | DK6: 14 | DL6: 15 | DM6: 16 | DN6: køb | DO6: 1 | DP6: 2 | DQ6: 3 | DR6: 4 | DS6: 5 | DT6: 6 | DU6: 7 | DV6: 8 | DW6: 9 | DX6: 10 | DY6: 11 | DZ6: 12 | EA6: 13 | EB6: 14 | EC6: 15 | ED6: 16 | EE6: køb | EF6: 1 | EG6: 2 | EH6: 3 | EI6: 4 | EJ6: 5 | EK6: 6 | EL6: 7 | EM6: 8 | EN6: 9 | EO6: 10 | EP6: 11 | EQ6: 12 | ER6: 13 | ES6: 14 | ET6: 15 | EU6: 16 | EV6: køb | EW6: 1 | EX6: 2 | EY6: 3 | EZ6: 4 | FA6: 5 | FB6: 6 | FC6: 7 | FD6: 8 | FE6: 9 | FF6: 10 | FG6: 11 | FH6: 12 | FI6: 13 | FJ6: 14 | FK6: 15 | FL6: 16 | FM6: max 0 % | FN6: max 20 % | FO6: max 40% | FP6: max 60 % | FQ6: max 80 % | FR6: max 100% | FS6: Faktor på køb. Altså beregnet pct køb som er muligt aht. plads til VP. | FU6: Faktisk muligt max køb uden max begræsning | FV6: Faktisk muligt max køb begrænset med max | FY6: Elkøb til batteri når billigt valgt | FZ6: Er el billigere end gennemsnitprisen | GA6: Elpris køb | GB6: Faktisk køb. Batteristyring 1 kun hvis billig og plads til sol. | GC6: Faktisk køb hvis max køb Batteristyring 2 (max køb aht. sol) | GE6: køb fra nettet | GG6: Batteri SOC | GH6: Procent ændring angivet som procen 0-100 altså ikke brøkdel | GI6: Stiger eller falder | GJ6: cyclus 1 | GK6: cycklus 2 | GL6: procent ændring cyclus 1 ændret så pct 0-100 | GM6: procent ændring cyclus 2. Ændret så pct 0-100 | GN6: Ikke dækket elforbrug | GO6: Solgt PV til nettet | GP6: Ikke brugt el | GQ6: PV skal være nul hver time | GR6: fobrug skal være nul hver time | GS6: batteri skal svare til Delta i batteri | GT6: Dækning med PV | HI6: Køb fra net i alt | HJ6: Elpris køb timefaktor | HK6: Elpris salg timefaktor | HL6: Køb med beregnet prisvariation | HM6: Elpristype 1 Beregnet udfra timefaktorer | HN6: Spotpriser fra Steen hentet i ID | HO6: Spotpris inkl. afgifter | HP6: Køb spotpris inkl afgifter | HQ6: Timepriser fra inddata | HT6: Udgifter til el valgt pristype | HU6: Netto brug af el dvs. direkte køb plus køb til batteri minus salg | HV6: CO₂ indhold valgt pristype | HW6: Salg | HZ6: Orientering | IA6: S | IB6: S | IC6: S | ID6: S | IE6: S | IF6: SV | IG6: SV | IH6: SV | II6: SV | IJ6: SV | IK6: SØ | IL6: SØ | IM6: SØ | IN6: SØ | IO6: SØ | IP6: V | IQ6: V | IR6: V | IS6: V | IT6: V | IU6: Ø | IV6: Ø | IW6: Ø | IX6: Ø | IY6: Ø | JB6: HERUNDER kmmer stached graphs
O7: Wh per W peak | U7: kWh | AM7: kwh | AQ7: kwh | AR7: kwh | AT7: kwh | AV7: kwh | AW7: kwh | AX7: kwh | AY7: kwh | AZ7: kwh | BA7: kwh | FU7: DE ER ENS | GE7: kwh | GG7: kwh | GN7: kwh | GO7: kwh | GP7: kwh | HJ7: faktor | HK7: faktor | HM7: kr. | HN7: kr/kWh | HO7: kr/kWh | HP7: kr. | HT7: kr. | HV7: kg CO₂ | HW7: kr. | HZ7: Hældning | IA7: 15 | IB7: 30 | IC7: 45 | ID7: 60 | IE7: 90 | IF7: 15 | IG7: 30 | IH7: 45 | II7: 60 | IJ7: 90 | IK7: 15 | IL7: 30 | IM7: 45 | IN7: 60 | IO7: 90 | IP7: 15 | IQ7: 30 | IR7: 45 | IS7: 60 | IT7: 90 | IU7: 15 | IV7: 30 | IW7: 45 | IX7: 60 | IY7: 90
G8: =G8789 -> 997.042 | J8: =J8789 -> 216000 | K8: =K8789 -> 0 | L8: =L8789 -> 8760 | M8: =M8789 -> 216000 | O8: =O8789 -> 987979.958 | P8: 976106.24 | Q8: 802623.285 | R8: 994674.034 | S8: 994674.034 | T8: 994674.034 | U8: =U8789 -> 131401.3344 | V8: 59347.25939 | W8: 0 | X8: 0 | Y8: 0 | Z8: 0 | AI8: årsprod kw P x 1000 | AK8: =AK8789 -> 190748.5938 | AN8: =AN8789 -> 0 | AQ8: =AQ8789 -> 79094.45779 | AR8: =AR8789 -> 136905.5422 | AT8: =AT8789 -> 12252.18774 | AU8: =AU8789 -> 1225.218774 | AW8: =AW8789 -> 124653.3545 | AX8: =AX8789 -> 124653.3545 | AZ8: =AZ8789 -> 13478.07318 | GE8: =GE8789 -> 0 | GN8: =GN8789 -> 2.664535259e-15 | GO8: 95586.64489 | GP8: 2589.417941 | GQ8: 0 | GR8: 0 | GS8: 0.6666666667 | GT8: 7755.593071 | HI8: =HI8789 -> 124653.3545 | HJ8: =HJ8789 -> 8760 | HK8: =HK8789 -> 8760 | HL8: =HL8789 -> 283586.3814 | HM8: =HM8789 -> 283586.3814 | HT8: =HT8789 -> 283586.3814 | HV8: =HV8789 -> 35900.16609 | HW8: =HW8789 -> 70734.11722 | IA8: =IA8789 -> 9946740.34 | IB8: 10464587.48 | IC8: 10469232.75 | ID8: 9942998.66 | IE8: 7555630.21 | IF8: 9610760.28 | IG8: 9889590.35 | IH8: 9761062.4 | II8: 9222774.07 | IJ8: 7115386.98 | IK8: 9657479.91 | IL8: 9980128.54 | IM8: 9879799.58 | IN8: 9341724.3 | IO8: 7241012.61 | IP8: 8804511.69 | IQ8: 8486812 | IR8: 8026232.85 | IS8: 7403634.28 | IT8: 5708932.65 | IU8: 8804511.69 | IV8: 8486812 | IW8: 8026232.85 | IX8: 7403634.28 | IY8: 5708932.65
AI9: årsprod bereg. | HK9: Ave | HN9: =HN8789/(365*24) -> 0.2396604247 | IA9: 1 | IB9: 2 | IC9: 3 | ID9: 4 | IE9: 5 | IF9: 6 | IG9: 7 | IH9: 8 | II9: 9 | IJ9: 10 | IK9: 11 | IL9: 12 | IM9: 13 | IN9: 14 | IO9: 15 | IP9: 16 | IQ9: 17 | IR9: 18 | IS9: 19 | IT9: 20 | IU9: 21 | IV9: 22 | IW9: 23 | IX9: 24 | IY9: 25
BO10: 0 | CF10: 0.2 | CW10: 0.4 | DN10: 0.6 | EE10: 0.8 | EV10: 1 | IA10: s15 | IB10: s30 | IC10: s45 | ID10: s60 | IE10: s90 | IF10: sv15 | IG10: sv30 | IH10: sv45 | II10: sv60 | IJ10: sv90 | IK10: sø15 | IL10: sø30 | IM10: sø45 | IN10: sø60 | IO10: sø90 | IP10: v15 | IQ10: v30 | IR10: v45 | IS10: v60 | IT10: v90 | IU10: ø15 | IV10: ø30 | IW10: ø45 | IX10: ø60 | IY10: ø90
A11: 1 | B11: 1 | C11: 1 | D11: 0 | E11: 1 | F11: 1 | G11: 0 | H11: 19.02 | I11: 2.7 | J11: =IF(ID!$W$4=2,0,FBR!P11+FBR!Q11) -> 20.67098679 | K11: =IF(ID!$W$4=2,0,FBR!R11+FBR!S11) -> 0 | L11: =ID!H219 -> 1 | M11: =IF(ID!$Y$4=1,J11+K11,IF(ID!$Y$4=2,model!L11,"error")) -> 20.67098679 | O11: =INDEX(PVY,$A11,Tag1søjle)/10 -> 0 | P11: =INDEX(PVY,$A11,tag2søjle)/10 -> 0 | Q11: =INDEX(PVY,$A11,tag3søjle)/10 -> 0 | R11: =INDEX(PVY,$A11,tag4søjle)/10 -> 0 | S11: =INDEX(PVY,$A11,tag5søjle)/10 -> 0 | T11: =INDEX(PVY,$A11,tag6søjle)/10 -> 0 | U11: =(1-ID!$AB$64)*O11*PV1W/1000000 -> 0 | V11: =(1-ID!$AB$65)*P11*PV2W/1000000 -> 0 | W11: =(1-ID!$AB$66)*Q11*PV3W/1000000 -> 0 | X11: =(1-ID!$AB$67)*R11*PV4W/1000000 -> 0 | Y11: =(1-ID!$AB$68)*S11*PV5W/1000000 -> 0 | Z11: =(1-ID!$AB$69)*T11*PV6W/1000000 -> 0 | AJ11: =ID!L219 -> 0 | AK11: =IF(ID!$K$70="ja",AJ11,SUM(U11:Z11)) -> 0 | AM11: =Maxbatteri*minpctbatteri -> 6 | AN11: =AM11*selfdischarge/(30.4*24) -> 0 | AO11: =AM11-AN11 -> 6 | AQ11: =MIN(AK11,M11) -> 0 | AR11: =M11-AQ11 -> 20.67098679 | AS11: =(AO11*(effbatteri)) -> 5.4 | AT11: =MIN(batinvpct*Maxbatteri,IF(MIN(AS11-Maxbatteri*minpctbatteri,AS11)<0,0,MIN(AS11-Maxbatteri*minpctbatteri,AR11))) -> 0 | AU11: =(1-effbatteri)*AT11 -> 0 | AV11: =AO11-AT11-AU11 -> 6 | AW11: =M11-AT11-AQ11 -> 20.67098679 | AX11: =MIN(AW11,maxelkøb*INDEX(fakelkøb,(D11+1))) -> 20.67098679 | AY11: =AK11-AQ11 -> 0 | AZ11: =MIN(IF(AY11+AV11<Maxbatteri*maxpctbatteri,AY11,Maxbatteri*maxpctbatteri-AO11),Maxbatteri*batinvpct) -> 0 | BA11: =AV11+AZ11 -> 6 | BF11: =AK11 -> 0 | BG11: =M11 -> 20.67098679 | BH11: =BF11-BG11 -> -20.67098679 | BI11: =maxelkøb -> 99 | BJ11: =BI11-AX11 -> 78.32901321 | BK11: =maxelkøb*batinvpct -> 39.6 | BL11: =MIN(BJ11,BK11) -> 39.6 | BN11: =BL11 -> 39.6 | BO11: =BN11*BO10 -> 0 | BP11: =IF(BO11+$AM11+$BH11<Maxbatteri*minpctbatteri,Maxbatteri*minpctbatteri,IF(BO11+$AM11+$BH11>Maxbatteri*maxpctbatteri,Maxbatteri*maxpctbatteri,BO11+$AM11+$BH11)) -> 6 | BQ11: =IF(BO11+$AM11+$BH11+SUM($BH12)<Maxbatteri*minpctbatteri,Maxbatteri*minpctbatteri,IF(BO11+$AM11+$BH11+SUM($BH12)>Maxbatteri*maxpctbatteri,Maxbatteri*maxpctbatteri,BO11+$AM11+$BH11+SUM($BH12))) -> 6 | BR11: =IF(BO11+$AM11+$BH11+SUM($BH12:$BH13)<Maxbatteri*minpctbatteri,Maxbatteri*minpctbatteri,IF(BO11+$AM11+$BH11+SUM($BH12:$BH13)>Maxbatteri*maxpctbatteri,Maxbatteri*maxpctbatteri,BO11+$AM11+$BH11+SUM($BH12:$BH13))) -> 6 | BS11: =IF(BO11+$AM11+$BH11+SUM($BH12:$BH14)<Maxbatteri*minpctbatteri,Maxbatteri*minpctbatteri,IF(BO11+$AM11+$BH11+SUM($BH12:$BH14)>Maxbatteri*maxpctbatteri,Maxbatteri*maxpctbatteri,BO11+$AM11+$BH11+SUM($BH12:$BH14))) -> 6 | BT11: =IF(BO11+$AM11+$BH11+SUM($BH12:$BH15)<Maxbatteri*minpctbatteri,Maxbatteri*minpctbatteri,IF(BO11+$AM11+$BH11+SUM($BH12:$BH15)>Maxbatteri*maxpctbatteri,Maxbatteri*maxpctbatteri,BO11+$AM11+$BH11+SUM($BH12:$BH15))) -> 6 | BU11: =IF(BO11+$AM11+$BH11+SUM($BH12:$BH16)<Maxbatteri*minpctbatteri,Maxbatteri*minpctbatteri,IF(BO11+$AM11+$BH11+SUM($BH12:$BH16)>Maxbatteri*maxpctbatteri,Maxbatteri*maxpctbatteri,BO11+$AM11+$BH11+SUM($BH12:$BH16))) -> 6 | BV11: =IF(BO11+$AM11+$BH11+SUM($BH12:$BH17)<Maxbatteri*minpctbatteri,Maxbatteri*minpctbatteri,IF(BO11+$AM11+$BH11+SUM($BH12:$BH17)>Maxbatteri*maxpctbatteri,Maxbatteri*maxpctbatteri,BO11+$AM11+$BH11+SUM($BH12:$BH17))) -> 6 | BW11: =IF(BO11+$AM11+$BH11+SUM($BH12:$BH18)<Maxbatteri*minpctbatteri,Maxbatteri*minpctbatteri,IF(BO11+$AM11+$BH11+SUM($BH12:$BH18)>Maxbatteri*maxpctbatteri,Maxbatteri*maxpctbatteri,BO11+$AM11+$BH11+SUM($BH12:$BH18))) -> 6 | BX11: =IF(BO11+$AM11+$BH11+SUM($BH12:$BH19)<Maxbatteri*minpctbatteri,Maxbatteri*minpctbatteri,IF(BO11+$AM11+$BH11+SUM($BH12:$BH19)>Maxbatteri*maxpctbatteri,Maxbatteri*maxpctbatteri,BO11+$AM11+$BH11+SUM($BH12:$BH19))) -> 6 | BY11: =IF(BO11+$AM11+$BH11+SUM($BH12:$BH20)<Maxbatteri*minpctbatteri,Maxbatteri*minpctbatteri,IF(BO11+$AM11+$BH11+SUM($BH12:$BH20)>Maxbatteri*maxpctbatteri,Maxbatteri*maxpctbatteri,BO11+$AM11+$BH11+SUM($BH12:$BH20))) -> 6 | BZ11: =IF(BO11+$AM11+$BH11+SUM($BH12:$BH21)<Maxbatteri*minpctbatteri,Maxbatteri*minpctbatteri,IF(BO11+$AM11+$BH11+SUM($BH12:$BH21)>Maxbatteri*maxpctbatteri,Maxbatteri*maxpctbatteri,BO11+$AM11+$BH11+SUM($BH12:$BH21))) -> 6 | CA11: =IF($BO11+$AM11+$BH11+SUM($BH12:$BH22)<Maxbatteri*minpctbatteri,Maxbatteri*minpctbatteri,IF($BO11+$AM11+$BH11+SUM($BH12:$BH22)>Maxbatteri*maxpctbatteri,Maxbatteri*maxpctbatteri,$BO11+$AM11+$BH11+SUM($BH12:$BH22))) -> 6 | CB11: =IF($BO11+$AM11+$BH11+SUM($BH12:$BH23)<Maxbatteri*minpctbatteri,Maxbatteri*minpctbatteri,IF($BO11+$AM11+$BH11+SUM($BH12:$BH23)>Maxbatteri*maxpctbatteri,Maxbatteri*maxpctbatteri,$BO11+$AM11+$BH11+SUM($BH12:$BH23))) -> 6 | CC11: =IF($BO11+$AM11+$BH11+SUM($BH12:$BH24)<Maxbatteri*minpctbatteri,Maxbatteri*minpctbatteri,IF($BO11+$AM11+$BH11+SUM($BH12:$BH24)>Maxbatteri*maxpctbatteri,Maxbatteri*maxpctbatteri,$BO11+$AM11+$BH11+SUM($BH12:$BH24))) -> 6 | CD11: =IF($BO11+$AM11+$BH11+SUM($BH12:$BH25)<Maxbatteri*minpctbatteri,Maxbatteri*minpctbatteri,IF($BO11+$AM11+$BH11+SUM($BH12:$BH25)>Maxbatteri*maxpctbatteri,Maxbatteri*maxpctbatteri,$BO11+$AM11+$BH11+SUM($BH12:$BH25))) -> 6 | CE11: =IF($BO11+$AM11+$BH11+SUM($BH12:$BH26)<Maxbatteri*minpctbatteri,Maxbatteri*minpctbatteri,IF($BO11+$AM11+$BH11+SUM($BH12:$BH26)>Maxbatteri*maxpctbatteri,Maxbatteri*maxpctbatteri,$BO11+$AM11+$BH11+SUM($BH12:$BH26))) -> 6 | CF11: =BN11*CF$10 -> 7.92 | CG11: =IF(CF11+$AM11+$BH11<Maxbatteri*minpctbatteri,Maxbatteri*minpctbatteri,IF(CF11+$AM11+$BH11>Maxbatteri*maxpctbatteri,Maxbatteri*maxpctbatteri,CF11+$AM11+$BH11)) -> 6 | CH11: =IF(CF11+$AM11+$BH11+SUM($BH12)<Maxbatteri*minpctbatteri,Maxbatteri*minpctbatteri,IF(CF11+$AM11+$BH11+SUM($BH12)>Maxbatteri*maxpctbatteri,Maxbatteri*maxpctbatteri,CF11+$AM11+$BH11+SUM($BH12))) -> 6 | CI11: =IF(CF11+$AM11+$BH11+SUM($BH12:$BH13)<Maxbatteri*minpctbatteri,Maxbatteri*minpctbatteri,IF(CF11+$AM11+$BH11+SUM($BH12:$BH13)>Maxbatteri*maxpctbatteri,Maxbatteri*maxpctbatteri,CF11+$AM11+$BH11+SUM($BH12:$BH13))) -> 6 | CJ11: =IF(CF11+$AM11+$BH11+SUM($BH12:$BH14)<Maxbatteri*minpctbatteri,Maxbatteri*minpctbatteri,IF(CF11+$AM11+$BH11+SUM($BH12:$BH14)>Maxbatteri*maxpctbatteri,Maxbatteri*maxpctbatteri,CF11+$AM11+$BH11+SUM($BH12:$BH14))) -> 6 | CK11: =IF(CF11+$AM11+$BH11+SUM($BH12:$BH15)<Maxbatteri*minpctbatteri,Maxbatteri*minpctbatteri,IF(CF11+$AM11+$BH11+SUM($BH12:$BH15)>Maxbatteri*maxpctbatteri,Maxbatteri*maxpctbatteri,CF11+$AM11+$BH11+SUM($BH12:$BH15))) -> 6 | CL11: =IF(CF11+$AM11+$BH11+SUM($BH12:$BH16)<Maxbatteri*minpctbatteri,Maxbatteri*minpctbatteri,IF(CF11+$AM11+$BH11+SUM($BH12:$BH16)>Maxbatteri*maxpctbatteri,Maxbatteri*maxpctbatteri,CF11+$AM11+$BH11+SUM($BH12:$BH16))) -> 6 | CM11: =IF(CF11+$AM11+$BH11+SUM($BH12:$BH17)<Maxbatteri*minpctbatteri,Maxbatteri*minpctbatteri,IF(CF11+$AM11+$BH11+SUM($BH12:$BH17)>Maxbatteri*maxpctbatteri,Maxbatteri*maxpctbatteri,CF11+$AM11+$BH11+SUM($BH12:$BH17))) -> 6 | CN11: =IF(CF11+$AM11+$BH11+SUM($BH12:$BH18)<Maxbatteri*minpctbatteri,Maxbatteri*minpctbatteri,IF(CF11+$AM11+$BH11+SUM($BH12:$BH18)>Maxbatteri*maxpctbatteri,Maxbatteri*maxpctbatteri,CF11+$AM11+$BH11+SUM($BH12:$BH18))) -> 6 | CO11: =IF(CF11+$AM11+$BH11+SUM($BH12:$BH19)<Maxbatteri*minpctbatteri,Maxbatteri*minpctbatteri,IF(CF11+$AM11+$BH11+SUM($BH12:$BH19)>Maxbatteri*maxpctbatteri,Maxbatteri*maxpctbatteri,CF11+$AM11+$BH11+SUM($BH12:$BH19))) -> 6 | CP11: =IF(CF11+$AM11+$BH11+SUM($BH12:$BH20)<Maxbatteri*minpctbatteri,Maxbatteri*minpctbatteri,IF(CF11+$AM11+$BH11+SUM($BH12:$BH20)>Maxbatteri*maxpctbatteri,Maxbatteri*maxpctbatteri,CF11+$AM11+$BH11+SUM($BH12:$BH20))) -> 6 | CQ11: =IF(CF11+$AM11+$BH11+SUM($BH12:$BH21)<Maxbatteri*minpctbatteri,Maxbatteri*minpctbatteri,IF(CF11+$AM11+$BH11+SUM($BH12:$BH21)>Maxbatteri*maxpctbatteri,Maxbatteri*maxpctbatteri,CF11+$AM11+$BH11+SUM($BH12:$BH21))) -> 6 | CR11: =IF(CF11+$AM11+$BH11+SUM($BH12:$BH22)<Maxbatteri*minpctbatteri,Maxbatteri*minpctbatteri,IF(CF11+$AM11+$BH11+SUM($BH12:$BH22)>Maxbatteri*maxpctbatteri,Maxbatteri*maxpctbatteri,CF11+$AM11+$BH11+SUM($BH12:$BH22))) -> 6 | CS11: =IF($CF11+$AM11+$BH11+SUM($BH12:$BH23)<Maxbatteri*minpctbatteri,Maxbatteri*minpctbatteri,IF($CF11+$AM11+$BH11+SUM($BH12:$BH23)>Maxbatteri*maxpctbatteri,Maxbatteri*maxpctbatteri,$CF11+$AM11+$BH11+SUM($BH12:$BH23))) -> 6 | CT11: =IF($CF11+$AM11+$BH11+SUM($BH12:$BH24)<Maxbatteri*minpctbatteri,Maxbatteri*minpctbatteri,IF($CF11+$AM11+$BH11+SUM($BH12:$BH24)>Maxbatteri*maxpctbatteri,Maxbatteri*maxpctbatteri,$CF11+$AM11+$BH11+SUM($BH12:$BH24))) -> 6 | CU11: =IF($CF11+$AM11+$BH11+SUM($BH12:$BH25)<Maxbatteri*minpctbatteri,Maxbatteri*minpctbatteri,IF($CF11+$AM11+$BH11+SUM($BH12:$BH25)>Maxbatteri*maxpctbatteri,Maxbatteri*maxpctbatteri,$CF11+$AM11+$BH11+SUM($BH12:$BH25))) -> 6 | CV11: =IF($CF11+$AM11+$BH11+SUM($BH12:$BH26)<Maxbatteri*minpctbatteri,Maxbatteri*minpctbatteri,IF($CF11+$AM11+$BH11+SUM($BH12:$BH26)>Maxbatteri*maxpctbatteri,Maxbatteri*maxpctbatteri,$CF11+$AM11+$BH11+SUM($BH12:$BH26))) -> 6 | CW11: =BN11*CW$10 -> 15.84 | CX11: =IF(CW11+$AM11+$BH11<Maxbatteri*minpctbatteri,Maxbatteri*minpctbatteri,IF(CW11+$AM11+$BH11>Maxbatteri*maxpctbatteri,Maxbatteri*maxpctbatteri,CW11+$AM11+$BH11)) -> 6 | CY11: =IF(CW11+$AM11+$BH11+SUM($BH12)<Maxbatteri*minpctbatteri,Maxbatteri*minpctbatteri,IF(CW11+$AM11+$BH11+SUM($BH12)>Maxbatteri*maxpctbatteri,Maxbatteri*maxpctbatteri,CW11+$AM11+$BH11+SUM($BH12))) -> 6 | CZ11: =IF(CW11+$AM11+$BH11+SUM($BH12:$BH13)<Maxbatteri*minpctbatteri,Maxbatteri*minpctbatteri,IF(CW11+$AM11+$BH11+SUM($BH12:$BH13)>Maxbatteri*maxpctbatteri,Maxbatteri*maxpctbatteri,CW11+$AM11+$BH11+SUM($BH12:$BH13))) -> 6 | DA11: =IF(CW11+$AM11+$BH11+SUM($BH12:$BH14)<Maxbatteri*minpctbatteri,Maxbatteri*minpctbatteri,IF(CW11+$AM11+$BH11+SUM($BH12:$BH14)>Maxbatteri*maxpctbatteri,Maxbatteri*maxpctbatteri,CW11+$AM11+$BH11+SUM($BH12:$BH14))) -> 6 | DB11: =IF(CW11+$AM11+$BH11+SUM($BH12:$BH15)<Maxbatteri*minpctbatteri,Maxbatteri*minpctbatteri,IF(CW11+$AM11+$BH11+SUM($BH12:$BH15)>Maxbatteri*maxpctbatteri,Maxbatteri*maxpctbatteri,CW11+$AM11+$BH11+SUM($BH12:$BH15))) -> 6 | DC11: =IF(CW11+$AM11+$BH11+SUM($BH12:$BH16)<Maxbatteri*minpctbatteri,Maxbatteri*minpctbatteri,IF(CW11+$AM11+$BH11+SUM($BH12:$BH16)>Maxbatteri*maxpctbatteri,Maxbatteri*maxpctbatteri,CW11+$AM11+$BH11+SUM($BH12:$BH16))) -> 6 | DD11: =IF(CW11+$AM11+$BH11+SUM($BH12:$BH17)<Maxbatteri*minpctbatteri,Maxbatteri*minpctbatteri,IF(CW11+$AM11+$BH11+SUM($BH12:$BH17)>Maxbatteri*maxpctbatteri,Maxbatteri*maxpctbatteri,CW11+$AM11+$BH11+SUM($BH12:$BH17))) -> 6 | DE11: =IF(CW11+$AM11+$BH11+SUM($BH12:$BH18)<Maxbatteri*minpctbatteri,Maxbatteri*minpctbatteri,IF(CW11+$AM11+$BH11+SUM($BH12:$BH18)>Maxbatteri*maxpctbatteri,Maxbatteri*maxpctbatteri,CW11+$AM11+$BH11+SUM($BH12:$BH18))) -> 6 | DF11: =IF(CW11+$AM11+$BH11+SUM($BH12:$BH19)<Maxbatteri*minpctbatteri,Maxbatteri*minpctbatteri,IF(CW11+$AM11+$BH11+SUM($BH12:$BH19)>Maxbatteri*maxpctbatteri,Maxbatteri*maxpctbatteri,CW11+$AM11+$BH11+SUM($BH12:$BH19))) -> 6 | DG11: =IF(CW11+$AM11+$BH11+SUM($BH12:$BH20)<Maxbatteri*minpctbatteri,Maxbatteri*minpctbatteri,IF(CW11+$AM11+$BH11+SUM($BH12:$BH20)>Maxbatteri*maxpctbatteri,Maxbatteri*maxpctbatteri,CW11+$AM11+$BH11+SUM($BH12:$BH20))) -> 6 | DH11: =IF(CW11+$AM11+$BH11+SUM($BH12:$BH21)<Maxbatteri*minpctbatteri,Maxbatteri*minpctbatteri,IF(CW11+$AM11+$BH11+SUM($BH12:$BH21)>Maxbatteri*maxpctbatteri,Maxbatteri*maxpctbatteri,CW11+$AM11+$BH11+SUM($BH12:$BH21))) -> 6 | DI11: =IF(CW11+$AM11+$BH11+SUM($BH12:$BH22)<Maxbatteri*minpctbatteri,Maxbatteri*minpctbatteri,IF(CW11+$AM11+$BH11+SUM($BH12:$BH22)>Maxbatteri*maxpctbatteri,Maxbatteri*maxpctbatteri,CW11+$AM11+$BH11+SUM($BH12:$BH22))) -> 6 | DJ11: =IF($CW11+$AM11+$BH11+SUM($BH12:$BH23)<Maxbatteri*minpctbatteri,Maxbatteri*minpctbatteri,IF($CW11+$AM11+$BH11+SUM($BH12:$BH23)>Maxbatteri*maxpctbatteri,Maxbatteri*maxpctbatteri,$CW11+$AM11+$BH11+SUM($BH12:$BH23))) -> 6 | DK11: =IF($CW11+$AM11+$BH11+SUM($BH12:$BH24)<Maxbatteri*minpctbatteri,Maxbatteri*minpctbatteri,IF($CW11+$AM11+$BH11+SUM($BH12:$BH24)>Maxbatteri*maxpctbatteri,Maxbatteri*maxpctbatteri,$CW11+$AM11+$BH11+SUM($BH12:$BH24))) -> 6 | DL11: =IF($CW11+$AM11+$BH11+SUM($BH12:$BH25)<Maxbatteri*minpctbatteri,Maxbatteri*minpctbatteri,IF($CW11+$AM11+$BH11+SUM($BH12:$BH25)>Maxbatteri*maxpctbatteri,Maxbatteri*maxpctbatteri,$CW11+$AM11+$BH11+SUM($BH12:$BH25))) -> 6 | DM11: =IF($CW11+$AM11+$BH11+SUM($BH12:$BH26)<Maxbatteri*minpctbatteri,Maxbatteri*minpctbatteri,IF($CW11+$AM11+$BH11+SUM($BH12:$BH26)>Maxbatteri*maxpctbatteri,Maxbatteri*maxpctbatteri,$CW11+$AM11+$BH11+SUM($BH12:$BH26))) -> 6 | DN11: =BN11*DN$10 -> 23.76 | DO11: =IF(DN11+$AM11+$BH11<Maxbatteri*minpctbatteri,Maxbatteri*minpctbatteri,IF(DN11+$AM11+$BH11>Maxbatteri*maxpctbatteri,Maxbatteri*maxpctbatteri,DN11+$AM11+$BH11)) -> 9.089013206 | DP11: =IF(DN11+$AM11+$BH11+SUM($BH12)<Maxbatteri*minpctbatteri,Maxbatteri*minpctbatteri,IF(DN11+$AM11+$BH11+SUM($BH12)>Maxbatteri*maxpctbatteri,Maxbatteri*maxpctbatteri,DN11+$AM11+$BH11+SUM($BH12))) -> 6 | DQ11: =IF(DN11+$AM11+$BH11+SUM($BH12:$BH13)<Maxbatteri*minpctbatteri,Maxbatteri*minpctbatteri,IF(DN11+$AM11+$BH11+SUM($BH12:$BH13)>Maxbatteri*maxpctbatteri,Maxbatteri*maxpctbatteri,DN11+$AM11+$BH11+SUM($BH12:$BH13))) -> 6 | DR11: =IF(DN11+$AM11+$BH11+SUM($BH12:$BH14)<Maxbatteri*minpctbatteri,Maxbatteri*minpctbatteri,IF(DN11+$AM11+$BH11+SUM($BH12:$BH14)>Maxbatteri*maxpctbatteri,Maxbatteri*maxpctbatteri,DN11+$AM11+$BH11+SUM($BH12:$BH14))) -> 6 | DS11: =IF(DN11+$AM11+$BH11+SUM($BH12:$BH15)<Maxbatteri*minpctbatteri,Maxbatteri*minpctbatteri,IF(DN11+$AM11+$BH11+SUM($BH12:$BH15)>Maxbatteri*maxpctbatteri,Maxbatteri*maxpctbatteri,DN11+$AM11+$BH11+SUM($BH12:$BH15))) -> 6 | DT11: =IF(DN11+$AM11+$BH11+SUM($BH12:$BH16)<Maxbatteri*minpctbatteri,Maxbatteri*minpctbatteri,IF(DN11+$AM11+$BH11+SUM($BH12:$BH16)>Maxbatteri*maxpctbatteri,Maxbatteri*maxpctbatteri,DN11+$AM11+$BH11+SUM($BH12:$BH16))) -> 6 | DU11: =IF(DN11+$AM11+$BH11+SUM($BH12:$BH17)<Maxbatteri*minpctbatteri,Maxbatteri*minpctbatteri,IF(DN11+$AM11+$BH11+SUM($BH12:$BH17)>Maxbatteri*maxpctbatteri,Maxbatteri*maxpctbatteri,DN11+$AM11+$BH11+SUM($BH12:$BH17))) -> 6 | DV11: =IF(DN11+$AM11+$BH11+SUM($BH12:$BH18)<Maxbatteri*minpctbatteri,Maxbatteri*minpctbatteri,IF(DN11+$AM11+$BH11+SUM($BH12:$BH18)>Maxbatteri*maxpctbatteri,Maxbatteri*maxpctbatteri,DN11+$AM11+$BH11+SUM($BH12:$BH18))) -> 6 | DW11: =IF(DN11+$AM11+$BH11+SUM($BH12:$BH19)<Maxbatteri*minpctbatteri,Maxbatteri*minpctbatteri,IF(DN11+$AM11+$BH11+SUM($BH12:$BH19)>Maxbatteri*maxpctbatteri,Maxbatteri*maxpctbatteri,DN11+$AM11+$BH11+SUM($BH12:$BH19))) -> 6 | DX11: =IF(DN11+$AM11+$BH11+SUM($BH12:$BH20)<Maxbatteri*minpctbatteri,Maxbatteri*minpctbatteri,IF(DN11+$AM11+$BH11+SUM($BH12:$BH20)>Maxbatteri*maxpctbatteri,Maxbatteri*maxpctbatteri,DN11+$AM11+$BH11+SUM($BH12:$BH20))) -> 6 | DY11: =IF(DN11+$AM11+$BH11+SUM($BH12:$BH21)<Maxbatteri*minpctbatteri,Maxbatteri*minpctbatteri,IF(DN11+$AM11+$BH11+SUM($BH12:$BH21)>Maxbatteri*maxpctbatteri,Maxbatteri*maxpctbatteri,DN11+$AM11+$BH11+SUM($BH12:$BH21))) -> 6 | DZ11: =IF(DN11+$AM11+$BH11+SUM($BH12:$BH22)<Maxbatteri*minpctbatteri,Maxbatteri*minpctbatteri,IF(DN11+$AM11+$BH11+SUM($BH12:$BH22)>Maxbatteri*maxpctbatteri,Maxbatteri*maxpctbatteri,DN11+$AM11+$BH11+SUM($BH12:$BH22))) -> 6 | EA11: =IF($DN11+$AM11+$BH11+SUM($BH12:$BH23)<Maxbatteri*minpctbatteri,Maxbatteri*minpctbatteri,IF($DN11+$AM11+$BH11+SUM($BH12:$BH23)>Maxbatteri*maxpctbatteri,Maxbatteri*maxpctbatteri,$DN11+$AM11+$BH11+SUM($BH12:$BH23))) -> 6 | EB11: =IF($DN11+$AM11+$BH11+SUM($BH12:$BH24)<Maxbatteri*minpctbatteri,Maxbatteri*minpctbatteri,IF($DN11+$AM11+$BH11+SUM($BH12:$BH24)>Maxbatteri*maxpctbatteri,Maxbatteri*maxpctbatteri,$DN11+$AM11+$BH11+SUM($BH12:$BH24))) -> 6 | EC11: =IF($DN11+$AM11+$BH11+SUM($BH12:$BH25)<Maxbatteri*minpctbatteri,Maxbatteri*minpctbatteri,IF($DN11+$AM11+$BH11+SUM($BH12:$BH25)>Maxbatteri*maxpctbatteri,Maxbatteri*maxpctbatteri,$DN11+$AM11+$BH11+SUM($BH12:$BH25))) -> 6 | ED11: =IF($DN11+$AM11+$BH11+SUM($BH12:$BH26)<Maxbatteri*minpctbatteri,Maxbatteri*minpctbatteri,IF($DN11+$AM11+$BH11+SUM($BH12:$BH26)>Maxbatteri*maxpctbatteri,Maxbatteri*maxpctbatteri,$DN11+$AM11+$BH11+SUM($BH12:$BH26))) -> 6 | EE11: =BN11*EE$10 -> 31.68 | EF11: =IF(EE11+$AM11+$BH11<Maxbatteri*minpctbatteri,Maxbatteri*minpctbatteri,IF(EE11+$AM11+$BH11>Maxbatteri*maxpctbatteri,Maxbatteri*maxpctbatteri,EE11+$AM11+$BH11)) -> 17.00901321 | EG11: =IF(EE11+$AM11+$BH11+SUM($BH12)<Maxbatteri*minpctbatteri,Maxbatteri*minpctbatteri,IF(EE11+$AM11+$BH11+SUM($BH12)>Maxbatteri*maxpctbatteri,Maxbatteri*maxpctbatteri,EE11+$AM11+$BH11+SUM($BH12))) -> 6 | EH11: =IF(EE11+$AM11+$BH11+SUM($BH12:$BH13)<Maxbatteri*minpctbatteri,Maxbatteri*minpctbatteri,IF(EE11+$AM11+$BH11+SUM($BH12:$BH13)>Maxbatteri*maxpctbatteri,Maxbatteri*maxpctbatteri,EE11+$AM11+$BH11+SUM($BH12:$BH13))) -> 6 | EI11: =IF(EE11+$AM11+$BH11+SUM($BH12:$BH14)<Maxbatteri*minpctbatteri,Maxbatteri*minpctbatteri,IF(EE11+$AM11+$BH11+SUM($BH12:$BH14)>Maxbatteri*maxpctbatteri,Maxbatteri*maxpctbatteri,EE11+$AM11+$BH11+SUM($BH12:$BH14))) -> 6 | EJ11: =IF(EE11+$AM11+$BH11+SUM($BH12:$BH15)<Maxbatteri*minpctbatteri,Maxbatteri*minpctbatteri,IF(EE11+$AM11+$BH11+SUM($BH12:$BH15)>Maxbatteri*maxpctbatteri,Maxbatteri*maxpctbatteri,EE11+$AM11+$BH11+SUM($BH12:$BH15))) -> 6 | EK11: =IF(EE11+$AM11+$BH11+SUM($BH12:$BH16)<Maxbatteri*minpctbatteri,Maxbatteri*minpctbatteri,IF(EE11+$AM11+$BH11+SUM($BH12:$BH16)>Maxbatteri*maxpctbatteri,Maxbatteri*maxpctbatteri,EE11+$AM11+$BH11+SUM($BH12:$BH16))) -> 6 | EL11: =IF(EE11+$AM11+$BH11+SUM($BH12:$BH17)<Maxbatteri*minpctbatteri,Maxbatteri*minpctbatteri,IF(EE11+$AM11+$BH11+SUM($BH12:$BH17)>Maxbatteri*maxpctbatteri,Maxbatteri*maxpctbatteri,EE11+$AM11+$BH11+SUM($BH12:$BH17))) -> 6 | EM11: =IF(EE11+$AM11+$BH11+SUM($BH12:$BH18)<Maxbatteri*minpctbatteri,Maxbatteri*minpctbatteri,IF(EE11+$AM11+$BH11+SUM($BH12:$BH18)>Maxbatteri*maxpctbatteri,Maxbatteri*maxpctbatteri,EE11+$AM11+$BH11+SUM($BH12:$BH18))) -> 6 | EN11: =IF(EE11+$AM11+$BH11+SUM($BH12:$BH19)<Maxbatteri*minpctbatteri,Maxbatteri*minpctbatteri,IF(EE11+$AM11+$BH11+SUM($BH12:$BH19)>Maxbatteri*maxpctbatteri,Maxbatteri*maxpctbatteri,EE11+$AM11+$BH11+SUM($BH12:$BH19))) -> 6 | EO11: =IF(EE11+$AM11+$BH11+SUM($BH12:$BH20)<Maxbatteri*minpctbatteri,Maxbatteri*minpctbatteri,IF(EE11+$AM11+$BH11+SUM($BH12:$BH20)>Maxbatteri*maxpctbatteri,Maxbatteri*maxpctbatteri,EE11+$AM11+$BH11+SUM($BH12:$BH20))) -> 6 | EP11: =IF(EE11+$AM11+$BH11+SUM($BH12:$BH21)<Maxbatteri*minpctbatteri,Maxbatteri*minpctbatteri,IF(EE11+$AM11+$BH11+SUM($BH12:$BH21)>Maxbatteri*maxpctbatteri,Maxbatteri*maxpctbatteri,EE11+$AM11+$BH11+SUM($BH12:$BH21))) -> 6 | EQ11: =IF(EE11+$AM11+$BH11+SUM($BH12:$BH22)<Maxbatteri*minpctbatteri,Maxbatteri*minpctbatteri,IF(EE11+$AM11+$BH11+SUM($BH12:$BH22)>Maxbatteri*maxpctbatteri,Maxbatteri*maxpctbatteri,EE11+$AM11+$BH11+SUM($BH12:$BH22))) -> 6 | ER11: =IF($EE11+$AM11+$BH11+SUM($BH12:$BH23)<Maxbatteri*minpctbatteri,Maxbatteri*minpctbatteri,IF($EE11+$AM11+$BH11+SUM($BH12:$BH23)>Maxbatteri*maxpctbatteri,Maxbatteri*maxpctbatteri,$EE11+$AM11+$BH11+SUM($BH12:$BH23))) -> 6 | ES11: =IF($EE11+$AM11+$BH11+SUM($BH12:$BH24)<Maxbatteri*minpctbatteri,Maxbatteri*minpctbatteri,IF($EE11+$AM11+$BH11+SUM($BH12:$BH24)>Maxbatteri*maxpctbatteri,Maxbatteri*maxpctbatteri,$EE11+$AM11+$BH11+SUM($BH12:$BH24))) -> 6 | ET11: =IF($EE11+$AM11+$BH11+SUM($BH12:$BH25)<Maxbatteri*minpctbatteri,Maxbatteri*minpctbatteri,IF($EE11+$AM11+$BH11+SUM($BH12:$BH25)>Maxbatteri*maxpctbatteri,Maxbatteri*maxpctbatteri,$EE11+$AM11+$BH11+SUM($BH12:$BH25))) -> 6 | EU11: =IF($EE11+$AM11+$BH11+SUM($BH12:$BH26)<Maxbatteri*minpctbatteri,Maxbatteri*minpctbatteri,IF($EE11+$AM11+$BH11+SUM($BH12:$BH26)>Maxbatteri*maxpctbatteri,Maxbatteri*maxpctbatteri,$EE11+$AM11+$BH11+SUM($BH12:$BH26))) -> 6 | EV11: =BN11*EV$10 -> 39.6 | EW11: =IF(EV11+$AM11+$BH11<Maxbatteri*minpctbatteri,Maxbatteri*minpctbatteri,IF(EV11+$AM11+$BH11>Maxbatteri*maxpctbatteri,Maxbatteri*maxpctbatteri,EV11+$AM11+$BH11)) -> 24.92901321 | EX11: =IF(EV11+$AM11+$BH11+SUM($BH12)<Maxbatteri*minpctbatteri,Maxbatteri*minpctbatteri,IF(EV11+$AM11+$BH11+SUM($BH12)>Maxbatteri*maxpctbatteri,Maxbatteri*maxpctbatteri,EV11+$AM11+$BH11+SUM($BH12))) -> 7.211024526 | EY11: =IF(EV11+$AM11+$BH11+SUM($BH12:$BH13)<Maxbatteri*minpctbatteri,Maxbatteri*minpctbatteri,IF(EV11+$AM11+$BH11+SUM($BH12:$BH13)>Maxbatteri*maxpctbatteri,Maxbatteri*maxpctbatteri,EV11+$AM11+$BH11+SUM($BH12:$BH13))) -> 6 | EZ11: =IF(EV11+$AM11+$BH11+SUM($BH12:$BH14)<Maxbatteri*minpctbatteri,Maxbatteri*minpctbatteri,IF(EV11+$AM11+$BH11+SUM($BH12:$BH14)>Maxbatteri*maxpctbatteri,Maxbatteri*maxpctbatteri,EV11+$AM11+$BH11+SUM($BH12:$BH14))) -> 6 | FA11: =IF(EV11+$AM11+$BH11+SUM($BH12:$BH15)<Maxbatteri*minpctbatteri,Maxbatteri*minpctbatteri,IF(EV11+$AM11+$BH11+SUM($BH12:$BH15)>Maxbatteri*maxpctbatteri,Maxbatteri*maxpctbatteri,EV11+$AM11+$BH11+SUM($BH12:$BH15))) -> 6 | FB11: =IF(EV11+$AM11+$BH11+SUM($BH12:$BH16)<Maxbatteri*minpctbatteri,Maxbatteri*minpctbatteri,IF(EV11+$AM11+$BH11+SUM($BH12:$BH16)>Maxbatteri*maxpctbatteri,Maxbatteri*maxpctbatteri,EV11+$AM11+$BH11+SUM($BH12:$BH16))) -> 6 | FC11: =IF(EV11+$AM11+$BH11+SUM($BH12:$BH17)<Maxbatteri*minpctbatteri,Maxbatteri*minpctbatteri,IF(EV11+$AM11+$BH11+SUM($BH12:$BH17)>Maxbatteri*maxpctbatteri,Maxbatteri*maxpctbatteri,EV11+$AM11+$BH11+SUM($BH12:$BH17))) -> 6 | FD11: =IF(EV11+$AM11+$BH11+SUM($BH12:$BH18)<Maxbatteri*minpctbatteri,Maxbatteri*minpctbatteri,IF(EV11+$AM11+$BH11+SUM($BH12:$BH18)>Maxbatteri*maxpctbatteri,Maxbatteri*maxpctbatteri,EV11+$AM11+$BH11+SUM($BH12:$BH18))) -> 6 | FE11: =IF(EV11+$AM11+$BH11+SUM($BH12:$BH19)<Maxbatteri*minpctbatteri,Maxbatteri*minpctbatteri,IF(EV11+$AM11+$BH11+SUM($BH12:$BH19)>Maxbatteri*maxpctbatteri,Maxbatteri*maxpctbatteri,EV11+$AM11+$BH11+SUM($BH12:$BH19))) -> 6 | FF11: =IF(EV11+$AM11+$BH11+SUM($BH12:$BH20)<Maxbatteri*minpctbatteri,Maxbatteri*minpctbatteri,IF(EV11+$AM11+$BH11+SUM($BH12:$BH20)>Maxbatteri*maxpctbatteri,Maxbatteri*maxpctbatteri,EV11+$AM11+$BH11+SUM($BH12:$BH20))) -> 6 | FG11: =IF(EV11+$AM11+$BH11+SUM($BH12:$BH21)<Maxbatteri*minpctbatteri,Maxbatteri*minpctbatteri,IF(EV11+$AM11+$BH11+SUM($BH12:$BH21)>Maxbatteri*maxpctbatteri,Maxbatteri*maxpctbatteri,EV11+$AM11+$BH11+SUM($BH12:$BH21))) -> 6 | FH11: =IF(EV11+$AM11+$BH11+SUM($BH12:$BH22)<Maxbatteri*minpctbatteri,Maxbatteri*minpctbatteri,IF(EV11+$AM11+$BH11+SUM($BH12:$BH22)>Maxbatteri*maxpctbatteri,Maxbatteri*maxpctbatteri,EV11+$AM11+$BH11+SUM($BH12:$BH22))) -> 6 | FI11: =IF($EV11+$AM11+$BH11+SUM($BH12:$BH23)<Maxbatteri*minpctbatteri,Maxbatteri*minpctbatteri,IF($EV11+$AM11+$BH11+SUM($BH12:$BH23)>Maxbatteri*maxpctbatteri,Maxbatteri*maxpctbatteri,$EV11+$AM11+$BH11+SUM($BH12:$BH23))) -> 6 | FJ11: =IF($EV11+$AM11+$BH11+SUM($BH12:$BH24)<Maxbatteri*minpctbatteri,Maxbatteri*minpctbatteri,IF($EV11+$AM11+$BH11+SUM($BH12:$BH24)>Maxbatteri*maxpctbatteri,Maxbatteri*maxpctbatteri,$EV11+$AM11+$BH11+SUM($BH12:$BH24))) -> 6 | FK11: =IF($EV11+$AM11+$BH11+SUM($BH12:$BH25)<Maxbatteri*minpctbatteri,Maxbatteri*minpctbatteri,IF($EV11+$AM11+$BH11+SUM($BH12:$BH25)>Maxbatteri*maxpctbatteri,Maxbatteri*maxpctbatteri,$EV11+$AM11+$BH11+SUM($BH12:$BH25))) -> 6 | FL11: =IF($EV11+$AM11+$BH11+SUM($BH12:$BH26)<Maxbatteri*minpctbatteri,Maxbatteri*minpctbatteri,IF($EV11+$AM11+$BH11+SUM($BH12:$BH26)>Maxbatteri*maxpctbatteri,Maxbatteri*maxpctbatteri,$EV11+$AM11+$BH11+SUM($BH12:$BH26))) -> 6 | FM11: =MAX(BP11:CE11) -> 6 | FN11: =MAX(CG11:CV11) -> 6 | FO11: =MAX(CX11:DM11) -> 6 | FP11: =MAX(DO11:ED11) -> 9.089013206 | FQ11: =MAX(EF11:EU11) -> 17.00901321 | FR11: =MAX(EW11:FL11) -> 24.92901321 | FS11: =IF(FM11=Maxbatteri*maxpctbatteri,0,IF(FN11=Maxbatteri*maxpctbatteri,0,IF(FO11=Maxbatteri*maxpctbatteri,0.2,IF(FP11=Maxbatteri*maxpctbatteri,0.4,IF(FQ11=Maxbatteri*maxpctbatteri,0.6,IF(FR11=Maxbatteri*maxpctbatteri,0.8,1)))))) -> 1 | FU11: =FS11*BN11 -> 39.6 | FV11: =MIN(Maxbatteri*maxpctbatteri-BA11,FS11*BN11) -> 39.6 | FY11: =IF(batstyr1=1,"ja","nej") -> nej | FZ11: =IF(GA11<Elpriskøb,"ja","nej") -> nej | GA11: =IF(elpristype=1,HJ11*Elpriskøb,IF(elpristype=2,HO11,"elpristype ikke defineret")) -> 2.275 | GB11: =IF(AND(FY11="ja",FZ11="ja"),FV11,0) -> 0 | GC11: =FV11 -> 39.6 | GE11: =IF(batstyr1=1,GB11,IF(batstyr1=2,GC11,IF(batstyr1=0,0,"error"))) -> 0 | GG11: =BA11+GE11 -> 6 | GI11: =IF(GG11-GG10>Maxbatteri*0.01,"stiger",IF(-GG11+GG10>Maxbatteri*0.01,"falder",GI10)) -> stiger | GJ11: =IF(AND(GI10="stiger",GI11="falder"),"cyclus","---") -> --- | GK11: =IF(AND(GI10="falder",GI11="stiger"),"cyclus","---") -> --- | GL11: ="-" -> - | GM11: ="-" -> - | GN11: =M11-AQ11-AT11-AX11 -> 0 | GO11: =MIN(AK11-AZ11-AQ11,maxelsalg*INDEX(fakelsalg,D11+1)) -> 0 | GP11: =AK11-AQ11-AZ11-GO11 -> 0 | GQ11: =AK11-AZ11-GP11-GO11-AQ11 -> 0 | GR11: =M11-AQ11-AT11-GN11-AX11 -> 0 | GS11: =-AN11+AZ11-AT11-AU11+GE11 -> 0 | GT11: =(AK11-GP11)/M11 -> 0 | HI11: =AX11+GE11 -> 20.67098679 | HJ11: =INDEX(ID!$K$153:$K$176,D11+1)*INDEX(ID!$K$180:$K$191,$B11) -> 1 | HK11: =INDEX(ID!$L$153:$L$176,D11+1)*INDEX(ID!$K$180:$K$191,$B11) -> 1 | HL11: =HJ11*HI11*Elpriskøb -> 47.02649496 | HM11: =HL11 -> 47.02649496 | HN11: =ID!K219 -> 0.11301 | HO11: =Elpriskøb-$HN$9+HN11 -> 2.148349575 | HP11: =HI11*HO11 -> 44.4085057 | HQ11: =ID!I219 -> 1.2 | HT11: =IF(elpristype=1,HM11,IF(elpristype=2,HP11,IF(elpristype=3,HQ11,"elpristype ikke defineret"))) -> 47.02649496 | HU11: =AX11+GE11-GO11 -> 20.67098679 | HV11: =IF(elpristype=1,HI11*CO2el1,IF(elpristype=2,HI11*HI11*CO2el2,IF(elpristype=3,HI11*HI11*CO2el3,"type ikke valgt endnu")))/1000 -> 5.953244197 | HW11: =IF(elsalgtype=1,HK11*(GO11)*Elprissalg,IF(elsalgtype=2,ID!J219,"elsalgtype ikke defineret")) -> 0 | IA11: 0 | IB11: 0 | IC11: 0 | ID11: 0 | IE11: 0 | IF11: 0 | IG11: 0 | IH11: 0 | II11: 0 | IJ11: 0 | IK11: 0 | IL11: 0 | IM11: 0 | IN11: 0 | IO11: 0 | IP11: 0 | IQ11: 0 | IR11: 0 | IS11: 0 | IT11: 0 | IU11: 0 | IV11: 0 | IW11: 0 | IX11: 0 | IY11: 0
A12: =A11+1 -> 2 | B12: 1 | C12: 1 | D12: 1 | E12: 1 | F12: 1 | G12: 0 | H12: 16.96 | I12: 2.6 | J12: =IF(ID!$W$4=2,0,FBR!P12+FBR!Q12) -> 17.71798868 | K12: =IF(ID!$W$4=2,0,FBR!R12+FBR!S12) -> 0 | L12: =ID!H220 -> 1 | M12: =IF(ID!$Y$4=1,J12+K12,IF(ID!$Y$4=2,model!L12,"error")) -> 17.71798868 | O12: 0 | P12: 0 | Q12: 0 | R12: 0 | S12: 0 | T12: 0 | U12: =(1-ID!$AB$64)*O12*PV1W/1000000 -> 0 | V12: =(1-ID!$AB$65)*P12*PV2W/1000000 -> 0 | W12: =(1-ID!$AB$66)*Q12*PV3W/1000000 -> 0 | X12: =(1-ID!$AB$67)*R12*PV4W/1000000 -> 0 | Y12: =(1-ID!$AB$68)*S12*PV5W/1000000 -> 0 | Z12: =(1-ID!$AB$69)*T12*PV6W/1000000 -> 0 | AJ12: =ID!L220 -> 0 | AK12: =IF(ID!$K$70="ja",AJ12,SUM(U12:Z12)) -> 0 | AM12: =GG11 -> 6 | AN12: =AM12*selfdischarge/(30.4*24) -> 0 | AO12: =AM12-AN12 -> 6 | AQ12: =MIN(AK12,M12) -> 0 | AR12: 17.71798868 | AS12: 5.4 | AT12: 0 | AU12: =(1-effbatteri)*AT12 -> 0 | AV12: =AO12-AT12-AU12 -> 6 | AW12: =M12-AT12-AQ12 -> 17.71798868 | AX12: 17.71798868 | AY12: =AK12-AQ12 -> 0 | AZ12: 0 | BA12: =AV12+AZ12 -> 6 | BF12: 0 | BG12: 17.71798868 | BH12: -17.71798868 | BI12: 99 | BJ12: =BI12-AX12 -> 81.28201132 | BK12: 39.6 | BL12: =MIN(BJ12,BK12) -> 39.6 | BN12: =BL12 -> 39.6 | BO12: =BN12*BO11 -> 0 | BP12: 6 | BQ12: 6 | BR12: 6 | BS12: 6 | BT12: 6 | BU12: 6 | BV12: 6 | BW12: 6 | BX12: 6 | BY12: 6 | BZ12: 6 | CA12: =IF(BO12+$AM12+$BH12+SUM($BH13:$BH23)<Maxbatteri*minpctbatteri,Maxbatteri*minpctbatteri,IF(BO12+$AM12+$BH12+SUM($BH13:$BH23)>Maxbatteri*maxpctbatteri,Maxbatteri*maxpctbatteri,BO12+$AM12+$BH12+SUM($BH13:$BH23))) -> 6 | CB12: 6 | CC12: 6 | CD12: 6 | CE12: 6 | CF12: =BN12*CF$10 -> 7.92 | CG12: 6 | CH12: 6 | CI12: 6 | CJ12: 6 | CK12: 6 | CL12: 6 | CM12: 6 | CN12: 6 | CO12: 6 | CP12: 6 | CQ12: 6 | CR12: 6 | CS12: 6 | CT12: 6 | CU12: 6 | CV12: 6 | CW12: =BN12*CW$10 -> 15.84 | CX12: 6 | CY12: 6 | CZ12: 6 | DA12: 6 | DB12: 6 | DC12: 6 | DD12: 6 | DE12: 6 | DF12: 6 | DG12: 6 | DH12: 6 | DI12: 6 | DJ12: 6 | DK12: 6 | DL12: 6 | DM12: 6 | DN12: =BN12*DN$10 -> 23.76 | DO12: 12.04201132 | DP12: 6 | DQ12: 6 | DR12: 6 | DS12: 6 | DT12: 6 | DU12: 6 | DV12: 6 | DW12: 6 | DX12: 6 | DY12: 6 | DZ12: 6 | EA12: 6 | EB12: 6 | EC12: 6 | ED12: 6 | EE12: 31.68 | EF12: 19.96201132 | EG12: 6 | EH12: 6 | EI12: 6 | EJ12: 6 | EK12: 6 | EL12: 6 | EM12: 6 | EN12: 6 | EO12: 6 | EP12: 6 | EQ12: 6 | ER12: 6 | ES12: 6 | ET12: 6 | EU12: 6 | EV12: 39.6 | EW12: 27.88201132 | EX12: 11.34522188 | EY12: 6 | EZ12: 6 | FA12: 6 | FB12: 6 | FC12: 6 | FD12: 6 | FE12: 6 | FF12: 6 | FG12: 6 | FH12: 6 | FI12: 6 | FJ12: 6 | FK12: 6 | FL12: 6 | FM12: =MAX(BP12:CE12) -> 6 | FN12: =MAX(CG12:CV12) -> 6 | FO12: =MAX(CX12:DM12) -> 6 | FP12: =MAX(DO12:ED12) -> 12.04201132 | FQ12: =MAX(EF12:EU12) -> 19.96201132 | FR12: =MAX(EW12:FL12) -> 27.88201132 | FS12: 1 | FU12: =FS12*BN12 -> 39.6 | FV12: 39.6 | FY12: nej | FZ12: nej | GA12: 2.275 | GB12: =IF(AND(FY12="ja",FZ12="ja"),FU12,0) -> 0 | GC12: =FU12 -> 39.6 | GE12: 0 | GG12: 6 | GH12: =ABS((GG13-GG12)/Maxbatteri)*100 -> 0 | GI12: stiger | GJ12: --- | GK12: --- | GL12: ="-" -> - | GM12: - | GN12: 0 | GO12: 0 | GP12: 0 | GQ12: 0 | GR12: 0 | GS12: 0 | GT12: 0 | HI12: 17.71798868 | HJ12: =INDEX(ID!$K$153:$K$176,D12+1)*INDEX(ID!$K$180:$K$191,$B12) -> 1 | HK12: =INDEX(ID!$L$153:$L$176,D12+1)*INDEX(ID!$K$180:$K$191,$B12) -> 1 | HL12: 40.30842425 | HM12: =HL12 -> 40.30842425 | HN12: =ID!K220 -> 0.09667 | HO12: 2.132009575 | HP12: =HI12*HO12 -> 37.77492152 | HQ12: =ID!I220 -> 1.2 | HT12: 40.30842425 | HU12: 17.71798868 | HV12: 5.10278074 | HW12: =IF(elsalgtype=1,HK12*(GO12)*Elprissalg,IF(elsalgtype=2,ID!J220,"elsalgtype ikke defineret")) -> 0 | IA12: 0 | IB12: 0 | IC12: 0 | ID12: 0 | IE12: 0 | IF12: 0 | IG12: 0 | IH12: 0 | II12: 0 | IJ12: 0 | IK12: 0 | IL12: 0 | IM12: 0 | IN12: 0 | IO12: 0 | IP12: 0 | IQ12: 0 | IR12: 0 | IS12: 0 | IT12: 0 | IU12: 0 | IV12: 0 | IW12: 0 | IX12: 0 | IY12: 0
A13: =A12+1 -> 3 | B13: 1 | C13: 1 | D13: 2 | E13: 1 | F13: 1 | G13: 0 | H13: 13.88 | I13: 2.6 | J13: =IF(ID!$W$4=2,0,FBR!P13+FBR!Q13) -> 16.53678943 | K13: =IF(ID!$W$4=2,0,FBR!R13+FBR!S13) -> 0 | L13: =ID!H221 -> 1 | M13: =IF(ID!$Y$4=1,J13+K13,IF(ID!$Y$4=2,model!L13,"error")) -> 16.53678943 | O13: 0 | P13: 0 | Q13: 0 | R13: 0 | S13: 0 | T13: 0 | U13: =(1-ID!$AB$64)*O13*PV1W/1000000 -> 0 | V13: =(1-ID!$AB$65)*P13*PV2W/1000000 -> 0 | W13: =(1-ID!$AB$66)*Q13*PV3W/1000000 -> 0 | X13: =(1-ID!$AB$67)*R13*PV4W/1000000 -> 0 | Y13: =(1-ID!$AB$68)*S13*PV5W/1000000 -> 0 | Z13: =(1-ID!$AB$69)*T13*PV6W/1000000 -> 0 | AJ13: =ID!L221 -> 0 | AK13: =IF(ID!$K$70="ja",AJ13,SUM(U13:Z13)) -> 0 | AM13: 6 | AN13: 0 | AO13: 6 | AQ13: 0 | AR13: 16.53678943 | AS13: 5.4 | AT13: 0 | AU13: 0 | AV13: 6 | AW13: 16.53678943 | AX13: 16.53678943 | AY13: 0 | AZ13: 0 | BA13: =AV13+AZ13 -> 6 | BF13: 0 | BG13: 16.53678943 | BH13: -16.53678943 | BI13: 99 | BJ13: 82.46321057 | BK13: 39.6 | BL13: 39.6 | BN13: 39.6 | BO13: 0 | BP13: 6 | BQ13: 6 | BR13: 6 | BS13: 6 | BT13: 6 | BU13: 6 | BV13: 6 | BW13: 6 | BX13: 6 | BY13: 6 | BZ13: 6 | CA13: 6 | CB13: 6 | CC13: 6 | CD13: 6 | CE13: 6 | CF13: 7.92 | CG13: 6 | CH13: 6 | CI13: 6 | CJ13: 6 | CK13: 6 | CL13: 6 | CM13: 6 | CN13: 6 | CO13: 6 | CP13: 6 | CQ13: 6 | CR13: 6 | CS13: 6 | CT13: 6 | CU13: 6 | CV13: 6 | CW13: 15.84 | CX13: 6 | CY13: 6 | CZ13: 6 | DA13: 6 | DB13: 6 | DC13: 6 | DD13: 6 | DE13: 6 | DF13: 6 | DG13: 6 | DH13: 6 | DI13: 6 | DJ13: 6 | DK13: 6 | DL13: 6 | DM13: 6 | DN13: 23.76 | DO13: 13.22321057 | DP13: 6 | DQ13: 6 | DR13: 6 | DS13: 6 | DT13: 6 | DU13: 6 | DV13: 6 | DW13: 6 | DX13: 6 | DY13: 6 | DZ13: 6 | EA13: 6 | EB13: 6 | EC13: 6 | ED13: 6 | EE13: 31.68 | EF13: 21.14321057 | EG13: 6 | EH13: 6 | EI13: 6 | EJ13: 6 | EK13: 6 | EL13: 6 | EM13: 6 | EN13: 6 | EO13: 6 | EP13: 6 | EQ13: 6 | ER13: 6 | ES13: 6 | ET13: 6 | EU13: 6 | EV13: 39.6 | EW13: 29.06321057 | EX13: 13.11702075 | EY13: 6 | EZ13: 6 | FA13: 6 | FB13: 6 | FC13: 6 | FD13: 6 | FE13: 6 | FF13: 6 | FG13: 6 | FH13: 6 | FI13: 6 | FJ13: 6 | FK13: 6 | FL13: 6 | FM13: 6 | FN13: 6 | FO13: 6 | FP13: 13.22321057 | FQ13: 21.14321057 | FR13: 29.06321057 | FS13: 1 | FU13: 39.6 | FV13: 39.6 | FY13: nej | FZ13: nej | GA13: 2.275 | GB13: =IF(AND(FY13="ja",FZ13="ja"),FV13,0) -> 0 | GC13: =FV13 -> 39.6 | GE13: 0 | GG13: 6 | GH13: 0 | GI13: stiger | GJ13: --- | GK13: --- | GL13: - | GM13: - | GN13: 0 | GO13: 0 | GP13: 0 | GQ13: 0 | GR13: 0 | GS13: 0 | GT13: 0 | HI13: 16.53678943 | HJ13: =INDEX(ID!$K$153:$K$176,D13+1)*INDEX(ID!$K$180:$K$191,$B13) -> 1 | HK13: =INDEX(ID!$L$153:$L$176,D13+1)*INDEX(ID!$K$180:$K$191,$B13) -> 1 | HL13: 37.62119596 | HM13: 37.62119596 | HN13: =ID!K221 -> 0.09018 | HO13: 2.125519575 | HP13: 35.14926966 | HQ13: =ID!I221 -> 1.2 | HT13: 37.62119596 | HU13: 16.53678943 | HV13: 4.762595357 | HW13: =IF(elsalgtype=1,HK13*(GO13)*Elprissalg,IF(elsalgtype=2,ID!J221,"elsalgtype ikke defineret")) -> 0 | IA13: 0 | IB13: 0 | IC13: 0 | ID13: 0 | IE13: 0 | IF13: 0 | IG13: 0 | IH13: 0 | II13: 0 | IJ13: 0 | IK13: 0 | IL13: 0 | IM13: 0 | IN13: 0 | IO13: 0 | IP13: 0 | IQ13: 0 | IR13: 0 | IS13: 0 | IT13: 0 | IU13: 0 | IV13: 0 | IW13: 0 | IX13: 0 | IY13: 0
A14: 4 | B14: 1 | C14: 1 | D14: 3 | E14: 1 | F14: 1 | G14: 0 | H14: 12.34 | I14: 2.8 | J14: =IF(ID!$W$4=2,0,FBR!P14+FBR!Q14) -> 15.94618981 | K14: =IF(ID!$W$4=2,0,FBR!R14+FBR!S14) -> 0 | L14: =ID!H222 -> 1 | M14: =IF(ID!$Y$4=1,J14+K14,IF(ID!$Y$4=2,model!L14,"error")) -> 15.94618981 | O14: 0 | P14: 0 | Q14: 0 | R14: 0 | S14: 0 | T14: 0 | U14: =(1-ID!$AB$64)*O14*PV1W/1000000 -> 0 | V14: =(1-ID!$AB$65)*P14*PV2W/1000000 -> 0 | W14: =(1-ID!$AB$66)*Q14*PV3W/1000000 -> 0 | X14: =(1-ID!$AB$67)*R14*PV4W/1000000 -> 0 | Y14: =(1-ID!$AB$68)*S14*PV5W/1000000 -> 0 | Z14: =(1-ID!$AB$69)*T14*PV6W/1000000 -> 0 | AJ14: =ID!L222 -> 0 | AK14: =IF(ID!$K$70="ja",AJ14,SUM(U14:Z14)) -> 0 | AM14: 6 | AN14: 0 | AO14: 6 | AQ14: 0 | AR14: 15.94618981 | AS14: 5.4 | AT14: 0 | AU14: 0 | AV14: 6 | AW14: 15.94618981 | AX14: 15.94618981 | AY14: 0 | AZ14: 0 | BA14: 6 | BF14: 0 | BG14: 15.94618981 | BH14: -15.94618981 | BI14: 99 | BJ14: 83.05381019 | BK14: 39.6 | BL14: 39.6 | BN14: 39.6 | BO14: 0 | BP14: 6 | BQ14: 6 | BR14: 6 | BS14: 6 | BT14: 6 | BU14: 6 | BV14: 6 | BW14: 6 | BX14: 6 | BY14: 6 | BZ14: 6 | CA14: 6 | CB14: 6 | CC14: 6 | CD14: 6 | CE14: 6 | CF14: 7.92 | CG14: 6 | CH14: 6 | CI14: 6 | CJ14: 6 | CK14: 6 | CL14: 6 | CM14: 6 | CN14: 6 | CO14: 6 | CP14: 6 | CQ14: 6 | CR14: 6 | CS14: 6 | CT14: 6 | CU14: 6 | CV14: 6 | CW14: 15.84 | CX14: 6 | CY14: 6 | CZ14: 6 | DA14: 6 | DB14: 6 | DC14: 6 | DD14: 6 | DE14: 6 | DF14: 6 | DG14: 6 | DH14: 6 | DI14: 6 | DJ14: 6 | DK14: 6 | DL14: 6 | DM14: 6 | DN14: 23.76 | DO14: 13.81381019 | DP14: 6 | DQ14: 6 | DR14: 6 | DS14: 6 | DT14: 6 | DU14: 6 | DV14: 6 | DW14: 6 | DX14: 6 | DY14: 6 | DZ14: 6 | EA14: 6 | EB14: 6 | EC14: 6 | ED14: 6 | EE14: 31.68 | EF14: 21.73381019 | EG14: 6 | EH14: 6 | EI14: 6 | EJ14: 6 | EK14: 6 | EL14: 6 | EM14: 6 | EN14: 6 | EO14: 6 | EP14: 6 | EQ14: 6 | ER14: 6 | ES14: 6 | ET14: 6 | EU14: 6 | EV14: 39.6 | EW14: 29.65381019 | EX14: 13.70762038 | EY14: 6 | EZ14: 6 | FA14: 6 | FB14: 6 | FC14: 6 | FD14: 6 | FE14: 6 | FF14: 6 | FG14: 6 | FH14: 6 | FI14: 6 | FJ14: 6 | FK14: 6 | FL14: 6 | FM14: 6 | FN14: 6 | FO14: 6 | FP14: 13.81381019 | FQ14: 21.73381019 | FR14: 29.65381019 | FS14: 1 | FU14: 39.6 | FV14: 39.6 | FY14: nej | FZ14: nej | GA14: 2.275 | GB14: 0 | GC14: 39.6 | GE14: 0 | GG14: 6 | GH14: 0 | GI14: stiger | GJ14: --- | GK14: --- | GL14: - | GM14: - | GN14: 0 | GO14: 0 | GP14: 0 | GQ14: 0 | GR14: 0 | GS14: 0 | GT14: 0 | HI14: 15.94618981 | HJ14: =INDEX(ID!$K$153:$K$176,D14+1)*INDEX(ID!$K$180:$K$191,$B14) -> 1 | HK14: =INDEX(ID!$L$153:$L$176,D14+1)*INDEX(ID!$K$180:$K$191,$B14) -> 1 | HL14: 36.27758182 | HM14: 36.27758182 | HN14: =ID!K222 -> 0.08727 | HO14: 2.122609575 | HP14: 33.84753519 | HQ14: =ID!I222 -> 1.2 | HT14: 36.27758182 | HU14: 15.94618981 | HV14: 4.592502666 | HW14: =IF(elsalgtype=1,HK14*(GO14)*Elprissalg,IF(elsalgtype=2,ID!J222,"elsalgtype ikke defineret")) -> 0 | IA14: 0 | IB14: 0 | IC14: 0 | ID14: 0 | IE14: 0 | IF14: 0 | IG14: 0 | IH14: 0 | II14: 0 | IJ14: 0 | IK14: 0 | IL14: 0 | IM14: 0 | IN14: 0 | IO14: 0 | IP14: 0 | IQ14: 0 | IR14: 0 | IS14: 0 | IT14: 0 | IU14: 0 | IV14: 0 | IW14: 0 | IX14: 0 | IY14: 0
A15: 5 | B15: 1 | C15: 1 | D15: 4 | E15: 1 | F15: 1 | G15: 0 | H15: 11.82 | I15: 2.9 | J15: =IF(ID!$W$4=2,0,FBR!P15+FBR!Q15) -> 15.94618981 | K15: =IF(ID!$W$4=2,0,FBR!R15+FBR!S15) -> 0 | L15: =ID!H223 -> 1 | M15: =IF(ID!$Y$4=1,J15+K15,IF(ID!$Y$4=2,model!L15,"error")) -> 15.94618981 | O15: 0 | P15: 0 | Q15: 0 | R15: 0 | S15: 0 | T15: 0 | U15: =(1-ID!$AB$64)*O15*PV1W/1000000 -> 0 | V15: =(1-ID!$AB$65)*P15*PV2W/1000000 -> 0 | W15: =(1-ID!$AB$66)*Q15*PV3W/1000000 -> 0 | X15: =(1-ID!$AB$67)*R15*PV4W/1000000 -> 0 | Y15: =(1-ID!$AB$68)*S15*PV5W/1000000 -> 0 | Z15: =(1-ID!$AB$69)*T15*PV6W/1000000 -> 0 | AJ15: =ID!L223 -> 0 | AK15: =IF(ID!$K$70="ja",AJ15,SUM(U15:Z15)) -> 0 | AM15: 6 | AN15: 0 | AO15: 6 | AQ15: 0 | AR15: 15.94618981 | AS15: 5.4 | AT15: 0 | AU15: 0 | AV15: 6 | AW15: 15.94618981 | AX15: 15.94618981 | AY15: 0 | AZ15: 0 | BA15: 6 | BF15: 0 | BG15: 15.94618981 | BH15: -15.94618981 | BI15: 99 | BJ15: 83.05381019 | BK15: 39.6 | BL15: 39.6 | BN15: 39.6 | BO15: 0 | BP15: 6 | BQ15: 6 | BR15: 6 | BS15: 6 | BT15: 6 | BU15: 6 | BV15: 6 | BW15: 6 | BX15: 6 | BY15: 6 | BZ15: 6 | CA15: 6 | CB15: 6 | CC15: 6 | CD15: 6 | CE15: 6 | CF15: 7.92 | CG15: 6 | CH15: 6 | CI15: 6 | CJ15: 6 | CK15: 6 | CL15: 6 | CM15: 6 | CN15: 6 | CO15: 6 | CP15: 6 | CQ15: 6 | CR15: 6 | CS15: 6 | CT15: 6 | CU15: 6 | CV15: 6 | CW15: 15.84 | CX15: 6 | CY15: 6 | CZ15: 6 | DA15: 6 | DB15: 6 | DC15: 6 | DD15: 6 | DE15: 6 | DF15: 6 | DG15: 6 | DH15: 6 | DI15: 6 | DJ15: 6 | DK15: 6 | DL15: 6 | DM15: 6 | DN15: 23.76 | DO15: 13.81381019 | DP15: 6 | DQ15: 6 | DR15: 6 | DS15: 6 | DT15: 6 | DU15: 6 | DV15: 6 | DW15: 6 | DX15: 6 | DY15: 6 | DZ15: 6 | EA15: 6 | EB15: 6 | EC15: 6 | ED15: 6 | EE15: 31.68 | EF15: 21.73381019 | EG15: 6 | EH15: 6 | EI15: 6 | EJ15: 6 | EK15: 6 | EL15: 6 | EM15: 6 | EN15: 6 | EO15: 6 | EP15: 6 | EQ15: 6 | ER15: 6 | ES15: 6 | ET15: 6 | EU15: 6 | EV15: 39.6 | EW15: 29.65381019 | EX15: 13.70762038 | EY15: 6 | EZ15: 6 | FA15: 6 | FB15: 6 | FC15: 6 | FD15: 6 | FE15: 6 | FF15: 6 | FG15: 6 | FH15: 6 | FI15: 6 | FJ15: 6 | FK15: 6 | FL15: 6 | FM15: 6 | FN15: 6 | FO15: 6 | FP15: 13.81381019 | FQ15: 21.73381019 | FR15: 29.65381019 | FS15: 1 | FU15: 39.6 | FV15: 39.6 | FY15: nej | FZ15: nej | GA15: 2.275 | GB15: 0 | GC15: 39.6 | GE15: 0 | GG15: 6 | GH15: 0 | GI15: stiger | GJ15: --- | GK15: --- | GL15: - | GM15: - | GN15: 0 | GO15: 0 | GP15: 0 | GQ15: 0 | GR15: 0 | GS15: 0 | GT15: 0 | HI15: 15.94618981 | HJ15: =INDEX(ID!$K$153:$K$176,D15+1)*INDEX(ID!$K$180:$K$191,$B15) -> 1 | HK15: =INDEX(ID!$L$153:$L$176,D15+1)*INDEX(ID!$K$180:$K$191,$B15) -> 1 | HL15: 36.27758182 | HM15: 36.27758182 | HN15: =ID!K223 -> 0.08697 | HO15: 2.122309575 | HP15: 33.84275133 | HQ15: =ID!I223 -> 1.2 | HT15: 36.27758182 | HU15: 15.94618981 | HV15: 4.592502666 | HW15: =IF(elsalgtype=1,HK15*(GO15)*Elprissalg,IF(elsalgtype=2,ID!J223,"elsalgtype ikke defineret")) -> 0 | IA15: 0 | IB15: 0 | IC15: 0 | ID15: 0 | IE15: 0 | IF15: 0 | IG15: 0 | IH15: 0 | II15: 0 | IJ15: 0 | IK15: 0 | IL15: 0 | IM15: 0 | IN15: 0 | IO15: 0 | IP15: 0 | IQ15: 0 | IR15: 0 | IS15: 0 | IT15: 0 | IU15: 0 | IV15: 0 | IW15: 0 | IX15: 0 | IY15: 0
A16: 6 | B16: 1 | C16: 1 | D16: 5 | E16: 1 | F16: 1 | G16: 0 | H16: 11.82 | I16: 3.2 | J16: =IF(ID!$W$4=2,0,FBR!P16+FBR!Q16) -> 15.94618981 | K16: =IF(ID!$W$4=2,0,FBR!R16+FBR!S16) -> 0 | L16: =ID!H224 -> 1 | M16: =IF(ID!$Y$4=1,J16+K16,IF(ID!$Y$4=2,model!L16,"error")) -> 15.94618981 | O16: 0 | P16: 0 | Q16: 0 | R16: 0 | S16: 0 | T16: 0 | U16: =(1-ID!$AB$64)*O16*PV1W/1000000 -> 0 | V16: =(1-ID!$AB$65)*P16*PV2W/1000000 -> 0 | W16: =(1-ID!$AB$66)*Q16*PV3W/1000000 -> 0 | X16: =(1-ID!$AB$67)*R16*PV4W/1000000 -> 0 | Y16: =(1-ID!$AB$68)*S16*PV5W/1000000 -> 0 | Z16: =(1-ID!$AB$69)*T16*PV6W/1000000 -> 0 | AJ16: =ID!L224 -> 0 | AK16: =IF(ID!$K$70="ja",AJ16,SUM(U16:Z16)) -> 0 | AM16: 6 | AN16: 0 | AO16: 6 | AQ16: 0 | AR16: 15.94618981 | AS16: 5.4 | AT16: 0 | AU16: 0 | AV16: 6 | AW16: 15.94618981 | AX16: 15.94618981 | AY16: 0 | AZ16: 0 | BA16: 6 | BF16: 0 | BG16: 15.94618981 | BH16: -15.94618981 | BI16: 99 | BJ16: 83.05381019 | BK16: 39.6 | BL16: 39.6 | BN16: 39.6 | BO16: 0 | BP16: 6 | BQ16: 6 | BR16: 6 | BS16: 6 | BT16: 6 | BU16: 6 | BV16: 6 | BW16: 6 | BX16: 6 | BY16: 6 | BZ16: 6 | CA16: 6 | CB16: 6 | CC16: 6 | CD16: 6 | CE16: 6 | CF16: 7.92 | CG16: 6 | CH16: 6 | CI16: 6 | CJ16: 6 | CK16: 6 | CL16: 6 | CM16: 6 | CN16: 6 | CO16: 6 | CP16: 6 | CQ16: 6 | CR16: 6 | CS16: 6 | CT16: 6 | CU16: 6 | CV16: 6 | CW16: 15.84 | CX16: 6 | CY16: 6 | CZ16: 6 | DA16: 6 | DB16: 6 | DC16: 6 | DD16: 6 | DE16: 6 | DF16: 6 | DG16: 6 | DH16: 6 | DI16: 6 | DJ16: 6 | DK16: 6 | DL16: 6 | DM16: 6 | DN16: 23.76 | DO16: 13.81381019 | DP16: 6 | DQ16: 6 | DR16: 6 | DS16: 6 | DT16: 6 | DU16: 6 | DV16: 6 | DW16: 6 | DX16: 6 | DY16: 6 | DZ16: 6 | EA16: 6 | EB16: 6 | EC16: 6 | ED16: 6 | EE16: 31.68 | EF16: 21.73381019 | EG16: 6 | EH16: 6 | EI16: 6 | EJ16: 6 | EK16: 6 | EL16: 6 | EM16: 6 | EN16: 6 | EO16: 6 | EP16: 6 | EQ16: 6 | ER16: 6 | ES16: 6 | ET16: 6 | EU16: 6 | EV16: 39.6 | EW16: 29.65381019 | EX16: 12.52642113 | EY16: 6 | EZ16: 6 | FA16: 6 | FB16: 6 | FC16: 6 | FD16: 6 | FE16: 6 | FF16: 6 | FG16: 6 | FH16: 6 | FI16: 6 | FJ16: 6 | FK16: 6 | FL16: 6 | FM16: 6 | FN16: 6 | FO16: 6 | FP16: 13.81381019 | FQ16: 21.73381019 | FR16: 29.65381019 | FS16: 1 | FU16: 39.6 | FV16: 39.6 | FY16: nej | FZ16: nej | GA16: 2.275 | GB16: 0 | GC16: 39.6 | GE16: 0 | GG16: 6 | GH16: 0 | GI16: stiger | GJ16: --- | GK16: --- | GL16: - | GM16: - | GN16: 0 | GO16: 0 | GP16: 0 | GQ16: 0 | GR16: 0 | GS16: 0 | GT16: 0 | HI16: 15.94618981 | HJ16: =INDEX(ID!$K$153:$K$176,D16+1)*INDEX(ID!$K$180:$K$191,$B16) -> 1 | HK16: =INDEX(ID!$L$153:$L$176,D16+1)*INDEX(ID!$K$180:$K$191,$B16) -> 1 | HL16: 36.27758182 | HM16: 36.27758182 | HN16: =ID!K224 -> 0.08466 | HO16: 2.119999575 | HP16: 33.80591563 | HQ16: =ID!I224 -> 1.2 | HT16: 36.27758182 | HU16: 15.94618981 | HV16: 4.592502666 | HW16: =IF(elsalgtype=1,HK16*(GO16)*Elprissalg,IF(elsalgtype=2,ID!J224,"elsalgtype ikke defineret")) -> 0 | IA16: 0 | IB16: 0 | IC16: 0 | ID16: 0 | IE16: 0 | IF16: 0 | IG16: 0 | IH16: 0 | II16: 0 | IJ16: 0 | IK16: 0 | IL16: 0 | IM16: 0 | IN16: 0 | IO16: 0 | IP16: 0 | IQ16: 0 | IR16: 0 | IS16: 0 | IT16: 0 | IU16: 0 | IV16: 0 | IW16: 0 | IX16: 0 | IY16: 0
A17: 7 | B17: 1 | C17: 1 | D17: 6 | E17: 1 | F17: 1 | G17: 0 | H17: 11.31 | I17: 2.9 | J17: =IF(ID!$W$4=2,0,FBR!P17+FBR!Q17) -> 17.12738906 | K17: =IF(ID!$W$4=2,0,FBR!R17+FBR!S17) -> 0 | L17: =ID!H225 -> 1 | M17: =IF(ID!$Y$4=1,J17+K17,IF(ID!$Y$4=2,model!L17,"error")) -> 17.12738906 | O17: 0 | P17: 0 | Q17: 0 | R17: 0 | S17: 0 | T17: 0 | U17: =(1-ID!$AB$64)*O17*PV1W/1000000 -> 0 | V17: =(1-ID!$AB$65)*P17*PV2W/1000000 -> 0 | W17: =(1-ID!$AB$66)*Q17*PV3W/1000000 -> 0 | X17: =(1-ID!$AB$67)*R17*PV4W/1000000 -> 0 | Y17: =(1-ID!$AB$68)*S17*PV5W/1000000 -> 0 | Z17: =(1-ID!$AB$69)*T17*PV6W/1000000 -> 0 | AJ17: =ID!L225 -> 0 | AK17: =IF(ID!$K$70="ja",AJ17,SUM(U17:Z17)) -> 0 | AM17: 6 | AN17: 0 | AO17: 6 | AQ17: 0 | AR17: 17.12738906 | AS17: 5.4 | AT17: 0 | AU17: 0 | AV17: 6 | AW17: 17.12738906 | AX17: 17.12738906 | AY17: 0 | AZ17: 0 | BA17: 6 | BF17: 0 | BG17: 17.12738906 | BH17: -17.12738906 | BI17: 99 | BJ17: 81.87261094 | BK17: 39.6 | BL17: 39.6 | BN17: 39.6 | BO17: 0 | BP17: 6 | BQ17: 6 | BR17: 6 | BS17: 6 | BT17: 6 | BU17: 6 | BV17: 6 | BW17: 6 | BX17: 6 | BY17: 6 | BZ17: 6 | CA17: 6 | CB17: 6 | CC17: 6 | CD17: 6 | CE17: 6 | CF17: 7.92 | CG17: 6 | CH17: 6 | CI17: 6 | CJ17: 6 | CK17: 6 | CL17: 6 | CM17: 6 | CN17: 6 | CO17: 6 | CP17: 6 | CQ17: 6 | CR17: 6 | CS17: 6 | CT17: 6 | CU17: 6 | CV17: 6 | CW17: 15.84 | CX17: 6 | CY17: 6 | CZ17: 6 | DA17: 6 | DB17: 6 | DC17: 6 | DD17: 6 | DE17: 6 | DF17: 6 | DG17: 6 | DH17: 6 | DI17: 6 | DJ17: 6 | DK17: 6 | DL17: 6 | DM17: 6 | DN17: 23.76 | DO17: 12.63261094 | DP17: 6 | DQ17: 6 | DR17: 6 | DS17: 6 | DT17: 6 | DU17: 6 | DV17: 6 | DW17: 6 | DX17: 6 | DY17: 6 | DZ17: 6 | EA17: 6 | EB17: 6 | EC17: 6 | ED17: 6 | EE17: 31.68 | EF17: 20.55261094 | EG17: 6 | EH17: =IF(EE17+$AM17+$BH17+SUM($BH18:$BH19)<Maxbatteri*minpctbatteri,Maxbatteri*minpctbatteri,IF(EE17+$AM17+$BH17+SUM($BH18:$BH19)>Maxbatteri*maxpctbatteri,Maxbatteri*maxpctbatteri,EE17+$AM17+$BH17+SUM($BH18:$BH19))) -> 6 | EI17: 6 | EJ17: 6 | EK17: 6 | EL17: 6 | EM17: 6 | EN17: 6 | EO17: 6 | EP17: 6 | EQ17: 6 | ER17: 6 | ES17: 6 | ET17: 6 | EU17: 6 | EV17: 39.6 | EW17: 28.47261094 | EX17: 9.573423017 | EY17: 6 | EZ17: 6 | FA17: 6 | FB17: 6 | FC17: 6 | FD17: 6 | FE17: 6 | FF17: 6 | FG17: 6 | FH17: 6 | FI17: 6 | FJ17: 6 | FK17: 6 | FL17: 6 | FM17: 6 | FN17: 6 | FO17: 6 | FP17: 12.63261094 | FQ17: 20.55261094 | FR17: 28.47261094 | FS17: 1 | FU17: 39.6 | FV17: 39.6 | FY17: nej | FZ17: nej | GA17: 2.275 | GB17: 0 | GC17: 39.6 | GE17: 0 | GG17: 6 | GH17: 0 | GI17: stiger | GJ17: --- | GK17: --- | GL17: =IF(GJ17="cyclus",ABS((GG17-GG12)*100/Maxbatteri),"-") -> - | GM17: =IF(GK17="cyclus",ABS((GG17-GG12)*100/Maxbatteri),"-") -> - | GN17: 0 | GO17: 0 | GP17: 0 | GQ17: 0 | GR17: 0 | GS17: 0 | GT17: 0 | HI17: 17.12738906 | HJ17: =INDEX(ID!$K$153:$K$176,D17+1)*INDEX(ID!$K$180:$K$191,$B17) -> 1 | HK17: =INDEX(ID!$L$153:$L$176,D17+1)*INDEX(ID!$K$180:$K$191,$B17) -> 1 | HL17: 38.96481011 | HM17: 38.96481011 | HN17: =ID!K225 -> 0.07347 | HO17: 2.108809575 | HP17: 36.11840205 | HQ17: =ID!I225 -> 1.2 | HT17: 38.96481011 | HU17: 17.12738906 | HV17: 4.932688049 | HW17: =IF(elsalgtype=1,HK17*(GO17)*Elprissalg,IF(elsalgtype=2,ID!J225,"elsalgtype ikke defineret")) -> 0 | IA17: 0 | IB17: 0 | IC17: 0 | ID17: 0 | IE17: 0 | IF17: 0 | IG17: 0 | IH17: 0 | II17: 0 | IJ17: 0 | IK17: 0 | IL17: 0 | IM17: 0 | IN17: 0 | IO17: 0 | IP17: 0 | IQ17: 0 | IR17: 0 | IS17: 0 | IT17: 0 | IU17: 0 | IV17: 0 | IW17: 0 | IX17: 0 | IY17: 0
A18: 8 | B18: 1 | C18: 1 | D18: 7 | E18: 1 | F18: 1 | G18: 0 | H18: 11.82 | I18: 2.3 | J18: =IF(ID!$W$4=2,0,FBR!P18+FBR!Q18) -> 18.89918793 | K18: =IF(ID!$W$4=2,0,FBR!R18+FBR!S18) -> 0 | L18: =ID!H226 -> 1 | M18: =IF(ID!$Y$4=1,J18+K18,IF(ID!$Y$4=2,model!L18,"error")) -> 18.89918793 | O18: 0 | P18: 0 | Q18: 0 | R18: 0 | S18: 0 | T18: 0 | U18: =(1-ID!$AB$64)*O18*PV1W/1000000 -> 0 | V18: =(1-ID!$AB$65)*P18*PV2W/1000000 -> 0 | W18: =(1-ID!$AB$66)*Q18*PV3W/1000000 -> 0 | X18: =(1-ID!$AB$67)*R18*PV4W/1000000 -> 0 | Y18: =(1-ID!$AB$68)*S18*PV5W/1000000 -> 0 | Z18: =(1-ID!$AB$69)*T18*PV6W/1000000 -> 0 | AJ18: =ID!L226 -> 0 | AK18: =IF(ID!$K$70="ja",AJ18,SUM(U18:Z18)) -> 0 | AM18: 6 | AN18: 0 | AO18: 6 | AQ18: 0 | AR18: 18.89918793 | AS18: 5.4 | AT18: 0 | AU18: 0 | AV18: 6 | AW18: 18.89918793 | AX18: 18.89918793 | AY18: 0 | AZ18: 0 | BA18: 6 | BF18: 0 | BG18: 18.89918793 | BH18: -18.89918793 | BI18: 99 | BJ18: 80.10081207 | BK18: 39.6 | BL18: 39.6 | BN18: 39.6 | BO18: 0 | BP18: 6 | BQ18: 6 | BR18: 6 | BS18: 6 | BT18: 6 | BU18: 6 | BV18: 6 | BW18: 6 | BX18: 6 | BY18: 6 | BZ18: 6 | CA18: 6 | CB18: 6 | CC18: 6 | CD18: 6 | CE18: 6 | CF18: 7.92 | CG18: 6 | CH18: 6 | CI18: 6 | CJ18: 6 | CK18: 6 | CL18: 6 | CM18: 6 | CN18: 6 | CO18: 6 | CP18: 6 | CQ18: 6 | CR18: 6 | CS18: 6 | CT18: 6 | CU18: 6 | CV18: 6 | CW18: 15.84 | CX18: 6 | CY18: 6 | CZ18: 6 | DA18: 6 | DB18: 6 | DC18: 6 | DD18: 6 | DE18: 6 | DF18: 6 | DG18: 6 | DH18: 6 | DI18: 6 | DJ18: 6 | DK18: 6 | DL18: 6 | DM18: 6 | DN18: 23.76 | DO18: 10.86081207 | DP18: 6 | DQ18: 6 | DR18: 6 | DS18: 6 | DT18: 6 | DU18: 6 | DV18: 6 | DW18: 6 | DX18: 6 | DY18: 6 | DZ18: 6 | EA18: 6 | EB18: 6 | EC18: 6 | ED18: 6 | EE18: 31.68 | EF18: 18.78081207 | EG18: 6 | EH18: 6 | EI18: 6 | EJ18: 6 | EK18: 6 | EL18: 6 | EM18: 6 | EN18: 6 | EO18: 6 | EP18: 6 | EQ18: 6 | ER18: 6 | ES18: 6 | ET18: 6 | EU18: 6 | EV18: 39.6 | EW18: 26.70081207 | EX18: 6.029825281 | EY18: 6 | EZ18: 6 | FA18: 6 | FB18: 6 | FC18: 6 | FD18: 6 | FE18: 6 | FF18: 6 | FG18: 6 | FH18: 6 | FI18: 6 | FJ18: 6 | FK18: 6 | FL18: 6 | FM18: 6 | FN18: 6 | FO18: 6 | FP18: 10.86081207 | FQ18: 18.78081207 | FR18: 26.70081207 | FS18: 1 | FU18: 39.6 | FV18: 39.6 | FY18: nej | FZ18: nej | GA18: 2.275 | GB18: 0 | GC18: 39.6 | GE18: 0 | GG18: 6 | GH18: 0 | GI18: stiger | GJ18: --- | GK18: --- | GL18: - | GM18: - | GN18: 0 | GO18: 0 | GP18: 0 | GQ18: 0 | GR18: 0 | GS18: 0 | GT18: 0 | HI18: 18.89918793 | HJ18: =INDEX(ID!$K$153:$K$176,D18+1)*INDEX(ID!$K$180:$K$191,$B18) -> 1 | HK18: =INDEX(ID!$L$153:$L$176,D18+1)*INDEX(ID!$K$180:$K$191,$B18) -> 1 | HL18: 42.99565253 | HM18: 42.99565253 | HN18: =ID!K226 -> 0.15299 | HO18: 2.188329575 | HP18: 41.35765189 | HQ18: =ID!I226 -> 1.2 | HT18: 42.99565253 | HU18: 18.89918793 | HV18: 5.442966123 | HW18: =IF(elsalgtype=1,HK18*(GO18)*Elprissalg,IF(elsalgtype=2,ID!J226,"elsalgtype ikke defineret")) -> 0 | IA18: 0 | IB18: 0 | IC18: 0 | ID18: 0 | IE18: 0 | IF18: 0 | IG18: 0 | IH18: 0 | II18: 0 | IJ18: 0 | IK18: 0 | IL18: 0 | IM18: 0 | IN18: 0 | IO18: 0 | IP18: 0 | IQ18: 0 | IR18: 0 | IS18: 0 | IT18: 0 | IU18: 0 | IV18: 0 | IW18: 0 | IX18: 0 | IY18: 0
A19: 9 | B19: 1 | C19: 1 | D19: 8 | E19: 1 | F19: 1 | G19: 0 | H19: 13.36 | I19: 2.2 | J19: =IF(ID!$W$4=2,0,FBR!P19+FBR!Q19) -> 20.67098679 | K19: =IF(ID!$W$4=2,0,FBR!R19+FBR!S19) -> 0 | L19: =ID!H227 -> 1 | M19: =IF(ID!$Y$4=1,J19+K19,IF(ID!$Y$4=2,model!L19,"error")) -> 20.67098679 | O19: 0 | P19: 0 | Q19: 0 | R19: 0 | S19: 0 | T19: 0 | U19: =(1-ID!$AB$64)*O19*PV1W/1000000 -> 0 | V19: =(1-ID!$AB$65)*P19*PV2W/1000000 -> 0 | W19: =(1-ID!$AB$66)*Q19*PV3W/1000000 -> 0 | X19: =(1-ID!$AB$67)*R19*PV4W/1000000 -> 0 | Y19: =(1-ID!$AB$68)*S19*PV5W/1000000 -> 0 | Z19: =(1-ID!$AB$69)*T19*PV6W/1000000 -> 0 | AJ19: =ID!L227 -> 0 | AK19: =IF(ID!$K$70="ja",AJ19,SUM(U19:Z19)) -> 0 | AM19: 6 | AN19: 0 | AO19: 6 | AQ19: 0 | AR19: 20.67098679 | AS19: 5.4 | AT19: 0 | AU19: 0 | AV19: 6 | AW19: 20.67098679 | AX19: 20.67098679 | AY19: 0 | AZ19: 0 | BA19: 6 | BF19: 0 | BG19: 20.67098679 | BH19: -20.67098679 | BI19: 99 | BJ19: 78.32901321 | BK19: 39.6 | BL19: 39.6 | BN19: 39.6 | BO19: 0 | BP19: 6 | BQ19: 6 | BR19: 6 | BS19: 6 | BT19: 6 | BU19: 6 | BV19: 6 | BW19: 6 | BX19: 6 | BY19: 6 | BZ19: 6 | CA19: 6 | CB19: 6 | CC19: 6 | CD19: 6 | CE19: 6 | CF19: 7.92 | CG19: 6 | CH19: 6 | CI19: 6 | CJ19: 6 | CK19: 6 | CL19: 6 | CM19: 6 | CN19: 6 | CO19: 6 | CP19: 6 | CQ19: 6 | CR19: 6 | CS19: 6 | CT19: 6 | CU19: 6 | CV19: 6 | CW19: 15.84 | CX19: 6 | CY19: 6 | CZ19: 6 | DA19: 6 | DB19: 6 | DC19: 6 | DD19: 6 | DE19: 6 | DF19: 6 | DG19: 6 | DH19: 6 | DI19: 6 | DJ19: 6 | DK19: 6 | DL19: 6 | DM19: 6 | DN19: 23.76 | DO19: 9.089013206 | DP19: 6 | DQ19: 6 | DR19: 6 | DS19: 6 | DT19: 6 | DU19: 6 | DV19: 6 | DW19: 6 | DX19: 6 | DY19: 6 | DZ19: 6 | EA19: 6 | EB19: 6 | EC19: 6 | ED19: 6 | EE19: 31.68 | EF19: 17.00901321 | EG19: 6 | EH19: 6 | EI19: 6 | EJ19: 6 | EK19: 6 | EL19: 6 | EM19: 6 | EN19: 6 | EO19: 6 | EP19: 6 | EQ19: 6 | ER19: 6 | ES19: 6 | ET19: 6 | EU19: 6 | EV19: 39.6 | EW19: 24.92901321 | EX19: 6 | EY19: 6 | EZ19: 6 | FA19: 6 | FB19: 6 | FC19: 6 | FD19: 6 | FE19: 6 | FF19: 6 | FG19: 6 | FH19: 6 | FI19: 6 | FJ19: 6 | FK19: 6 | FL19: 6 | FM19: 6 | FN19: 6 | FO19: 6 | FP19: 9.089013206 | FQ19: 17.00901321 | FR19: 24.92901321 | FS19: 1 | FU19: 39.6 | FV19: 39.6 | FY19: nej | FZ19: nej | GA19: 2.275 | GB19: 0 | GC19: 39.6 | GE19: 0 | GG19: 6 | GH19: 0 | GI19: stiger | GJ19: --- | GK19: --- | GL19: - | GM19: - | GN19: 0 | GO19: 0 | GP19: 0 | GQ19: 0 | GR19: 0 | GS19: 0 | GT19: 0 | HI19: 20.67098679 | HJ19: =INDEX(ID!$K$153:$K$176,D19+1)*INDEX(ID!$K$180:$K$191,$B19) -> 1 | HK19: =INDEX(ID!$L$153:$L$176,D19+1)*INDEX(ID!$K$180:$K$191,$B19) -> 1 | HL19: 47.02649496 | HM19: 47.02649496 | HN19: =ID!K227 -> 0.20117 | HO19: 2.236509575 | HP19: 46.2308599 | HQ19: =ID!I227 -> 1.2 | HT19: 47.02649496 | HU19: 20.67098679 | HV19: 5.953244197 | HW19: =IF(elsalgtype=1,HK19*(GO19)*Elprissalg,IF(elsalgtype=2,ID!J227,"elsalgtype ikke defineret")) -> 0 | IA19: 0 | IB19: 0 | IC19: 0 | ID19: 0 | IE19: 0 | IF19: 0 | IG19: 0 | IH19: 0 | II19: 0 | IJ19: 0 | IK19: 0 | IL19: 0 | IM19: 0 | IN19: 0 | IO19: 0 | IP19: 0 | IQ19: 0 | IR19: 0 | IS19: 0 | IT19: 0 | IU19: 0 | IV19: 0 | IW19: 0 | IX19: 0 | IY19: 0
A20: 10 | B20: 1 | C20: 1 | D20: 9 | E20: 1 | F20: 1 | G20: 0.19 | H20: 13.88 | I20: 3.2 | J20: =IF(ID!$W$4=2,0,FBR!P20+FBR!Q20) -> 22.44278566 | K20: =IF(ID!$W$4=2,0,FBR!R20+FBR!S20) -> 0 | L20: =ID!H228 -> 1 | M20: =IF(ID!$Y$4=1,J20+K20,IF(ID!$Y$4=2,model!L20,"error")) -> 22.44278566 | O20: 0 | P20: 0 | Q20: 0 | R20: 0 | S20: 0 | T20: 0 | U20: =(1-ID!$AB$64)*O20*PV1W/1000000 -> 0 | V20: =(1-ID!$AB$65)*P20*PV2W/1000000 -> 0 | W20: =(1-ID!$AB$66)*Q20*PV3W/1000000 -> 0 | X20: =(1-ID!$AB$67)*R20*PV4W/1000000 -> 0 | Y20: =(1-ID!$AB$68)*S20*PV5W/1000000 -> 0 | Z20: =(1-ID!$AB$69)*T20*PV6W/1000000 -> 0 | AJ20: =ID!L228 -> 0 | AK20: =IF(ID!$K$70="ja",AJ20,SUM(U20:Z20)) -> 0 | AM20: 6 | AN20: 0 | AO20: 6 | AQ20: 0 | AR20: 22.44278566 | AS20: 5.4 | AT20: 0 | AU20: 0 | AV20: 6 | AW20: 22.44278566 | AX20: 22.44278566 | AY20: 0 | AZ20: 0 | BA20: 6 | BF20: 0 | BG20: 22.44278566 | BH20: -22.44278566 | BI20: 99 | BJ20: 76.55721434 | BK20: 39.6 | BL20: 39.6 | BN20: 39.6 | BO20: 0 | BP20: 6 | BQ20: 6 | BR20: 6 | BS20: 6 | BT20: 6 | BU20: 6 | BV20: 6 | BW20: 6 | BX20: 6 | BY20: 6 | BZ20: 6 | CA20: 6 | CB20: 6 | CC20: 6 | CD20: 6 | CE20: 6 | CF20: 7.92 | CG20: 6 | CH20: 6 | CI20: 6 | CJ20: 6 | CK20: 6 | CL20: 6 | CM20: 6 | CN20: 6 | CO20: 6 | CP20: 6 | CQ20: 6 | CR20: 6 | CS20: 6 | CT20: 6 | CU20: 6 | CV20: 6 | CW20: 15.84 | CX20: 6 | CY20: 6 | CZ20: 6 | DA20: 6 | DB20: 6 | DC20: 6 | DD20: 6 | DE20: 6 | DF20: 6 | DG20: 6 | DH20: 6 | DI20: 6 | DJ20: 6 | DK20: 6 | DL20: 6 | DM20: 6 | DN20: 23.76 | DO20: 7.317214338 | DP20: 6 | DQ20: 6 | DR20: 6 | DS20: 6 | DT20: 6 | DU20: 6 | DV20: 6 | DW20: 6 | DX20: 6 | DY20: 6 | DZ20: 6 | EA20: 6 | EB20: 6 | EC20: 6 | ED20: 6 | EE20: 31.68 | EF20: 15.23721434 | EG20: 6 | EH20: 6 | EI20: 6 | EJ20: 6 | EK20: 6 | EL20: 6 | EM20: 6 | EN20: 6 | EO20: 6 | EP20: 6 | EQ20: 6 | ER20: 6 | ES20: 6 | ET20: 6 | EU20: 6 | EV20: 39.6 | EW20: 23.15721434 | EX20: 6 | EY20: 6 | EZ20: 6 | FA20: 6 | FB20: =IF(EV20+$AM20+$BH20+SUM($BH21:$BH25)<Maxbatteri*minpctbatteri,Maxbatteri*minpctbatteri,IF(EV20+$AM20+$BH20+SUM($BH21:$BH25)>Maxbatteri*maxpctbatteri,Maxbatteri*maxpctbatteri,EV20+$AM20+$BH20+SUM($BH21:$BH25))) -> 6 | FC20: 6 | FD20: 6 | FE20: 6 | FF20: 6 | FG20: 6 | FH20: 6 | FI20: 6 | FJ20: 6 | FK20: 6 | FL20: 6 | FM20: 6 | FN20: 6 | FO20: 6 | FP20: 7.317214338 | FQ20: 15.23721434 | FR20: 23.15721434 | FS20: 1 | FU20: 39.6 | FV20: 39.6 | FY20: nej | FZ20: nej | GA20: 2.275 | GB20: 0 | GC20: 39.6 | GE20: 0 | GG20: 6 | GH20: 0 | GI20: stiger | GJ20: --- | GK20: --- | GL20: - | GM20: - | GN20: 0 | GO20: 0 | GP20: 0 | GQ20: 0 | GR20: 0 | GS20: 0 | GT20: 0 | HI20: 22.44278566 | HJ20: =INDEX(ID!$K$153:$K$176,D20+1)*INDEX(ID!$K$180:$K$191,$B20) -> 1 | HK20: =INDEX(ID!$L$153:$L$176,D20+1)*INDEX(ID!$K$180:$K$191,$B20) -> 1 | HL20: 51.05733738 | HM20: 51.05733738 | HN20: =ID!K228 -> 0.19797 | HO20: 2.233309575 | HP20: 50.12168812 | HQ20: =ID!I228 -> 1.2 | HT20: 51.05733738 | HU20: 22.44278566 | HV20: 6.463522271 | HW20: =IF(elsalgtype=1,HK20*(GO20)*Elprissalg,IF(elsalgtype=2,ID!J228,"elsalgtype ikke defineret")) -> 0 | IA20: 0 | IB20: 0 | IC20: 0 | ID20: 0 | IE20: 0 | IF20: 0 | IG20: 0 | IH20: 0 | II20: 0 | IJ20: 0 | IK20: 0 | IL20: 0 | IM20: 0 | IN20: 0 | IO20: 0 | IP20: 0 | IQ20: 0 | IR20: 0 | IS20: 0 | IT20: 0 | IU20: 0 | IV20: 0 | IW20: 0 | IX20: 0 | IY20: 0
A21: 11 | B21: 1 | C21: 1 | D21: 10 | E21: 1 | F21: 1 | G21: 0.048 | H21: 13.88 | I21: 3.5 | J21: =IF(ID!$W$4=2,0,FBR!P21+FBR!Q21) -> 23.62398491 | K21: =IF(ID!$W$4=2,0,FBR!R21+FBR!S21) -> 0 | L21: =ID!H229 -> 1 | M21: =IF(ID!$Y$4=1,J21+K21,IF(ID!$Y$4=2,model!L21,"error")) -> 23.62398491 | O21: 14.58 | P21: 14.58 | Q21: 14.58 | R21: 16.6 | S21: 16.6 | T21: 16.6 | U21: =(1-ID!$AB$64)*O21*PV1W/1000000 -> 1.93914 | V21: =(1-ID!$AB$65)*P21*PV2W/1000000 -> 0.886464 | W21: =(1-ID!$AB$66)*Q21*PV3W/1000000 -> 0 | X21: =(1-ID!$AB$67)*R21*PV4W/1000000 -> 0 | Y21: =(1-ID!$AB$68)*S21*PV5W/1000000 -> 0 | Z21: =(1-ID!$AB$69)*T21*PV6W/1000000 -> 0 | AJ21: =ID!L229 -> 0 | AK21: =IF(ID!$K$70="ja",AJ21,SUM(U21:Z21)) -> 2.825604 | AM21: 6 | AN21: 0 | AO21: 6 | AQ21: 2.825604 | AR21: 20.79838091 | AS21: 5.4 | AT21: 0 | AU21: 0 | AV21: 6 | AW21: 20.79838091 | AX21: 20.79838091 | AY21: 0 | AZ21: 0 | BA21: 6 | BF21: 2.825604 | BG21: 23.62398491 | BH21: =BF21-BG21 -> -20.79838091 | BI21: 99 | BJ21: 78.20161909 | BK21: 39.6 | BL21: 39.6 | BN21: 39.6 | BO21: 0 | BP21: 6 | BQ21: 6 | BR21: 6 | BS21: 6 | BT21: 6 | BU21: 6 | BV21: 6 | BW21: 6 | BX21: 6 | BY21: 6 | BZ21: 6 | CA21: 6 | CB21: 6 | CC21: 6 | CD21: 6 | CE21: 6 | CF21: 7.92 | CG21: 6 | CH21: 6 | CI21: 6 | CJ21: 6 | CK21: 6 | CL21: 6 | CM21: 6 | CN21: 6 | CO21: 6 | CP21: 6 | CQ21: 6 | CR21: 6 | CS21: 6 | CT21: 6 | CU21: 6 | CV21: 6 | CW21: 15.84 | CX21: 6 | CY21: 6 | CZ21: 6 | DA21: 6 | DB21: 6 | DC21: 6 | DD21: 6 | DE21: 6 | DF21: 6 | DG21: 6 | DH21: 6 | DI21: 6 | DJ21: 6 | DK21: 6 | DL21: 6 | DM21: 6 | DN21: 23.76 | DO21: 8.961619093 | DP21: 6 | DQ21: 6 | DR21: 6 | DS21: 6 | DT21: 6 | DU21: 6 | DV21: 6 | DW21: 6 | DX21: 6 | DY21: 6 | DZ21: 6 | EA21: 6 | EB21: 6 | EC21: 6 | ED21: 6 | EE21: 31.68 | EF21: 16.88161909 | EG21: 6 | EH21: 6 | EI21: 6 | EJ21: 6 | EK21: 6 | EL21: 6 | EM21: 6 | EN21: 6 | EO21: 6 | EP21: 6 | EQ21: 6 | ER21: 6 | ES21: 6 | ET21: 6 | EU21: 6 | EV21: 39.6 | EW21: 24.80161909 | EX21: 6 | EY21: 6 | EZ21: 6 | FA21: 6 | FB21: 6 | FC21: 6 | FD21: 6 | FE21: 6 | FF21: 6 | FG21: 6 | FH21: 6 | FI21: 6 | FJ21: 6 | FK21: 6 | FL21: 6 | FM21: 6 | FN21: 6 | FO21: 6 | FP21: 8.961619093 | FQ21: 16.88161909 | FR21: 24.80161909 | FS21: 1 | FU21: 39.6 | FV21: 39.6 | FY21: nej | FZ21: nej | GA21: 2.275 | GB21: 0 | GC21: 39.6 | GE21: 0 | GG21: 6 | GH21: 0 | GI21: stiger | GJ21: --- | GK21: --- | GL21: - | GM21: - | GN21: 0 | GO21: 0 | GP21: 0 | GQ21: 0 | GR21: 0 | GS21: 0 | GT21: 0.1196074249 | HI21: 20.79838091 | HJ21: =INDEX(ID!$K$153:$K$176,D21+1)*INDEX(ID!$K$180:$K$191,$B21) -> 1 | HK21: =INDEX(ID!$L$153:$L$176,D21+1)*INDEX(ID!$K$180:$K$191,$B21) -> 1 | HL21: 47.31631656 | HM21: 47.31631656 | HN21: =ID!K229 -> 0.2058 | HO21: 2.241139575 | HP21: 46.61207455 | HQ21: =ID!I229 -> 1.2 | HT21: 47.31631656 | HU21: 20.79838091 | HV21: 5.989933701 | HW21: =IF(elsalgtype=1,HK21*(GO21)*Elprissalg,IF(elsalgtype=2,ID!J229,"elsalgtype ikke defineret")) -> 0 | IA21: 166 | IB21: 158.5 | IC21: 145.8 | ID21: 128.7 | IE21: 88.47 | IF21: 166 | IG21: 158.5 | IH21: 145.8 | II21: 128.7 | IJ21: 88.44 | IK21: 166 | IL21: 158.5 | IM21: 145.8 | IN21: 128.7 | IO21: 88.47 | IP21: 166 | IQ21: 158.5 | IR21: 145.8 | IS21: 128.7 | IT21: 88.42 | IU21: 166 | IV21: 158.5 | IW21: 145.8 | IX21: 128.7 | IY21: 88.42
A22: 12 | B22: 1 | C22: 1 | D22: 11 | E22: 1 | F22: 1 | G22: 0.005 | H22: 13.88 | I22: 4 | J22: =IF(ID!$W$4=2,0,FBR!P22+FBR!Q22) -> 24.80518415 | K22: =IF(ID!$W$4=2,0,FBR!R22+FBR!S22) -> 0 | L22: =ID!H230 -> 1 | M22: =IF(ID!$Y$4=1,J22+K22,IF(ID!$Y$4=2,model!L22,"error")) -> 24.80518415 | O22: 14.56 | P22: 14.56 | Q22: 14.56 | R22: 16.59 | S22: 16.59 | T22: 16.59 | U22: =(1-ID!$AB$64)*O22*PV1W/1000000 -> 1.93648 | V22: =(1-ID!$AB$65)*P22*PV2W/1000000 -> 0.885248 | W22: =(1-ID!$AB$66)*Q22*PV3W/1000000 -> 0 | X22: =(1-ID!$AB$67)*R22*PV4W/1000000 -> 0 | Y22: =(1-ID!$AB$68)*S22*PV5W/1000000 -> 0 | Z22: =(1-ID!$AB$69)*T22*PV6W/1000000 -> 0 | AJ22: =ID!L230 -> 0 | AK22: =IF(ID!$K$70="ja",AJ22,SUM(U22:Z22)) -> 2.821728 | AM22: 6 | AN22: 0 | AO22: 6 | AQ22: 2.821728 | AR22: 21.98345615 | AS22: 5.4 | AT22: 0 | AU22: 0 | AV22: 6 | AW22: 21.98345615 | AX22: 21.98345615 | AY22: 0 | AZ22: 0 | BA22: 6 | BF22: 2.821728 | BG22: 24.80518415 | BH22: -21.98345615 | BI22: 99 | BJ22: 77.01654385 | BK22: 39.6 | BL22: 39.6 | BN22: 39.6 | BO22: 0 | BP22: 6 | BQ22: 6 | BR22: 6 | BS22: 6 | BT22: 6 | BU22: 6 | BV22: 6 | BW22: 6 | BX22: 6 | BY22: 6 | BZ22: 6 | CA22: 6 | CB22: 6 | CC22: 6 | CD22: 6 | CE22: 6 | CF22: 7.92 | CG22: 6 | CH22: 6 | CI22: 6 | CJ22: 6 | CK22: 6 | CL22: 6 | CM22: 6 | CN22: 6 | CO22: 6 | CP22: 6 | CQ22: 6 | CR22: 6 | CS22: 6 | CT22: 6 | CU22: 6 | CV22: 6 | CW22: 15.84 | CX22: 6 | CY22: 6 | CZ22: 6 | DA22: 6 | DB22: 6 | DC22: 6 | DD22: 6 | DE22: 6 | DF22: 6 | DG22: 6 | DH22: 6 | DI22: 6 | DJ22: 6 | DK22: 6 | DL22: 6 | DM22: 6 | DN22: 23.76 | DO22: 7.776543848 | DP22: 6 | DQ22: 6 | DR22: 6 | DS22: 6 | DT22: 6 | DU22: 6 | DV22: 6 | DW22: 6 | DX22: 6 | DY22: 6 | DZ22: 6 | EA22: 6 | EB22: 6 | EC22: 6 | ED22: 6 | EE22: 31.68 | EF22: 15.69654385 | EG22: 6 | EH22: 6 | EI22: 6 | EJ22: 6 | EK22: 6 | EL22: 6 | EM22: 6 | EN22: 6 | EO22: 6 | EP22: 6 | EQ22: 6 | ER22: 6 | ES22: 6 | ET22: 6 | EU22: 6 | EV22: 39.6 | EW22: 23.61654385 | EX22: 6 | EY22: 6 | EZ22: 6 | FA22: 6 | FB22: 6 | FC22: 6 | FD22: 6 | FE22: 6 | FF22: 6 | FG22: 6 | FH22: 6 | FI22: 6 | FJ22: 6 | FK22: 6 | FL22: 6 | FM22: 6 | FN22: 6 | FO22: 6 | FP22: 7.776543848 | FQ22: 15.69654385 | FR22: 23.61654385 | FS22: 1 | FU22: 39.6 | FV22: 39.6 | FY22: nej | FZ22: nej | GA22: 2.275 | GB22: 0 | GC22: 39.6 | GE22: 0 | GG22: 6 | GH22: 0 | GI22: stiger | GJ22: --- | GK22: --- | GL22: - | GM22: - | GN22: 0 | GO22: 0 | GP22: 0 | GQ22: 0 | GR22: 0 | GS22: 0 | GT22: 0.1137555756 | HI22: 21.98345615 | HJ22: =INDEX(ID!$K$153:$K$176,D22+1)*INDEX(ID!$K$180:$K$191,$B22) -> 1 | HK22: =INDEX(ID!$L$153:$L$176,D22+1)*INDEX(ID!$K$180:$K$191,$B22) -> 1 | HL22: 50.01236275 | HM22: 50.01236275 | HN22: =ID!K230 -> 0.21207 | HO22: 2.247409575 | HP22: 49.40582986 | HQ22: =ID!I230 -> 1.2 | HT22: 50.01236275 | HU22: 21.98345615 | HV22: 6.331235372 | HW22: =IF(elsalgtype=1,HK22*(GO22)*Elprissalg,IF(elsalgtype=2,ID!J230,"elsalgtype ikke defineret")) -> 0 | IA22: 165.9 | IB22: 158.4 | IC22: 145.7 | ID22: 128.6 | IE22: 88.38 | IF22: 165.9 | IG22: 158.4 | IH22: 145.6 | II22: 128.6 | IJ22: 88.37 | IK22: 165.9 | IL22: 158.4 | IM22: 145.6 | IN22: 128.6 | IO22: 88.38 | IP22: 165.8 | IQ22: 158.4 | IR22: 145.6 | IS22: 128.6 | IT22: 88.35 | IU22: 165.8 | IV22: 158.4 | IW22: 145.6 | IX22: 128.6 | IY22: 88.35
A23: 13 | B23: 1 | C23: 1 | D23: 12 | E23: 1 | F23: 1 | G23: 0 | H23: 14.39 | I23: 4.9 | J23: =IF(ID!$W$4=2,0,FBR!P23+FBR!Q23) -> 25.39578377 | K23: =IF(ID!$W$4=2,0,FBR!R23+FBR!S23) -> 0 | L23: =ID!H231 -> 1 | M23: =IF(ID!$Y$4=1,J23+K23,IF(ID!$Y$4=2,model!L23,"error")) -> 25.39578377 | O23: 24.52 | P23: 24.52 | Q23: 24.52 | R23: 27.74 | S23: 27.74 | T23: 27.74 | U23: =(1-ID!$AB$64)*O23*PV1W/1000000 -> 3.26116 | V23: =(1-ID!$AB$65)*P23*PV2W/1000000 -> 1.490816 | W23: =(1-ID!$AB$66)*Q23*PV3W/1000000 -> 0 | X23: =(1-ID!$AB$67)*R23*PV4W/1000000 -> 0 | Y23: =(1-ID!$AB$68)*S23*PV5W/1000000 -> 0 | Z23: =(1-ID!$AB$69)*T23*PV6W/1000000 -> 0 | AJ23: =ID!L231 -> 0 | AK23: =IF(ID!$K$70="ja",AJ23,SUM(U23:Z23)) -> 4.751976 | AM23: 6 | AN23: 0 | AO23: 6 | AQ23: 4.751976 | AR23: 20.64380777 | AS23: 5.4 | AT23: 0 | AU23: 0 | AV23: 6 | AW23: 20.64380777 | AX23: 20.64380777 | AY23: 0 | AZ23: 0 | BA23: 6 | BF23: 4.751976 | BG23: 25.39578377 | BH23: -20.64380777 | BI23: 99 | BJ23: 78.35619223 | BK23: 39.6 | BL23: 39.6 | BN23: 39.6 | BO23: 0 | BP23: 6 | BQ23: 6 | BR23: 6 | BS23: 6 | BT23: 6 | BU23: 6 | BV23: 6 | BW23: 6 | BX23: 6 | BY23: 6 | BZ23: 6 | CA23: 6 | CB23: 6 | CC23: 6 | CD23: 6 | CE23: 6 | CF23: 7.92 | CG23: 6 | CH23: 6 | CI23: 6 | CJ23: 6 | CK23: 6 | CL23: 6 | CM23: 6 | CN23: 6 | CO23: 6 | CP23: 6 | CQ23: 6 | CR23: 6 | CS23: 6 | CT23: 6 | CU23: 6 | CV23: 6 | CW23: 15.84 | CX23: 6 | CY23: 6 | CZ23: 6 | DA23: 6 | DB23: 6 | DC23: 6 | DD23: 6 | DE23: 6 | DF23: 6 | DG23: 6 | DH23: 6 | DI23: 6 | DJ23: 6 | DK23: 6 | DL23: 6 | DM23: 6 | DN23: 23.76 | DO23: 9.116192225 | DP23: 6 | DQ23: 6 | DR23: 6 | DS23: 6 | DT23: 6 | DU23: 6 | DV23: 6 | DW23: 6 | DX23: 6 | DY23: 6 | DZ23: 6 | EA23: 6 | EB23: 6 | EC23: 6 | ED23: 6 | EE23: 31.68 | EF23: 17.03619223 | EG23: 6 | EH23: 6 | EI23: 6 | EJ23: 6 | EK23: 6 | EL23: 6 | EM23: 6 | EN23: 6 | EO23: 6 | EP23: 6 | EQ23: 6 | ER23: 6 | ES23: 6 | ET23: 6 | EU23: 6 | EV23: 39.6 | EW23: 24.95619223 | EX23: 8.050592827 | EY23: 6 | EZ23: 6 | FA23: 6 | FB23: 6 | FC23: 6 | FD23: 6 | FE23: 6 | FF23: 6 | FG23: 6 | FH23: 6 | FI23: 6 | FJ23: 6 | FK23: 6 | FL23: 6 | FM23: 6 | FN23: 6 | FO23: 6 | FP23: 9.116192225 | FQ23: 17.03619223 | FR23: 24.95619223 | FS23: 1 | FU23: 39.6 | FV23: 39.6 | FY23: nej | FZ23: nej | GA23: 2.275 | GB23: 0 | GC23: 39.6 | GE23: 0 | GG23: 6 | GH23: 0 | GI23: stiger | GJ23: --- | GK23: --- | GL23: - | GM23: - | GN23: 0 | GO23: 0 | GP23: 0 | GQ23: 0 | GR23: 0 | GS23: 0 | GT23: 0.1871167294 | HI23: 20.64380777 | HJ23: =INDEX(ID!$K$153:$K$176,D23+1)*INDEX(ID!$K$180:$K$191,$B23) -> 1 | HK23: =INDEX(ID!$L$153:$L$176,D23+1)*INDEX(ID!$K$180:$K$191,$B23) -> 1 | HL23: 46.96466269 | HM23: 46.96466269 | HN23: =ID!K231 -> 0.21393 | HO23: 2.249269575 | HP23: 46.43348875 | HQ23: =ID!I231 -> 1.2 | HT23: 46.96466269 | HU23: 20.64380777 | HV23: 5.945416639 | HW23: =IF(elsalgtype=1,HK23*(GO23)*Elprissalg,IF(elsalgtype=2,ID!J231,"elsalgtype ikke defineret")) -> 0 | IA23: 277.4 | IB23: 265.5 | IC23: 245.2 | ID23: 218 | IE23: 153.6 | IF23: 277.4 | IG23: 265.5 | IH23: 245.2 | II23: 218 | IJ23: 153.6 | IK23: 277.4 | IL23: 265.5 | IM23: 245.2 | IN23: 218 | IO23: 153.6 | IP23: 277.4 | IQ23: 265.5 | IR23: 245.2 | IS23: 218 | IT23: 153.6 | IU23: 277.4 | IV23: 265.5 | IW23: 245.2 | IX23: 218 | IY23: 153.6
A24: 14 | B24: 1 | C24: 1 | D24: 13 | E24: 1 | F24: 1 | G24: 0.006 | H24: 14.91 | I24: 6 | J24: =IF(ID!$W$4=2,0,FBR!P24+FBR!Q24) -> 25.9863834 | K24: =IF(ID!$W$4=2,0,FBR!R24+FBR!S24) -> 0 | L24: =ID!H232 -> 1 | M24: =IF(ID!$Y$4=1,J24+K24,IF(ID!$Y$4=2,model!L24,"error")) -> 25.9863834 | O24: 46.16 | P24: 48.38 | Q24: 45.37 | R24: 51.33 | S24: 51.33 | T24: 51.33 | U24: =(1-ID!$AB$64)*O24*PV1W/1000000 -> 6.13928 | V24: =(1-ID!$AB$65)*P24*PV2W/1000000 -> 2.941504 | W24: =(1-ID!$AB$66)*Q24*PV3W/1000000 -> 0 | X24: =(1-ID!$AB$67)*R24*PV4W/1000000 -> 0 | Y24: =(1-ID!$AB$68)*S24*PV5W/1000000 -> 0 | Z24: =(1-ID!$AB$69)*T24*PV6W/1000000 -> 0 | AJ24: =ID!L232 -> 0 | AK24: =IF(ID!$K$70="ja",AJ24,SUM(U24:Z24)) -> 9.080784 | AM24: 6 | AN24: 0 | AO24: 6 | AQ24: 9.080784 | AR24: 16.9055994 | AS24: 5.4 | AT24: 0 | AU24: 0 | AV24: 6 | AW24: 16.9055994 | AX24: 16.9055994 | AY24: 0 | AZ24: 0 | BA24: 6 | BF24: 9.080784 | BG24: 25.9863834 | BH24: -16.9055994 | BI24: 99 | BJ24: 82.0944006 | BK24: 39.6 | BL24: 39.6 | BN24: 39.6 | BO24: 0 | BP24: 6 | BQ24: 6 | BR24: 6 | BS24: 6 | BT24: 6 | BU24: 6 | BV24: 6 | BW24: 6 | BX24: 6 | BY24: 6 | BZ24: 6 | CA24: 6 | CB24: 6 | CC24: 6 | CD24: 6 | CE24: 6 | CF24: 7.92 | CG24: 6 | CH24: 6 | CI24: 6 | CJ24: 6 | CK24: 6 | CL24: 6 | CM24: 6 | CN24: 6 | CO24: 6 | CP24: 6 | CQ24: 6 | CR24: 6 | CS24: 6 | CT24: 6 | CU24: 6 | CV24: 6 | CW24: 15.84 | CX24: 6 | CY24: 6 | CZ24: 6 | DA24: 6 | DB24: 6 | DC24: 6 | DD24: 6 | DE24: 6 | DF24: 6 | DG24: 6 | DH24: 6 | DI24: 6 | DJ24: 6 | DK24: 6 | DL24: 6 | DM24: 6 | DN24: 23.76 | DO24: 12.8544006 | DP24: 6 | DQ24: 6 | DR24: 6 | DS24: 6 | DT24: 6 | DU24: 6 | DV24: 6 | DW24: 6 | DX24: 6 | DY24: 6 | DZ24: 6 | EA24: 6 | EB24: 6 | EC24: 6 | ED24: 6 | EE24: 31.68 | EF24: 20.7744006 | EG24: 6 | EH24: 6 | EI24: 6 | EJ24: 6 | EK24: 6 | EL24: 6 | EM24: 6 | EN24: 6 | EO24: 6 | EP24: 6 | EQ24: 6 | ER24: 6 | ES24: 6 | ET24: 6 | EU24: 6 | EV24: 39.6 | EW24: 28.6944006 | EX24: 7.271350337 | EY24: 6 | EZ24: 6 | FA24: 6 | FB24: 6 | FC24: 6 | FD24: 6 | FE24: 6 | FF24: 6 | FG24: 6 | FH24: 6 | FI24: 6 | FJ24: 6 | FK24: 6 | FL24: 6 | FM24: 6 | FN24: 6 | FO24: 6 | FP24: 12.8544006 | FQ24: 20.7744006 | FR24: 28.6944006 | FS24: 1 | FU24: 39.6 | FV24: 39.6 | FY24: nej | FZ24: nej | GA24: 2.275 | GB24: 0 | GC24: 39.6 | GE24: 0 | GG24: 6 | GH24: 0 | GI24: stiger | GJ24: --- | GK24: --- | GL24: - | GM24: - | GN24: 0 | GO24: 0 | GP24: 0 | GQ24: 0 | GR24: 0 | GS24: 0 | GT24: 0.3494439323 | HI24: 16.9055994 | HJ24: =INDEX(ID!$K$153:$K$176,D24+1)*INDEX(ID!$K$180:$K$191,$B24) -> 1 | HK24: =INDEX(ID!$L$153:$L$176,D24+1)*INDEX(ID!$K$180:$K$191,$B24) -> 1 | HL24: 38.46023863 | HM24: 38.46023863 | HN24: =ID!K232 -> 0.21497 | HO24: 2.250309575 | HP24: 38.0428322 | HQ24: =ID!I232 -> 1.2 | HT24: 38.46023863 | HU24: 16.9055994 | HV24: 4.868812627 | HW24: =IF(elsalgtype=1,HK24*(GO24)*Elprissalg,IF(elsalgtype=2,ID!J232,"elsalgtype ikke defineret")) -> 0 | IA24: 513.3 | IB24: 508.8 | IC24: 487.1 | ID24: 449.4 | IE24: 342.9 | IF24: 512.2 | IG24: 506.5 | IH24: 483.8 | II24: 445.5 | IJ24: 338.4 | IK24: 504 | IL24: 490.8 | IM24: 461.6 | IN24: 418.3 | IO24: 307.5 | IP24: 501.1 | IQ24: 485.2 | IR24: 453.7 | IS24: 408.8 | IT24: 296.6 | IU24: 501.1 | IV24: 485.2 | IW24: 453.7 | IX24: 408.8 | IY24: 296.6
A25: 15 | B25: 1 | C25: 1 | D25: 14 | E25: 1 | F25: 1 | G25: 0.028 | H25: 15.42 | I25: 6.4 | J25: =IF(ID!$W$4=2,0,FBR!P25+FBR!Q25) -> 27.75818227 | K25: =IF(ID!$W$4=2,0,FBR!R25+FBR!S25) -> 0 | L25: =ID!H233 -> 1 | M25: =IF(ID!$Y$4=1,J25+K25,IF(ID!$Y$4=2,model!L25,"error")) -> 27.75818227 | O25: 30.86 | P25: 36.69 | Q25: 33.09 | R25: 35.46 | S25: 35.46 | T25: 35.46 | U25: =(1-ID!$AB$64)*O25*PV1W/1000000 -> 4.10438 | V25: =(1-ID!$AB$65)*P25*PV2W/1000000 -> 2.230752 | W25: =(1-ID!$AB$66)*Q25*PV3W/1000000 -> 0 | X25: =(1-ID!$AB$67)*R25*PV4W/1000000 -> 0 | Y25: =(1-ID!$AB$68)*S25*PV5W/1000000 -> 0 | Z25: =(1-ID!$AB$69)*T25*PV6W/1000000 -> 0 | AJ25: =ID!L233 -> 0 | AK25: =IF(ID!$K$70="ja",AJ25,SUM(U25:Z25)) -> 6.335132 | AM25: 6 | AN25: 0 | AO25: 6 | AQ25: 6.335132 | AR25: 21.42305027 | AS25: 5.4 | AT25: 0 | AU25: 0 | AV25: 6 | AW25: 21.42305027 | AX25: 21.42305027 | AY25: 0 | AZ25: 0 | BA25: 6 | BF25: 6.335132 | BG25: 27.75818227 | BH25: -21.42305027 | BI25: 99 | BJ25: 77.57694973 | BK25: 39.6 | BL25: 39.6 | BN25: 39.6 | BO25: 0 | BP25: 6 | BQ25: 6 | BR25: 6 | BS25: 6 | BT25: 6 | BU25: 6 | BV25: 6 | BW25: 6 | BX25: 6 | BY25: 6 | BZ25: 6 | CA25: 6 | CB25: 6 | CC25: 6 | CD25: 6 | CE25: 6 | CF25: 7.92 | CG25: 6 | CH25: 6 | CI25: 6 | CJ25: 6 | CK25: 6 | CL25: 6 | CM25: 6 | CN25: 6 | CO25: 6 | CP25: 6 | CQ25: 6 | CR25: 6 | CS25: 6 | CT25: 6 | CU25: 6 | CV25: 6 | CW25: 15.84 | CX25: 6 | CY25: 6 | CZ25: 6 | DA25: 6 | DB25: 6 | DC25: 6 | DD25: 6 | DE25: 6 | DF25: 6 | DG25: 6 | DH25: 6 | DI25: 6 | DJ25: 6 | DK25: 6 | DL25: 6 | DM25: 6 | DN25: 23.76 | DO25: 8.336949734 | DP25: 6 | DQ25: 6 | DR25: 6 | DS25: 6 | DT25: 6 | DU25: 6 | DV25: 6 | DW25: 6 | DX25: 6 | DY25: 6 | DZ25: 6 | EA25: 6 | EB25: 6 | EC25: 6 | ED25: 6 | EE25: 31.68 | EF25: 16.25694973 | EG25: 6 | EH25: 6 | EI25: 6 | EJ25: 6 | EK25: 6 | EL25: 6 | EM25: 6 | EN25: 6 | EO25: 6 | EP25: 6 | EQ25: 6 | ER25: 6 | ES25: 6 | ET25: 6 | EU25: 6 | EV25: 39.6 | EW25: 24.17694973 | EX25: 6 | EY25: 6 | EZ25: 6 | FA25: 6 | FB25: 6 | FC25: 6 | FD25: 6 | FE25: 6 | FF25: 6 | FG25: 6 | FH25: 6 | FI25: 6 | FJ25: 6 | FK25: 6 | FL25: 6 | FM25: 6 | FN25: 6 | FO25: 6 | FP25: 8.336949734 | FQ25: 16.25694973 | FR25: 24.17694973 | FS25: 1 | FU25: 39.6 | FV25: 39.6 | FY25: nej | FZ25: nej | GA25: 2.275 | GB25: 0 | GC25: 39.6 | GE25: 0 | GG25: 6 | GH25: 0 | GI25: stiger | GJ25: --- | GK25: --- | GL25: - | GM25: - | GN25: 0 | GO25: 0 | GP25: 0 | GQ25: 0 | GR25: 0 | GS25: 0 | GT25: 0.2282257512 | HI25: 21.42305027 | HJ25: =INDEX(ID!$K$153:$K$176,D25+1)*INDEX(ID!$K$180:$K$191,$B25) -> 1 | HK25: =INDEX(ID!$L$153:$L$176,D25+1)*INDEX(ID!$K$180:$K$191,$B25) -> 1 | HL25: 48.73743935 | HM25: 48.73743935 | HN25: =ID!K233 -> 0.21676 | HO25: 2.252099575 | HP25: 48.24684241 | HQ25: =ID!I233 -> 1.2 | HT25: 48.73743935 | HU25: 21.42305027 | HV25: 6.169838476 | HW25: =IF(elsalgtype=1,HK25*(GO25)*Elprissalg,IF(elsalgtype=2,ID!J233,"elsalgtype ikke defineret")) -> 0 | IA25: 354.6 | IB25: 362.9 | IC25: 357.6 | ID25: 338.8 | IE25: 270.4 | IF25: 358 | IG25: 369.5 | IH25: 366.9 | II25: 350.1 | IJ25: 283.4 | IK25: 336.7 | IL25: 328.2 | IM25: 308.6 | IN25: 279 | IO25: 202.4 | IP25: 344.9 | IQ25: 344.1 | IR25: 330.9 | IS25: 306.2 | IT25: 233.3 | IU25: 344.9 | IV25: 344.1 | IW25: 330.9 | IX25: 306.2 | IY25: 233.3
A26: 16 | B26: 1 | C26: 1 | D26: 15 | E26: 1 | F26: 1 | G26: 0.027 | H26: 16.45 | I26: 7.1 | J26: =IF(ID!$W$4=2,0,FBR!P26+FBR!Q26) -> 29.52998113 | K26: =IF(ID!$W$4=2,0,FBR!R26+FBR!S26) -> 0 | L26: =ID!H234 -> 1 | M26: =IF(ID!$Y$4=1,J26+K26,IF(ID!$Y$4=2,model!L26,"error")) -> 29.52998113 | O26: 0 | P26: 0 | Q26: 0 | R26: 0 | S26: 0 | T26: 0 | U26: =(1-ID!$AB$64)*O26*PV1W/1000000 -> 0 | V26: =(1-ID!$AB$65)*P26*PV2W/1000000 -> 0 | W26: =(1-ID!$AB$66)*Q26*PV3W/1000000 -> 0 | X26: =(1-ID!$AB$67)*R26*PV4W/1000000 -> 0 | Y26: =(1-ID!$AB$68)*S26*PV5W/1000000 -> 0 | Z26: =(1-ID!$AB$69)*T26*PV6W/1000000 -> 0 | AJ26: =ID!L234 -> 0 | AK26: =IF(ID!$K$70="ja",AJ26,SUM(U26:Z26)) -> 0 | AM26: 6 | AN26: 0 | AO26: 6 | AQ26: 0 | AR26: 29.52998113 | AS26: 5.4 | AT26: 0 | AU26: 0 | AV26: 6 | AW26: 29.52998113 | AX26: 29.52998113 | AY26: 0 | AZ26: 0 | BA26: 6 | BF26: 0 | BG26: 29.52998113 | BH26: -29.52998113 | BI26: 99 | BJ26: 69.47001887 | BK26: 39.6 | BL26: 39.6 | BN26: 39.6 | BO26: 0 | BP26: 6 | BQ26: 6 | BR26: 6 | BS26: 6 | BT26: 6 | BU26: 6 | BV26: 6 | BW26: 6 | BX26: 6 | BY26: 6 | BZ26: 6 | CA26: 6 | CB26: 6 | CC26: 6 | CD26: 6 | CE26: 6 | CF26: 7.92 | CG26: 6 | CH26: 6 | CI26: 6 | CJ26: 6 | CK26: 6 | CL26: 6 | CM26: 6 | CN26: 6 | CO26: 6 | CP26: 6 | CQ26: 6 | CR26: 6 | CS26: 6 | CT26: 6 | CU26: 6 | CV26: 6 | CW26: 15.84 | CX26: 6 | CY26: 6 | CZ26: 6 | DA26: 6 | DB26: 6 | DC26: 6 | DD26: 6 | DE26: 6 | DF26: 6 | DG26: 6 | DH26: 6 | DI26: 6 | DJ26: 6 | DK26: 6 | DL26: 6 | DM26: 6 | DN26: 23.76 | DO26: 6 | DP26: 6 | DQ26: 6 | DR26: 6 | DS26: 6 | DT26: 6 | DU26: 6 | DV26: 6 | DW26: 6 | DX26: 6 | DY26: 6 | DZ26: 6 | EA26: 6 | EB26: 6 | EC26: 6 | ED26: 6 | EE26: 31.68 | EF26: 8.150018866 | EG26: 6 | EH26: 6 | EI26: 6 | EJ26: 6 | EK26: 6 | EL26: 6 | EM26: 6 | EN26: 6 | EO26: 6 | EP26: 6 | EQ26: 6 | ER26: 6 | ES26: 6 | ET26: 6 | EU26: 6 | EV26: 39.6 | EW26: 16.07001887 | EX26: 6 | EY26: 6 | EZ26: 6 | FA26: 6 | FB26: 6 | FC26: 6 | FD26: 6 | FE26: 6 | FF26: 6 | FG26: 6 | FH26: 6 | FI26: 6 | FJ26: 6 | FK26: 6 | FL26: 6 | FM26: 6 | FN26: 6 | FO26: 6 | FP26: 6 | FQ26: 8.150018866 | FR26: 16.07001887 | FS26: 1 | FU26: 39.6 | FV26: 39.6 | FY26: nej | FZ26: nej | GA26: 2.275 | GB26: 0 | GC26: 39.6 | GE26: 0 | GG26: 6 | GH26: 0 | GI26: stiger | GJ26: --- | GK26: --- | GL26: - | GM26: - | GN26: 0 | GO26: 0 | GP26: 0 | GQ26: 0 | GR26: 0 | GS26: 0 | GT26: 0 | HI26: 29.52998113 | HJ26: =INDEX(ID!$K$153:$K$176,D26+1)*INDEX(ID!$K$180:$K$191,$B26) -> 1 | HK26: =INDEX(ID!$L$153:$L$176,D26+1)*INDEX(ID!$K$180:$K$191,$B26) -> 1 | HL26: 67.18070708 | HM26: 67.18070708 | HN26: =ID!K234 -> 0.21923 | HO26: 2.254569575 | HP26: 66.57739702 | HQ26: =ID!I234 -> 1.2 | HT26: 67.18070708 | HU26: 29.52998113 | HV26: 8.504634566 | HW26: =IF(elsalgtype=1,HK26*(GO26)*Elprissalg,IF(elsalgtype=2,ID!J234,"elsalgtype ikke defineret")) -> 0 | IA26: 0 | IB26: 0 | IC26: 0 | ID26: 0 | IE26: 0 | IF26: 0 | IG26: 0 | IH26: 0 | II26: 0 | IJ26: 0 | IK26: 0 | IL26: 0 | IM26: 0 | IN26: 0 | IO26: 0 | IP26: 0 | IQ26: 0 | IR26: 0 | IS26: 0 | IT26: 0 | IU26: 0 | IV26: 0 | IW26: 0 | IX26: 0 | IY26: 0
A27: 17 | B27: 1 | C27: 1 | D27: 16 | E27: 1 | F27: 1 | G27: 0 | H27: 14.91 | I27: 7.5 | J27: =IF(ID!$W$4=2,0,FBR!P27+FBR!Q27) -> 31.30178 | K27: =IF(ID!$W$4=2,0,FBR!R27+FBR!S27) -> 0 | L27: =ID!H235 -> 1 | M27: =IF(ID!$Y$4=1,J27+K27,IF(ID!$Y$4=2,model!L27,"error")) -> 31.30178 | O27: 0 | P27: 0 | Q27: 0 | R27: 0 | S27: 0 | T27: 0 | U27: =(1-ID!$AB$64)*O27*PV1W/1000000 -> 0 | V27: =(1-ID!$AB$65)*P27*PV2W/1000000 -> 0 | W27: =(1-ID!$AB$66)*Q27*PV3W/1000000 -> 0 | X27: =(1-ID!$AB$67)*R27*PV4W/1000000 -> 0 | Y27: =(1-ID!$AB$68)*S27*PV5W/1000000 -> 0 | Z27: =(1-ID!$AB$69)*T27*PV6W/1000000 -> 0 | AJ27: =ID!L235 -> 0 | AK27: =IF(ID!$K$70="ja",AJ27,SUM(U27:Z27)) -> 0 | AM27: 6 | AN27: 0 | AO27: 6 | AQ27: 0 | AR27: 31.30178 | AS27: 5.4 | AT27: 0 | AU27: 0 | AV27: 6 | AW27: 31.30178 | AX27: 31.30178 | AY27: 0 | AZ27: 0 | BA27: 6 | BF27: 0 | BG27: 31.30178 | BH27: -31.30178 | BI27: 99 | BJ27: 67.69822 | BK27: 39.6 | BL27: 39.6 | BN27: 39.6 | BO27: 0 | BP27: 6 | BQ27: 6 | BR27: 6 | BS27: 6 | BT27: 6 | BU27: 6 | BV27: 6 | BW27: 6 | BX27: 6 | BY27: 6 | BZ27: 6 | CA27: 6 | CB27: 6 | CC27: 6 | CD27: 6 | CE27: 6 | CF27: 7.92 | CG27: 6 | CH27: 6 | CI27: 6 | CJ27: 6 | CK27: 6 | CL27: 6 | CM27: 6 | CN27: 6 | CO27: 6 | CP27: 6 | CQ27: 6 | CR27: 6 | CS27: 6 | CT27: 6 | CU27: 6 | CV27: 6 | CW27: 15.84 | CX27: 6 | CY27: 6 | CZ27: 6 | DA27: 6 | DB27: 6 | DC27: 6 | DD27: 6 | DE27: 6 | DF27: 6 | DG27: 6 | DH27: 6 | DI27: 6 | DJ27: 6 | DK27: 6 | DL27: 6 | DM27: 6 | DN27: 23.76 | DO27: 6 | DP27: 6 | DQ27: 6 | DR27: 6 | DS27: 6 | DT27: 6 | DU27: 6 | DV27: 6 | DW27: 6 | DX27: 6 | DY27: 6 | DZ27: 6 | EA27: 6 | EB27: 6 | EC27: 6 | ED27: 6 | EE27: 31.68 | EF27: 6.378219998 | EG27: 6 | EH27: 6 | EI27: 6 | EJ27: 6 | EK27: 6 | EL27: 6 | EM27: 6 | EN27: 6 | EO27: 6 | EP27: 6 | EQ27: 6 | ER27: 6 | ES27: 6 | ET27: 6 | EU27: 6 | EV27: 39.6 | EW27: 14.29822 | EX27: 6 | EY27: 6 | EZ27: 6 | FA27: 6 | FB27: 6 | FC27: 6 | FD27: 6 | FE27: 6 | FF27: 6 | FG27: 6 | FH27: 6 | FI27: 6 | FJ27: 6 | FK27: 6 | FL27: 6 | FM27: 6 | FN27: 6 | FO27: 6 | FP27: 6 | FQ27: 6.378219998 | FR27: 14.29822 | FS27: 1 | FU27: 39.6 | FV27: 39.6 | FY27: nej | FZ27: nej | GA27: 2.275 | GB27: 0 | GC27: 39.6 | GE27: 0 | GG27: 6 | GH27: 0 | GI27: stiger | GJ27: --- | GK27: --- | GL27: - | GM27: - | GN27: 0 | GO27: 0 | GP27: 0 | GQ27: 0 | GR27: 0 | GS27: 0 | GT27: 0 | HI27: 31.30178 | HJ27: =INDEX(ID!$K$153:$K$176,D27+1)*INDEX(ID!$K$180:$K$191,$B27) -> 1 | HK27: =INDEX(ID!$L$153:$L$176,D27+1)*INDEX(ID!$K$180:$K$191,$B27) -> 1 | HL27: 71.2115495 | HM27: 71.2115495 | HN27: =ID!K235 -> 0.23414 | HO27: 2.269479575 | HP27: 71.03875039 | HQ27: =ID!I235 -> 1.2 | HT27: 71.2115495 | HU27: 31.30178 | HV27: 9.01491264 | HW27: =IF(elsalgtype=1,HK27*(GO27)*Elprissalg,IF(elsalgtype=2,ID!J235,"elsalgtype ikke defineret")) -> 0 | IA27: 0 | IB27: 0 | IC27: 0 | ID27: 0 | IE27: 0 | IF27: 0 | IG27: 0 | IH27: 0 | II27: 0 | IJ27: 0 | IK27: 0 | IL27: 0 | IM27: 0 | IN27: 0 | IO27: 0 | IP27: 0 | IQ27: 0 | IR27: 0 | IS27: 0 | IT27: 0 | IU27: 0 | IV27: 0 | IW27: 0 | IX27: 0 | IY27: 0
A28: 18 | B28: 1 | C28: 1 | D28: 17 | E28: 1 | F28: 1 | G28: 0 | H28: 13.88 | I28: 6.9 | J28: =IF(ID!$W$4=2,0,FBR!P28+FBR!Q28) -> 36.61717661 | K28: =IF(ID!$W$4=2,0,FBR!R28+FBR!S28) -> 0 | L28: =ID!H236 -> 1 | M28: =IF(ID!$Y$4=1,J28+K28,IF(ID!$Y$4=2,model!L28,"error")) -> 36.61717661 | O28: 0 | P28: 0 | Q28: 0 | R28: 0 | S28: 0 | T28: 0 | U28: =(1-ID!$AB$64)*O28*PV1W/1000000 -> 0 | V28: =(1-ID!$AB$65)*P28*PV2W/1000000 -> 0 | W28: =(1-ID!$AB$66)*Q28*PV3W/1000000 -> 0 | X28: =(1-ID!$AB$67)*R28*PV4W/1000000 -> 0 | Y28: =(1-ID!$AB$68)*S28*PV5W/1000000 -> 0 | Z28: =(1-ID!$AB$69)*T28*PV6W/1000000 -> 0 | AJ28: =ID!L236 -> 0 | AK28: =IF(ID!$K$70="ja",AJ28,SUM(U28:Z28)) -> 0 | AM28: 6 | AN28: 0 | AO28: 6 | AQ28: 0 | AR28: 36.61717661 | AS28: 5.4 | AT28: 0 | AU28: 0 | AV28: 6 | AW28: 36.61717661 | AX28: 36.61717661 | AY28: 0 | AZ28: 0 | BA28: 6 | BF28: 0 | BG28: 36.61717661 | BH28: -36.61717661 | BI28: 99 | BJ28: 62.38282339 | BK28: 39.6 | BL28: 39.6 | BN28: 39.6 | BO28: 0 | BP28: 6 | BQ28: 6 | BR28: 6 | BS28: 6 | BT28: 6 | BU28: 6 | BV28: 6 | BW28: 6 | BX28: 6 | BY28: 6 | BZ28: 6 | CA28: 6 | CB28: 6 | CC28: 6 | CD28: 6 | CE28: 6 | CF28: 7.92 | CG28: 6 | CH28: 6 | CI28: 6 | CJ28: 6 | CK28: 6 | CL28: 6 | CM28: 6 | CN28: 6 | CO28: 6 | CP28: 6 | CQ28: 6 | CR28: 6 | CS28: 6 | CT28: 6 | CU28: 6 | CV28: 6 | CW28: 15.84 | CX28: 6 | CY28: 6 | CZ28: 6 | DA28: 6 | DB28: 6 | DC28: 6 | DD28: 6 | DE28: 6 | DF28: 6 | DG28: 6 | DH28: 6 | DI28: 6 | DJ28: 6 | DK28: 6 | DL28: 6 | DM28: 6 | DN28: 23.76 | DO28: 6 | DP28: 6 | DQ28: 6 | DR28: 6 | DS28: 6 | DT28: 6 | DU28: 6 | DV28: 6 | DW28: 6 | DX28: 6 | DY28: 6 | DZ28: 6 | EA28: 6 | EB28: 6 | EC28: 6 | ED28: 6 | EE28: 31.68 | EF28: 6 | EG28: 6 | EH28: 6 | EI28: 6 | EJ28: 6 | EK28: 6 | EL28: 6 | EM28: 6 | EN28: 6 | EO28: 6 | EP28: 6 | EQ28: 6 | ER28: 6 | ES28: 6 | ET28: 6 | EU28: 6 | EV28: 39.6 | EW28: 8.982823394 | EX28: 6 | EY28: 6 | EZ28: 6 | FA28: 6 | FB28: 6 | FC28: 6 | FD28: 6 | FE28: 6 | FF28: 6 | FG28: 6 | FH28: 6 | FI28: 6 | FJ28: 6 | FK28: 6 | FL28: 6 | FM28: 6 | FN28: 6 | FO28: 6 | FP28: 6 | FQ28: 6 | FR28: 8.982823394 | FS28: 1 | FU28: 39.6 | FV28: 39.6 | FY28: nej | FZ28: nej | GA28: 2.275 | GB28: 0 | GC28: 39.6 | GE28: 0 | GG28: 6 | GH28: 0 | GI28: stiger | GJ28: --- | GK28: --- | GL28: - | GM28: - | GN28: 0 | GO28: 0 | GP28: 0 | GQ28: 0 | GR28: 0 | GS28: 0 | GT28: 0 | HI28: 36.61717661 | HJ28: =INDEX(ID!$K$153:$K$176,D28+1)*INDEX(ID!$K$180:$K$191,$B28) -> 1 | HK28: =INDEX(ID!$L$153:$L$176,D28+1)*INDEX(ID!$K$180:$K$191,$B28) -> 1 | HL28: 83.30407678 | HM28: 83.30407678 | HN28: =ID!K236 -> 0.24526 | HO28: 2.280599575 | HP28: 83.50911742 | HQ28: =ID!I236 -> 1.2 | HT28: 83.30407678 | HU28: 36.61717661 | HV28: 10.54574686 | HW28: =IF(elsalgtype=1,HK28*(GO28)*Elprissalg,IF(elsalgtype=2,ID!J236,"elsalgtype ikke defineret")) -> 0 | IA28: 0 | IB28: 0 | IC28: 0 | ID28: 0 | IE28: 0 | IF28: 0 | IG28: 0 | IH28: 0 | II28: 0 | IJ28: 0 | IK28: 0 | IL28: 0 | IM28: 0 | IN28: 0 | IO28: 0 | IP28: 0 | IQ28: 0 | IR28: 0 | IS28: 0 | IT28: 0 | IU28: 0 | IV28: 0 | IW28: 0 | IX28: 0 | IY28: 0
A29: 19 | B29: 1 | C29: 1 | D29: 18 | E29: 1 | F29: 1 | G29: 0 | H29: 12.85 | I29: 7.3 | J29: =IF(ID!$W$4=2,0,FBR!P29+FBR!Q29) -> 38.38897547 | K29: =IF(ID!$W$4=2,0,FBR!R29+FBR!S29) -> 0 | L29: =ID!H237 -> 1 | M29: =IF(ID!$Y$4=1,J29+K29,IF(ID!$Y$4=2,model!L29,"error")) -> 38.38897547 | O29: 0 | P29: 0 | Q29: 0 | R29: 0 | S29: 0 | T29: 0 | U29: =(1-ID!$AB$64)*O29*PV1W/1000000 -> 0 | V29: =(1-ID!$AB$65)*P29*PV2W/1000000 -> 0 | W29: =(1-ID!$AB$66)*Q29*PV3W/1000000 -> 0 | X29: =(1-ID!$AB$67)*R29*PV4W/1000000 -> 0 | Y29: =(1-ID!$AB$68)*S29*PV5W/1000000 -> 0 | Z29: =(1-ID!$AB$69)*T29*PV6W/1000000 -> 0 | AJ29: =ID!L237 -> 0 | AK29: =IF(ID!$K$70="ja",AJ29,SUM(U29:Z29)) -> 0 | AM29: 6 | AN29: 0 | AO29: 6 | AQ29: 0 | AR29: 38.38897547 | AS29: 5.4 | AT29: 0 | AU29: 0 | AV29: 6 | AW29: 38.38897547 | AX29: 38.38897547 | AY29: 0 | AZ29: 0 | BA29: 6 | BF29: 0 | BG29: 38.38897547 | BH29: -38.38897547 | BI29: 99 | BJ29: 60.61102453 | BK29: 39.6 | BL29: 39.6 | BN29: 39.6 | BO29: 0 | BP29: 6 | BQ29: 6 | BR29: 6 | BS29: 6 | BT29: 6 | BU29: 6 | BV29: 6 | BW29: 6 | BX29: 6 | BY29: 6 | BZ29: 6 | CA29: 6 | CB29: 6 | CC29: 6 | CD29: 6 | CE29: 6 | CF29: 7.92 | CG29: 6 | CH29: 6 | CI29: 6 | CJ29: 6 | CK29: 6 | CL29: 6 | CM29: 6 | CN29: 6 | CO29: 6 | CP29: 6 | CQ29: 6 | CR29: 6 | CS29: 6 | CT29: 6 | CU29: 6 | CV29: 6 | CW29: 15.84 | CX29: 6 | CY29: 6 | CZ29: 6 | DA29: 6 | DB29: 6 | DC29: 6 | DD29: 6 | DE29: 6 | DF29: 6 | DG29: 6 | DH29: 6 | DI29: 6 | DJ29: 6 | DK29: 6 | DL29: 6 | DM29: 6 | DN29: 23.76 | DO29: 6 | DP29: 6 | DQ29: 6 | DR29: 6 | DS29: 6 | DT29: 6 | DU29: 6 | DV29: 6 | DW29: 6 | DX29: 6 | DY29: 6 | DZ29: 6 | EA29: 6 | EB29: 6 | EC29: 6 | ED29: 6 | EE29: 31.68 | EF29: 6 | EG29: 6 | EH29: 6 | EI29: 6 | EJ29: 6 | EK29: 6 | EL29: 6 | EM29: 6 | EN29: 6 | EO29: 6 | EP29: 6 | EQ29: 6 | ER29: 6 | ES29: 6 | ET29: 6 | EU29: 6 | EV29: 39.6 | EW29: 7.211024526 | EX29: 6 | EY29: 6 | EZ29: 6 | FA29: 6 | FB29: 6 | FC29: 6 | FD29: 6 | FE29: 6 | FF29: 6 | FG29: 6 | FH29: 6 | FI29: 6 | FJ29: 6 | FK29: 6 | FL29: 6 | FM29: 6 | FN29: 6 | FO29: 6 | FP29: 6 | FQ29: 6 | FR29: 7.211024526 | FS29: 1 | FU29: 39.6 | FV29: 39.6 | FY29: nej | FZ29: nej | GA29: 2.275 | GB29: 0 | GC29: 39.6 | GE29: 0 | GG29: 6 | GH29: 0 | GI29: stiger | GJ29: --- | GK29: --- | GL29: - | GM29: - | GN29: 0 | GO29: 0 | GP29: 0 | GQ29: 0 | GR29: 0 | GS29: 0 | GT29: 0 | HI29: 38.38897547 | HJ29: =INDEX(ID!$K$153:$K$176,D29+1)*INDEX(ID!$K$180:$K$191,$B29) -> 1 | HK29: =INDEX(ID!$L$153:$L$176,D29+1)*INDEX(ID!$K$180:$K$191,$B29) -> 1 | HL29: 87.3349192 | HM29: 87.3349192 | HN29: =ID!K237 -> 0.24034 | HO29: 2.275679575 | HP29: 87.3610074 | HQ29: =ID!I237 -> 1.2 | HT29: 87.3349192 | HU29: 38.38897547 | HV29: 11.05602494 | HW29: =IF(elsalgtype=1,HK29*(GO29)*Elprissalg,IF(elsalgtype=2,ID!J237,"elsalgtype ikke defineret")) -> 0 | IA29: 0 | IB29: 0 | IC29: 0 | ID29: 0 | IE29: 0 | IF29: 0 | IG29: 0 | IH29: 0 | II29: 0 | IJ29: 0 | IK29: 0 | IL29: 0 | IM29: 0 | IN29: 0 | IO29: 0 | IP29: 0 | IQ29: 0 | IR29: 0 | IS29: 0 | IT29: 0 | IU29: 0 | IV29: 0 | IW29: 0 | IX29: 0 | IY29: 0
A30: 20 | B30: 1 | C30: 1 | D30: 19 | E30: 1 | F30: 1 | G30: 0 | H30: 12.85 | I30: 7.3 | J30: =IF(ID!$W$4=2,0,FBR!P30+FBR!Q30) -> 35.43597736 | K30: =IF(ID!$W$4=2,0,FBR!R30+FBR!S30) -> 0 | L30: =ID!H238 -> 1 | M30: =IF(ID!$Y$4=1,J30+K30,IF(ID!$Y$4=2,model!L30,"error")) -> 35.43597736 | O30: 0 | P30: 0 | Q30: 0 | R30: 0 | S30: 0 | T30: 0 | U30: =(1-ID!$AB$64)*O30*PV1W/1000000 -> 0 | V30: =(1-ID!$AB$65)*P30*PV2W/1000000 -> 0 | W30: =(1-ID!$AB$66)*Q30*PV3W/1000000 -> 0 | X30: =(1-ID!$AB$67)*R30*PV4W/1000000 -> 0 | Y30: =(1-ID!$AB$68)*S30*PV5W/1000000 -> 0 | Z30: =(1-ID!$AB$69)*T30*PV6W/1000000 -> 0 | AJ30: =ID!L238 -> 0 | AK30: =IF(ID!$K$70="ja",AJ30,SUM(U30:Z30)) -> 0 | AM30: 6 | AN30: 0 | AO30: 6 | AQ30: 0 | AR30: 35.43597736 | AS30: 5.4 | AT30: 0 | AU30: 0 | AV30: 6 | AW30: 35.43597736 | AX30: 35.43597736 | AY30: 0 | AZ30: 0 | BA30: 6 | BF30: 0 | BG30: 35.43597736 | BH30: -35.43597736 | BI30: 99 | BJ30: 63.56402264 | BK30: 39.6 | BL30: 39.6 | BN30: 39.6 | BO30: 0 | BP30: 6 | BQ30: 6 | BR30: 6 | BS30: 6 | BT30: 6 | BU30: 6 | BV30: 6 | BW30: 6 | BX30: 6 | BY30: 6 | BZ30: 6 | CA30: 6 | CB30: 6 | CC30: 6 | CD30: 6 | CE30: 6 | CF30: 7.92 | CG30: 6 | CH30: 6 | CI30: 6 | CJ30: 6 | CK30: 6 | CL30: 6 | CM30: 6 | CN30: 6 | CO30: 6 | CP30: 6 | CQ30: 6 | CR30: 6 | CS30: 6 | CT30: 6 | CU30: 6 | CV30: 6 | CW30: 15.84 | CX30: 6 | CY30: 6 | CZ30: 6 | DA30: 6 | DB30: 6 | DC30: 6 | DD30: 6 | DE30: 6 | DF30: 6 | DG30: 6 | DH30: 6 | DI30: 6 | DJ30: 6 | DK30: 6 | DL30: 6 | DM30: 6 | DN30: 23.76 | DO30: 6 | DP30: 6 | DQ30: 6 | DR30: 6 | DS30: 6 | DT30: 6 | DU30: 6 | DV30: 6 | DW30: 6 | DX30: 6 | DY30: 6 | DZ30: 6 | EA30: 6 | EB30: 6 | EC30: 6 | ED30: 6 | EE30: 31.68 | EF30: 6 | EG30: 6 | EH30: 6 | EI30: 6 | EJ30: 6 | EK30: 6 | EL30: 6 | EM30: 6 | EN30: 6 | EO30: 6 | EP30: 6 | EQ30: 6 | ER30: 6 | ES30: 6 | ET30: 6 | EU30: 6 | EV30: 39.6 | EW30: 10.16402264 | EX30: 6 | EY30: 6 | EZ30: 6 | FA30: 6 | FB30: 6 | FC30: 6 | FD30: 6 | FE30: 6 | FF30: 6 | FG30: 6 | FH30: 6 | FI30: 6 | FJ30: 6 | FK30: 6 | FL30: 6 | FM30: 6 | FN30: 6 | FO30: 6 | FP30: 6 | FQ30: 6 | FR30: 10.16402264 | FS30: 1 | FU30: 39.6 | FV30: 39.6 | FY30: nej | FZ30: nej | GA30: 2.275 | GB30: 0 | GC30: 39.6 | GE30: 0 | GG30: 6 | GH30: 0 | GI30: stiger | GJ30: --- | GK30: --- | GL30: - | GM30: - | GN30: 0 | GO30: 0 | GP30: 0 | GQ30: 0 | GR30: 0 | GS30: 0 | GT30: 0 | HI30: 35.43597736 | HJ30: =INDEX(ID!$K$153:$K$176,D30+1)*INDEX(ID!$K$180:$K$191,$B30) -> 1 | HK30: =INDEX(ID!$L$153:$L$176,D30+1)*INDEX(ID!$K$180:$K$191,$B30) -> 1 | HL30: 80.61684849 | HM30: 80.61684849 | HN30: =ID!K238 -> 0.22848 | HO30: 2.263819575 | HP30: 80.22065922 | HQ30: =ID!I238 -> 1.2 | HT30: 80.61684849 | HU30: 35.43597736 | HV30: 10.20556148 | HW30: =IF(elsalgtype=1,HK30*(GO30)*Elprissalg,IF(elsalgtype=2,ID!J238,"elsalgtype ikke defineret")) -> 0 | IA30: 0 | IB30: 0 | IC30: 0 | ID30: 0 | IE30: 0 | IF30: 0 | IG30: 0 | IH30: 0 | II30: 0 | IJ30: 0 | IK30: 0 | IL30: 0 | IM30: 0 | IN30: 0 | IO30: 0 | IP30: 0 | IQ30: 0 | IR30: 0 | IS30: 0 | IT30: 0 | IU30: 0 | IV30: 0 | IW30: 0 | IX30: 0 | IY30: 0
A31: 21 | B31: 1 | C31: 1 | D31: 20 | E31: 1 | F31: 1 | G31: 0 | H31: 12.85 | I31: 7.7 | J31: =IF(ID!$W$4=2,0,FBR!P31+FBR!Q31) -> 31.30178 | K31: =IF(ID!$W$4=2,0,FBR!R31+FBR!S31) -> 0 | L31: =ID!H239 -> 1 | M31: =IF(ID!$Y$4=1,J31+K31,IF(ID!$Y$4=2,model!L31,"error")) -> 31.30178 | O31: 0 | P31: 0 | Q31: 0 | R31: 0 | S31: 0 | T31: 0 | U31: =(1-ID!$AB$64)*O31*PV1W/1000000 -> 0 | V31: =(1-ID!$AB$65)*P31*PV2W/1000000 -> 0 | W31: =(1-ID!$AB$66)*Q31*PV3W/1000000 -> 0 | X31: =(1-ID!$AB$67)*R31*PV4W/1000000 -> 0 | Y31: =(1-ID!$AB$68)*S31*PV5W/1000000 -> 0 | Z31: =(1-ID!$AB$69)*T31*PV6W/1000000 -> 0 | AJ31: =ID!L239 -> 0 | AK31: =IF(ID!$K$70="ja",AJ31,SUM(U31:Z31)) -> 0 | AM31: 6 | AN31: 0 | AO31: 6 | AQ31: 0 | AR31: 31.30178 | AS31: 5.4 | AT31: 0 | AU31: 0 | AV31: 6 | AW31: 31.30178 | AX31: 31.30178 | AY31: 0 | AZ31: 0 | BA31: 6 | BF31: 0 | BG31: 31.30178 | BH31: -31.30178 | BI31: 99 | BJ31: 67.69822 | BK31: 39.6 | BL31: 39.6 | BN31: 39.6 | BO31: 0 | BP31: 6 | BQ31: 6 | BR31: 6 | BS31: 6 | BT31: 6 | BU31: 6 | BV31: 6 | BW31: 6 | BX31: 6 | BY31: 6 | BZ31: 6 | CA31: 6 | CB31: 6 | CC31: 6 | CD31: 6 | CE31: 6 | CF31: 7.92 | CG31: 6 | CH31: 6 | CI31: 6 | CJ31: 6 | CK31: 6 | CL31: 6 | CM31: 6 | CN31: 6 | CO31: 6 | CP31: 6 | CQ31: 6 | CR31: 6 | CS31: 6 | CT31: 6 | CU31: 6 | CV31: 6 | CW31: 15.84 | CX31: 6 | CY31: 6 | CZ31: 6 | DA31: 6 | DB31: 6 | DC31: 6 | DD31: 6 | DE31: 6 | DF31: 6 | DG31: 6 | DH31: 6 | DI31: 6 | DJ31: 6 | DK31: 6 | DL31: 6 | DM31: 6 | DN31: 23.76 | DO31: 6 | DP31: 6 | DQ31: 6 | DR31: 6 | DS31: 6 | DT31: 6 | DU31: 6 | DV31: 6 | DW31: 6 | DX31: 6 | DY31: 6 | DZ31: 6 | EA31: 6 | EB31: 6 | EC31: 6 | ED31: 6 | EE31: 31.68 | EF31: 6.378219998 | EG31: 6 | EH31: 6 | EI31: 6 | EJ31: 6 | EK31: 6 | EL31: 6 | EM31: 6 | EN31: 6 | EO31: 6 | EP31: 6 | EQ31: 6 | ER31: 6 | ES31: 6 | ET31: 6 | EU31: 6 | EV31: 39.6 | EW31: 14.29822 | EX31: 6 | EY31: 6 | EZ31: 6 | FA31: 6 | FB31: 6 | FC31: 6 | FD31: 6 | FE31: 6 | FF31: 6 | FG31: 6 | FH31: 6 | FI31: 6 | FJ31: 6 | FK31: 6 | FL31: 6 | FM31: 6 | FN31: 6 | FO31: 6 | FP31: 6 | FQ31: 6.378219998 | FR31: 14.29822 | FS31: 1 | FU31: 39.6 | FV31: 39.6 | FY31: nej | FZ31: nej | GA31: 2.275 | GB31: 0 | GC31: 39.6 | GE31: 0 | GG31: 6 | GH31: 0 | GI31: stiger | GJ31: --- | GK31: --- | GL31: - | GM31: - | GN31: 0 | GO31: 0 | GP31: 0 | GQ31: 0 | GR31: 0 | GS31: 0 | GT31: 0 | HI31: 31.30178 | HJ31: =INDEX(ID!$K$153:$K$176,D31+1)*INDEX(ID!$K$180:$K$191,$B31) -> 1 | HK31: =INDEX(ID!$L$153:$L$176,D31+1)*INDEX(ID!$K$180:$K$191,$B31) -> 1 | HL31: 71.2115495 | HM31: 71.2115495 | HN31: =ID!K239 -> 0.21885 | HO31: 2.254189575 | HP31: 70.56014617 | HQ31: =ID!I239 -> 1.2 | HT31: 71.2115495 | HU31: 31.30178 | HV31: 9.01491264 | HW31: =IF(elsalgtype=1,HK31*(GO31)*Elprissalg,IF(elsalgtype=2,ID!J239,"elsalgtype ikke defineret")) -> 0 | IA31: 0 | IB31: 0 | IC31: 0 | ID31: 0 | IE31: 0 | IF31: 0 | IG31: 0 | IH31: 0 | II31: 0 | IJ31: 0 | IK31: 0 | IL31: 0 | IM31: 0 | IN31: 0 | IO31: 0 | IP31: 0 | IQ31: 0 | IR31: 0 | IS31: 0 | IT31: 0 | IU31: 0 | IV31: 0 | IW31: 0 | IX31: 0 | IY31: 0
A32: 22 | B32: 1 | C32: 1 | D32: 21 | E32: 1 | F32: 1 | G32: 0 | H32: 12.85 | I32: 6.7 | J32: =IF(ID!$W$4=2,0,FBR!P32+FBR!Q32) -> 29.52998113 | K32: =IF(ID!$W$4=2,0,FBR!R32+FBR!S32) -> 0 | L32: =ID!H240 -> 1 | M32: =IF(ID!$Y$4=1,J32+K32,IF(ID!$Y$4=2,model!L32,"error")) -> 29.52998113 | O32: 0 | P32: 0 | Q32: 0 | R32: 0 | S32: 0 | T32: 0 | U32: =(1-ID!$AB$64)*O32*PV1W/1000000 -> 0 | V32: =(1-ID!$AB$65)*P32*PV2W/1000000 -> 0 | W32: =(1-ID!$AB$66)*Q32*PV3W/1000000 -> 0 | X32: =(1-ID!$AB$67)*R32*PV4W/1000000 -> 0 | Y32: =(1-ID!$AB$68)*S32*PV5W/1000000 -> 0 | Z32: =(1-ID!$AB$69)*T32*PV6W/1000000 -> 0 | AJ32: =ID!L240 -> 0 | AK32: =IF(ID!$K$70="ja",AJ32,SUM(U32:Z32)) -> 0 | AM32: 6 | AN32: 0 | AO32: 6 | AQ32: 0 | AR32: 29.52998113 | AS32: 5.4 | AT32: 0 | AU32: 0 | AV32: 6 | AW32: 29.52998113 | AX32: 29.52998113 | AY32: 0 | AZ32: 0 | BA32: 6 | BF32: 0 | BG32: 29.52998113 | BH32: -29.52998113 | BI32: 99 | BJ32: 69.47001887 | BK32: 39.6 | BL32: 39.6 | BN32: 39.6 | BO32: 0 | BP32: 6 | BQ32: 6 | BR32: 6 | BS32: 6 | BT32: 6 | BU32: 6 | BV32: 6 | BW32: 6 | BX32: 6 | BY32: 6 | BZ32: 6 | CA32: 6 | CB32: 6 | CC32: 6 | CD32: 6 | CE32: 6 | CF32: 7.92 | CG32: 6 | CH32: 6 | CI32: 6 | CJ32: 6 | CK32: 6 | CL32: 6 | CM32: 6 | CN32: 6 | CO32: 6 | CP32: 6 | CQ32: 6 | CR32: 6 | CS32: 6 | CT32: 6 | CU32: 6 | CV32: 6 | CW32: 15.84 | CX32: 6 | CY32: 6 | CZ32: 6 | DA32: 6 | DB32: 6 | DC32: 6 | DD32: 6 | DE32: 6 | DF32: 6 | DG32: 6 | DH32: 6 | DI32: 6 | DJ32: 6 | DK32: 6 | DL32: 6 | DM32: 6 | DN32: 23.76 | DO32: 6 | DP32: 6 | DQ32: 6 | DR32: 6 | DS32: 6 | DT32: 6 | DU32: 6 | DV32: 6 | DW32: 6 | DX32: 6 | DY32: 6 | DZ32: 6 | EA32: 6 | EB32: 6 | EC32: 6 | ED32: 6 | EE32: 31.68 | EF32: 8.150018866 | EG32: 6 | EH32: 6 | EI32: 6 | EJ32: 6 | EK32: 6 | EL32: 6 | EM32: 6 | EN32: 6 | EO32: 6 | EP32: 6 | EQ32: 6 | ER32: 6 | ES32: 6 | ET32: 6 | EU32: 6 | EV32: 39.6 | EW32: 16.07001887 | EX32: 6 | EY32: 6 | EZ32: 6 | FA32: 6 | FB32: 6 | FC32: 6 | FD32: 6 | FE32: 6 | FF32: 6 | FG32: 6 | FH32: 6 | FI32: 6 | FJ32: 6 | FK32: 6 | FL32: 6 | FM32: 6 | FN32: 6 | FO32: 6 | FP32: 6 | FQ32: 8.150018866 | FR32: 16.07001887 | FS32: 1 | FU32: 39.6 | FV32: 39.6 | FY32: nej | FZ32: nej | GA32: 2.275 | GB32: 0 | GC32: 39.6 | GE32: 0 | GG32: 6 | GH32: 0 | GI32: stiger | GJ32: --- | GK32: --- | GL32: - | GM32: - | GN32: 0 | GO32: 0 | GP32: 0 | GQ32: 0 | GR32: 0 | GS32: 0 | GT32: 0 | HI32: 29.52998113 | HJ32: =INDEX(ID!$K$153:$K$176,D32+1)*INDEX(ID!$K$180:$K$191,$B32) -> 1 | HK32: =INDEX(ID!$L$153:$L$176,D32+1)*INDEX(ID!$K$180:$K$191,$B32) -> 1 | HL32: 67.18070708 | HM32: 67.18070708 | HN32: =ID!K240 -> 0.21773 | HO32: 2.253069575 | HP32: 66.53310205 | HQ32: =ID!I240 -> 1.2 | HT32: 67.18070708 | HU32: 29.52998113 | HV32: 8.504634566 | HW32: =IF(elsalgtype=1,HK32*(GO32)*Elprissalg,IF(elsalgtype=2,ID!J240,"elsalgtype ikke defineret")) -> 0 | IA32: 0 | IB32: 0 | IC32: 0 | ID32: 0 | IE32: 0 | IF32: 0 | IG32: 0 | IH32: 0 | II32: 0 | IJ32: 0 | IK32: 0 | IL32: 0 | IM32: 0 | IN32: 0 | IO32: 0 | IP32: 0 | IQ32: 0 | IR32: 0 | IS32: 0 | IT32: 0 | IU32: 0 | IV32: 0 | IW32: 0 | IX32: 0 | IY32: 0
A33: 23 | B33: 1 | C33: 1 | D33: 22 | E33: 1 | F33: 1 | G33: 0 | H33: 12.85 | I33: 6.2 | J33: =IF(ID!$W$4=2,0,FBR!P33+FBR!Q33) -> 26.57698302 | K33: =IF(ID!$W$4=2,0,FBR!R33+FBR!S33) -> 0 | L33: =ID!H241 -> 1 | M33: =IF(ID!$Y$4=1,J33+K33,IF(ID!$Y$4=2,model!L33,"error")) -> 26.57698302 | O33: 0 | P33: 0 | Q33: 0 | R33: 0 | S33: 0 | T33: 0 | U33: =(1-ID!$AB$64)*O33*PV1W/1000000 -> 0 | V33: =(1-ID!$AB$65)*P33*PV2W/1000000 -> 0 | W33: =(1-ID!$AB$66)*Q33*PV3W/1000000 -> 0 | X33: =(1-ID!$AB$67)*R33*PV4W/1000000 -> 0 | Y33: =(1-ID!$AB$68)*S33*PV5W/1000000 -> 0 | Z33: =(1-ID!$AB$69)*T33*PV6W/1000000 -> 0 | AJ33: =ID!L241 -> 0 | AK33: =IF(ID!$K$70="ja",AJ33,SUM(U33:Z33)) -> 0 | AM33: 6 | AN33: 0 | AO33: 6 | AQ33: 0 | AR33: 26.57698302 | AS33: 5.4 | AT33: 0 | AU33: 0 | AV33: 6 | AW33: 26.57698302 | AX33: 26.57698302 | AY33: 0 | AZ33: 0 | BA33: 6 | BF33: 0 | BG33: 26.57698302 | BH33: -26.57698302 | BI33: 99 | BJ33: 72.42301698 | BK33: 39.6 | BL33: 39.6 | BN33: 39.6 | BO33: 0 | BP33: 6 | BQ33: 6 | BR33: 6 | BS33: 6 | BT33: 6 | BU33: 6 | BV33: 6 | BW33: 6 | BX33: 6 | BY33: 6 | BZ33: 6 | CA33: 6 | CB33: 6 | CC33: 6 | CD33: 6 | CE33: 6 | CF33: 7.92 | CG33: 6 | CH33: 6 | CI33: 6 | CJ33: 6 | CK33: 6 | CL33: 6 | CM33: 6 | CN33: 6 | CO33: 6 | CP33: 6 | CQ33: 6 | CR33: 6 | CS33: 6 | CT33: 6 | CU33: 6 | CV33: 6 | CW33: 15.84 | CX33: 6 | CY33: 6 | CZ33: 6 | DA33: 6 | DB33: 6 | DC33: 6 | DD33: 6 | DE33: 6 | DF33: 6 | DG33: 6 | DH33: 6 | DI33: 6 | DJ33: 6 | DK33: 6 | DL33: 6 | DM33: 6 | DN33: 23.76 | DO33: 6 | DP33: 6 | DQ33: 6 | DR33: 6 | DS33: 6 | DT33: 6 | DU33: 6 | DV33: 6 | DW33: 6 | DX33: 6 | DY33: 6 | DZ33: 6 | EA33: 6 | EB33: 6 | EC33: 6 | ED33: 6 | EE33: 31.68 | EF33: 11.10301698 | EG33: 6 | EH33: 6 | EI33: 6 | EJ33: 6 | EK33: 6 | EL33: 6 | EM33: 6 | EN33: 6 | EO33: 6 | EP33: 6 | EQ33: 6 | ER33: 6 | ES33: 6 | ET33: 6 | EU33: 6 | EV33: 39.6 | EW33: 19.02301698 | EX33: 6 | EY33: 6 | EZ33: 6 | FA33: 6 | FB33: 6 | FC33: 6 | FD33: 6 | FE33: 6 | FF33: 6 | FG33: 6 | FH33: 6 | FI33: 6 | FJ33: 6 | FK33: 6 | FL33: 6 | FM33: 6 | FN33: 6 | FO33: 6 | FP33: 6 | FQ33: 11.10301698 | FR33: 19.02301698 | FS33: 1 | FU33: 39.6 | FV33: 39.6 | FY33: nej | FZ33: nej | GA33: 2.275 | GB33: 0 | GC33: 39.6 | GE33: 0 | GG33: 6 | GH33: 0 | GI33: stiger | GJ33: --- | GK33: --- | GL33: - | GM33: - | GN33: 0 | GO33: 0 | GP33: 0 | GQ33: 0 | GR33: 0 | GS33: 0 | GT33: 0 | HI33: 26.57698302 | HJ33: =INDEX(ID!$K$153:$K$176,D33+1)*INDEX(ID!$K$180:$K$191,$B33) -> 1 | HK33: =INDEX(ID!$L$153:$L$176,D33+1)*INDEX(ID!$K$180:$K$191,$B33) -> 1 | HL33: 60.46263637 | HM33: 60.46263637 | HN33: =ID!K241 -> 0.21423 | HO33: 2.249569575 | HP33: 59.78677241 | HQ33: =ID!I241 -> 1.2 | HT33: 60.46263637 | HU33: 26.57698302 | HV33: 7.65417111 | HW33: =IF(elsalgtype=1,HK33*(GO33)*Elprissalg,IF(elsalgtype=2,ID!J241,"elsalgtype ikke defineret")) -> 0 | IA33: 0 | IB33: 0 | IC33: 0 | ID33: 0 | IE33: 0 | IF33: 0 | IG33: 0 | IH33: 0 | II33: 0 | IJ33: 0 | IK33: 0 | IL33: 0 | IM33: 0 | IN33: 0 | IO33: 0 | IP33: 0 | IQ33: 0 | IR33: 0 | IS33: 0 | IT33: 0 | IU33: 0 | IV33: 0 | IW33: 0 | IX33: 0 | IY33: 0
A34: 24 | B34: 1 | C34: 1 | D34: 23 | E34: 1 | F34: 1 | G34: 0 | H34: 12.85 | I34: 5.9 | J34: =IF(ID!$W$4=2,0,FBR!P34+FBR!Q34) -> 23.62398491 | K34: =IF(ID!$W$4=2,0,FBR!R34+FBR!S34) -> 0 | L34: =ID!H242 -> 1 | M34: =IF(ID!$Y$4=1,J34+K34,IF(ID!$Y$4=2,model!L34,"error")) -> 23.62398491 | O34: 0 | P34: 0 | Q34: 0 | R34: 0 | S34: 0 | T34: 0 | U34: =(1-ID!$AB$64)*O34*PV1W/1000000 -> 0 | V34: =(1-ID!$AB$65)*P34*PV2W/1000000 -> 0 | W34: =(1-ID!$AB$66)*Q34*PV3W/1000000 -> 0 | X34: =(1-ID!$AB$67)*R34*PV4W/1000000 -> 0 | Y34: =(1-ID!$AB$68)*S34*PV5W/1000000 -> 0 | Z34: =(1-ID!$AB$69)*T34*PV6W/1000000 -> 0 | AJ34: =ID!L242 -> 0 | AK34: =IF(ID!$K$70="ja",AJ34,SUM(U34:Z34)) -> 0 | AM34: 6 | AN34: 0 | AO34: 6 | AQ34: 0 | AR34: 23.62398491 | AS34: 5.4 | AT34: 0 | AU34: 0 | AV34: 6 | AW34: 23.62398491 | AX34: 23.62398491 | AY34: 0 | AZ34: 0 | BA34: 6 | BF34: 0 | BG34: 23.62398491 | BH34: -23.62398491 | BI34: 99 | BJ34: 75.37601509 | BK34: 39.6 | BL34: 39.6 | BN34: 39.6 | BO34: 0 | BP34: 6 | BQ34: 6 | BR34: 6 | BS34: 6 | BT34: 6 | BU34: 6 | BV34: 6 | BW34: 6 | BX34: 6 | BY34: 6 | BZ34: 6 | CA34: 6 | CB34: 6 | CC34: 6 | CD34: 6 | CE34: 6 | CF34: 7.92 | CG34: 6 | CH34: 6 | CI34: 6 | CJ34: 6 | CK34: 6 | CL34: 6 | CM34: 6 | CN34: 6 | CO34: 6 | CP34: 6 | CQ34: 6 | CR34: 6 | CS34: 6 | CT34: 6 | CU34: 6 | CV34: 6 | CW34: 15.84 | CX34: 6 | CY34: 6 | CZ34: 6 | DA34: 6 | DB34: 6 | DC34: 6 | DD34: 6 | DE34: 6 | DF34: 6 | DG34: 6 | DH34: 6 | DI34: 6 | DJ34: 6 | DK34: 6 | DL34: 6 | DM34: 6 | DN34: 23.76 | DO34: 6.136015093 | DP34: 6 | DQ34: 6 | DR34: 6 | DS34: 6 | DT34: 6 | DU34: 6 | DV34: 6 | DW34: 6 | DX34: 6 | DY34: 6 | DZ34: 6 | EA34: 6 | EB34: 6 | EC34: 6 | ED34: 6 | EE34: 31.68 | EF34: 14.05601509 | EG34: 6 | EH34: 6 | EI34: 6 | EJ34: 6 | EK34: 6 | EL34: 6 | EM34: 6 | EN34: 6 | EO34: 6 | EP34: 6 | EQ34: 6 | ER34: 6 | ES34: 6 | ET34: 6 | EU34: 6 | EV34: 39.6 | EW34: 21.97601509 | EX34: 6 | EY34: 6 | EZ34: 6 | FA34: 6 | FB34: 6 | FC34: 6 | FD34: 6 | FE34: 6 | FF34: 6 | FG34: 6 | FH34: 6 | FI34: 6 | FJ34: 6 | FK34: 6 | FL34: 6 | FM34: 6 | FN34: 6 | FO34: 6 | FP34: 6.136015093 | FQ34: 14.05601509 | FR34: 21.97601509 | FS34: 1 | FU34: 39.6 | FV34: 39.6 | FY34: nej | FZ34: nej | GA34: 2.275 | GB34: 0 | GC34: 39.6 | GE34: 0 | GG34: 6 | GH34: 0 | GI34: stiger | GJ34: --- | GK34: --- | GL34: - | GM34: - | GN34: 0 | GO34: 0 | GP34: 0 | GQ34: 0 | GR34: 0 | GS34: 0 | GT34: 0 | HI34: 23.62398491 | HJ34: =INDEX(ID!$K$153:$K$176,D34+1)*INDEX(ID!$K$180:$K$191,$B34) -> 1 | HK34: =INDEX(ID!$L$153:$L$176,D34+1)*INDEX(ID!$K$180:$K$191,$B34) -> 1 | HL34: 53.74456566 | HM34: 53.74456566 | HN34: =ID!K242 -> 0.1186 | HO34: 2.153939575 | HP34: 50.88463602 | HQ34: =ID!I242 -> 1.2 | HT34: 53.74456566 | HU34: 23.62398491 | HV34: 6.803707653 | HW34: =IF(elsalgtype=1,HK34*(GO34)*Elprissalg,IF(elsalgtype=2,ID!J242,"elsalgtype ikke defineret")) -> 0 | IA34: 0 | IB34: 0 | IC34: 0 | ID34: 0 | IE34: 0 | IF34: 0 | IG34: 0 | IH34: 0 | II34: 0 | IJ34: 0 | IK34: 0 | IL34: 0 | IM34: 0 | IN34: 0 | IO34: 0 | IP34: 0 | IQ34: 0 | IR34: 0 | IS34: 0 | IT34: 0 | IU34: 0 | IV34: 0 | IW34: 0 | IX34: 0 | IY34: 0
A35: 25 | B35: 1 | C35: 2 | D35: 0 | E35: =E11+1 -> 2 | F35: 1 | G35: 0 | H35: 12.85 | I35: 4.6 | J35: =IF(ID!$W$4=2,0,FBR!P35+FBR!Q35) -> 20.67098679 | K35: =IF(ID!$W$4=2,0,FBR!R35+FBR!S35) -> 0 | L35: =ID!H243 -> 1 | M35: =IF(ID!$Y$4=1,J35+K35,IF(ID!$Y$4=2,model!L35,"error")) -> 20.67098679 | O35: 0 | P35: 0 | Q35: 0 | R35: 0 | S35: 0 | T35: 0 | U35: =(1-ID!$AB$64)*O35*PV1W/1000000 -> 0 | V35: =(1-ID!$AB$65)*P35*PV2W/1000000 -> 0 | W35: =(1-ID!$AB$66)*Q35*PV3W/1000000 -> 0 | X35: =(1-ID!$AB$67)*R35*PV4W/1000000 -> 0 | Y35: =(1-ID!$AB$68)*S35*PV5W/1000000 -> 0 | Z35: =(1-ID!$AB$69)*T35*PV6W/1000000 -> 0 | AJ35: =ID!L243 -> 0 | AK35: =IF(ID!$K$70="ja",AJ35,SUM(U35:Z35)) -> 0 | AM35: 6 | AN35: 0 | AO35: 6 | AQ35: 0 | AR35: 20.67098679 | AS35: 5.4 | AT35: 0 | AU35: 0 | AV35: 6 | AW35: 20.67098679 | AX35: 20.67098679 | AY35: 0 | AZ35: 0 | BA35: 6 | BF35: 0 | BG35: 20.67098679 | BH35: -20.67098679 | BI35: 99 | BJ35: 78.32901321 | BK35: 39.6 | BL35: 39.6 | BN35: 39.6 | BO35: 0 | BP35: 6 | BQ35: 6 | BR35: 6 | BS35: 6 | BT35: 6 | BU35: 6 | BV35: 6 | BW35: 6 | BX35: 6 | BY35: 6 | BZ35: 6 | CA35: 6 | CB35: 6 | CC35: 6 | CD35: 6 | CE35: 6 | CF35: 7.92 | CG35: 6 | CH35: 6 | CI35: 6 | CJ35: 6 | CK35: 6 | CL35: 6 | CM35: 6 | CN35: 6 | CO35: 6 | CP35: 6 | CQ35: 6 | CR35: 6 | CS35: 6 | CT35: 6 | CU35: 6 | CV35: 6 | CW35: 15.84 | CX35: 6 | CY35: 6 | CZ35: 6 | DA35: 6 | DB35: 6 | DC35: 6 | DD35: 6 | DE35: 6 | DF35: 6 | DG35: 6 | DH35: 6 | DI35: 6 | DJ35: 6 | DK35: 6 | DL35: 6 | DM35: 6 | DN35: 23.76 | DO35: 9.089013206 | DP35: 6 | DQ35: 6 | DR35: 6 | DS35: 6 | DT35: 6 | DU35: 6 | DV35: 6 | DW35: 6 | DX35: 6 | DY35: 6 | DZ35: 6 | EA35: 6 | EB35: 6 | EC35: 6 | ED35: 6 | EE35: 31.68 | EF35: 17.00901321 | EG35: 6 | EH35: 6 | EI35: 6 | EJ35: 6 | EK35: 6 | EL35: 6 | EM35: 6 | EN35: 6 | EO35: 6 | EP35: 6 | EQ35: 6 | ER35: 6 | ES35: 6 | ET35: 6 | EU35: 6 | EV35: 39.6 | EW35: 24.92901321 | EX35: 7.211024526 | EY35: 6 | EZ35: 6 | FA35: 6 | FB35: 6 | FC35: 6 | FD35: 6 | FE35: 6 | FF35: 6 | FG35: 6 | FH35: 6 | FI35: 6 | FJ35: 6 | FK35: 6 | FL35: 6 | FM35: 6 | FN35: 6 | FO35: 6 | FP35: 9.089013206 | FQ35: 17.00901321 | FR35: 24.92901321 | FS35: 1 | FU35: 39.6 | FV35: 39.6 | FY35: nej | FZ35: nej | GA35: 2.275 | GB35: 0 | GC35: 39.6 | GE35: 0 | GG35: 6 | GH35: 0 | GI35: stiger | GJ35: --- | GK35: --- | GL35: - | GM35: - | GN35: 0 | GO35: 0 | GP35: 0 | GQ35: 0 | GR35: 0 | GS35: 0 | GT35: 0 | HI35: 20.67098679 | HJ35: =INDEX(ID!$K$153:$K$176,D35+1)*INDEX(ID!$K$180:$K$191,$B35) -> 1 | HK35: =INDEX(ID!$L$153:$L$176,D35+1)*INDEX(ID!$K$180:$K$191,$B35) -> 1 | HL35: 47.02649496 | HM35: 47.02649496 | HN35: =ID!K243 -> 0.05714 | HO35: 2.092479575 | HP35: 43.25361767 | HQ35: =ID!I243 -> 1.2 | HT35: 47.02649496 | HU35: 20.67098679 | HV35: 5.953244197 | HW35: =IF(elsalgtype=1,HK35*(GO35)*Elprissalg,IF(elsalgtype=2,ID!J243,"elsalgtype ikke defineret")) -> 0 | IA35: 0 | IB35: 0 | IC35: 0 | ID35: 0 | IE35: 0 | IF35: 0 | IG35: 0 | IH35: 0 | II35: 0 | IJ35: 0 | IK35: 0 | IL35: 0 | IM35: 0 | IN35: 0 | IO35: 0 | IP35: 0 | IQ35: 0 | IR35: 0 | IS35: 0 | IT35: 0 | IU35: 0 | IV35: 0 | IW35: 0 | IX35: 0 | IY35: 0
A36: 26 | B36: 1 | C36: 2 | D36: 1 | E36: =E12+1 -> 2 | F36: 1 | G36: 0 | H36: 11.82 | I36: 4.4 | J36: =IF(ID!$W$4=2,0,FBR!P36+FBR!Q36) -> 17.71798868 | K36: =IF(ID!$W$4=2,0,FBR!R36+FBR!S36) -> 0 | L36: =ID!H244 -> 1 | M36: =IF(ID!$Y$4=1,J36+K36,IF(ID!$Y$4=2,model!L36,"error")) -> 17.71798868 | O36: 0 | P36: 0 | Q36: 0 | R36: 0 | S36: 0 | T36: 0 | U36: =(1-ID!$AB$64)*O36*PV1W/1000000 -> 0 | V36: =(1-ID!$AB$65)*P36*PV2W/1000000 -> 0 | W36: =(1-ID!$AB$66)*Q36*PV3W/1000000 -> 0 | X36: =(1-ID!$AB$67)*R36*PV4W/1000000 -> 0 | Y36: =(1-ID!$AB$68)*S36*PV5W/1000000 -> 0 | Z36: =(1-ID!$AB$69)*T36*PV6W/1000000 -> 0 | AJ36: =ID!L244 -> 0 | AK36: =IF(ID!$K$70="ja",AJ36,SUM(U36:Z36)) -> 0 | AM36: 6 | AN36: 0 | AO36: 6 | AQ36: 0 | AR36: 17.71798868 | AS36: 5.4 | AT36: 0 | AU36: 0 | AV36: 6 | AW36: 17.71798868 | AX36: 17.71798868 | AY36: 0 | AZ36: 0 | BA36: 6 | BF36: 0 | BG36: 17.71798868 | BH36: -17.71798868 | BI36: 99 | BJ36: 81.28201132 | BK36: 39.6 | BL36: 39.6 | BN36: 39.6 | BO36: 0 | BP36: 6 | BQ36: 6 | BR36: 6 | BS36: 6 | BT36: 6 | BU36: 6 | BV36: 6 | BW36: 6 | BX36: 6 | BY36: 6 | BZ36: 6 | CA36: 6 | CB36: 6 | CC36: 6 | CD36: 6 | CE36: 6 | CF36: 7.92 | CG36: 6 | CH36: 6 | CI36: 6 | CJ36: 6 | CK36: 6 | CL36: 6 | CM36: 6 | CN36: 6 | CO36: 6 | CP36: 6 | CQ36: 6 | CR36: 6 | CS36: 6 | CT36: 6 | CU36: 6 | CV36: 6 | CW36: 15.84 | CX36: 6 | CY36: 6 | CZ36: 6 | DA36: 6 | DB36: 6 | DC36: 6 | DD36: 6 | DE36: 6 | DF36: 6 | DG36: 6 | DH36: 6 | DI36: 6 | DJ36: 6 | DK36: 6 | DL36: 6 | DM36: 6 | DN36: 23.76 | DO36: 12.04201132 | DP36: 6 | DQ36: 6 | DR36: 6 | DS36: 6 | DT36: 6 | DU36: 6 | DV36: 6 | DW36: 6 | DX36: 6 | DY36: 6 | DZ36: 6 | EA36: 6 | EB36: 6 | EC36: 6 | ED36: 6 | EE36: 31.68 | EF36: 19.96201132 | EG36: 6 | EH36: 6 | EI36: 6 | EJ36: 6 | EK36: 6 | EL36: 6 | EM36: 6 | EN36: 6 | EO36: 6 | EP36: 6 | EQ36: 6 | ER36: 6 | ES36: 6 | ET36: 6 | EU36: 6 | EV36: 39.6 | EW36: 27.88201132 | EX36: 11.34522188 | EY36: 6 | EZ36: 6 | FA36: 6 | FB36: 6 | FC36: 6 | FD36: 6 | FE36: 6 | FF36: 6 | FG36: 6 | FH36: 6 | FI36: 6 | FJ36: 6 | FK36: 6 | FL36: 6 | FM36: 6 | FN36: 6 | FO36: 6 | FP36: 12.04201132 | FQ36: 19.96201132 | FR36: 27.88201132 | FS36: 1 | FU36: 39.6 | FV36: 39.6 | FY36: nej | FZ36: nej | GA36: 2.275 | GB36: 0 | GC36: 39.6 | GE36: 0 | GG36: 6 | GH36: 0 | GI36: stiger | GJ36: --- | GK36: --- | GL36: - | GM36: - | GN36: 0 | GO36: 0 | GP36: 0 | GQ36: 0 | GR36: 0 | GS36: 0 | GT36: 0 | HI36: 17.71798868 | HJ36: =INDEX(ID!$K$153:$K$176,D36+1)*INDEX(ID!$K$180:$K$191,$B36) -> 1 | HK36: =INDEX(ID!$L$153:$L$176,D36+1)*INDEX(ID!$K$180:$K$191,$B36) -> 1 | HL36: 40.30842425 | HM36: 40.30842425 | HN36: =ID!K244 -> 0.05236 | HO36: 2.087699575 | HP36: 36.98983744 | HQ36: =ID!I244 -> 1.2 | HT36: 40.30842425 | HU36: 17.71798868 | HV36: 5.10278074 | HW36: =IF(elsalgtype=1,HK36*(GO36)*Elprissalg,IF(elsalgtype=2,ID!J244,"elsalgtype ikke defineret")) -> 0 | IA36: 0 | IB36: 0 | IC36: 0 | ID36: 0 | IE36: 0 | IF36: 0 | IG36: 0 | IH36: 0 | II36: 0 | IJ36: 0 | IK36: 0 | IL36: 0 | IM36: 0 | IN36: 0 | IO36: 0 | IP36: 0 | IQ36: 0 | IR36: 0 | IS36: 0 | IT36: 0 | IU36: 0 | IV36: 0 | IW36: 0 | IX36: 0 | IY36: 0
A37: 27 | B37: 1 | C37: 2 | D37: 2 | E37: 2 | F37: 1 | G37: 0 | H37: 11.82 | I37: 4.4 | J37: =IF(ID!$W$4=2,0,FBR!P37+FBR!Q37) -> 16.53678943 | K37: =IF(ID!$W$4=2,0,FBR!R37+FBR!S37) -> 0 | L37: =ID!H245 -> 1 | M37: =IF(ID!$Y$4=1,J37+K37,IF(ID!$Y$4=2,model!L37,"error")) -> 16.53678943 | O37: 0 | P37: 0 | Q37: 0 | R37: 0 | S37: 0 | T37: 0 | U37: =(1-ID!$AB$64)*O37*PV1W/1000000 -> 0 | V37: =(1-ID!$AB$65)*P37*PV2W/1000000 -> 0 | W37: =(1-ID!$AB$66)*Q37*PV3W/1000000 -> 0 | X37: =(1-ID!$AB$67)*R37*PV4W/1000000 -> 0 | Y37: =(1-ID!$AB$68)*S37*PV5W/1000000 -> 0 | Z37: =(1-ID!$AB$69)*T37*PV6W/1000000 -> 0 | AJ37: =ID!L245 -> 0 | AK37: =IF(ID!$K$70="ja",AJ37,SUM(U37:Z37)) -> 0 | AM37: 6 | AN37: 0 | AO37: 6 | AQ37: 0 | AR37: 16.53678943 | AS37: 5.4 | AT37: 0 | AU37: 0 | AV37: 6 | AW37: 16.53678943 | AX37: 16.53678943 | AY37: 0 | AZ37: 0 | BA37: 6 | BF37: 0 | BG37: 16.53678943 | BH37: -16.53678943 | BI37: 99 | BJ37: 82.46321057 | BK37: 39.6 | BL37: 39.6 | BN37: 39.6 | BO37: 0 | BP37: 6 | BQ37: 6 | BR37: 6 | BS37: 6 | BT37: 6 | BU37: 6 | BV37: 6 | BW37: 6 | BX37: 6 | BY37: 6 | BZ37: 6 | CA37: 6 | CB37: 6 | CC37: 6 | CD37: 6 | CE37: 6 | CF37: 7.92 | CG37: 6 | CH37: 6 | CI37: 6 | CJ37: 6 | CK37: 6 | CL37: 6 | CM37: 6 | CN37: 6 | CO37: 6 | CP37: 6 | CQ37: 6 | CR37: 6 | CS37: 6 | CT37: 6 | CU37: 6 | CV37: 6 | CW37: 15.84 | CX37: 6 | CY37: 6 | CZ37: 6 | DA37: 6 | DB37: 6 | DC37: 6 | DD37: 6 | DE37: 6 | DF37: 6 | DG37: 6 | DH37: 6 | DI37: 6 | DJ37: 6 | DK37: 6 | DL37: 6 | DM37: 6 | DN37: 23.76 | DO37: 13.22321057 | DP37: 6 | DQ37: 6 | DR37: 6 | DS37: 6 | DT37: 6 | DU37: 6 | DV37: 6 | DW37: 6 | DX37: 6 | DY37: 6 | DZ37: 6 | EA37: 6 | EB37: 6 | EC37: 6 | ED37: 6 | EE37: 31.68 | EF37: 21.14321057 | EG37: 6 | EH37: 6 | EI37: 6 | EJ37: 6 | EK37: 6 | EL37: 6 | EM37: 6 | EN37: 6 | EO37: 6 | EP37: 6 | EQ37: 6 | ER37: 6 | ES37: 6 | ET37: 6 | EU37: 6 | EV37: 39.6 | EW37: 29.06321057 | EX37: 13.11702075 | EY37: 6 | EZ37: 6 | FA37: 6 | FB37: 6 | FC37: 6 | FD37: 6 | FE37: 6 | FF37: 6 | FG37: 6 | FH37: 6 | FI37: 6 | FJ37: 6 | FK37: 6 | FL37: 6 | FM37: 6 | FN37: 6 | FO37: 6 | FP37: 13.22321057 | FQ37: 21.14321057 | FR37: 29.06321057 | FS37: 1 | FU37: 39.6 | FV37: 39.6 | FY37: nej | FZ37: nej | GA37: 2.275 | GB37: 0 | GC37: 39.6 | GE37: 0 | GG37: 6 | GH37: 0 | GI37: stiger | GJ37: --- | GK37: --- | GL37: - | GM37: - | GN37: 0 | GO37: 0 | GP37: 0 | GQ37: 0 | GR37: 0 | GS37: 0 | GT37: 0 | HI37: 16.53678943 | HJ37: =INDEX(ID!$K$153:$K$176,D37+1)*INDEX(ID!$K$180:$K$191,$B37) -> 1 | HK37: =INDEX(ID!$L$153:$L$176,D37+1)*INDEX(ID!$K$180:$K$191,$B37) -> 1 | HL37: 37.62119596 | HM37: 37.62119596 | HN37: =ID!K245 -> 0.01432 | HO37: 2.049659575 | HP37: 33.89478881 | HQ37: =ID!I245 -> 1.2 | HT37: 37.62119596 | HU37: 16.53678943 | HV37: 4.762595357 | HW37: =IF(elsalgtype=1,HK37*(GO37)*Elprissalg,IF(elsalgtype=2,ID!J245,"elsalgtype ikke defineret")) -> 0 | IA37: 0 | IB37: 0 | IC37: 0 | ID37: 0 | IE37: 0 | IF37: 0 | IG37: 0 | IH37: 0 | II37: 0 | IJ37: 0 | IK37: 0 | IL37: 0 | IM37: 0 | IN37: 0 | IO37: 0 | IP37: 0 | IQ37: 0 | IR37: 0 | IS37: 0 | IT37: 0 | IU37: 0 | IV37: 0 | IW37: 0 | IX37: 0 | IY37: 0
A38: 28 | B38: 1 | C38: 2 | D38: 3 | E38: 2 | F38: 1 | G38: 0 | H38: 11.31 | I38: 4.8 | J38: =IF(ID!$W$4=2,0,FBR!P38+FBR!Q38) -> 15.94618981 | K38: =IF(ID!$W$4=2,0,FBR!R38+FBR!S38) -> 0 | L38: =ID!H246 -> 1 | M38: =IF(ID!$Y$4=1,J38+K38,IF(ID!$Y$4=2,model!L38,"error")) -> 15.94618981 | O38: 0 | P38: 0 | Q38: 0 | R38: 0 | S38: 0 | T38: 0 | U38: =(1-ID!$AB$64)*O38*PV1W/1000000 -> 0 | V38: =(1-ID!$AB$65)*P38*PV2W/1000000 -> 0 | W38: =(1-ID!$AB$66)*Q38*PV3W/1000000 -> 0 | X38: =(1-ID!$AB$67)*R38*PV4W/1000000 -> 0 | Y38: =(1-ID!$AB$68)*S38*PV5W/1000000 -> 0 | Z38: =(1-ID!$AB$69)*T38*PV6W/1000000 -> 0 | AJ38: =ID!L246 -> 0 | AK38: =IF(ID!$K$70="ja",AJ38,SUM(U38:Z38)) -> 0 | AM38: 6 | AN38: 0 | AO38: 6 | AQ38: 0 | AR38: 15.94618981 | AS38: 5.4 | AT38: 0 | AU38: 0 | AV38: 6 | AW38: 15.94618981 | AX38: 15.94618981 | AY38: 0 | AZ38: 0 | BA38: 6 | BF38: 0 | BG38: 15.94618981 | BH38: -15.94618981 | BI38: 99 | BJ38: 83.05381019 | BK38: 39.6 | BL38: 39.6 | BN38: 39.6 | BO38: 0 | BP38: 6 | BQ38: 6 | BR38: 6 | BS38: 6 | BT38: 6 | BU38: 6 | BV38: 6 | BW38: 6 | BX38: 6 | BY38: 6 | BZ38: 6 | CA38: 6 | CB38: 6 | CC38: 6 | CD38: 6 | CE38: 6 | CF38: 7.92 | CG38: 6 | CH38: 6 | CI38: 6 | CJ38: 6 | CK38: 6 | CL38: 6 | CM38: 6 | CN38: 6 | CO38: 6 | CP38: 6 | CQ38: 6 | CR38: 6 | CS38: 6 | CT38: 6 | CU38: 6 | CV38: 6 | CW38: 15.84 | CX38: 6 | CY38: 6 | CZ38: 6 | DA38: 6 | DB38: 6 | DC38: 6 | DD38: 6 | DE38: 6 | DF38: 6 | DG38: 6 | DH38: 6 | DI38: 6 | DJ38: 6 | DK38: 6 | DL38: 6 | DM38: 6 | DN38: 23.76 | DO38: 13.81381019 | DP38: 6 | DQ38: 6 | DR38: 6 | DS38: 6 | DT38: 6 | DU38: 6 | DV38: 6 | DW38: 6 | DX38: 6 | DY38: 6 | DZ38: 6 | EA38: 6 | EB38: 6 | EC38: 6 | ED38: 6 | EE38: 31.68 | EF38: 21.73381019 | EG38: 6 | EH38: 6 | EI38: 6 | EJ38: 6 | EK38: 6 | EL38: 6 | EM38: 6 | EN38: 6 | EO38: 6 | EP38: 6 | EQ38: 6 | ER38: 6 | ES38: 6 | ET38: 6 | EU38: 6 | EV38: 39.6 | EW38: 29.65381019 | EX38: 13.70762038 | EY38: 6 | EZ38: 6 | FA38: 6 | FB38: 6 | FC38: 6 | FD38: 6 | FE38: 6 | FF38: 6 | FG38: 6 | FH38: 6 | FI38: 6 | FJ38: 6 | FK38: 6 | FL38: 6 | FM38: 6 | FN38: 6 | FO38: 6 | FP38: 13.81381019 | FQ38: 21.73381019 | FR38: 29.65381019 | FS38: 1 | FU38: 39.6 | FV38: 39.6 | FY38: nej | FZ38: nej | GA38: 2.275 | GB38: 0 | GC38: 39.6 | GE38: 0 | GG38: 6 | GH38: 0 | GI38: stiger | GJ38: --- | GK38: --- | GL38: - | GM38: - | GN38: 0 | GO38: 0 | GP38: 0 | GQ38: 0 | GR38: 0 | GS38: 0 | GT38: 0 | HI38: 15.94618981 | HJ38: =INDEX(ID!$K$153:$K$176,D38+1)*INDEX(ID!$K$180:$K$191,$B38) -> 1 | HK38: =INDEX(ID!$L$153:$L$176,D38+1)*INDEX(ID!$K$180:$K$191,$B38) -> 1 | HL38: 36.27758182 | HM38: 36.27758182 | HN38: =ID!K246 -> -0.00037 | HO38: 2.034969575 | HP38: 32.45001111 | HQ38: =ID!I246 -> 1.2 | HT38: 36.27758182 | HU38: 15.94618981 | HV38: 4.592502666 | HW38: =IF(elsalgtype=1,HK38*(GO38)*Elprissalg,IF(elsalgtype=2,ID!J246,"elsalgtype ikke defineret")) -> 0 | IA38: 0 | IB38: 0 | IC38: 0 | ID38: 0 | IE38: 0 | IF38: 0 | IG38: 0 | IH38: 0 | II38: 0 | IJ38: 0 | IK38: 0 | IL38: 0 | IM38: 0 | IN38: 0 | IO38: 0 | IP38: 0 | IQ38: 0 | IR38: 0 | IS38: 0 | IT38: 0 | IU38: 0 | IV38: 0 | IW38: 0 | IX38: 0 | IY38: 0
A39: 29 | B39: 1 | C39: 2 | D39: 4 | E39: 2 | F39: 1 | G39: 0 | H39: 10.79 | I39: 5.6 | J39: =IF(ID!$W$4=2,0,FBR!P39+FBR!Q39) -> 15.94618981 | K39: =IF(ID!$W$4=2,0,FBR!R39+FBR!S39) -> 0 | L39: =ID!H247 -> 1 | M39: =IF(ID!$Y$4=1,J39+K39,IF(ID!$Y$4=2,model!L39,"error")) -> 15.94618981 | O39: 0 | P39: 0 | Q39: 0 | R39: 0 | S39: 0 | T39: 0 | U39: =(1-ID!$AB$64)*O39*PV1W/1000000 -> 0 | V39: =(1-ID!$AB$65)*P39*PV2W/1000000 -> 0 | W39: =(1-ID!$AB$66)*Q39*PV3W/1000000 -> 0 | X39: =(1-ID!$AB$67)*R39*PV4W/1000000 -> 0 | Y39: =(1-ID!$AB$68)*S39*PV5W/1000000 -> 0 | Z39: =(1-ID!$AB$69)*T39*PV6W/1000000 -> 0 | AJ39: =ID!L247 -> 0 | AK39: =IF(ID!$K$70="ja",AJ39,SUM(U39:Z39)) -> 0 | AM39: 6 | AN39: 0 | AO39: 6 | AQ39: 0 | AR39: 15.94618981 | AS39: 5.4 | AT39: 0 | AU39: 0 | AV39: 6 | AW39: 15.94618981 | AX39: 15.94618981 | AY39: 0 | AZ39: 0 | BA39: 6 | BF39: 0 | BG39: 15.94618981 | BH39: -15.94618981 | BI39: 99 | BJ39: 83.05381019 | BK39: 39.6 | BL39: 39.6 | BN39: 39.6 | BO39: 0 | BP39: 6 | BQ39: 6 | BR39: 6 | BS39: 6 | BT39: 6 | BU39: 6 | BV39: 6 | BW39: 6 | BX39: 6 | BY39: 6 | BZ39: 6 | CA39: 6 | CB39: 6 | CC39: 6 | CD39: 6 | CE39: 6 | CF39: 7.92 | CG39: 6 | CH39: 6 | CI39: 6 | CJ39: 6 | CK39: 6 | CL39: 6 | CM39: 6 | CN39: 6 | CO39: 6 | CP39: 6 | CQ39: 6 | CR39: 6 | CS39: 6 | CT39: 6 | CU39: 6 | CV39: 6 | CW39: 15.84 | CX39: 6 | CY39: 6 | CZ39: 6 | DA39: 6 | DB39: 6 | DC39: 6 | DD39: 6 | DE39: 6 | DF39: 6 | DG39: 6 | DH39: 6 | DI39: 6 | DJ39: 6 | DK39: 6 | DL39: 6 | DM39: 6 | DN39: 23.76 | DO39: 13.81381019 | DP39: 6 | DQ39: 6 | DR39: 6 | DS39: 6 | DT39: 6 | DU39: 6 | DV39: 6 | DW39: 6 | DX39: 6 | DY39: 6 | DZ39: 6 | EA39: 6 | EB39: 6 | EC39: 6 | ED39: 6 | EE39: 31.68 | EF39: 21.73381019 | EG39: 6 | EH39: 6 | EI39: 6 | EJ39: 6 | EK39: 6 | EL39: 6 | EM39: 6 | EN39: 6 | EO39: 6 | EP39: 6 | EQ39: 6 | ER39: 6 | ES39: 6 | ET39: 6 | EU39: 6 | EV39: 39.6 | EW39: 29.65381019 | EX39: 13.70762038 | EY39: 6 | EZ39: 6 | FA39: 6 | FB39: 6 | FC39: 6 | FD39: 6 | FE39: 6 | FF39: 6 | FG39: 6 | FH39: 6 | FI39: 6 | FJ39: 6 | FK39: 6 | FL39: 6 | FM39: 6 | FN39: 6 | FO39: 6 | FP39: 13.81381019 | FQ39: 21.73381019 | FR39: 29.65381019 | FS39: 1 | FU39: 39.6 | FV39: 39.6 | FY39: nej | FZ39: nej | GA39: 2.275 | GB39: 0 | GC39: 39.6 | GE39: 0 | GG39: 6 | GH39: 0 | GI39: stiger | GJ39: --- | GK39: --- | GL39: - | GM39: - | GN39: 0 | GO39: 0 | GP39: 0 | GQ39: 0 | GR39: 0 | GS39: 0 | GT39: 0 | HI39: 15.94618981 | HJ39: =INDEX(ID!$K$153:$K$176,D39+1)*INDEX(ID!$K$180:$K$191,$B39) -> 1 | HK39: =INDEX(ID!$L$153:$L$176,D39+1)*INDEX(ID!$K$180:$K$191,$B39) -> 1 | HL39: 36.27758182 | HM39: 36.27758182 | HN39: =ID!K247 -> 0.00045 | HO39: 2.035789575 | HP39: 32.46308699 | HQ39: =ID!I247 -> 1.2 | HT39: 36.27758182 | HU39: 15.94618981 | HV39: 4.592502666 | HW39: =IF(elsalgtype=1,HK39*(GO39)*Elprissalg,IF(elsalgtype=2,ID!J247,"elsalgtype ikke defineret")) -> 0 | IA39: 0 | IB39: 0 | IC39: 0 | ID39: 0 | IE39: 0 | IF39: 0 | IG39: 0 | IH39: 0 | II39: 0 | IJ39: 0 | IK39: 0 | IL39: 0 | IM39: 0 | IN39: 0 | IO39: 0 | IP39: 0 | IQ39: 0 | IR39: 0 | IS39: 0 | IT39: 0 | IU39: 0 | IV39: 0 | IW39: 0 | IX39: 0 | IY39: 0
A40: 30 | B40: 1 | C40: 2 | D40: 5 | E40: 2 | F40: 1 | G40: 0 | H40: 10.79 | I40: 5.4 | J40: =IF(ID!$W$4=2,0,FBR!P40+FBR!Q40) -> 15.94618981 | K40: =IF(ID!$W$4=2,0,FBR!R40+FBR!S40) -> 0 | L40: =ID!H248 -> 1 | M40: =IF(ID!$Y$4=1,J40+K40,IF(ID!$Y$4=2,model!L40,"error")) -> 15.94618981 | O40: 0 | P40: 0 | Q40: 0 | R40: 0 | S40: 0 | T40: 0 | U40: =(1-ID!$AB$64)*O40*PV1W/1000000 -> 0 | V40: =(1-ID!$AB$65)*P40*PV2W/1000000 -> 0 | W40: =(1-ID!$AB$66)*Q40*PV3W/1000000 -> 0 | X40: =(1-ID!$AB$67)*R40*PV4W/1000000 -> 0 | Y40: =(1-ID!$AB$68)*S40*PV5W/1000000 -> 0 | Z40: =(1-ID!$AB$69)*T40*PV6W/1000000 -> 0 | AJ40: =ID!L248 -> 0 | AK40: =IF(ID!$K$70="ja",AJ40,SUM(U40:Z40)) -> 0 | AM40: 6 | AN40: 0 | AO40: 6 | AQ40: 0 | AR40: 15.94618981 | AS40: 5.4 | AT40: 0 | AU40: 0 | AV40: 6 | AW40: 15.94618981 | AX40: 15.94618981 | AY40: 0 | AZ40: 0 | BA40: 6 | BF40: 0 | BG40: 15.94618981 | BH40: -15.94618981 | BI40: 99 | BJ40: 83.05381019 | BK40: 39.6 | BL40: 39.6 | BN40: 39.6 | BO40: 0 | BP40: 6 | BQ40: 6 | BR40: 6 | BS40: 6 | BT40: 6 | BU40: 6 | BV40: 6 | BW40: 6 | BX40: 6 | BY40: 6 | BZ40: 6 | CA40: 6 | CB40: 6 | CC40: 6 | CD40: 6 | CE40: 6 | CF40: 7.92 | CG40: 6 | CH40: 6 | CI40: 6 | CJ40: 6 | CK40: 6 | CL40: 6 | CM40: 6 | CN40: 6 | CO40: 6 | CP40: 6 | CQ40: 6 | CR40: 6 | CS40: 6 | CT40: 6 | CU40: 6 | CV40: 6 | CW40: 15.84 | CX40: 6 | CY40: 6 | CZ40: 6 | DA40: 6 | DB40: 6 | DC40: 6 | DD40: 6 | DE40: 6 | DF40: 6 | DG40: 6 | DH40: 6 | DI40: 6 | DJ40: 6 | DK40: 6 | DL40: 6 | DM40: 6 | DN40: 23.76 | DO40: 13.81381019 | DP40: 6 | DQ40: 6 | DR40: 6 | DS40: 6 | DT40: 6 | DU40: 6 | DV40: 6 | DW40: 6 | DX40: 6 | DY40: 6 | DZ40: 6 | EA40: 6 | EB40: 6 | EC40: 6 | ED40: 6 | EE40: 31.68 | EF40: 21.73381019 | EG40: 6 | EH40: 6 | EI40: 6 | EJ40: 6 | EK40: 6 | EL40: 6 | EM40: 6 | EN40: 6 | EO40: 6 | EP40: 6 | EQ40: 6 | ER40: 6 | ES40: 6 | ET40: 6 | EU40: 6 | EV40: 39.6 | EW40: 29.65381019 | EX40: 12.52642113 | EY40: 6 | EZ40: 6 | FA40: 6 | FB40: 6 | FC40: 6 | FD40: 6 | FE40: 6 | FF40: 6 | FG40: 6 | FH40: 6 | FI40: 6 | FJ40: 6 | FK40: 6 | FL40: 6 | FM40: 6 | FN40: 6 | FO40: 6 | FP40: 13.81381019 | FQ40: 21.73381019 | FR40: 29.65381019 | FS40: 1 | FU40: 39.6 | FV40: 39.6 | FY40: nej | FZ40: nej | GA40: 2.275 | GB40: 0 | GC40: 39.6 | GE40: 0 | GG40: 6 | GH40: 0 | GI40: stiger | GJ40: --- | GK40: --- | GL40: - | GM40: - | GN40: 0 | GO40: 0 | GP40: 0 | GQ40: 0 | GR40: 0 | GS40: 0 | GT40: 0 | HI40: 15.94618981 | HJ40: =INDEX(ID!$K$153:$K$176,D40+1)*INDEX(ID!$K$180:$K$191,$B40) -> 1 | HK40: =INDEX(ID!$L$153:$L$176,D40+1)*INDEX(ID!$K$180:$K$191,$B40) -> 1 | HL40: 36.27758182 | HM40: 36.27758182 | HN40: =ID!K248 -> 0.05266 | HO40: 2.087999575 | HP40: 33.29563756 | HQ40: =ID!I248 -> 1.2 | HT40: 36.27758182 | HU40: 15.94618981 | HV40: 4.592502666 | HW40: =IF(elsalgtype=1,HK40*(GO40)*Elprissalg,IF(elsalgtype=2,ID!J248,"elsalgtype ikke defineret")) -> 0 | IA40: 0 | IB40: 0 | IC40: 0 | ID40: 0 | IE40: 0 | IF40: 0 | IG40: 0 | IH40: 0 | II40: 0 | IJ40: 0 | IK40: 0 | IL40: 0 | IM40: 0 | IN40: 0 | IO40: 0 | IP40: 0 | IQ40: 0 | IR40: 0 | IS40: 0 | IT40: 0 | IU40: 0 | IV40: 0 | IW40: 0 | IX40: 0 | IY40: 0
A41: 31 | B41: 1 | C41: 2 | D41: 6 | E41: 2 | F41: 1 | G41: 0 | H41: 10.28 | I41: 5 | J41: =IF(ID!$W$4=2,0,FBR!P41+FBR!Q41) -> 17.12738906 | K41: =IF(ID!$W$4=2,0,FBR!R41+FBR!S41) -> 0 | L41: =ID!H249 -> 1 | M41: =IF(ID!$Y$4=1,J41+K41,IF(ID!$Y$4=2,model!L41,"error")) -> 17.12738906 | O41: 0 | P41: 0 | Q41: 0 | R41: 0 | S41: 0 | T41: 0 | U41: =(1-ID!$AB$64)*O41*PV1W/1000000 -> 0 | V41: =(1-ID!$AB$65)*P41*PV2W/1000000 -> 0 | W41: =(1-ID!$AB$66)*Q41*PV3W/1000000 -> 0 | X41: =(1-ID!$AB$67)*R41*PV4W/1000000 -> 0 | Y41: =(1-ID!$AB$68)*S41*PV5W/1000000 -> 0 | Z41: =(1-ID!$AB$69)*T41*PV6W/1000000 -> 0 | AJ41: =ID!L249 -> 0 | AK41: =IF(ID!$K$70="ja",AJ41,SUM(U41:Z41)) -> 0 | AM41: 6 | AN41: 0 | AO41: 6 | AQ41: 0 | AR41: 17.12738906 | AS41: 5.4 | AT41: 0 | AU41: 0 | AV41: 6 | AW41: 17.12738906 | AX41: 17.12738906 | AY41: 0 | AZ41: 0 | BA41: 6 | BF41: 0 | BG41: 17.12738906 | BH41: -17.12738906 | BI41: 99 | BJ41: 81.87261094 | BK41: 39.6 | BL41: 39.6 | BN41: 39.6 | BO41: 0 | BP41: 6 | BQ41: 6 | BR41: 6 | BS41: 6 | BT41: 6 | BU41: 6 | BV41: 6 | BW41: 6 | BX41: 6 | BY41: 6 | BZ41: 6 | CA41: 6 | CB41: 6 | CC41: 6 | CD41: 6 | CE41: 6 | CF41: 7.92 | CG41: 6 | CH41: 6 | CI41: 6 | CJ41: 6 | CK41: 6 | CL41: 6 | CM41: 6 | CN41: 6 | CO41: 6 | CP41: 6 | CQ41: 6 | CR41: 6 | CS41: 6 | CT41: 6 | CU41: 6 | CV41: 6 | CW41: 15.84 | CX41: 6 | CY41: 6 | CZ41: 6 | DA41: 6 | DB41: 6 | DC41: 6 | DD41: 6 | DE41: 6 | DF41: 6 | DG41: 6 | DH41: 6 | DI41: 6 | DJ41: 6 | DK41: 6 | DL41: 6 | DM41: 6 | DN41: 23.76 | DO41: 12.63261094 | DP41: 6 | DQ41: 6 | DR41: 6 | DS41: 6 | DT41: 6 | DU41: 6 | DV41: 6 | DW41: 6 | DX41: 6 | DY41: 6 | DZ41: 6 | EA41: 6 | EB41: 6 | EC41: 6 | ED41: 6 | EE41: 31.68 | EF41: 20.55261094 | EG41: 6 | EH41: 6 | EI41: 6 | EJ41: 6 | EK41: 6 | EL41: 6 | EM41: 6 | EN41: 6 | EO41: 6 | EP41: 6 | EQ41: 6 | ER41: 6 | ES41: 6 | ET41: 6 | EU41: 6 | EV41: 39.6 | EW41: 28.47261094 | EX41: 9.573423017 | EY41: 6 | EZ41: 6 | FA41: 6 | FB41: 6 | FC41: 6 | FD41: 6 | FE41: 6 | FF41: 6 | FG41: 6 | FH41: 6 | FI41: 6 | FJ41: 6 | FK41: 6 | FL41: 6 | FM41: 6 | FN41: 6 | FO41: 6 | FP41: 12.63261094 | FQ41: 20.55261094 | FR41: 28.47261094 | FS41: 1 | FU41: 39.6 | FV41: 39.6 | FY41: nej | FZ41: nej | GA41: 2.275 | GB41: 0 | GC41: 39.6 | GE41: 0 | GG41: 6 | GH41: 0 | GI41: stiger | GJ41: --- | GK41: --- | GL41: - | GM41: - | GN41: 0 | GO41: 0 | GP41: 0 | GQ41: 0 | GR41: 0 | GS41: 0 | GT41: 0 | HI41: 17.12738906 | HJ41: =INDEX(ID!$K$153:$K$176,D41+1)*INDEX(ID!$K$180:$K$191,$B41) -> 1 | HK41: =INDEX(ID!$L$153:$L$176,D41+1)*INDEX(ID!$K$180:$K$191,$B41) -> 1 | HL41: 38.96481011 | HM41: 38.96481011 | HN41: =ID!K249 -> 0.21878 | HO41: 2.254119575 | HP41: 38.60718295 | HQ41: =ID!I249 -> 1.2 | HT41: 38.96481011 | HU41: 17.12738906 | HV41: 4.932688049 | HW41: =IF(elsalgtype=1,HK41*(GO41)*Elprissalg,IF(elsalgtype=2,ID!J249,"elsalgtype ikke defineret")) -> 0 | IA41: 0 | IB41: 0 | IC41: 0 | ID41: 0 | IE41: 0 | IF41: 0 | IG41: 0 | IH41: 0 | II41: 0 | IJ41: 0 | IK41: 0 | IL41: 0 | IM41: 0 | IN41: 0 | IO41: 0 | IP41: 0 | IQ41: 0 | IR41: 0 | IS41: 0 | IT41: 0 | IU41: 0 | IV41: 0 | IW41: 0 | IX41: 0 | IY41: 0
